{"text_format":"1","workbook":"xlsx","n_sheets":13,"sheets":["Instructions","Nutrient Management","Corn K Calculations","Soybean K Calculations","Wheat K Calculations","Fertilizer Products & Pricing","Manure and Nutrient Credits","Fertilizer Plan (Corn)","Fertilizer Plan (Soybean)","Fertilizer Plan (Wheat)","Simple Fertilizer Calculator","Tri-State Recommendations","Charts"],"not_rendered":{"charts":0,"images":39,"macros":1,"external_links":1,"defined_names":24,"comments":0,"pivot_tables":0},"unopened":[],"bounds":{"document_bytes":16777216,"sheet_cells":100000,"rows_first":2000,"rows_last":500,"rows_between":2000,"halvings":0,"cell_chars":16384,"cell_head_chars":4096},"cells_cut":0,"cells_raw":0,"read":"whole","date_system":"1900"}

{"sheet":"Instructions","index":0,"n_rows":35,"n_cols":16,"rows_kept":35,"cut":false,"hidden":false,"merged":[[12,4,13,17],[14,4,14,17],[19,4,20,17],[21,4,21,17],[0,0,2,17],[6,0,6,17],[5,0,5,17],[3,0,3,17],[11,2,11,17],[4,0,4,17],[22,4,22,14],[34,1,35,17],[17,4,17,17],[16,4,16,17],[15,4,15,17],[18,4,18,17],[23,4,24,17],[26,4,26,17],[27,4,28,17],[29,4,29,17],[30,4,31,17],[26,2,31,2]]}
["Fertilizer Cost Comparison Tool (Field Crops)"]
[]
[]
["Template by: Jon LaPorte, Farm Management Educator"]
["Michigan State University Extension"]
["120 N. Broadway, Suite 116, Cassopolis, MI 49031"]
["Phone: (269) 445-4356          Email: laportej@msu.edu"]
[]
[]
["1)","Each TAB represents an important aspect of fertilizer planning (i.e., nutrient management, sources of fertilizer, and overall fertilizer plan for each commodity).  Click on a TAB to enter specific  information."]
[null,"These include:"]
[]
[null,null,"Nutrient Management","-","Input yield goals, soil test based nutrient recommendations, manure nutrient analysis, and nutrient credits.  This section will determine the total amount of nutrients that will need to be supplied through commercial fertilizer products.  "]
[]
[null,null,null,null,"This section provides detailed information for use with the Fertilizer Plan sections to determine how much commercial fertilizer will need to be applied."]
[null,null,"Fertilizer Products & Pricing","-","Input the products and prices for fertilizer, lime, and nitrogen stabilizers to use in the Fertilizer Plan.  Common fertilizer products are already provided."]
[null,null,null,null,"Each crop has its own tab (i.e. Fertilizer - Corn)"]
[null,null,"Fertilizer Plan Tabs","-","Choose the fertilizer from the drop-down menu and enter product/acre to be used.  (i.e. 100lbs/acre of 9-23-30 = 50lbs 18-46-0 & 50lbs 0-0-62lbs)"]
[null,null,"(Corn, Soybeans, Wheat)",null,"Note: Includes an in-depth assessment of nutrients provided at each application of the farm's fertilizer program."]
[null,null,"Tri-State Recommendations","-","This section allows for calculating of P and K values needed to meet yield goals based on Tri-State Recommendations.  The information can be transferred to the Nutrient Management page for use in commercial fertilizer cost comparison.  "]
[]
[null,null,null,null,"Note: This section is not a replacement for recommendations from a soil test analysis obtained from soil test laboratories.  "]
[null,null,null,null,"For soil test based recommendations, visit the MSU Soil and Plant Nutrient Laboratory:",null,null,null,null,null,null,null,null,null,null,"https://www.canr.msu.edu/spnl/"]
[null,null,"Simple Fertilizer Calculator","-","This section contains a calculation for finding cost per acre on select fertilizer products.  There are also calculators to extract nitrogen and sulfur costs from combination fertilizer products."]
[]
[]
[null,null,"Manure Applications ---START HERE",null,"Do you plan to include manure cost in your fertilizer plan?  Go to the Fertilizer Products & Pricing worksheet"]
[null,null,null,null,"Note: There is a Manure Calculator to input nutrient analysis values.  The calculator will adjust values based on selected number of days before manure is expected to be incorporated.  Retention factors used to adjust values are based on 2022 proposed MI GAAMPS charts."]
[]
[null,null,null,null,"Do you plan to include only commercial fertilizer products in your fertilizer plan?  Go to the Nutrient Management worksheet"]
[null,null,null,null,"Note: Step 4 provides an area to include values of manure, preferably based on a nutrient analysis.  Values can also be adjusted based on selected number of days before manure is expected to be incorporated.  Retention factors used to adjust values are based on 2022 proposed MI GAAMPS charts."]
[]
["2)","Only items that are colored in BLUE should be altered in each TAB.  Changing the value of an item not marked BLUE can cause the formulas in the spreadsheet to stop working."]
[]
["3)","The Nutrient Management and Fertilizer Plan Tabs can be printed for your farm records.  The Fertilizer Plan Tab also allows for printing of three different plans for your chosen commodity.  This allows for comparison of different fertilizer sources to identify the best way to meet nutrient needs at the lowest possible cost."]

{"sheet":"Nutrient Management","index":1,"n_rows":86,"n_cols":18,"rows_kept":86,"cut":false,"hidden":false,"merged":[[51,1,51,3],[51,5,51,7],[51,9,51,11],[61,1,61,3],[61,5,61,7],[61,9,61,11],[44,0,47,0],[38,0,42,0],[28,0,36,0],[19,0,26,0],[8,0,17,0],[41,13,42,13],[2,15,2,22],[14,13,15,13],[16,13,17,13],[12,17,12,18],[10,15,10,18],[13,17,13,18],[19,15,22,19],[24,15,25,19],[32,15,33,19],[73,1,73,11],[49,1,49,11],[28,1,28,11],[19,1,19,11],[44,1,44,11],[48,1,48,11],[43,1,43,11],[27,1,27,11],[37,1,37,11],[71,9,71,11],[38,1,38,11],[46,1,46,2],[46,5,46,6],[46,9,46,10],[45,1,45,2],[45,5,45,6],[49,0,50,0],[60,0,61,0],[0,1,0,11],[1,1,1,3],[1,5,1,7],[1,9,1,11],[18,1,18,11],[7,1,7,11],[3,1,3,11],[8,1,8,11],[45,9,45,10],[35,1,35,3],[35,5,35,7],[35,9,35,11],[4,0,6,0],[0,0,2,0]]}
[null,"Nutrient Management",null,null,null,null,null,null,null,null,null,null,null,null,null,"Additional Resources:"]
[null,"Corn",null,null,null,"Soybeans",null,null,null,"Wheat",null,null,null,null,null,"For more information on Fertilizer Recommendations, see: "]
[null,null,null,null,null,null,null,null,null,null,null,null,null,null,null,"MSU Bulletin E-2904, Nutrient Recommendations for Field Crops in Michigan"]
["Step 1:","Yield Goal:",null,null,null,null,null,null,null,null,null,null,null,null,null,"Tri-State Fertilizer Recommendations"]
[null,null,"(Enter Below)",null,null,null,"(Enter Below)",null,null,null,"(Enter Below)"]
[null,null,200,null,null,null,45,null,null,null,100,null,null,null,null,"MSU Fertilizer Recommendation Program"]
[null,null,null,null,null,null,null,null,null,null,null,null,null,null,null,"https://www.canr.msu.edu/fertrec/"]
["Step 2: ","Soil Test Based Recommendations:",null,null,null,null,null,null,null,null,null,null,null,null,null,"Maximum Return to Nitrogen Calculator"]
[null,"Obtained from MSU Fertilizer Recommendation Program, MRTN (Nitrogen) Calculator, Tri-State Recommendations or your local soil lab.",null,null,null,null,null,null,null,null,null,null,null,null,null,"http://cnrc.agron.iastate.edu/"]
[null,"(Enter Below)","(Enter Below)","(Enter Below)",null,"(Enter Below)","(Enter Below)","(Enter Below)",null,"(Enter Below)","(Enter Below)","(Enter Below)"]
[null,"N","P","K",null,"N","P","K",null,"N","P","K",null,null,null,"PPM to Pounds (Lbs) Conversion Calculator"]
[null,150,125,75,null,0,35,205,null,120,65,40,null,null,null,"(Enter Below)"]
[null,"S","Ca","Mag",null,"S","Ca","Mag",null,"S","Ca","Mag",null,"More",null,"PPM",null,"Pounds (Lbs)"]
[null,8,0,0,null,12,0,0,null,8,0,0,null,"Below",null,0,"x 2",{"$f":"P14*2","v":0}]
[null,"Z","B","Mn",null,"Z","B","Mn",null,"Z","B","Mn",null,"¯"]
[null,0,0,0,null,0,0,0,null,0,0,0]
[null,"Lbs/Acre","Lbs/Acre","Lbs/Acre",null,"Lbs/Acre","Lbs/Acre","Lbs/Acre",null,"Lbs/Acre","Lbs/Acre","Lbs/Acre",null,"¯"]
[]
["Step 3: ","Nutrient Removal",null,null,null,null,null,null,null,null,null,null,null,null,null,"Nutrient Recommendation"]
[null,"Amount of nutrients being removed based on yield goal.",null,null,null,null,null,null,null,null,null,null,null,null,null,"Nutrient removal rates are based on soil nutrients at \"maintenance levels.\"  Soil testing is recommended to confirm maintenance levels exist prior to consideration of removal rates.  "]
[]
[null,"N","P","K",null,"N","P","K",null,"N","P","K"]
[null,{"$f":"0.9*C6","v":180},{"$f":"0.37*C6","v":74},{"$f":"0.27*C6","v":54},null,{"$f":"3.8*G6","v":171},{"$f":"0.8*G6","v":36},{"$f":"1.4*G6","v":62.999999999999993},null,{"$f":"1.2*K6","v":120},{"$f":"0.63*K6","v":63},{"$f":"0.37*K6","v":37}]
[null,"S","Ca","Mag",null,"S","Ca","Mag",null,"S","Ca","Mag"]
[null,{"$f":"0.05*C6","v":10},0,0,null,{"$f":"0.18*G6","v":8.1},0,0,null,{"$f":"0.07*K6","v":7.0000000000000009},0,0,null,null,null,"MSU recommends using soil test-based information to address nutrient needs of your intended yield goals."]
[null,"Lbs/Acre","Lbs/Acre","Lbs/Acre",null,"Lbs/Acre","Lbs/Acre","Lbs/Acre",null,"Lbs/Acre","Lbs/Acre","Lbs/Acre"]
[]
["Step 4: ","Manure  Application - This Year",null,null,null,null,null,null,null,null,null,null,null,null,null,"Manure Resources"]
[null,"Input nutrients being provided in manure applications \"this year\" (based on nutrient analysis results).",null,null,null,null,null,null,null,null,null,null,null,null,null,"Manure application methods and nitrogen losses (University of Minnesota)"]
[null,"(Enter Below)","(Enter Below)","(Enter Below)",null,"(Enter Below)","(Enter Below)","(Enter Below)",null,"(Enter Below)","(Enter Below)","(Enter Below)",null,null,null,"Michigan GAAMPS",null,"←  See table A4 in Manure Mgmt & Utilization section for approximate manure values in place of nutrient analysis"]
[null,"N","P","K",null,"N","P","K",null,"N","P","K"]
[null,42,75,57,null,42,75,57,null,0,0,0,null,null,null,"Note:"]
[null,"S",null,null,null,"S",null,null,null,"S",null,null,null,null,null,"If you are using manure or compost, for best results a nutrient analysis is highly recommended."]
[null,8,null,"(Select Below)",null,8,null,"(Select Below)",null,0,null,"(Select Below)"]
[null,"Days Before Incorporation",null,"4-7 days",null,"Days Before Incorporation",null,"0-1 days",null,"Days Before Incorporation",null,"----"]
[null,"*for all liquid and solid manure types",null,null,null,"*for all liquid and solid manure types",null,null,null,"*for all liquid and solid manure types"]
[]
["Step 5: ","Nutrient Credit: Manure - Previous Year(s)"]
[null,"Input nutrients being provided in manure applications from previous year(s)."]
[null,"(Enter Below)","(Enter Below)","(Enter Below)",null,"(Enter Below)","(Enter Below)","(Enter Below)",null,"(Enter Below)","(Enter Below)","(Enter Below)",null,"More"]
[null,"N","P","K",null,"N","P","K",null,"N","P","K",null,"Below"]
[null,0,0,0,null,0,0,0,null,20,32,25,null,"¯"]
[]
["Step 6: ","Nutrient Credit: Previous Crop",null,null,null,null,null,null,null,null,null,null,null,null,null,"For use with Step 6 (per MSU Bulletin: E-2904)"]
[null,"Input nutrients being credited from legume crops planted in previous year."]
[null,"(Select Below)",null,"N",null,"(Select Below)",null,"N",null,"(Select Below)",null,"N"]
[null,"Soybeans",null,{"$f":"VLOOKUP(B47,'Manure and Nutrient Credits'!$A$3:$B$16,2,FALSE)","v":30},null,"Select Previous Crop",null,{"$f":"VLOOKUP(F47,'Manure and Nutrient Credits'!$A$3:$B$16,2,FALSE)","v":0},null,"Soybeans",null,{"$f":"VLOOKUP(J47,'Manure and Nutrient Credits'!$A$3:$B$16,2,FALSE)","v":30}]
[]
["Step 7: ","Total Nutrients Needed From Commercial Fertilizer"]
[null,"Nutrients still needed based on starting point of soil test recommendations or nutrient removal rates, minus any manure or nutrient credits. "]
[]
[null,"Soil Test Based Recs",null,null,null,"Soil Test Based Recs",null,null,null,"Soil Test Based Recs"]
[null,"N","P","K",null,"N","P","K",null,"N","P","K"]
[null,{"$f":"B12-(B32*'Manure and Nutrient Credits'!$D$27)-B42-D47","v":111.6},{"$f":"C12-(C32*'Manure and Nutrient Credits'!$D$27)-C42","v":110},{"$f":"D12-(D32*'Manure and Nutrient Credits'!$D$27)-D42","v":63.6},null,{"$f":"F12-(F32*'Manure and Nutrient Credits'!$D$30)-F42-H47","v":-29.4},{"$f":"G12-(G32*'Manure and Nutrient Credits'!$D$30)-G42","v":-17.5},{"$f":"H12-(H32*'Manure and Nutrient Credits'!$D$30)-H42","v":165.1},null,{"$f":"J12-(J32*'Manure and Nutrient Credits'!$D$33)-J42-L47","v":70},{"$f":"K12-(K32*'Manure and Nutrient Credits'!$D$33)-K42","v":33},{"$f":"L12-(L32*'Manure and Nutrient Credits'!$D$33)-L42","v":15}]
[null,{"$f":"MAX(0,B54)","v":111.6},{"$f":"MAX(0,C54)","v":110},63.6,null,{"$f":"MAX(0,F54)","v":0},{"$f":"MAX(0,G54)","v":0},{"$f":"MAX(0,H54)","v":165.1},null,{"$f":"MAX(0,J54)","v":70},{"$f":"MAX(0,K54)","v":33},{"$f":"MAX(0,L54)","v":15}]
[null,"S","Ca","Mag",null,"S","Ca","Mag",null,"S","Ca","Mag"]
[null,{"$f":"B14-(B34*'Manure and Nutrient Credits'!$D$27)","v":6.4},{"$f":"C14","v":0},{"$f":"D14","v":0},null,{"$f":"F14-(F34*'Manure and Nutrient Credits'!$D$30)","v":6.4},{"$f":"G14","v":0},{"$f":"H14","v":0},null,{"$f":"J14-(J34*'Manure and Nutrient Credits'!$D$33)","v":8},{"$f":"K14","v":0},{"$f":"L14","v":0}]
[null,{"$f":"MAX(0,B57)","v":6.4},{"$f":"MAX(0,C57)","v":0},0,null,{"$f":"MAX(0,F57)","v":6.4},{"$f":"MAX(0,G57)","v":0},{"$f":"MAX(0,H57)","v":0},null,{"$f":"MAX(0,J57)","v":8},{"$f":"MAX(0,K57)","v":0},{"$f":"MAX(0,L57)","v":0}]
[null,"Z","B","Mn",null,"Z","B","Mn",null,"Z","B","Mn"]
[null,0,0,0,null,0,0,0,null,0,0,0]
[]
[null,"Nutrient Removal Recs",null,null,null,"Nutrient Removal Recs",null,null,null,"Nutrient Removal Recs"]
[null,"N","P","K",null,"N","P","K",null,"N","P","K"]
[null,{"$f":"B23-(B32*'Manure and Nutrient Credits'!$D$27)-B42-D47","v":141.6},{"$f":"C23-(C32*'Manure and Nutrient Credits'!$D$27)-C42","v":59},{"$f":"D23-(D32*'Manure and Nutrient Credits'!$D$27)-D42","v":42.6},null,{"$f":"F23-(F32*'Manure and Nutrient Credits'!$D$30)-F42-H47","v":141.6},{"$f":"G23-(G32*'Manure and Nutrient Credits'!$D$30)-G42","v":-16.5},{"$f":"H23-(H32*'Manure and Nutrient Credits'!$D$30)-H42","v":23.099999999999994},null,{"$f":"J23-(J32*'Manure and Nutrient Credits'!$D$33)-J42-L47","v":70},{"$f":"K23-(K32*'Manure and Nutrient Credits'!$D$33)-K42","v":31},{"$f":"L23-(L32*'Manure and Nutrient Credits'!$D$33)-L42","v":12}]
[null,{"$f":"MAX(0,B83)","v":141.6},{"$f":"MAX(0,C83)","v":59},{"$f":"MAX(0,D83)","v":42.6},null,{"$f":"MAX(0,F83)","v":141.6},{"$f":"MAX(0,G83)","v":0},{"$f":"MAX(0,H83)","v":23.099999999999994},null,{"$f":"MAX(0,J83)","v":70},{"$f":"MAX(0,K83)","v":31},{"$f":"MAX(0,L83)","v":12}]
[null,"S","Ca","Mag",null,"S","Ca","Mag",null,"S","Ca","Mag"]
[null,{"$f":"B25-(B34*'Manure and Nutrient Credits'!$D$27)","v":8.4},{"$f":"C25","v":0},{"$f":"D25","v":0},null,{"$f":"F25-(F34*'Manure and Nutrient Credits'!$D$30)","v":2.5},{"$f":"G25","v":0},{"$f":"H25","v":0},null,{"$f":"J25-(J34*'Manure and Nutrient Credits'!$D$33)","v":7.0000000000000009},{"$f":"K25","v":0},{"$f":"L25","v":0}]
[null,{"$f":"MAX(0,B67)","v":8.4},{"$f":"MAX(0,C67)","v":0},0,null,{"$f":"MAX(0,F67)","v":2.5},{"$f":"MAX(0,G67)","v":0},0,null,{"$f":"MAX(0,J67)","v":7.0000000000000009},{"$f":"MAX(0,K67)","v":0},0]
[null,"Z","B","Mn",null,"Z","B","Mn",null,"Z","B","Mn"]
[null,0,0,0,null,0,0,0,null,0,0,0]
[]
[null,null,null,null,null,null,null,null,null,"Enter Farm Name"]
[]
[null,"Use this information to help determine the amount of commercial fertilizer needed in the Fertilizer Plan tab."]
[]
[null,"Soil Test Based Recommendations",null,null,null,"Soil Test Based Recommendations",null,null,null,"Soil Test Based Recommendations"]
[null,{"$f":"B12-(B32*'Manure and Nutrient Credits'!$D$27)-B42-D47","v":111.6},{"$f":"C12-(C32*'Manure and Nutrient Credits'!$D$27)-C42","v":110},{"$f":"D12-(D32*'Manure and Nutrient Credits'!$D$27)-D42","v":63.6},null,{"$f":"F12-(F32*'Manure and Nutrient Credits'!$D$30)-F42-H47","v":-29.4},{"$f":"G12-(G32*'Manure and Nutrient Credits'!$D$30)-G42","v":-17.5},{"$f":"H12-(H32*'Manure and Nutrient Credits'!$D$30)-H42","v":165.1},null,{"$f":"J12-(J32*'Manure and Nutrient Credits'!$D$33)-J42-L47","v":70},{"$f":"K12-(K32*'Manure and Nutrient Credits'!$D$33)-K42","v":33},{"$f":"L12-(L32*'Manure and Nutrient Credits'!$D$33)-L42","v":15}]
[null,{"$f":"MAX(0,B77)","v":111.6},{"$f":"MAX(0,C77)","v":110},63.6,null,{"$f":"MAX(0,F77)","v":0},{"$f":"MAX(0,G77)","v":0},{"$f":"MAX(0,H77)","v":165.1},null,{"$f":"MAX(0,J77)","v":70},{"$f":"MAX(0,K77)","v":33},{"$f":"MAX(0,L77)","v":15}]
[null,{"$f":"B14-(B34*'Manure and Nutrient Credits'!$D$27)","v":6.4},null,null,null,{"$f":"F14-(F34*'Manure and Nutrient Credits'!$D$30)","v":6.4},null,null,null,{"$f":"J14-(J34*'Manure and Nutrient Credits'!$D$33)","v":8}]
[null,{"$f":"MAX(0,B79)","v":6.4},null,null,null,{"$f":"MAX(0,F79)","v":6.4},null,null,null,{"$f":"MAX(0,J79)","v":8}]
[]
[null,"Nutrient Removal",null,null,null,"Nutrient Removal",null,null,null,"Nutrient Removal"]
[null,{"$f":"B23-(B32*'Manure and Nutrient Credits'!$D$27)-B42-D47","v":141.6},{"$f":"C23-(C32*'Manure and Nutrient Credits'!$D$27)-C42","v":59},{"$f":"D23-(D32*'Manure and Nutrient Credits'!$D$27)-D42","v":42.6},null,{"$f":"F23-(F32*'Manure and Nutrient Credits'!$D$30)-F42-H47","v":141.6},{"$f":"G23-(G32*'Manure and Nutrient Credits'!$D$30)-G42","v":-16.5},{"$f":"H23-(H32*'Manure and Nutrient Credits'!$D$30)-H42","v":23.099999999999994},null,{"$f":"J23-(J32*'Manure and Nutrient Credits'!$D$33)-J42-L47","v":70},{"$f":"K23-(K32*'Manure and Nutrient Credits'!$D$33)-K42","v":31},{"$f":"L23-(L32*'Manure and Nutrient Credits'!$D$33)-L42","v":12}]
[null,{"$f":"MAX(0,B83)","v":141.6},{"$f":"MAX(0,C83)","v":59},{"$f":"MAX(0,D83)","v":42.6},null,{"$f":"MAX(0,F83)","v":141.6},{"$f":"MAX(0,G83)","v":0},{"$f":"MAX(0,H83)","v":23.099999999999994},null,{"$f":"MAX(0,J83)","v":70},{"$f":"MAX(0,K83)","v":31},{"$f":"MAX(0,L83)","v":12}]
[null,{"$f":"B25-(B34*'Manure and Nutrient Credits'!$D$27)","v":8.4},null,null,null,{"$f":"F25-(F34*'Manure and Nutrient Credits'!$D$30)","v":2.5},null,null,null,{"$f":"J25-(J34*'Manure and Nutrient Credits'!$D$33)","v":7.0000000000000009}]
[null,{"$f":"MAX(0,B85)","v":8.4},null,null,null,{"$f":"MAX(0,F85)","v":2.5},null,null,null,{"$f":"MAX(0,J85)","v":7.0000000000000009}]

{"sheet":"Corn K Calculations","index":2,"n_rows":24,"n_cols":4,"rows_kept":24,"cut":false,"hidden":true,"merged":[]}
[9,50,"IF(AND(E8<=50,'Crop Budget (Main)'!C14<=100,D14<=9),125,IF(AND(E8<=50,'Crop Budget (Main)'!C14<=120,D14<=9),130,IF(AND(E8<=50,'Crop Budget (Main)'!C14<=140,D14<=9),135,IF(AND(E8<=50,'Crop Budget (Main)'!C14<=160,D14<=9),140,IF(AND(E8<=50,'Crop Budget (Main)'!C14<=180,D14<=9),145,IF(AND(E8<=50,'Crop Budget (Main)'!C14>180,D14<=9),145"]
[9,100,"IF(AND(E8<=100,'Crop Budget (Main)'!C14<=100,D14<=9),95,IF(AND(E8<=100,'Crop Budget (Main)'!C14<=120,D14<=9),100,IF(AND(E8<=100,'Crop Budget (Main)'!C14<=140,D14<=9),105,IF(AND(E8<=100,'Crop Budget (Main)'!C14<=160,D14<=9),110,IF(AND(E8<=100,'Crop Budget (Main)'!C14<=180,D14<=9),115,IF(AND(E8<=100,'Crop Budget (Main)'!C14>180,D14<=9),115"]
[9,150,"IF(AND(E8<=150,'Crop Budget (Main)'!C14<=100,D14<=9),65,IF(AND(E8<=150,'Crop Budget (Main)'!C14<=120,D14<=9),70,IF(AND(E8<=150,'Crop Budget (Main)'!C14<=140,D14<=9),75,IF(AND(E8<=150,'Crop Budget (Main)'!C14<=160,D14<=9),80,IF(AND(E8<=150,'Crop Budget (Main)'!C14<=180,D14<=9),85,IF(AND(E8<=150,'Crop Budget (Main)'!C14>180,D14<=9),80"]
[9,235]
[9,260]
[9,280]
[19,50,"IF(AND(E8<=50,'Crop Budget (Main)'!C14<=100,D14<=19),160,IF(AND(E8<=50,'Crop Budget (Main)'!C14<=120,D14<=19),165,IF(AND(E8<=50,'Crop Budget (Main)'!C14<=140,D14<=19),170,IF(AND(E8<=50,'Crop Budget (Main)'!C14<=160,D14<=19),175,IF(AND(E8<=50,'Crop Budget (Main)'!C14<=180,D14<=19),180,IF(AND(E8<=50,'Crop Budget (Main)'!C14>180,D14<=19),180"]
[19,100,"IF(AND(E8<=100,'Crop Budget (Main)'!C14<=100,D14<=19),120,IF(AND(E8<=100,'Crop Budget (Main)'!C14<=120,D14<=19),125,IF(AND(E8<=100,'Crop Budget (Main)'!C14<=140,D14<=19),135,IF(AND(E8<=100,'Crop Budget (Main)'!C14<=160,D14<=19),140,IF(AND(E8<=100,'Crop Budget (Main)'!C14<=180,D14<=19),145,IF(AND(E8<=100,'Crop Budget (Main)'!C14>180,D14<=19),145"]
[19,150,"IF(AND(E8<=150,'Crop Budget (Main)'!C14<=100,D14<=19),85,IF(AND(E8<=150,'Crop Budget (Main)'!C14<=120,D14<=19),90,IF(AND(E8<=150,'Crop Budget (Main)'!C14<=140,D14<=19),95,IF(AND(E8<=150,'Crop Budget (Main)'!C14<=160,D14<=19),100,IF(AND(E8<=150,'Crop Budget (Main)'!C14<=180,D14<=19),105,IF(AND(E8<=150,'Crop Budget (Main)'!C14>180,D14<=19),100"]
[19,250,"IF(AND(E8<=250,'Crop Budget (Main)'!C14<=100,D14<=19),45,IF(AND(E8<=250,'Crop Budget (Main)'!C14<=120,D14<=19),50,IF(AND(E8<=250,'Crop Budget (Main)'!C14<=140,D14<=19),60,IF(AND(E8<=250,'Crop Budget (Main)'!C14<=160,D14<=19),65,IF(AND(E8<=250,'Crop Budget (Main)'!C14<=180,D14<=19),70,IF(AND(E8<=250,'Crop Budget (Main)'!C14>180,D14<=19),70"]
[19,280]
[19,300]
[29,100,"IF(AND(E8<=100,'Crop Budget (Main)'!C14<=100,D14<=29),195,IF(AND(E8<=100,'Crop Budget (Main)'!C14<=120,D14<=29),200,IF(AND(E8<=100,'Crop Budget (Main)'!C14<=140,D14<=29),210,IF(AND(E8<=100,'Crop Budget (Main)'!C14<=160,D14<=29),215,IF(AND(E8<=100,'Crop Budget (Main)'!C14<=180,D14<=29),220,IF(AND(E8<=100,'Crop Budget (Main)'!C14>180,D14<=29),220"]
[29,150,"IF(AND(E8<=150,'Crop Budget (Main)'!C14<=100,D14<=29),145,IF(AND(E8<=150,'Crop Budget (Main)'!C14<=120,D14<=29),150,IF(AND(E8<=150,'Crop Budget (Main)'!C14<=140,D14<=29),160,IF(AND(E8<=150,'Crop Budget (Main)'!C14<=160,D14<=29),165,IF(AND(E8<=150,'Crop Budget (Main)'!C14<=180,D14<=29),170,IF(AND(E8<=150,'Crop Budget (Main)'!C14>180,D14<=29),170"]
[29,250,"IF(AND(E8<=250,'Crop Budget (Main)'!C14<=100,D14<=29),95,IF(AND(E8<=250,'Crop Budget (Main)'!C14<=120,D14<=29),100,IF(AND(E8<=250,'Crop Budget (Main)'!C14<=140,D14<=29),110,IF(AND(E8<=250,'Crop Budget (Main)'!C14<=160,D14<=29),115,IF(AND(E8<=250,'Crop Budget (Main)'!C14<=180,D14<=29),120,IF(AND(E8<=250,'Crop Budget (Main)'!C14>180,D14<=29),120"]
[29,310]
[29,330]
[29,350,null,"IF(AND(E8<=50,'Crop Budget (Main)'!C14<=100,D14<=9),125,IF(AND(E8<=50,'Crop Budget (Main)'!C14<=120,D14<=9),130,IF(AND(E8<=50,'Crop Budget (Main)'!C14<=140,D14<=9),135,IF(AND(E8<=50,'Crop Budget (Main)'!C14<=160,D14<=9),140,IF(AND(E8<=50,'Crop Budget (Main)'!C14<=180,D14<=9),145,IF(AND(E8<=50,'Crop Budget (Main)'!C14>180,D14<=9),145,IF(AND(E8<=100,'Crop Budget (Main)'!C14<=100,D14<=9),95,IF(AND(E8<=100,'Crop Budget (Main)'!C14<=120,D14<=9),100,IF(AND(E8<=100,'Crop Budget (Main)'!C14<=140,D14<=9),105,IF(AND(E8<=100,'Crop Budget (Main)'!C14<=160,D14<=9),110,IF(AND(E8<=100,'Crop Budget (Main)'!C14<=180,D14<=9),115,IF(AND(E8<=100,'Crop Budget (Main)'!C14>180,D14<=9),115,IF(AND(E8<=150,'Crop Budget (Main)'!C14<=100,D14<=9),65,IF(AND(E8<=150,'Crop Budget (Main)'!C14<=120,D14<=9),70,IF(AND(E8<=150,'Crop Budget (Main)'!C14<=140,D14<=9),75,IF(AND(E8<=150,'Crop Budget (Main)'!C14<=160,D14<=9),80,IF(AND(E8<=150,'Crop Budget (Main)'!C14<=180,D14<=9),85,IF(AND(E8<=150,'Crop Budget (Main)'!C14>180,D14<=9),80,IF(AND(E8<=50,'Crop Budget (Main)'!C14<=100,D14<=19),160,IF(AND(E8<=50,'Crop Budget (Main)'!C14<=120,D14<=19),165,IF(AND(E8<=50,'Crop Budget (Main)'!C14<=140,D14<=19),170,IF(AND(E8<=50,'Crop Budget (Main)'!C14<=160,D14<=19),175,IF(AND(E8<=50,'Crop Budget (Main)'!C14<=180,D14<=19),180,IF(AND(E8<=50,'Crop Budget (Main)'!C14>180,D14<=19),180,IF(AND(E8<=100,'Crop Budget (Main)'!C14<=100,D14<=19),120,IF(AND(E8<=100,'Crop Budget (Main)'!C14<=120,D14<=19),125,IF(AND(E8<=100,'Crop Budget (Main)'!C14<=140,D14<=19),135,IF(AND(E8<=100,'Crop Budget (Main)'!C14<=160,D14<=19),140,IF(AND(E8<=100,'Crop Budget (Main)'!C14<=180,D14<=19),145,IF(AND(E8<=100,'Crop Budget (Main)'!C14>180,D14<=19),145,IF(AND(E8<=150,'Crop Budget (Main)'!C14<=100,D14<=19),85,IF(AND(E8<=150,'Crop Budget (Main)'!C14<=120,D14<=19),90,IF(AND(E8<=150,'Crop Budget (Main)'!C14<=140,D14<=19),95,IF(AND(E8<=150,'Crop Budget (Main)'!C14<=160,D14<=19),100,IF(AND(E8<=150,'Crop Budget (Main)'!C14<=180,D14<=19),105,IF(AND(E8<=150,'Crop Budget (Main)'!C14>180,D14<=19),100,IF(AND(E8<=200,'Crop Budget (Main)'!C14<=100,D14<=19),45,IF(AND(E8<=200,'Crop Budget (Main)'!C14<=120,D14<=19),50,IF(AND(E8<=200,'Crop Budget (Main)'!C14<=140,D14<=19),60,IF(AND(E8<=200,'Crop Budget (Main)'!C14<=160,D14<=19),65,IF(AND(E8<=200,'Crop Budget (Main)'!C14<=180,D14<=19),70,IF(AND(E8<=200,'Crop Budget (Main)'!C14>180,D14<=19),70,IF(AND(E8<=100,'Crop Budget (Main)'!C14<=100,D14<=29),195,IF(AND(E8<=100,'Crop Budget (Main)'!C14<=120,D14<=29),200,IF(AND(E8<=100,'Crop Budget (Main)'!C14<=140,D14<=29),210,IF(AND(E8<=100,'Crop Budget (Main)'!C14<=160,D14<=29),215,IF(AND(E8<=100,'Crop Budget (Main)'!C14<=180,D14<=29),220,IF(AND(E8<=100,'Crop Budget (Main)'!C14>180,D14<=29),220,IF(AND(E8<=150,'Crop Budget (Main)'!C14<=100,D14<=29),145,IF(AND(E8<=150,'Crop Budget (Main)'!C14<=120,D14<=29),150,IF(AND(E8<=150,'Crop Budget (Main)'!C14<=140,D14<=29),160,IF(AND(E8<=150,'Crop Budget (Main)'!C14<=160,D14<=29),165,IF(AND(E8<=150,'Crop Budget (Main)'!C14<=180,D14<=29),170,IF(AND(E8<=150,'Crop Budget (Main)'!C14>180,D14<=29),170,IF(AND(E8<=200,'Crop Budget (Main)'!C14<=100,D14<=29),95,IF(AND(E8<=200,'Crop Budget (Main)'!C14<=120,D14<=29),100,IF(AND(E8<=200,'Crop Budget (Main)'!C14<=140,D14<=29),110,IF(AND(E8<=200,'Crop Budget (Main)'!C14<=160,D14<=29),115,IF(AND(E8<=200,'Crop Budget (Main)'!C14<=180,D14<=29),120,IF(AND(E8<=200,'Crop Budget (Main)'!C14>180,D14<=29),120"]
[30,150]
[30,200]
[30,250]
[30,360]
[30,380]
[30,400]

{"sheet":"Soybean K Calculations","index":3,"n_rows":24,"n_cols":4,"rows_kept":24,"cut":false,"hidden":true,"merged":[]}
[9,50,"IF(AND(I8<=50,'Crop Budget (Main)'!G14<=30,H14<=9),140,IF(AND(I8<=50,'Crop Budget (Main)'!G14<=40,H14<=9),155,IF(AND(I8<=50,'Crop Budget (Main)'!G14<=50,H14<=9),170,IF(AND(I8<=50,'Crop Budget (Main)'!G14<=60,H14<=9),180,IF(AND(I8<=50,'Crop Budget (Main)'!G14<=70,H14<=9),195,IF(AND(I8<=50,'Crop Budget (Main)'!G14>70,H14<=9),195"]
[9,100,"IF(AND(I8<=100,'Crop Budget (Main)'!G14<=30,H14<=9),110,IF(AND(I8<=100,'Crop Budget (Main)'!G14<=40,H14<=9),125,IF(AND(I8<=100,'Crop Budget (Main)'!G14<=50,H14<=9),135,IF(AND(I8<=100,'Crop Budget (Main)'!G14<=60,H14<=9),150,IF(AND(I8<=100,'Crop Budget (Main)'!G14<=70,H14<=9),165,IF(AND(I8<=100,'Crop Budget (Main)'!G14>70,H14<=9),165"]
[9,150,"IF(AND(I8<=150,'Crop Budget (Main)'!G14<=30,H14<=9),80,IF(AND(I8<=150,'Crop Budget (Main)'!G14<=40,H14<=9),90,IF(AND(I8<=150,'Crop Budget (Main)'!G14<=50,H14<=9),105,IF(AND(I8<=150,'Crop Budget (Main)'!G14<=60,H14<=9),105,IF(AND(I8<=150,'Crop Budget (Main)'!G14<=70,H14<=9),120,IF(AND(I8<=150,'Crop Budget (Main)'!G14>70,H14<=9),120"]
[9,235]
[9,260]
[9,280]
[19,50,"IF(AND(I8<=50,'Crop Budget (Main)'!G14<=30,H14<=19),175,IF(AND(I8<=50,'Crop Budget (Main)'!G14<=40,H14<=19),190,IF(AND(I8<=50,'Crop Budget (Main)'!G14<=50,H14<=19),205,IF(AND(I8<=50,'Crop Budget (Main)'!G14<=60,H14<=19),215,IF(AND(I8<=50,'Crop Budget (Main)'!G14<=70,H14<=19),230,IF(AND(I8<=50,'Crop Budget (Main)'!G14>70,H14<=19),230"]
[19,100,"IF(AND(I8<=100,'Crop Budget (Main)'!G14<=30,H14<=19),135,IF(AND(I8<=100,'Crop Budget (Main)'!G14<=40,H14<=19),150,IF(AND(I8<=100,'Crop Budget (Main)'!G14<=50,H14<=19),165,IF(AND(I8<=100,'Crop Budget (Main)'!G14<=60,H14<=19),180,IF(AND(I8<=100,'Crop Budget (Main)'!G14<=70,H14<=19),195,IF(AND(I8<=100,'Crop Budget (Main)'!G14>70,H14<=19),195"]
[19,150,"IF(AND(I8<=150,'Crop Budget (Main)'!G14<=30,H14<=19),100,IF(AND(I8<=150,'Crop Budget (Main)'!G14<=40,H14<=19),115,IF(AND(I8<=150,'Crop Budget (Main)'!G14<=50,H14<=19),130,IF(AND(I8<=150,'Crop Budget (Main)'!G14<=60,H14<=19),140,IF(AND(I8<=150,'Crop Budget (Main)'!G14<=70,H14<=19),155,IF(AND(I8<=150,'Crop Budget (Main)'!G14>70,H14<=19),155"]
[19,250,"IF(AND(I8<=250,'Crop Budget (Main)'!G14<=30,H14<=19),60,IF(AND(I8<=250,'Crop Budget (Main)'!G14<=40,H14<=19),75,IF(AND(I8<=250,'Crop Budget (Main)'!G14<=50,H14<=19),90,IF(AND(I8<=250,'Crop Budget (Main)'!G14<=60,H14<=19),105,IF(AND(I8<=250,'Crop Budget (Main)'!G14<=70,H14<=19),120,IF(AND(I8<=250,'Crop Budget (Main)'!G14>70,H14<=19),120"]
[19,280]
[19,300]
[29,100,"IF(AND(I8<=100,'Crop Budget (Main)'!G14<=100,H14<=29),210,IF(AND(I8<=100,'Crop Budget (Main)'!G14<=120,H14<=29),225,IF(AND(I8<=100,'Crop Budget (Main)'!G14<=140,H14<=29),240,IF(AND(I8<=100,'Crop Budget (Main)'!G14<=160,H14<=29),255,IF(AND(I8<=100,'Crop Budget (Main)'!G14<=180,H14<=29),270,IF(AND(I8<=100,'Crop Budget (Main)'!G14>180,H14<=29),270"]
[29,150,"IF(AND(I8<=150,'Crop Budget (Main)'!G14<=100,H14<=29),160,IF(AND(I8<=150,'Crop Budget (Main)'!G14<=120,H14<=29),175,IF(AND(I8<=150,'Crop Budget (Main)'!G14<=140,H14<=29),190,IF(AND(I8<=150,'Crop Budget (Main)'!G14<=160,H14<=29),205,IF(AND(I8<=150,'Crop Budget (Main)'!G14<=180,H14<=29),220,IF(AND(I8<=150,'Crop Budget (Main)'!G14>180,H14<=29),220"]
[29,250,"IF(AND(I8<=250,'Crop Budget (Main)'!G14<=100,H14<=29),110,IF(AND(I8<=250,'Crop Budget (Main)'!G14<=120,H14<=29),125,IF(AND(I8<=250,'Crop Budget (Main)'!G14<=140,H14<=29),140,IF(AND(I8<=250,'Crop Budget (Main)'!G14<=160,H14<=29),155,IF(AND(I8<=250,'Crop Budget (Main)'!G14<=180,H14<=29),170,IF(AND(I8<=250,'Crop Budget (Main)'!G14>180,H14<=29),170"]
[29,310]
[29,330]
[29,350,null,"IF(AND(I8<=50,'Crop Budget (Main)'!G14<=30,H14<=9),140,IF(AND(I8<=50,'Crop Budget (Main)'!G14<=40,H14<=9),155,IF(AND(I8<=50,'Crop Budget (Main)'!G14<=50,H14<=9),170,IF(AND(I8<=50,'Crop Budget (Main)'!G14<=60,H14<=9),180,IF(AND(I8<=50,'Crop Budget (Main)'!G14<=70,H14<=9),195,IF(AND(I8<=50,'Crop Budget (Main)'!G14>70,H14<=9),195,IF(AND(I8<=100,'Crop Budget (Main)'!G14<=30,H14<=9),110,IF(AND(I8<=100,'Crop Budget (Main)'!G14<=40,H14<=9),125,IF(AND(I8<=100,'Crop Budget (Main)'!G14<=50,H14<=9),135,IF(AND(I8<=100,'Crop Budget (Main)'!G14<=60,H14<=9),150,IF(AND(I8<=100,'Crop Budget (Main)'!G14<=70,H14<=9),165,IF(AND(I8<=100,'Crop Budget (Main)'!G14>70,H14<=9),165,IF(AND(I8<=150,'Crop Budget (Main)'!G14<=30,H14<=9),80,IF(AND(I8<=150,'Crop Budget (Main)'!G14<=40,H14<=9),90,IF(AND(I8<=150,'Crop Budget (Main)'!G14<=50,H14<=9),105,IF(AND(I8<=150,'Crop Budget (Main)'!G14<=60,H14<=9),105,IF(AND(I8<=150,'Crop Budget (Main)'!G14<=70,H14<=9),120,IF(AND(I8<=150,'Crop Budget (Main)'!G14>70,H14<=9),120,IF(AND(I8<=50,'Crop Budget (Main)'!G14<=30,H14<=19),175,IF(AND(I8<=50,'Crop Budget (Main)'!G14<=40,H14<=19),190,IF(AND(I8<=50,'Crop Budget (Main)'!G14<=50,H14<=19),205,IF(AND(I8<=50,'Crop Budget (Main)'!G14<=60,H14<=19),215,IF(AND(I8<=50,'Crop Budget (Main)'!G14<=70,H14<=19),230,IF(AND(I8<=50,'Crop Budget (Main)'!G14>70,H14<=19),230,IF(AND(I8<=100,'Crop Budget (Main)'!G14<=30,H14<=19),135,IF(AND(I8<=100,'Crop Budget (Main)'!G14<=40,H14<=19),150,IF(AND(I8<=100,'Crop Budget (Main)'!G14<=50,H14<=19),165,IF(AND(I8<=100,'Crop Budget (Main)'!G14<=60,H14<=19),180,IF(AND(I8<=100,'Crop Budget (Main)'!G14<=70,H14<=19),195,IF(AND(I8<=100,'Crop Budget (Main)'!G14>70,H14<=19),195,IF(AND(I8<=150,'Crop Budget (Main)'!G14<=30,H14<=19),100,IF(AND(I8<=150,'Crop Budget (Main)'!G14<=40,H14<=19),115,IF(AND(I8<=150,'Crop Budget (Main)'!G14<=50,H14<=19),130,IF(AND(I8<=150,'Crop Budget (Main)'!G14<=60,H14<=19),140,IF(AND(I8<=150,'Crop Budget (Main)'!G14<=70,H14<=19),155,IF(AND(I8<=150,'Crop Budget (Main)'!G14>70,H14<=19),155,IF(AND(I8<=250,'Crop Budget (Main)'!G14<=30,H14<=19),60,IF(AND(I8<=250,'Crop Budget (Main)'!G14<=40,H14<=19),75,IF(AND(I8<=250,'Crop Budget (Main)'!G14<=50,H14<=19),90,IF(AND(I8<=250,'Crop Budget (Main)'!G14<=60,H14<=19),105,IF(AND(I8<=250,'Crop Budget (Main)'!G14<=70,H14<=19),120,IF(AND(I8<=250,'Crop Budget (Main)'!G14>70,H14<=19),120,IF(AND(I8<=100,'Crop Budget (Main)'!G14<=100,H14<=29),210,IF(AND(I8<=100,'Crop Budget (Main)'!G14<=120,H14<=29),225,IF(AND(I8<=100,'Crop Budget (Main)'!G14<=140,H14<=29),240,IF(AND(I8<=100,'Crop Budget (Main)'!G14<=160,H14<=29),255,IF(AND(I8<=100,'Crop Budget (Main)'!G14<=180,H14<=29),270,IF(AND(I8<=100,'Crop Budget (Main)'!G14>180,H14<=29),270,IF(AND(I8<=150,'Crop Budget (Main)'!G14<=100,H14<=29),160,IF(AND(I8<=150,'Crop Budget (Main)'!G14<=120,H14<=29),175,IF(AND(I8<=150,'Crop Budget (Main)'!G14<=140,H14<=29),190,IF(AND(I8<=150,'Crop Budget (Main)'!G14<=160,H14<=29),205,IF(AND(I8<=150,'Crop Budget (Main)'!G14<=180,H14<=29),220,IF(AND(I8<=150,'Crop Budget (Main)'!G14>180,H14<=29),220,IF(AND(I8<=250,'Crop Budget (Main)'!G14<=100,H14<=29),110,IF(AND(I8<=250,'Crop Budget (Main)'!G14<=120,H14<=29),125,IF(AND(I8<=250,'Crop Budget (Main)'!G14<=140,H14<=29),140,IF(AND(I8<=250,'Crop Budget (Main)'!G14<=160,H14<=29),155,IF(AND(I8<=250,'Crop Budget (Main)'!G14<=180,H14<=29),170,IF(AND(I8<=250,'Crop Budget (Main)'!G14>180,H14<=29),170"]
[30,150]
[30,200]
[30,250]
[30,360]
[30,380]
[30,400]

{"sheet":"Wheat K Calculations","index":4,"n_rows":24,"n_cols":4,"rows_kept":24,"cut":false,"hidden":true,"merged":[]}
[9,50,"IF(AND(M8<=50,'Crop Budget (Main)'!K14<=50,L14<=9),115,IF(AND(M8<=50,'Crop Budget (Main)'!K14<=60,L14<=9),130,IF(AND(M8<=50,'Crop Budget (Main)'!K14<=70,L14<=9),125,IF(AND(M8<=50,'Crop Budget (Main)'!K14<=80,L14<=9),130,IF(AND(M8<=50,'Crop Budget (Main)'!K14<=90,L14<=9),130,IF(AND(M8<=50,'Crop Budget (Main)'!K14>90,L14<=9),130"]
[9,100,"IF(AND(M8<=100,'Crop Budget (Main)'!K14<=50,L14<=9),85,IF(AND(M8<=100,'Crop Budget (Main)'!K14<=60,L14<=9),90,IF(AND(M8<=100,'Crop Budget (Main)'!K14<=70,L14<=9),95,IF(AND(M8<=100,'Crop Budget (Main)'!K14<=80,L14<=9),95,IF(AND(M8<=100,'Crop Budget (Main)'!K14<=90,L14<=9),100,IF(AND(M8<=100,'Crop Budget (Main)'!K14>90,L14<=9),100"]
[9,150,"IF(AND(M8<=150,'Crop Budget (Main)'!K14<=50,L14<=9),55,IF(AND(M8<=150,'Crop Budget (Main)'!K14<=60,L14<=9),60,IF(AND(M8<=150,'Crop Budget (Main)'!K14<=70,L14<=9),60,IF(AND(M8<=150,'Crop Budget (Main)'!K14<=80,L14<=9),65,IF(AND(M8<=150,'Crop Budget (Main)'!K14<=90,L14<=9),70,IF(AND(M8<=150,'Crop Budget (Main)'!K14>90,L14<=9),70"]
[9,235]
[9,260]
[9,280]
[19,50,"IF(AND(M8<=50,'Crop Budget (Main)'!K14<=50,L14<=19),150,IF(AND(M8<=50,'Crop Budget (Main)'!K14<=60,L14<=19),155,IF(AND(M8<=50,'Crop Budget (Main)'!K14<=70,L14<=19),160,IF(AND(M8<=50,'Crop Budget (Main)'!K14<=80,L14<=19),160,IF(AND(M8<=50,'Crop Budget (Main)'!K14<=90,L14<=19),165,IF(AND(M8<=50,'Crop Budget (Main)'!K14>90,L14<=19),165"]
[19,100,"IF(AND(M8<=100,'Crop Budget (Main)'!K14<=50,L14<=19),115,IF(AND(M8<=100,'Crop Budget (Main)'!K14<=60,L14<=19),115,IF(AND(M8<=100,'Crop Budget (Main)'!K14<=70,L14<=19),120,IF(AND(M8<=100,'Crop Budget (Main)'!K14<=80,L14<=19),125,IF(AND(M8<=100,'Crop Budget (Main)'!K14<=90,L14<=19),130,IF(AND(M8<=100,'Crop Budget (Main)'!K14>90,L14<=19),130"]
[19,150,"IF(AND(M8<=150,'Crop Budget (Main)'!K14<=50,L14<=19),75,IF(AND(M8<=150,'Crop Budget (Main)'!K14<=60,L14<=19),80,IF(AND(M8<=150,'Crop Budget (Main)'!K14<=70,L14<=19),85,IF(AND(M8<=150,'Crop Budget (Main)'!K14<=80,L14<=19),85,IF(AND(M8<=150,'Crop Budget (Main)'!K14<=90,L14<=19),90,IF(AND(M8<=150,'Crop Budget (Main)'!K14>90,L14<=19),90"]
[19,200,"IF(AND(M8<=200,'Crop Budget (Main)'!K14<=50,L14<=19),40,IF(AND(M8<=200,'Crop Budget (Main)'!K14<=60,L14<=19),40,IF(AND(M8<=200,'Crop Budget (Main)'!K14<=70,L14<=19),45,IF(AND(M8<=200,'Crop Budget (Main)'!K14<=80,L14<=19),50,IF(AND(M8<=200,'Crop Budget (Main)'!K14<=90,L14<=19),50,IF(AND(M8<=200,'Crop Budget (Main)'!K14>90,L14<=19),50"]
[19,280]
[19,300]
[29,100,"IF(AND(M8<=100,'Crop Budget (Main)'!K14<=50,L14<=29),190,IF(AND(M8<=100,'Crop Budget (Main)'!K14<=60,L14<=29),190,IF(AND(M8<=100,'Crop Budget (Main)'!K14<=70,L14<=29),195,IF(AND(M8<=100,'Crop Budget (Main)'!K14<=80,L14<=29),200,IF(AND(M8<=100,'Crop Budget (Main)'!K14<=90,L14<=29),205,IF(AND(M8<=100,'Crop Budget (Main)'!K14>90,L14<=29),205"]
[29,150,"IF(AND(M8<=150,'Crop Budget (Main)'!K14<=50,L14<=29),140,IF(AND(M8<=150,'Crop Budget (Main)'!K14<=60,L14<=29),140,IF(AND(M8<=150,'Crop Budget (Main)'!K14<=70,L14<=29),145,IF(AND(M8<=150,'Crop Budget (Main)'!K14<=80,L14<=29),150,IF(AND(M8<=150,'Crop Budget (Main)'!K14<=90,L14<=29),155,IF(AND(M8<=150,'Crop Budget (Main)'!K14>90,L14<=29),155"]
[29,200,"IF(AND(M8<=200,'Crop Budget (Main)'!K14<=50,L14<=29),90,IF(AND(M8<=200,'Crop Budget (Main)'!K14<=60,L14<=29),90,IF(AND(M8<=200,'Crop Budget (Main)'!K14<=70,L14<=29),95,IF(AND(M8<=200,'Crop Budget (Main)'!K14<=80,L14<=29),100,IF(AND(M8<=200,'Crop Budget (Main)'!K14<=90,L14<=29),105,IF(AND(M8<=200,'Crop Budget (Main)'!K14>90,L14<=29),105"]
[29,310]
[29,330]
[29,350,null,"IF(AND(M8<=50,'Crop Budget (Main)'!K14<=50,L14<=9),115,IF(AND(M8<=50,'Crop Budget (Main)'!K14<=60,L14<=9),130,IF(AND(M8<=50,'Crop Budget (Main)'!K14<=70,L14<=9),125,IF(AND(M8<=50,'Crop Budget (Main)'!K14<=80,L14<=9),130,IF(AND(M8<=50,'Crop Budget (Main)'!K14<=90,L14<=9),130,IF(AND(M8<=50,'Crop Budget (Main)'!K14>90,L14<=9),130,IF(AND(M8<=100,'Crop Budget (Main)'!K14<=50,L14<=9),85,IF(AND(M8<=100,'Crop Budget (Main)'!K14<=60,L14<=9),90,IF(AND(M8<=100,'Crop Budget (Main)'!K14<=70,L14<=9),95,IF(AND(M8<=100,'Crop Budget (Main)'!K14<=80,L14<=9),95,IF(AND(M8<=100,'Crop Budget (Main)'!K14<=90,L14<=9),100,IF(AND(M8<=100,'Crop Budget (Main)'!K14>90,L14<=9),100,IF(AND(M8<=150,'Crop Budget (Main)'!K14<=50,L14<=9),55,IF(AND(M8<=150,'Crop Budget (Main)'!K14<=60,L14<=9),60,IF(AND(M8<=150,'Crop Budget (Main)'!K14<=70,L14<=9),60,IF(AND(M8<=150,'Crop Budget (Main)'!K14<=80,L14<=9),65,IF(AND(M8<=150,'Crop Budget (Main)'!K14<=90,L14<=9),70,IF(AND(M8<=150,'Crop Budget (Main)'!K14>90,L14<=9),70,IF(AND(M8<=50,'Crop Budget (Main)'!K14<=50,L14<=19),150,IF(AND(M8<=50,'Crop Budget (Main)'!K14<=60,L14<=19),155,IF(AND(M8<=50,'Crop Budget (Main)'!K14<=70,L14<=19),160,IF(AND(M8<=50,'Crop Budget (Main)'!K14<=80,L14<=19),160,IF(AND(M8<=50,'Crop Budget (Main)'!K14<=90,L14<=19),165,IF(AND(M8<=50,'Crop Budget (Main)'!K14>90,L14<=19),165,IF(AND(M8<=100,'Crop Budget (Main)'!K14<=50,L14<=19),115,IF(AND(M8<=100,'Crop Budget (Main)'!K14<=60,L14<=19),115,IF(AND(M8<=100,'Crop Budget (Main)'!K14<=70,L14<=19),120,IF(AND(M8<=100,'Crop Budget (Main)'!K14<=80,L14<=19),125,IF(AND(M8<=100,'Crop Budget (Main)'!K14<=90,L14<=19),130,IF(AND(M8<=100,'Crop Budget (Main)'!K14>90,L14<=19),130,IF(AND(M8<=150,'Crop Budget (Main)'!K14<=50,L14<=19),75,IF(AND(M8<=150,'Crop Budget (Main)'!K14<=60,L14<=19),80,IF(AND(M8<=150,'Crop Budget (Main)'!K14<=70,L14<=19),85,IF(AND(M8<=150,'Crop Budget (Main)'!K14<=80,L14<=19),85,IF(AND(M8<=150,'Crop Budget (Main)'!K14<=90,L14<=19),90,IF(AND(M8<=150,'Crop Budget (Main)'!K14>90,L14<=19),90,IF(AND(M8<=200,'Crop Budget (Main)'!K14<=50,L14<=19),40,IF(AND(M8<=200,'Crop Budget (Main)'!K14<=60,L14<=19),40,IF(AND(M8<=200,'Crop Budget (Main)'!K14<=70,L14<=19),45,IF(AND(M8<=200,'Crop Budget (Main)'!K14<=80,L14<=19),50,IF(AND(M8<=200,'Crop Budget (Main)'!K14<=90,L14<=19),50,IF(AND(M8<=200,'Crop Budget (Main)'!K14>90,L14<=19),50,IF(AND(M8<=100,'Crop Budget (Main)'!K14<=50,L14<=29),190,IF(AND(M8<=100,'Crop Budget (Main)'!K14<=60,L14<=29),190,IF(AND(M8<=100,'Crop Budget (Main)'!K14<=70,L14<=29),195,IF(AND(M8<=100,'Crop Budget (Main)'!K14<=80,L14<=29),200,IF(AND(M8<=100,'Crop Budget (Main)'!K14<=90,L14<=29),205,IF(AND(M8<=100,'Crop Budget (Main)'!K14>90,L14<=29),205,IF(AND(M8<=150,'Crop Budget (Main)'!K14<=50,L14<=29),140,IF(AND(M8<=150,'Crop Budget (Main)'!K14<=60,L14<=29),140,IF(AND(M8<=150,'Crop Budget (Main)'!K14<=70,L14<=29),145,IF(AND(M8<=150,'Crop Budget (Main)'!K14<=80,L14<=29),150,IF(AND(M8<=150,'Crop Budget (Main)'!K14<=90,L14<=29),155,IF(AND(M8<=150,'Crop Budget (Main)'!K14>90,L14<=29),155,IF(AND(M8<=200,'Crop Budget (Main)'!K14<=50,L14<=29),90,IF(AND(M8<=200,'Crop Budget (Main)'!K14<=60,L14<=29),90,IF(AND(M8<=200,'Crop Budget (Main)'!K14<=70,L14<=29),95,IF(AND(M8<=200,'Crop Budget (Main)'!K14<=80,L14<=29),100,IF(AND(M8<=200,'Crop Budget (Main)'!K14<=90,L14<=29),105,IF(AND(M8<=200,'Crop Budget (Main)'!K14>90,L14<=29),105"]
[30,150]
[30,200]
[30,250]
[30,360]
[30,380]
[30,400]

{"sheet":"Fertilizer Products & Pricing","index":5,"n_rows":80,"n_cols":22,"rows_kept":80,"cut":false,"hidden":false,"merged":[[29,17,29,21],[26,17,27,21],[41,17,42,21],[4,17,6,19],[1,1,1,9]]}
[1,2,3,4,5,6,7,8,9,10,11,12,13,14,15]
[null,"Pounds per Material",null,null,null,null,null,null,null,null,null,null,null,null,"(Enter Below)"]
["Macronutrients","Nitrogen","Phosphorus","Potassium","Sulfur","Magnesium","Calcium","Zinc","Boron","Manganese","Unit Size","Units","Units/Pkg","Purchase Units","Price/Unit"]
["None",null,null,null,null,null,null,null,null,null,null,null,1,"None",0]
["Ammonium polyphosphate (10-34-0)",{"$f":"K5*0.1","v":1.17},{"$f":"K5*0.34","v":3.9780000000000002},null,null,null,null,null,null,null,11.7,"gal",2000,"Tons",704,null,"Note:","All listed product values are based on nutrient analysis from product labels"]
["AMS (21-0-0-24S)",0.21,null,null,0.24,null,null,null,null,null,1,"lbs",2000,"Tons",485]
["Anhydrous (82-0-0)",0.82,null,null,null,null,null,null,null,null,1,"lbs",2000,"Tons",950]
["DAP (18-46-0)",0.18,0.46,null,null,null,null,null,null,null,1,"lbs",2000,"Tons",798]
["ESN (44-0-0)",0.44,null,null,null,null,null,null,null,null,1,"lbs",2000,"Tons",0]
["Gypsum (0-0-0-17S-21Ca)",null,null,null,0.17,null,0.21,null,null,null,1,"lbs",2000,"Tons",0]
["K-Mag (0-0-22-11Mg-21S)",null,null,0.22,0.21,0.11,null,null,null,null,1,"lbs",2000,"Gallons",0]
["MAP (11-52-00)",0.11,0.52,null,null,null,null,null,null,null,1,"lbs",2000,"Tons",0]
["MESZ (12-40-0-10S-1Z)",0.12,0.4,null,0.1,null,null,0.01,null,null,1,"lbs",2000,"Tons",0]
["Potash (0-0-60)",null,null,0.6,null,null,null,null,null,null,1,"lbs",2000,"Tons",690]
["Potassium Acetate (0-0-24)",null,null,0.24,null,null,null,null,null,null,10.65,"gal",2000,"Gallons",0]
["Potassium Sulphate (0-0-52-18S)",null,null,0.52,0.18,null,null,null,null,null,1,"lbs",2000,"Tons",0]
["Thiosul (12-0-0-26)",{"$f":"K17*0.12","v":1.3247999999999998},null,null,{"$f":"K17*0.26","v":2.8704000000000001},null,null,null,null,null,11.04,"gal",2000,"Tons",0]
["Triple Superphosphate (0-46-0)",null,0.46,null,null,null,null,null,null,null,1,"lbs",2000,"Tons",0]
["UAN 28% (28-0-0)",{"$f":"K19*0.28","v":2.9876000000000005},null,null,null,null,null,null,null,null,10.67,"gal",2000,"Tons",399]
["UAN 32% (32-0-0)",{"$f":"K20*0.32","v":3.5392000000000001},null,null,null,null,null,null,null,null,11.06,"gal",2000,"Tons",0]
["Urea (46-0-0)",{"$f":"0.46","v":0.46},null,null,null,null,null,null,null,null,1,"lbs",2000,"Tons",750]
["9-18-9 (liquid)",{"$f":"K22*0.09","v":0.98730000000000007},{"$f":"K22*0.18","v":1.9746000000000001},{"$f":"K22*0.09","v":0.98730000000000007},null,null,null,null,null,null,10.97,"gal",1,"Gallons",0,null,null,"Manure Resources"]
["6-24-6 (liquid)",{"$f":"K23*0.06","v":0.66539999999999999},{"$f":"K23*0.24","v":2.6616},{"$f":"K23*0.06","v":0.66539999999999999},null,null,null,null,null,null,11.09,"gal",1,"Gallons",0,null,null,"Manure application methods and nitrogen losses (University of Minnesota)"]
["6-12-12 (dry)",0.06,0.12,0.12,null,null,null,null,null,null,1,"lbs",2000,"Tons",0,null,null,"Michigan GAAMPS",null,"←  See table A4 in Manure Mgmt & Utilization section for approximate manure values in place of nutrient analysis"]
["5-10-5 (dry)",0.05,0.1,0.05,null,null,null,null,null,null,1,"lbs",2000,"Tons",0]
["3-18-18 (liquid)",{"$f":"K26*0.03","v":0.35099999999999998},{"$f":"K26*0.18","v":2.1059999999999999},{"$f":"K26*0.18","v":2.1059999999999999},null,null,null,null,null,null,11.7,"gal",1,"Gallons",0,null,null,"Note:"]
["19-19-19 (dry)",0.19,0.19,0.19,null,null,null,null,null,null,1,"lbs",2000,"Tons",0,null,null,"If you are using manure or compost, for best results a nutrient analysis is highly recommended."]
["15-15-2 (liquid)",{"$f":"0.158*K28","v":1.738},{"$f":"0.15*K28","v":1.65},{"$f":"0.02*K28","v":0.22},null,null,null,null,null,null,11,"gal",1,"Gallons",0]
["15-15-15 (dry)",0.15,0.15,0.15,null,null,null,null,null,null,1,"lbs",2000,"Tons",0]
["12-24-24 (dry)",0.12,0.24,0.24,null,null,null,null,null,null,1,"lbs",2000,"Tons",0,null,null,"Manure Calculator"]
["10-10-10 (dry)",0.1,0.1,0.1,null,null,null,null,null,null,1,"lbs",2000,"Tons",0,null,null,"Manure (Solid)",null,null,null,"Days of Incorporation %"]
["Manure (solid)",{"$f":"R34","v":4.2},{"$f":"S34","v":7.5},{"$f":"T34","v":5.7},{"$f":"U34","v":0.8},null,null,null,null,null,2000,"Tons",2000,"Tons",0,"calculator →",null,"N","P","K","S"]
["Manure (liquid)",{"$f":"R39","v":4.3},{"$f":"S39","v":1.7000000000000002},{"$f":"T39","v":3.8000000000000003},{"$f":"U39","v":1},null,null,null,null,null,1,"1,000 gal",1,"Gallons",0,"calculator →",null,42,75,57,8,">7 days"]
["Compost",0,0,0,0,0,0,0,0,0,0,"Enter",0,"Enter",0,null,null,{"$f":"'Manure and Nutrient Credits'!E38","v":4.2},{"$f":"'Manure and Nutrient Credits'!F38","v":7.5},{"$f":"'Manure and Nutrient Credits'!G38","v":5.7},{"$f":"'Manure and Nutrient Credits'!H38","v":0.8},"←Incorporation Adjustment"]
["Enter",0,0,0,0,0,0,0,0,0,0,"Enter",0,"Enter",0]
["Enter",0,0,0,0,0,0,0,0,0,0,"Enter",0,"Enter",0,null,null,"Manure (Liquid)",null,null,null,"Days of Incorporation %"]
["Enter",0,0,0,0,0,0,0,0,0,0,"Enter",0,"Enter",0,null,null,"N","P","K","S"]
["Enter",0,0,0,0,0,0,0,0,0,0,"Enter",0,"Enter",0,null,null,43,17,38,10,">7 days"]
[null,null,null,null,null,null,null,null,null,null,null,null,null,null,null,null,null,{"$f":"'Manure and Nutrient Credits'!E41","v":4.3},{"$f":"'Manure and Nutrient Credits'!F41","v":1.7000000000000002},{"$f":"'Manure and Nutrient Credits'!G41","v":3.8000000000000003},{"$f":"'Manure and Nutrient Credits'!H41","v":1},"←Incorporation Adjustment"]
[]
["Micronutrients","Nitrogen","Phosphorus","Potassium","Sulfur","Magnesium","Calcium","Zinc","Boron","Manganese","Unit Size","Units","Units/Pkg","Purchase Units","(Enter Below)"]
["None",null,null,null,null,null,null,null,null,null,null,null,1,"None",0,null,null,"*Do NOT use manure values if already input on Nutrient Management tab.  This will double count values in fertilizer plan."]
["Boron (14.3%)",null,null,null,null,null,null,null,0.14299999999999999,null,1,"lbs",1,"Pound",0]
["Zinc (35.5%)",null,null,null,null,null,null,0.35499999999999998,null,null,1,"lbs",1,"Pound",0]
["Zinc Liquid (12-0-0-12zn)",0.318,null,null,null,null,null,0.318,null,null,1,"qts",4,"Gallons",0]
["Boron Liquid (0-0-0-10B)",null,null,null,null,null,null,null,{"$f":"(11.12*0.25)*0.1","v":0.27799999999999997},null,1,"qts",4,"Gallons",0]
["Manganese Sulfate",null,null,null,0.18,null,null,null,null,0.33,1,"lbs",1,"Pound",0]
["Zinc Sulphate",35.5,null,null,0.185,null,null,null,null,null,1,"lbs",1,"Pound",0]
["Magnesium Sulfate",null,null,null,0.14000000000000001,9.0999999999999998E-2,null,null,null,null,1,"lbs",1,"Pound",0]
["Borosol 10",null,null,null,null,null,null,null,0.1,null,11.09,"gal",1,"Gallons",0]
["EDTA ZN (9%)",0.04,null,null,null,null,null,0.09,null,null,10.9,"gal",1,"Gallons",0]
["Enter",0,0,0,0,0,0,0,0,0,0,"Enter",0,"Enter",0]
["Enter",0,0,0,0,0,0,0,0,0,0,"Enter",0,"Enter",0]
["Enter",0,0,0,0,0,0,0,0,0,0,"Enter",0,"Enter",0]
["Enter",0,0,0,0,0,0,0,0,0,0,"Enter",0,"Enter",0]
[]
[]
["Lime","Nitrogen","Phosphorus","Potassium","Sulfur","Magnesium","Calcium","Zinc","Boron","Manganese","Unit Size","Units","Units/Pkg","Purchase Units","(Enter Below)"]
["None",null,null,null,null,null,null,null,null,null,null,null,1,"None",0]
["Pelleted Lime",null,null,null,null,0.03,0.22,null,null,null,1,"lbs",2000,"Ton",0]
["Sugar Beet Lime",0.55000000000000004,0.01,3.5999999999999999E-3,null,null,29,null,null,null,1,"tons",1,"Ton",0]
["Dolometic",null,null,null,null,11,42,null,null,null,1,"tons",1,"Ton",0]
["High Calcium",null,null,null,null,null,80,null,null,null,1,"tons",1,"Ton",0]
["Enter",0,0,0,0,0,0,0,0,0,0,"Enter",0,"Enter",0]
["Enter",0,0,0,0,0,0,0,0,0,0,"Enter",0,"Enter",0]
["Enter",0,0,0,0,0,0,0,0,0,0,"Enter",0,"Enter",0]
["Enter",0,0,0,0,0,0,0,0,0,0,"Enter",0,"Enter",0]
[]
[]
["Nitrogen Stabilizers",null,null,null,null,null,null,null,null,null,"Unit Size","Units","Units/Pkg","Purchase Units","(Enter Below)"]
["None",null,null,null,null,null,null,null,null,null,null,null,1,"None",0]
["N-Serve",null,null,null,null,null,null,null,null,null,1,"ozs",128,"Gallons",0]
["Instinct",null,null,null,null,null,null,null,null,null,1,"ozs",128,"Gallons",0]
["Factor",null,null,null,null,null,null,null,null,null,1,"qt/ton",4,"Gallons",0]
["Nutrisphere",null,null,null,null,null,null,null,null,null,1,"qt/ton",4,"Gallons",0]
["Agrotain",null,null,null,null,null,null,null,null,null,1,"qt/ton",4,"Gallons",0]
["Enter",null,null,null,null,null,null,null,null,null,0,"Enter",0,"Enter",0]
["Enter",null,null,null,null,null,null,null,null,null,0,"Enter",0,"Enter",0]
["Enter",null,null,null,null,null,null,null,null,null,0,"Enter",0,"Enter",0]
["Enter",null,null,null,null,null,null,null,null,null,0,"Enter",0,"Enter",0]

{"sheet":"Manure and Nutrient Credits","index":6,"n_rows":41,"n_cols":12,"rows_kept":41,"cut":false,"hidden":true,"merged":[]}
[]
[]
["Select Previous Crop",0,null,null,null,null,null,null,null,null,null,"Select Option Below"]
["Alfalfa, established",40,null,null,null,null,null,null,null,null,null,"Nutrient Removal"]
["Alfalfa, seeding",40,null,null,null,null,null,null,null,null,null,"Soil Test Based Recs"]
["Clover, established",40]
["Clover, seeding",20]
["Trefoil, established",40]
["Barley + legume",30]
["Oats + legume",30]
["Wheat + legume",30]
["Clover-grass hay",40]
["Grass hay",40]
["Dry edible beans",20]
["Soybeans",30]
["CRP land",40]
[]
[]
[]
[]
[]
[]
[]
["Nutrient Management"]
["Days Before Incorporation","Retention Factor",null,"Manure Nitrogen Multiplier (corn)"]
["----",1,null,"Factor","Nitrogen","Phosphorus","Potassium","Sulfur"]
["0-1 days",0.7,null,{"$f":"VLOOKUP('Nutrient Management'!D35,'Manure and Nutrient Credits'!A26:B30,2,FALSE)","v":0.2},{"$f":"$D$27*'Nutrient Management'!B32","v":8.4},{"$f":"$D$27*'Nutrient Management'!C32","v":15},{"$f":"$D$27*'Nutrient Management'!D32","v":11.4},{"$f":"$D$27*'Nutrient Management'!B34","v":1.6}]
["2-3 days",0.4,null,"Manure Nitrogen Multiplier (soybeans)"]
["4-7 days",0.2]
[">7 days",0.1,null,{"$f":"VLOOKUP('Nutrient Management'!H35,A26:B30,2,FALSE)","v":0.7},{"$f":"$D$30*'Nutrient Management'!F32","v":29.4},{"$f":"$D$30*'Nutrient Management'!G32","v":52.5},{"$f":"$D$30*'Nutrient Management'!H32","v":39.9},{"$f":"$D$30*'Nutrient Management'!F34","v":5.6}]
[null,null,null,"Manure Nitrogen Multiplier (wheat)"]
[]
[null,null,null,{"$f":"VLOOKUP('Nutrient Management'!L35,A26:B30,2,FALSE)","v":1},{"$f":"$D$33*'Nutrient Management'!J32","v":0},{"$f":"$D$33*'Nutrient Management'!K32","v":0},{"$f":"$D$33*'Nutrient Management'!L32","v":0},{"$f":"$D$33*'Nutrient Management'!J34","v":0}]
[]
["Fertilizer Products & Pricing"]
["Days Before Incorporation","Retention Factor",null,"Manure (solid)"]
["----",1,null,"Factor","Nitrogen","Phosphorus","Potassium","Sulfur"]
["0-1 days",0.7,null,{"$f":"VLOOKUP('Fertilizer Products & Pricing'!V33,'Manure and Nutrient Credits'!A37:B41,2,FALSE)","v":0.1},{"$f":"$D$38*'Fertilizer Products & Pricing'!R33","v":4.2},{"$f":"$D$38*'Fertilizer Products & Pricing'!S33","v":7.5},{"$f":"$D$38*'Fertilizer Products & Pricing'!T33","v":5.7},{"$f":"$D$38*'Fertilizer Products & Pricing'!U33","v":0.8}]
["2-3 days",0.4,null,"Manure (liquid)"]
["4-7 days",0.2]
[">7 days",0.1,null,{"$f":"VLOOKUP('Fertilizer Products & Pricing'!V38,'Manure and Nutrient Credits'!A37:B41,2,FALSE)","v":0.1},{"$f":"$D$41*'Fertilizer Products & Pricing'!R38","v":4.3},{"$f":"$D$41*'Fertilizer Products & Pricing'!S38","v":1.7000000000000002},{"$f":"$D$41*'Fertilizer Products & Pricing'!T38","v":3.8000000000000003},{"$f":"$D$41*'Fertilizer Products & Pricing'!U38","v":1}]

{"sheet":"Fertilizer Plan (Corn)","index":7,"n_rows":79,"n_cols":35,"rows_kept":79,"cut":false,"hidden":false,"merged":[[70,4,70,6],[71,8,71,10],[71,32,71,34],[71,20,71,22],[71,5,71,6],[70,16,70,18],[71,17,71,18],[70,28,70,30],[71,29,71,30],[0,24,0,34],[2,24,2,34],[26,24,26,34],[47,24,47,34],[13,32,18,34],[1,24,1,34],[47,0,47,10],[13,8,18,10],[0,12,0,22],[2,12,2,22],[26,12,26,22],[47,12,47,22],[13,20,18,22],[25,23,26,23],[0,0,0,10],[26,0,26,10],[2,0,2,10],[1,0,1,10],[1,12,1,22]]}
["Corn",null,null,null,null,null,null,null,null,null,null,null,"Corn",null,null,null,null,null,null,null,null,null,null,null,"Corn"]
["Comparison Plan 1",null,null,null,null,null,null,null,null,null,null,null,"Comparison Plan 2",null,null,null,null,null,null,null,null,null,null,null,"Comparison Plan 3"]
["1st Application (i.e., Pre-Plant or Broadcast Fertilizer)",null,null,null,null,null,null,null,null,null,null,null,"1st Application (i.e., Pre-Plant or Broadcast Fertilizer)",null,null,null,null,null,null,null,null,null,null,null,"1st Application (i.e., Pre-Plant or Broadcast Fertilizer)"]
["Fertilizer Source","Purchase Units","Package Price (Gals, Lbs, etc.)","Units/Pkg","Rate/Acre","Units","Cost",null,null,null,null,null,"Fertilizer Source","Purchase Units","Package Price (Gals, Lbs, etc.)","Units/Pkg","Rate/Acre","Units","Cost",null,null,null,null,null,"Fertilizer Source","Purchase Units","Package Price (Gals, Lbs, etc.)","Units/Pkg","Rate/Acre","Units","Cost"]
["Macronutrients (drop down menu)",null,null,null,"(Enter Below)",null,null,null,"N","P","K",null,"Macronutrients (drop down menu)",null,null,null,"(Enter Below)",null,null,null,"N","P","K",null,"Macronutrients (drop down menu)",null,null,null,"(Enter Below)",null,null,null,"N","P","K"]
["Potash (0-0-60)",{"$f":"VLOOKUP(A6,Macronutrients,14,FALSE)","v":"Tons"},{"$f":"VLOOKUP(A6,'Fertilizer Products & Pricing'!$A$4:$O$38,15,FALSE)","v":690},{"$f":"VLOOKUP($A6,Macronutrients,13,FALSE)","v":2000},108,{"$f":"VLOOKUP($A6,Macronutrients,12,FALSE)","v":"lbs"},{"$f":"(E6*VLOOKUP(A6,Macronutrients,11,FALSE)/D6)*C6","v":37.26},null,{"$f":"VLOOKUP(A6,'Fertilizer Products & Pricing'!$A$4:$O$38,2,FALSE)*E6+VLOOKUP(A7,'Fertilizer Products & Pricing'!$A$4:$O$38,2,FALSE)*E7+VLOOKUP(A8,'Fertilizer Products & Pricing'!$A$4:$O$38,2,FALSE)*E8+VLOOKUP(A9,'Fertilizer Products & Pricing'!$A$4:$O$38,2,FALSE)*E9+VLOOKUP(A10,'Fertilizer Products & Pricing'!$A$4:$O$38,2,FALSE)*E10+VLOOKUP(A11,'Fertilizer Products & Pricing'!$A$4:$O$38,2,FALSE)*E11+VLOOKUP(A14,'Fertilizer Products & Pricing'!$A$42:$O$55,2,FALSE)*E14+VLOOKUP(A15,'Fertilizer Products & Pricing'!$A$42:$O$55,2,FALSE)*E15+VLOOKUP(A16,'Fertilizer Products & Pricing'!$A$42:$O$55,2,FALSE)*E16+VLOOKUP(A17,'Fertilizer Products & Pricing'!$A$42:$O$55,2,FALSE)*E17","v":33.659999999999997},{"$f":"VLOOKUP(A6,'Fertilizer Products & Pricing'!$A$4:$O$38,3,FALSE)*E6+VLOOKUP(A7,'Fertilizer Products & Pricing'!$A$4:$O$38,3,FALSE)*E7+VLOOKUP(A8,'Fertilizer Products & Pricing'!$A$4:$O$38,3,FALSE)*E8+VLOOKUP(A9,'Fertilizer Products & Pricing'!$A$4:$O$38,3,FALSE)*E9+VLOOKUP(A10,'Fertilizer Products & Pricing'!$A$4:$O$38,3,FALSE)*E10+VLOOKUP(A11,'Fertilizer Products & Pricing'!$A$4:$O$38,3,FALSE)*E11+VLOOKUP(A14,'Fertilizer Products & Pricing'!$A$42:$O$55,3,FALSE)*E14+VLOOKUP(A15,'Fertilizer Products & Pricing'!$A$42:$O$55,3,FALSE)*E15+VLOOKUP(A16,'Fertilizer Products & Pricing'!$A$42:$O$55,3,FALSE)*E16+VLOOKUP(A17,'Fertilizer Products & Pricing'!$A$42:$O$55,3,FALSE)*E17","v":86.02000000000001},{"$f":"VLOOKUP(A6,'Fertilizer Products & Pricing'!$A$4:$O$38,4,FALSE)*E6+VLOOKUP(A7,'Fertilizer Products & Pricing'!$A$4:$O$38,4,FALSE)*E7+VLOOKUP(A8,'Fertilizer Products & Pricing'!$A$4:$O$38,4,FALSE)*E8+VLOOKUP(A9,'Fertilizer Products & Pricing'!$A$4:$O$38,4,FALSE)*E9+VLOOKUP(A10,'Fertilizer Products & Pricing'!$A$4:$O$38,4,FALSE)*E10+VLOOKUP(A11,'Fertilizer Products & Pricing'!$A$4:$O$38,4,FALSE)*E11+VLOOKUP(A14,'Fertilizer Products & Pricing'!$A$42:$O$55,4,FALSE)*E14+VLOOKUP(A15,'Fertilizer Products & Pricing'!$A$42:$O$55,4,FALSE)*E15+VLOOKUP(A16,'Fertilizer Products & Pricing'!$A$42:$O$55,4,FALSE)*E16+VLOOKUP(A17,'Fertilizer Products & Pricing'!$A$42:$O$55,4,FALSE)*E17","v":64.8},null,"DAP (18-46-0)",{"$f":"VLOOKUP(M6,Macronutrients,14,FALSE)","v":"Tons"},{"$f":"VLOOKUP(M6,'Fertilizer Products & Pricing'!$A$4:$O$38,15,FALSE)","v":798},{"$f":"VLOOKUP($M6,Macronutrients,13,FALSE)","v":2000},78,{"$f":"VLOOKUP($M6,Macronutrients,12,FALSE)","v":"lbs"},{"$f":"(Q6*VLOOKUP(M6,Macronutrients,11,FALSE)/P6)*O6","v":31.122},null,{"$f":"VLOOKUP(M6,'Fertilizer Products & Pricing'!$A$4:$O$38,2,FALSE)*Q6+VLOOKUP(M7,'Fertilizer Products & Pricing'!$A$4:$O$38,2,FALSE)*Q7+VLOOKUP(M8,'Fertilizer Products & Pricing'!$A$4:$O$38,2,FALSE)*Q8+VLOOKUP(M9,'Fertilizer Products & Pricing'!$A$4:$O$38,2,FALSE)*Q9+VLOOKUP(M10,'Fertilizer Products & Pricing'!$A$4:$O$38,2,FALSE)*Q10+VLOOKUP(M11,'Fertilizer Products & Pricing'!$A$4:$O$38,2,FALSE)*Q11+VLOOKUP(M14,'Fertilizer Products & Pricing'!$A$42:$O$55,2,FALSE)*Q14+VLOOKUP(M15,'Fertilizer Products & Pricing'!$A$42:$O$55,2,FALSE)*Q15+VLOOKUP(M16,'Fertilizer Products & Pricing'!$A$42:$O$55,2,FALSE)*Q16+VLOOKUP(M17,'Fertilizer Products & Pricing'!$A$42:$O$55,2,FALSE)*Q17+VLOOKUP($M20,'Fertilizer Products & Pricing'!$A$59:$O$67,2,FALSE)*Q20","v":14.04},{"$f":"VLOOKUP(M6,'Fertilizer Products & Pricing'!$A$4:$O$38,3,FALSE)*Q6+VLOOKUP(M7,'Fertilizer Products & Pricing'!$A$4:$O$38,3,FALSE)*Q7+VLOOKUP(M8,'Fertilizer Products & Pricing'!$A$4:$O$38,3,FALSE)*Q8+VLOOKUP(M9,'Fertilizer Products & Pricing'!$A$4:$O$38,3,FALSE)*Q9+VLOOKUP(M10,'Fertilizer Products & Pricing'!$A$4:$O$38,3,FALSE)*Q10+VLOOKUP(M11,'Fertilizer Products & Pricing'!$A$4:$O$38,3,FALSE)*Q11+VLOOKUP(M14,'Fertilizer Products & Pricing'!$A$42:$O$55,3,FALSE)*Q14+VLOOKUP(M15,'Fertilizer Products & Pricing'!$A$42:$O$55,3,FALSE)*Q15+VLOOKUP(M16,'Fertilizer Products & Pricing'!$A$42:$O$55,3,FALSE)*Q16+VLOOKUP(M17,'Fertilizer Products & Pricing'!$A$42:$O$55,3,FALSE)*Q17+VLOOKUP($M20,'Fertilizer Products & Pricing'!$A$59:$O$67,2,FALSE)*Q20","v":35.880000000000003},{"$f":"VLOOKUP(M6,'Fertilizer Products & Pricing'!$A$4:$O$38,4,FALSE)*Q6+VLOOKUP(M7,'Fertilizer Products & Pricing'!$A$4:$O$38,4,FALSE)*Q7+VLOOKUP(M8,'Fertilizer Products & Pricing'!$A$4:$O$38,4,FALSE)*Q8+VLOOKUP(M9,'Fertilizer Products & Pricing'!$A$4:$O$38,4,FALSE)*Q9+VLOOKUP(M10,'Fertilizer Products & Pricing'!$A$4:$O$38,4,FALSE)*Q10+VLOOKUP(M11,'Fertilizer Products & Pricing'!$A$4:$O$38,4,FALSE)*Q11+VLOOKUP(M14,'Fertilizer Products & Pricing'!$A$42:$O$55,4,FALSE)*Q14+VLOOKUP(M15,'Fertilizer Products & Pricing'!$A$42:$O$55,4,FALSE)*Q15+VLOOKUP(M16,'Fertilizer Products & Pricing'!$A$42:$O$55,4,FALSE)*Q16+VLOOKUP(M17,'Fertilizer Products & Pricing'!$A$42:$O$55,4,FALSE)*Q17+VLOOKUP($M20,'Fertilizer Products & Pricing'!$A$59:$O$67,2,FALSE)*Q20","v":43.199999999999996},null,"None",{"$f":"VLOOKUP(Y6,Macronutrients,14,FALSE)","v":"None"},{"$f":"VLOOKUP(Y6,'Fertilizer Products & Pricing'!$A$4:$O$38,15,FALSE)","v":0},{"$f":"VLOOKUP($Y6,Macronutrients,13,FALSE)","v":1},0,{"$f":"VLOOKUP($Y6,Macronutrients,12,FALSE)","v":0},{"$f":"(AC6*VLOOKUP(Y6,Macronutrients,11,FALSE)/AB6)*AA6","v":0},null,{"$f":"VLOOKUP(Y6,'Fertilizer Products & Pricing'!$A$4:$O$38,2,FALSE)*AC6+VLOOKUP(Y7,'Fertilizer Products & Pricing'!$A$4:$O$38,2,FALSE)*AC7+VLOOKUP(Y8,'Fertilizer Products & Pricing'!$A$4:$O$38,2,FALSE)*AC8+VLOOKUP(Y9,'Fertilizer Products & Pricing'!$A$4:$O$38,2,FALSE)*AC9+VLOOKUP(Y10,'Fertilizer Products & Pricing'!$A$4:$O$38,2,FALSE)*AC10+VLOOKUP(Y11,'Fertilizer Products & Pricing'!$A$4:$O$38,2,FALSE)*AC11+VLOOKUP(Y14,'Fertilizer Products & Pricing'!$A$42:$O$55,2,FALSE)*AC14+VLOOKUP(Y15,'Fertilizer Products & Pricing'!$A$42:$O$55,2,FALSE)*AC15+VLOOKUP(Y16,'Fertilizer Products & Pricing'!$A$42:$O$55,2,FALSE)*AC16+VLOOKUP(Y17,'Fertilizer Products & Pricing'!$A$42:$O$55,2,FALSE)*AC17+VLOOKUP($Y20,'Fertilizer Products & Pricing'!$A$59:$O$67,2,FALSE)*AC20","v":0},{"$f":"VLOOKUP(Y6,'Fertilizer Products & Pricing'!$A$4:$O$38,3,FALSE)*AC6+VLOOKUP(Y7,'Fertilizer Products & Pricing'!$A$4:$O$38,3,FALSE)*AC7+VLOOKUP(Y8,'Fertilizer Products & Pricing'!$A$4:$O$38,3,FALSE)*AC8+VLOOKUP(Y9,'Fertilizer Products & Pricing'!$A$4:$O$38,3,FALSE)*AC9+VLOOKUP(Y10,'Fertilizer Products & Pricing'!$A$4:$O$38,3,FALSE)*AC10+VLOOKUP(Y11,'Fertilizer Products & Pricing'!$A$4:$O$38,3,FALSE)*AC11+VLOOKUP(Y14,'Fertilizer Products & Pricing'!$A$42:$O$55,3,FALSE)*AC14+VLOOKUP(Y15,'Fertilizer Products & Pricing'!$A$42:$O$55,3,FALSE)*AC15+VLOOKUP(Y16,'Fertilizer Products & Pricing'!$A$42:$O$55,3,FALSE)*AC16+VLOOKUP(Y17,'Fertilizer Products & Pricing'!$A$42:$O$55,3,FALSE)*AC17+VLOOKUP($Y20,'Fertilizer Products & Pricing'!$A$59:$O$67,2,FALSE)*AC20","v":0},{"$f":"VLOOKUP(Y6,'Fertilizer Products & Pricing'!$A$4:$O$38,4,FALSE)*AC6+VLOOKUP(Y7,'Fertilizer Products & Pricing'!$A$4:$O$38,4,FALSE)*AC7+VLOOKUP(Y8,'Fertilizer Products & Pricing'!$A$4:$O$38,4,FALSE)*AC8+VLOOKUP(Y9,'Fertilizer Products & Pricing'!$A$4:$O$38,4,FALSE)*AC9+VLOOKUP(Y10,'Fertilizer Products & Pricing'!$A$4:$O$38,4,FALSE)*AC10+VLOOKUP(Y11,'Fertilizer Products & Pricing'!$A$4:$O$38,4,FALSE)*AC11+VLOOKUP(Y14,'Fertilizer Products & Pricing'!$A$42:$O$55,4,FALSE)*AC14+VLOOKUP(Y15,'Fertilizer Products & Pricing'!$A$42:$O$55,4,FALSE)*AC15+VLOOKUP(Y16,'Fertilizer Products & Pricing'!$A$42:$O$55,4,FALSE)*AC16+VLOOKUP(Y17,'Fertilizer Products & Pricing'!$A$42:$O$55,4,FALSE)*AC17+VLOOKUP($Y20,'Fertilizer Products & Pricing'!$A$59:$O$67,2,FALSE)*AC20","v":0}]
["DAP (18-46-0)",{"$f":"VLOOKUP(A7,Macronutrients,14,FALSE)","v":"Tons"},{"$f":"VLOOKUP(A7,'Fertilizer Products & Pricing'!$A$4:$O$38,15,FALSE)","v":798},2000,187,"lbs",{"$f":"(E7*VLOOKUP(A7,Macronutrients,11,FALSE)/D7)*C7","v":74.613},null,null,null,null,null,"Potash (0-0-60)","Tons",{"$f":"VLOOKUP(M7,'Fertilizer Products & Pricing'!$A$4:$O$38,15,FALSE)","v":690},2000,72,"lbs",{"$f":"(Q7*VLOOKUP(M7,Macronutrients,11,FALSE)/P7)*O7","v":24.84},null,null,null,null,null,"None",{"$f":"VLOOKUP(Y7,Macronutrients,14,FALSE)","v":"None"},{"$f":"VLOOKUP(Y7,'Fertilizer Products & Pricing'!$A$4:$O$38,15,FALSE)","v":0},1,0,0,{"$f":"(AC7*VLOOKUP(Y7,Macronutrients,11,FALSE)/AB7)*AA7","v":0}]
["None","None",{"$f":"VLOOKUP(A8,'Fertilizer Products & Pricing'!$A$4:$O$38,15,FALSE)","v":0},1,0,0,0,null,"S","Ca","Mg",null,"None","None",{"$f":"VLOOKUP(M8,'Fertilizer Products & Pricing'!$A$4:$O$38,15,FALSE)","v":0},1,0,0,0,null,"S","Ca","Mg",null,"None","None",{"$f":"VLOOKUP(Y8,'Fertilizer Products & Pricing'!$A$4:$O$38,15,FALSE)","v":0},1,0,0,0,null,"S","Ca","Mg"]
["None","None",{"$f":"VLOOKUP(A9,'Fertilizer Products & Pricing'!$A$4:$O$38,15,FALSE)","v":0},1,0,0,0,null,{"$f":"VLOOKUP($A6,'Fertilizer Products & Pricing'!$A$4:$O$38,5,FALSE)*E6+VLOOKUP($A7,'Fertilizer Products & Pricing'!$A$4:$O$38,5,FALSE)*E7+VLOOKUP($A8,'Fertilizer Products & Pricing'!$A$4:$O$38,5,FALSE)*E8+VLOOKUP($A9,'Fertilizer Products & Pricing'!$A$4:$O$38,5,FALSE)*E9+VLOOKUP($A10,'Fertilizer Products & Pricing'!$A$4:$O$38,5,FALSE)*E10+VLOOKUP($A11,'Fertilizer Products & Pricing'!$A$4:$O$38,5,FALSE)*E11+VLOOKUP($A14,'Fertilizer Products & Pricing'!$A$42:$O$55,5,FALSE)*E14+VLOOKUP(A15,'Fertilizer Products & Pricing'!$A$42:$O$55,5,FALSE)*E15+VLOOKUP($A16,'Fertilizer Products & Pricing'!$A$42:$O$55,5,FALSE)*E16+VLOOKUP($A17,'Fertilizer Products & Pricing'!$A$42:$O$55,5,FALSE)*E17","v":0},{"$f":"VLOOKUP($A6,'Fertilizer Products & Pricing'!$A$4:$O$38,7,FALSE)*$E$6+VLOOKUP($A7,'Fertilizer Products & Pricing'!$A$4:$O$38,7,FALSE)*$E$7+VLOOKUP($A8,'Fertilizer Products & Pricing'!$A$4:$O$38,7,FALSE)*$E$8+VLOOKUP($A9,'Fertilizer Products & Pricing'!$A$4:$O$38,7,FALSE)*$E$9+VLOOKUP($A10,'Fertilizer Products & Pricing'!$A$4:$O$38,7,FALSE)*$E$10+VLOOKUP($A11,'Fertilizer Products & Pricing'!$A$4:$O$38,7,FALSE)*$E$11+VLOOKUP($A14,'Fertilizer Products & Pricing'!$A$42:$O$55,7,FALSE)*$E$14+VLOOKUP($A15,'Fertilizer Products & Pricing'!$A$42:$O$55,7,FALSE)*E15+VLOOKUP($A16,'Fertilizer Products & Pricing'!$A$42:$O$55,7,FALSE)*$E$16+VLOOKUP($A17,'Fertilizer Products & Pricing'!$A$42:$O$55,7,FALSE)*$E$17+VLOOKUP($A20,'Fertilizer Products & Pricing'!$A$59:$O$67,7,FALSE)*E20","v":0},{"$f":"VLOOKUP($A6,'Fertilizer Products & Pricing'!$A$4:$O$38,6,FALSE)*$E$6+VLOOKUP($A7,'Fertilizer Products & Pricing'!$A$4:$O$38,6,FALSE)*$E$7+VLOOKUP($A8,'Fertilizer Products & Pricing'!$A$4:$O$38,6,FALSE)*$E$8+VLOOKUP($A9,'Fertilizer Products & Pricing'!$A$4:$O$38,6,FALSE)*$E$9+VLOOKUP($A10,'Fertilizer Products & Pricing'!$A$4:$O$38,6,FALSE)*$E$10+VLOOKUP($A11,'Fertilizer Products & Pricing'!$A$4:$O$38,6,FALSE)*$E$11+VLOOKUP($A14,'Fertilizer Products & Pricing'!$A$42:$O$55,6,FALSE)*$E$14+VLOOKUP($A15,'Fertilizer Products & Pricing'!$A$42:$O$55,6,FALSE)*$E$15+VLOOKUP($A16,'Fertilizer Products & Pricing'!$A$42:$O$55,6,FALSE)*$E$16+VLOOKUP(A$17,'Fertilizer Products & Pricing'!$A$42:$O$55,6,FALSE)*$E$17+VLOOKUP($A20,'Fertilizer Products & Pricing'!$A$59:$O$67,6,FALSE)*E20","v":0},null,"None","None",{"$f":"VLOOKUP(M9,'Fertilizer Products & Pricing'!$A$4:$O$38,15,FALSE)","v":0},1,0,0,0,null,{"$f":"VLOOKUP($M6,'Fertilizer Products & Pricing'!$A$4:$O$38,5,FALSE)*Q6+VLOOKUP($M7,'Fertilizer Products & Pricing'!$A$4:$O$38,5,FALSE)*Q7+VLOOKUP($M8,'Fertilizer Products & Pricing'!$A$4:$O$38,5,FALSE)*Q8+VLOOKUP($M9,'Fertilizer Products & Pricing'!$A$4:$O$38,5,FALSE)*Q9+VLOOKUP($M10,'Fertilizer Products & Pricing'!$A$4:$O$38,5,FALSE)*Q10+VLOOKUP($M11,'Fertilizer Products & Pricing'!$A$4:$O$38,5,FALSE)*Q11+VLOOKUP($M14,'Fertilizer Products & Pricing'!$A$42:$O$55,5,FALSE)*Q14+VLOOKUP(M15,'Fertilizer Products & Pricing'!$A$42:$O$55,5,FALSE)*Q15+VLOOKUP($M16,'Fertilizer Products & Pricing'!$A$42:$O$55,5,FALSE)*Q16+VLOOKUP($M17,'Fertilizer Products & Pricing'!$A$42:$O$55,5,FALSE)*Q17+VLOOKUP($M20,'Fertilizer Products & Pricing'!$A$59:$O$67,2,FALSE)*Q20","v":0},{"$f":"VLOOKUP($M6,'Fertilizer Products & Pricing'!$A$4:$O$38,7,FALSE)*$Q$6+VLOOKUP($M7,'Fertilizer Products & Pricing'!$A$4:$O$38,7,FALSE)*$Q$7+VLOOKUP($M8,'Fertilizer Products & Pricing'!$A$4:$O$38,7,FALSE)*$Q$8+VLOOKUP($M9,'Fertilizer Products & Pricing'!$A$4:$O$38,7,FALSE)*$Q$9+VLOOKUP($M10,'Fertilizer Products & Pricing'!$A$4:$O$38,7,FALSE)*$Q$10+VLOOKUP($M11,'Fertilizer Products & Pricing'!$A$4:$O$38,7,FALSE)*$Q$11+VLOOKUP($M14,'Fertilizer Products & Pricing'!$A$42:$O$55,7,FALSE)*$Q$14+VLOOKUP($M15,'Fertilizer Products & Pricing'!$A$42:$O$55,7,FALSE)*Q15+VLOOKUP($M16,'Fertilizer Products & Pricing'!$A$42:$O$55,7,FALSE)*$Q$16+VLOOKUP($M17,'Fertilizer Products & Pricing'!$A$42:$O$55,7,FALSE)*$Q$17+VLOOKUP($M20,'Fertilizer Products & Pricing'!$A$59:$O$67,7,FALSE)*Q20","v":0},{"$f":"VLOOKUP($M6,'Fertilizer Products & Pricing'!$A$4:$O$38,6,FALSE)*$Q$6+VLOOKUP($M7,'Fertilizer Products & Pricing'!$A$4:$O$38,6,FALSE)*$Q$7+VLOOKUP($M8,'Fertilizer Products & Pricing'!$A$4:$O$38,6,FALSE)*$Q$8+VLOOKUP($M9,'Fertilizer Products & Pricing'!$A$4:$O$38,6,FALSE)*$Q$9+VLOOKUP($M10,'Fertilizer Products & Pricing'!$A$4:$O$38,6,FALSE)*$Q$10+VLOOKUP($M11,'Fertilizer Products & Pricing'!$A$4:$O$38,6,FALSE)*$Q$11+VLOOKUP($M14,'Fertilizer Products & Pricing'!$A$42:$O$55,6,FALSE)*$Q$14+VLOOKUP($M15,'Fertilizer Products & Pricing'!$A$42:$O$55,6,FALSE)*$Q$15+VLOOKUP($M16,'Fertilizer Products & Pricing'!$A$42:$O$55,6,FALSE)*$Q$16+VLOOKUP(M$17,'Fertilizer Products & Pricing'!$A$42:$O$55,6,FALSE)*$Q$17+VLOOKUP($M20,'Fertilizer Products & Pricing'!$A$59:$O$67,6,FALSE)*Q20","v":0},null,"None","None",{"$f":"VLOOKUP(Y9,'Fertilizer Products & Pricing'!$A$4:$O$38,15,FALSE)","v":0},1,0,0,0,null,{"$f":"VLOOKUP($Y6,'Fertilizer Products & Pricing'!$A$4:$O$38,5,FALSE)*AC6+VLOOKUP($Y7,'Fertilizer Products & Pricing'!$A$4:$O$38,5,FALSE)*AC7+VLOOKUP($Y8,'Fertilizer Products & Pricing'!$A$4:$O$38,5,FALSE)*AC8+VLOOKUP($Y9,'Fertilizer Products & Pricing'!$A$4:$O$38,5,FALSE)*AC9+VLOOKUP($Y10,'Fertilizer Products & Pricing'!$A$4:$O$38,5,FALSE)*AC10+VLOOKUP($Y11,'Fertilizer Products & Pricing'!$A$4:$O$38,5,FALSE)*AC11+VLOOKUP($Y14,'Fertilizer Products & Pricing'!$A$42:$O$55,5,FALSE)*AC14+VLOOKUP(Y15,'Fertilizer Products & Pricing'!$A$42:$O$55,5,FALSE)*AC15+VLOOKUP($Y16,'Fertilizer Products & Pricing'!$A$42:$O$55,5,FALSE)*AC16+VLOOKUP($Y17,'Fertilizer Products & Pricing'!$A$42:$O$55,5,FALSE)*AC17+VLOOKUP($Y20,'Fertilizer Products & Pricing'!$A$59:$O$67,2,FALSE)*AC20","v":0},{"$f":"VLOOKUP($Y6,'Fertilizer Products & Pricing'!$A$4:$O$38,7,FALSE)*$AC$6+VLOOKUP($Y7,'Fertilizer Products & Pricing'!$A$4:$O$38,7,FALSE)*$AC$7+VLOOKUP($Y8,'Fertilizer Products & Pricing'!$A$4:$O$38,7,FALSE)*$AC$8+VLOOKUP($Y9,'Fertilizer Products & Pricing'!$A$4:$O$38,7,FALSE)*$AC$9+VLOOKUP($Y10,'Fertilizer Products & Pricing'!$A$4:$O$38,7,FALSE)*$AC$10+VLOOKUP($Y11,'Fertilizer Products & Pricing'!$A$4:$O$38,7,FALSE)*$AC$11+VLOOKUP($Y14,'Fertilizer Products & Pricing'!$A$42:$O$55,7,FALSE)*$AC$14+VLOOKUP($Y15,'Fertilizer Products & Pricing'!$A$42:$O$55,7,FALSE)*AC15+VLOOKUP($Y16,'Fertilizer Products & Pricing'!$A$42:$O$55,7,FALSE)*$AC$16+VLOOKUP($Y17,'Fertilizer Products & Pricing'!$A$42:$O$55,7,FALSE)*$AC$17+VLOOKUP($Y20,'Fertilizer Products & Pricing'!$A$59:$O$67,7,FALSE)*AC20","v":0},{"$f":"VLOOKUP($Y6,'Fertilizer Products & Pricing'!$A$4:$O$38,6,FALSE)*$AC$6+VLOOKUP($Y7,'Fertilizer Products & Pricing'!$A$4:$O$38,6,FALSE)*$AC$7+VLOOKUP($Y8,'Fertilizer Products & Pricing'!$A$4:$O$38,6,FALSE)*$AC$8+VLOOKUP($Y9,'Fertilizer Products & Pricing'!$A$4:$O$38,6,FALSE)*$AC$9+VLOOKUP($Y10,'Fertilizer Products & Pricing'!$A$4:$O$38,6,FALSE)*$AC$10+VLOOKUP($Y11,'Fertilizer Products & Pricing'!$A$4:$O$38,6,FALSE)*$AC$11+VLOOKUP($Y14,'Fertilizer Products & Pricing'!$A$42:$O$55,6,FALSE)*$AC$14+VLOOKUP($Y15,'Fertilizer Products & Pricing'!$A$42:$O$55,6,FALSE)*$AC$15+VLOOKUP($Y16,'Fertilizer Products & Pricing'!$A$42:$O$55,6,FALSE)*$AC$16+VLOOKUP(Y$17,'Fertilizer Products & Pricing'!$A$42:$O$55,6,FALSE)*$AC$17+VLOOKUP($Y20,'Fertilizer Products & Pricing'!$A$59:$O$67,6,FALSE)*AC20","v":0}]
["None","None",{"$f":"VLOOKUP(A10,'Fertilizer Products & Pricing'!$A$4:$O$38,15,FALSE)","v":0},1,0,0,0,null,null,null,null,null,"None","None",{"$f":"VLOOKUP(M10,'Fertilizer Products & Pricing'!$A$4:$O$38,15,FALSE)","v":0},1,0,0,0,null,null,null,null,null,"None","None",{"$f":"VLOOKUP(Y10,'Fertilizer Products & Pricing'!$A$4:$O$38,15,FALSE)","v":0},1,0,0,0]
["None","None",{"$f":"VLOOKUP(A11,'Fertilizer Products & Pricing'!$A$4:$O$38,15,FALSE)","v":0},1,0,0,0,null,"Zn","B","Mn",null,"None","None",{"$f":"VLOOKUP(M11,'Fertilizer Products & Pricing'!$A$4:$O$38,15,FALSE)","v":0},1,0,0,0,null,"Zn","B","Mn",null,"None","None",{"$f":"VLOOKUP(Y11,'Fertilizer Products & Pricing'!$A$4:$O$38,15,FALSE)","v":0},1,0,0,0,null,"Zn","B","Mn"]
[null,null,null,null,null,null,null,null,{"$f":"VLOOKUP($A$15,'Fertilizer Products & Pricing'!$A$42:$O$55,8,FALSE)*$E$15+VLOOKUP($A$16,'Fertilizer Products & Pricing'!$A$42:$O$55,8,FALSE)*$E$16+VLOOKUP($A$17,'Fertilizer Products & Pricing'!$A$42:$O$55,8,FALSE)*$E$17+VLOOKUP($A$14,'Fertilizer Products & Pricing'!$A$42:$O$55,8,FALSE)*$E$14+VLOOKUP($A20,'Fertilizer Products & Pricing'!$A$59:$O$67,2,FALSE)*E20","v":0},{"$f":"VLOOKUP($A$15,'Fertilizer Products & Pricing'!$A$42:$O$55,9,FALSE)*$E$15+VLOOKUP($A$16,'Fertilizer Products & Pricing'!$A$42:$O$55,9,FALSE)*$E$16+VLOOKUP($A$17,'Fertilizer Products & Pricing'!$A$42:$O$55,9,FALSE)*$E$17+VLOOKUP($A$14,'Fertilizer Products & Pricing'!$A$42:$O$55,9,FALSE)*$E$14+VLOOKUP($A20,'Fertilizer Products & Pricing'!$A$59:$O$67,2,FALSE)*E20","v":0},{"$f":"VLOOKUP($A$15,'Fertilizer Products & Pricing'!$A$42:$O$55,10,FALSE)*$E$15+VLOOKUP($A$16,'Fertilizer Products & Pricing'!$A$42:$O$55,10,FALSE)*$E$16+VLOOKUP($A$17,'Fertilizer Products & Pricing'!$A$42:$O$55,10,FALSE)*$E$17+VLOOKUP($A$14,'Fertilizer Products & Pricing'!$A$42:$O$55,10,FALSE)*$E$14+VLOOKUP($A20,'Fertilizer Products & Pricing'!$A$59:$O$67,2,FALSE)*E20","v":0},null,null,null,null,null,null,null,null,null,{"$f":"VLOOKUP($M15,'Fertilizer Products & Pricing'!$A$42:$O$55,8,FALSE)*$Q15+VLOOKUP($M16,'Fertilizer Products & Pricing'!$A$42:$O$55,8,FALSE)*$Q16+VLOOKUP($M17,'Fertilizer Products & Pricing'!$A$42:$O$55,8,FALSE)*$Q17+VLOOKUP($M14,'Fertilizer Products & Pricing'!$A$42:$O$55,8,FALSE)*$Q14+VLOOKUP($M20,'Fertilizer Products & Pricing'!$A$59:$O$67,2,FALSE)*Q20","v":0},{"$f":"VLOOKUP($M15,'Fertilizer Products & Pricing'!$A$42:$O$55,9,FALSE)*$Q15+VLOOKUP($M16,'Fertilizer Products & Pricing'!$A$42:$O$55,9,FALSE)*$Q16+VLOOKUP($M17,'Fertilizer Products & Pricing'!$A$42:$O$55,9,FALSE)*$Q17+VLOOKUP($M14,'Fertilizer Products & Pricing'!$A$42:$O$55,9,FALSE)*$Q14+VLOOKUP($M20,'Fertilizer Products & Pricing'!$A$59:$O$67,2,FALSE)*Q20","v":0},{"$f":"VLOOKUP($M15,'Fertilizer Products & Pricing'!$A$42:$O$55,10,FALSE)*$Q15+VLOOKUP($M16,'Fertilizer Products & Pricing'!$A$42:$O$55,10,FALSE)*$Q16+VLOOKUP($M17,'Fertilizer Products & Pricing'!$A$42:$O$55,10,FALSE)*$Q17+VLOOKUP($M14,'Fertilizer Products & Pricing'!$A$42:$O$55,10,FALSE)*$Q14+VLOOKUP($M20,'Fertilizer Products & Pricing'!$A$59:$O$67,2,FALSE)*Q20","v":0},null,null,null,null,null,null,null,null,null,{"$f":"VLOOKUP($Y15,'Fertilizer Products & Pricing'!$A$42:$O$55,8,FALSE)*$AC15+VLOOKUP($Y16,'Fertilizer Products & Pricing'!$A$42:$O$55,8,FALSE)*$AC16+VLOOKUP($Y17,'Fertilizer Products & Pricing'!$A$42:$O$55,8,FALSE)*$AC17+VLOOKUP($Y14,'Fertilizer Products & Pricing'!$A$42:$O$55,8,FALSE)*$AC14+VLOOKUP($Y20,'Fertilizer Products & Pricing'!$A$59:$O$67,2,FALSE)*AC20","v":0},{"$f":"VLOOKUP($Y15,'Fertilizer Products & Pricing'!$A$42:$O$55,9,FALSE)*$AC15+VLOOKUP($Y16,'Fertilizer Products & Pricing'!$A$42:$O$55,9,FALSE)*$AC16+VLOOKUP($Y17,'Fertilizer Products & Pricing'!$A$42:$O$55,9,FALSE)*$AC17+VLOOKUP($Y14,'Fertilizer Products & Pricing'!$A$42:$O$55,9,FALSE)*$AC14+VLOOKUP($Y20,'Fertilizer Products & Pricing'!$A$59:$O$67,2,FALSE)*AC20","v":0},{"$f":"VLOOKUP($Y15,'Fertilizer Products & Pricing'!$A$42:$O$55,10,FALSE)*$AC15+VLOOKUP($Y16,'Fertilizer Products & Pricing'!$A$42:$O$55,10,FALSE)*$AC16+VLOOKUP($Y17,'Fertilizer Products & Pricing'!$A$42:$O$55,10,FALSE)*$AC17+VLOOKUP($Y14,'Fertilizer Products & Pricing'!$A$42:$O$55,10,FALSE)*$AC14+VLOOKUP($Y20,'Fertilizer Products & Pricing'!$A$59:$O$67,2,FALSE)*AC20","v":0}]
["Micronutrients (drop down menu)",null,null,null,null,null,null,null,null,null,null,null,"Micronutrients (drop down menu)",null,null,null,null,null,null,null,null,null,null,null,"Micronutrients (drop down menu)"]
["None",{"$f":"VLOOKUP($A14,Micronutrients,14,FALSE)","v":"None"},{"$f":"VLOOKUP($A14,Micronutrients,15,FALSE)","v":0},{"$f":"VLOOKUP($A14,Micronutrients,13,FALSE)","v":1},0,{"$f":"VLOOKUP($A14,Micronutrients,12,FALSE)","v":0},{"$f":"(E14*VLOOKUP(A14,Micronutrients,11,FALSE)/D14)*C14","v":0},null,"*Note: For this crop, Nitrogen applied in Pre-Plant applications are not considered to be accessible to meeting the plant's nutritional needs",null,null,null,"None",{"$f":"VLOOKUP(M14,Micronutrients,14,FALSE)","v":"None"},{"$f":"VLOOKUP(M14,Micronutrients,15,FALSE)","v":0},{"$f":"VLOOKUP(M14,Micronutrients,13,FALSE)","v":1},0,{"$f":"VLOOKUP(M14,Micronutrients,12,FALSE)","v":0},{"$f":"(Q14*VLOOKUP(M14,Micronutrients,11,FALSE)/P14)*O14","v":0},null,"*Note: For this crop, Nitrogen applied in Pre-Plant applications are not considered to be accessible to meeting the plant's nutritional needs",null,null,null,"None",{"$f":"VLOOKUP(Y14,Micronutrients,14,FALSE)","v":"None"},{"$f":"VLOOKUP(Y14,Micronutrients,15,FALSE)","v":0},{"$f":"VLOOKUP(Y14,Micronutrients,13,FALSE)","v":1},0,{"$f":"VLOOKUP(Y14,Micronutrients,12,FALSE)","v":0},{"$f":"(AC14*VLOOKUP(Y14,Micronutrients,11,FALSE)/AB14)*AA14","v":0},null,"*Note: For this crop, Nitrogen applied in Pre-Plant applications are not considered to be accessible to meeting the plant's nutritional needs"]
["None",{"$f":"VLOOKUP($A15,Micronutrients,14,FALSE)","v":"None"},{"$f":"VLOOKUP($A15,Micronutrients,15,FALSE)","v":0},{"$f":"VLOOKUP($A15,Micronutrients,13,FALSE)","v":1},0,{"$f":"VLOOKUP($A15,Micronutrients,12,FALSE)","v":0},{"$f":"(E15*VLOOKUP(A15,Micronutrients,11,FALSE)/D15)*C15","v":0},null,null,null,null,null,"None",{"$f":"VLOOKUP(M15,Micronutrients,14,FALSE)","v":"None"},{"$f":"VLOOKUP(M15,Micronutrients,15,FALSE)","v":0},{"$f":"VLOOKUP(M15,Micronutrients,13,FALSE)","v":1},0,{"$f":"VLOOKUP(M15,Micronutrients,12,FALSE)","v":0},{"$f":"(Q15*VLOOKUP(M15,Micronutrients,11,FALSE)/P15)*O15","v":0},null,null,null,null,null,"None",{"$f":"VLOOKUP(Y15,Micronutrients,14,FALSE)","v":"None"},{"$f":"VLOOKUP(Y15,Micronutrients,15,FALSE)","v":0},{"$f":"VLOOKUP(Y15,Micronutrients,13,FALSE)","v":1},0,{"$f":"VLOOKUP(Y15,Micronutrients,12,FALSE)","v":0},{"$f":"(AC15*VLOOKUP(Y15,Micronutrients,11,FALSE)/AB15)*AA15","v":0}]
["None",{"$f":"VLOOKUP($A16,Micronutrients,14,FALSE)","v":"None"},{"$f":"VLOOKUP($A16,Micronutrients,15,FALSE)","v":0},{"$f":"VLOOKUP($A16,Micronutrients,13,FALSE)","v":1},0,{"$f":"VLOOKUP($A16,Micronutrients,12,FALSE)","v":0},{"$f":"(E16*VLOOKUP(A16,Micronutrients,11,FALSE)/D16)*C16","v":0},null,null,null,null,null,"None",{"$f":"VLOOKUP(M16,Micronutrients,14,FALSE)","v":"None"},{"$f":"VLOOKUP(M16,Micronutrients,15,FALSE)","v":0},{"$f":"VLOOKUP(M16,Micronutrients,13,FALSE)","v":1},0,{"$f":"VLOOKUP(M16,Micronutrients,12,FALSE)","v":0},{"$f":"(Q16*VLOOKUP(M16,Micronutrients,11,FALSE)/P16)*O16","v":0},null,null,null,null,null,"None",{"$f":"VLOOKUP(Y16,Micronutrients,14,FALSE)","v":"None"},{"$f":"VLOOKUP(Y16,Micronutrients,15,FALSE)","v":0},{"$f":"VLOOKUP(Y16,Micronutrients,13,FALSE)","v":1},0,{"$f":"VLOOKUP(Y16,Micronutrients,12,FALSE)","v":0},{"$f":"(AC16*VLOOKUP(Y16,Micronutrients,11,FALSE)/AB16)*AA16","v":0}]
["None",{"$f":"VLOOKUP($A17,Micronutrients,14,FALSE)","v":"None"},{"$f":"VLOOKUP($A17,Micronutrients,15,FALSE)","v":0},{"$f":"VLOOKUP($A17,Micronutrients,13,FALSE)","v":1},0,{"$f":"VLOOKUP($A17,Micronutrients,12,FALSE)","v":0},{"$f":"(E17*VLOOKUP(A17,Micronutrients,11,FALSE)/D17)*C17","v":0},null,null,null,null,null,"None",{"$f":"VLOOKUP(M17,Micronutrients,14,FALSE)","v":"None"},{"$f":"VLOOKUP(M17,Micronutrients,15,FALSE)","v":0},{"$f":"VLOOKUP(M17,Micronutrients,13,FALSE)","v":1},0,{"$f":"VLOOKUP(M17,Micronutrients,12,FALSE)","v":0},{"$f":"(Q17*VLOOKUP(M17,Micronutrients,11,FALSE)/P17)*O17","v":0},null,null,null,null,null,"None",{"$f":"VLOOKUP(Y17,Micronutrients,14,FALSE)","v":"None"},{"$f":"VLOOKUP(Y17,Micronutrients,15,FALSE)","v":0},{"$f":"VLOOKUP(Y17,Micronutrients,13,FALSE)","v":1},0,{"$f":"VLOOKUP(Y17,Micronutrients,12,FALSE)","v":0},{"$f":"(AC17*VLOOKUP(Y17,Micronutrients,11,FALSE)/AB17)*AA17","v":0}]
[]
["Lime (drop down menu)",null,null,null,null,null,null,null,null,null,null,null,"Lime (drop down menu)",null,null,null,null,null,null,null,null,null,null,null,"Lime (drop down menu)"]
["None",{"$f":"VLOOKUP(A20,Lime,14,FALSE)","v":"None"},{"$f":"VLOOKUP(A20,Lime,15,FALSE)","v":0},{"$f":"VLOOKUP(A20,Lime,13,FALSE)","v":1},0,{"$f":"VLOOKUP(A20,Lime,12,FALSE)","v":0},{"$f":"(E20*VLOOKUP(A20,Lime,11,FALSE)/D20)*C20","v":0},null,null,null,null,null,"None",{"$f":"VLOOKUP(M20,Lime,14,FALSE)","v":"None"},{"$f":"VLOOKUP(M20,Lime,15,FALSE)","v":0},{"$f":"VLOOKUP(M20,Lime,13,FALSE)","v":1},0,{"$f":"VLOOKUP(M20,Lime,12,FALSE)","v":0},{"$f":"(Q20*VLOOKUP(M20,Lime,11,FALSE)/P20)*O20","v":0},null,null,null,null,null,"None",{"$f":"VLOOKUP(Y20,Lime,14,FALSE)","v":"None"},{"$f":"VLOOKUP(Y20,Lime,15,FALSE)","v":0},{"$f":"VLOOKUP(Y20,Lime,13,FALSE)","v":1},0,{"$f":"VLOOKUP(Y20,Lime,12,FALSE)","v":0},{"$f":"(AC20*VLOOKUP(Y20,Lime,11,FALSE)/AB20)*AA20","v":0}]
[]
["Nitrogen Stabilizers (drop down menu)",null,null,null,null,null,null,null,null,null,null,null,"Nitrogen Stabilizers (drop down menu)",null,null,null,null,null,null,null,null,null,null,null,"Nitrogen Stabilizers (drop down menu)"]
["None",{"$f":"VLOOKUP(A23,NitrogenStabilizers,14,FALSE)","v":"None"},{"$f":"VLOOKUP(A23,NitrogenStabilizers,15,FALSE)","v":0},{"$f":"VLOOKUP(A23,NitrogenStabilizers,13,FALSE)","v":1},0,{"$f":"VLOOKUP(A23,NitrogenStabilizers,12,FALSE)","v":0},{"$f":"(E23*VLOOKUP(A23,NitrogenStabilizers,11,FALSE)/D23)*C23","v":0},null,null,null,null,null,"None",{"$f":"VLOOKUP(M23,NitrogenStabilizers,14,FALSE)","v":"None"},{"$f":"VLOOKUP(M23,NitrogenStabilizers,15,FALSE)","v":0},{"$f":"VLOOKUP(M23,NitrogenStabilizers,13,FALSE)","v":1},0,{"$f":"VLOOKUP(M23,NitrogenStabilizers,12,FALSE)","v":0},{"$f":"(Q23*VLOOKUP(M23,NitrogenStabilizers,11,FALSE)/P23)*O23","v":0},null,null,null,null,null,"None",{"$f":"VLOOKUP(Y23,NitrogenStabilizers,14,FALSE)","v":"None"},{"$f":"VLOOKUP(Y23,NitrogenStabilizers,15,FALSE)","v":0},{"$f":"VLOOKUP(Y23,NitrogenStabilizers,13,FALSE)","v":1},0,{"$f":"VLOOKUP(Y23,NitrogenStabilizers,12,FALSE)","v":0},{"$f":"(AC23*VLOOKUP(Y23,NitrogenStabilizers,11,FALSE)/AB23)*AA23","v":0}]
["None",{"$f":"VLOOKUP(A24,NitrogenStabilizers,14,FALSE)","v":"None"},{"$f":"VLOOKUP(A24,NitrogenStabilizers,15,FALSE)","v":0},{"$f":"VLOOKUP(A24,NitrogenStabilizers,13,FALSE)","v":1},0,{"$f":"VLOOKUP(A24,NitrogenStabilizers,12,FALSE)","v":0},{"$f":"(E24*VLOOKUP(A24,NitrogenStabilizers,11,FALSE)/D24)*C24","v":0},null,null,null,"More",null,"None",{"$f":"VLOOKUP(M24,NitrogenStabilizers,14,FALSE)","v":"None"},{"$f":"VLOOKUP(M24,NitrogenStabilizers,15,FALSE)","v":0},{"$f":"VLOOKUP(M24,NitrogenStabilizers,13,FALSE)","v":1},0,{"$f":"VLOOKUP(M24,NitrogenStabilizers,12,FALSE)","v":0},{"$f":"(Q24*VLOOKUP(M24,NitrogenStabilizers,11,FALSE)/P24)*O24","v":0},null,null,null,"More",null,"None",{"$f":"VLOOKUP(Y24,NitrogenStabilizers,14,FALSE)","v":"None"},{"$f":"VLOOKUP(Y24,NitrogenStabilizers,15,FALSE)","v":0},{"$f":"VLOOKUP(Y24,NitrogenStabilizers,13,FALSE)","v":1},0,{"$f":"VLOOKUP(Y24,NitrogenStabilizers,12,FALSE)","v":0},{"$f":"(AC24*VLOOKUP(Y24,NitrogenStabilizers,11,FALSE)/AB24)*AA24","v":0},null,null,null,"More"]
["1st Application Fertilizer Cost/Acre",null,null,null,null,null,{"$f":"SUM(G6:G24)","v":111.87299999999999},null,null,null,"Below",null,"1st Application Fertilizer Cost/Acre",null,null,null,null,null,{"$f":"SUM(S6:S24)","v":55.962000000000003},null,null,null,"Below",null,"1st Application Fertilizer Cost/Acre",null,null,null,null,null,{"$f":"SUM(AE6:AE24)","v":0},null,null,null,"Below"]
[null,null,null,null,null,null,null,null,null,null,"¯",null,null,null,null,null,null,null,null,null,null,null,"¯"]
["2nd Application (i.e., Starter Fertilizer or Broadcast)",null,null,null,null,null,null,null,null,null,null,null,"2nd Application (i.e., Starter Fertilizer or Broadcast)",null,null,null,null,null,null,null,null,null,null,null,"2nd Application (i.e., Starter Fertilizer or Broadcast)"]
["Fertilizer Source","Purchase Units","Package Price (Gals, Lbs, etc.)","Units/Pkg","Rate/Acre","Units","Cost",null,null,null,null,null,"Fertilizer Source","Purchase Units","Package Price (Gals, Lbs, etc.)","Units/Pkg","Rate/Acre","Units","Cost",null,null,null,null,null,"Fertilizer Source","Purchase Units","Package Price (Gals, Lbs, etc.)","Units/Pkg","Rate/Acre","Units","Cost"]
["Macronutrients (drop down menu)",null,null,null,"(Enter Below)",null,null,null,"N","P","K",null,"Macronutrients (drop down menu)",null,null,null,"(Enter Below)",null,null,null,"N","P","K",null,"Macronutrients (drop down menu)",null,null,null,"(Enter Below)",null,null,null,"N","P","K"]
["UAN 28% (28-0-0)",{"$f":"VLOOKUP(A30,Macronutrients,14,FALSE)","v":"Tons"},{"$f":"VLOOKUP(A30,'Fertilizer Products & Pricing'!$A$4:$O$38,15,FALSE)","v":399},{"$f":"VLOOKUP($A30,Macronutrients,13,FALSE)","v":2000},6,{"$f":"VLOOKUP($A30,Macronutrients,12,FALSE)","v":"gal"},{"$f":"(E30*VLOOKUP(A30,Macronutrients,11,FALSE)/D30)*C30","v":12.771989999999999},null,{"$f":"VLOOKUP(A30,'Fertilizer Products & Pricing'!$A$4:$O$38,2,FALSE)*E30+VLOOKUP(A31,'Fertilizer Products & Pricing'!$A$4:$O$38,2,FALSE)*E31+VLOOKUP(A32,'Fertilizer Products & Pricing'!$A$4:$O$38,2,FALSE)*E32+VLOOKUP(A33,'Fertilizer Products & Pricing'!$A$4:$O$38,2,FALSE)*E33+VLOOKUP(A34,'Fertilizer Products & Pricing'!$A$4:$O$38,2,FALSE)*E34+VLOOKUP(A35,'Fertilizer Products & Pricing'!$A$4:$O$38,2,FALSE)*E35+VLOOKUP(A38,'Fertilizer Products & Pricing'!$A$42:$O$55,2,FALSE)*E38+VLOOKUP(A39,'Fertilizer Products & Pricing'!$A$42:$O$55,2,FALSE)*E39+VLOOKUP(A40,'Fertilizer Products & Pricing'!$A$42:$O$55,2,FALSE)*E40+VLOOKUP(A41,'Fertilizer Products & Pricing'!$A$42:$O$55,2,FALSE)*E41","v":24.945600000000002},{"$f":"VLOOKUP(A30,'Fertilizer Products & Pricing'!$A$4:$O$38,3,FALSE)*E30+VLOOKUP(A31,'Fertilizer Products & Pricing'!$A$4:$O$38,3,FALSE)*E31+VLOOKUP(A32,'Fertilizer Products & Pricing'!$A$4:$O$38,3,FALSE)*E32+VLOOKUP(A33,'Fertilizer Products & Pricing'!$A$4:$O$38,3,FALSE)*E33+VLOOKUP(A34,'Fertilizer Products & Pricing'!$A$4:$O$38,3,FALSE)*E34+VLOOKUP(A35,'Fertilizer Products & Pricing'!$A$4:$O$38,3,FALSE)*E35+VLOOKUP(A38,'Fertilizer Products & Pricing'!$A$42:$O$55,3,FALSE)*E38+VLOOKUP(A39,'Fertilizer Products & Pricing'!$A$42:$O$55,3,FALSE)*E39+VLOOKUP(A40,'Fertilizer Products & Pricing'!$A$42:$O$55,3,FALSE)*E40+VLOOKUP(A41,'Fertilizer Products & Pricing'!$A$42:$O$55,3,FALSE)*E41","v":23.868000000000002},{"$f":"VLOOKUP(A30,'Fertilizer Products & Pricing'!$A$4:$O$38,4,FALSE)*E30+VLOOKUP(A31,'Fertilizer Products & Pricing'!$A$4:$O$38,4,FALSE)*E31+VLOOKUP(A32,'Fertilizer Products & Pricing'!$A$4:$O$38,4,FALSE)*E32+VLOOKUP(A33,'Fertilizer Products & Pricing'!$A$4:$O$38,4,FALSE)*E33+VLOOKUP(A34,'Fertilizer Products & Pricing'!$A$4:$O$38,4,FALSE)*E34+VLOOKUP(A35,'Fertilizer Products & Pricing'!$A$4:$O$38,4,FALSE)*E35+VLOOKUP(A38,'Fertilizer Products & Pricing'!$A$42:$O$55,4,FALSE)*E38+VLOOKUP(A39,'Fertilizer Products & Pricing'!$A$42:$O$55,4,FALSE)*E39+VLOOKUP(A40,'Fertilizer Products & Pricing'!$A$42:$O$55,4,FALSE)*E40+VLOOKUP(A41,'Fertilizer Products & Pricing'!$A$42:$O$55,4,FALSE)*E41","v":0},null,"Ammonium polyphosphate (10-34-0)",{"$f":"VLOOKUP(M30,Macronutrients,14,FALSE)","v":"Tons"},{"$f":"VLOOKUP(M30,'Fertilizer Products & Pricing'!$A$4:$O$38,15,FALSE)","v":704},{"$f":"VLOOKUP($M30,Macronutrients,13,FALSE)","v":2000},6,{"$f":"VLOOKUP($M30,Macronutrients,12,FALSE)","v":"gal"},{"$f":"(Q30*VLOOKUP(M30,Macronutrients,11,FALSE)/P30)*O30","v":24.710399999999993},null,{"$f":"VLOOKUP(M30,'Fertilizer Products & Pricing'!$A$4:$O$38,2,FALSE)*Q30+VLOOKUP(M31,'Fertilizer Products & Pricing'!$A$4:$O$38,2,FALSE)*Q31+VLOOKUP(M32,'Fertilizer Products & Pricing'!$A$4:$O$38,2,FALSE)*Q32+VLOOKUP(M33,'Fertilizer Products & Pricing'!$A$4:$O$38,2,FALSE)*Q33+VLOOKUP(M34,'Fertilizer Products & Pricing'!$A$4:$O$38,2,FALSE)*Q34+VLOOKUP(M35,'Fertilizer Products & Pricing'!$A$4:$O$38,2,FALSE)*Q35+VLOOKUP(M38,'Fertilizer Products & Pricing'!$A$42:$O$55,2,FALSE)*Q38+VLOOKUP(M39,'Fertilizer Products & Pricing'!$A$42:$O$55,2,FALSE)*Q39+VLOOKUP(M40,'Fertilizer Products & Pricing'!$A$42:$O$55,2,FALSE)*Q40+VLOOKUP(M41,'Fertilizer Products & Pricing'!$A$42:$O$55,2,FALSE)*Q41","v":24.945600000000002},{"$f":"VLOOKUP(M30,'Fertilizer Products & Pricing'!$A$4:$O$38,3,FALSE)*Q30+VLOOKUP(M31,'Fertilizer Products & Pricing'!$A$4:$O$38,3,FALSE)*Q31+VLOOKUP(M32,'Fertilizer Products & Pricing'!$A$4:$O$38,3,FALSE)*Q32+VLOOKUP(M33,'Fertilizer Products & Pricing'!$A$4:$O$38,3,FALSE)*Q33+VLOOKUP(M34,'Fertilizer Products & Pricing'!$A$4:$O$38,3,FALSE)*Q34+VLOOKUP(M35,'Fertilizer Products & Pricing'!$A$4:$O$38,3,FALSE)*Q35+VLOOKUP(M38,'Fertilizer Products & Pricing'!$A$42:$O$55,3,FALSE)*Q38+VLOOKUP(M39,'Fertilizer Products & Pricing'!$A$42:$O$55,3,FALSE)*Q39+VLOOKUP(M40,'Fertilizer Products & Pricing'!$A$42:$O$55,3,FALSE)*Q40+VLOOKUP(M41,'Fertilizer Products & Pricing'!$A$42:$O$55,3,FALSE)*Q41","v":23.868000000000002},{"$f":"VLOOKUP(M30,'Fertilizer Products & Pricing'!$A$4:$O$38,4,FALSE)*Q30+VLOOKUP(M31,'Fertilizer Products & Pricing'!$A$4:$O$38,4,FALSE)*Q31+VLOOKUP(M32,'Fertilizer Products & Pricing'!$A$4:$O$38,4,FALSE)*Q32+VLOOKUP(M33,'Fertilizer Products & Pricing'!$A$4:$O$38,4,FALSE)*Q33+VLOOKUP(M34,'Fertilizer Products & Pricing'!$A$4:$O$38,4,FALSE)*Q34+VLOOKUP(M35,'Fertilizer Products & Pricing'!$A$4:$O$38,4,FALSE)*Q35+VLOOKUP(M38,'Fertilizer Products & Pricing'!$A$42:$O$55,4,FALSE)*Q38+VLOOKUP(M39,'Fertilizer Products & Pricing'!$A$42:$O$55,4,FALSE)*Q39+VLOOKUP(M40,'Fertilizer Products & Pricing'!$A$42:$O$55,4,FALSE)*Q40+VLOOKUP(M41,'Fertilizer Products & Pricing'!$A$42:$O$55,4,FALSE)*Q41","v":0},null,"None",{"$f":"VLOOKUP(Y30,Macronutrients,14,FALSE)","v":"None"},{"$f":"VLOOKUP(Y30,'Fertilizer Products & Pricing'!$A$4:$O$38,15,FALSE)","v":0},{"$f":"VLOOKUP($Y30,Macronutrients,13,FALSE)","v":1},0,{"$f":"VLOOKUP($Y30,Macronutrients,12,FALSE)","v":0},{"$f":"(AC30*VLOOKUP(Y30,Macronutrients,11,FALSE)/AB30)*AA30","v":0},null,{"$f":"VLOOKUP(Y30,'Fertilizer Products & Pricing'!$A$4:$O$38,2,FALSE)*AC30+VLOOKUP(Y31,'Fertilizer Products & Pricing'!$A$4:$O$38,2,FALSE)*AC31+VLOOKUP(Y32,'Fertilizer Products & Pricing'!$A$4:$O$38,2,FALSE)*AC32+VLOOKUP(Y33,'Fertilizer Products & Pricing'!$A$4:$O$38,2,FALSE)*AC33+VLOOKUP(Y34,'Fertilizer Products & Pricing'!$A$4:$O$38,2,FALSE)*AC34+VLOOKUP(Y35,'Fertilizer Products & Pricing'!$A$4:$O$38,2,FALSE)*AC35+VLOOKUP(Y38,'Fertilizer Products & Pricing'!$A$42:$O$55,2,FALSE)*AC38+VLOOKUP(Y39,'Fertilizer Products & Pricing'!$A$42:$O$55,2,FALSE)*AC39+VLOOKUP(Y40,'Fertilizer Products & Pricing'!$A$42:$O$55,2,FALSE)*AC40+VLOOKUP(Y41,'Fertilizer Products & Pricing'!$A$42:$O$55,2,FALSE)*AC41","v":0},{"$f":"VLOOKUP(Y30,'Fertilizer Products & Pricing'!$A$4:$O$38,3,FALSE)*AC30+VLOOKUP(Y31,'Fertilizer Products & Pricing'!$A$4:$O$38,3,FALSE)*AC31+VLOOKUP(Y32,'Fertilizer Products & Pricing'!$A$4:$O$38,3,FALSE)*AC32+VLOOKUP(Y33,'Fertilizer Products & Pricing'!$A$4:$O$38,3,FALSE)*AC33+VLOOKUP(Y34,'Fertilizer Products & Pricing'!$A$4:$O$38,3,FALSE)*AC34+VLOOKUP(Y35,'Fertilizer Products & Pricing'!$A$4:$O$38,3,FALSE)*AC35+VLOOKUP(Y38,'Fertilizer Products & Pricing'!$A$42:$O$55,3,FALSE)*AC38+VLOOKUP(Y39,'Fertilizer Products & Pricing'!$A$42:$O$55,3,FALSE)*AC39+VLOOKUP(Y40,'Fertilizer Products & Pricing'!$A$42:$O$55,3,FALSE)*AC40+VLOOKUP(Y41,'Fertilizer Products & Pricing'!$A$42:$O$55,3,FALSE)*AC41","v":0},{"$f":"VLOOKUP(Y30,'Fertilizer Products & Pricing'!$A$4:$O$38,4,FALSE)*AC30+VLOOKUP(Y31,'Fertilizer Products & Pricing'!$A$4:$O$38,4,FALSE)*AC31+VLOOKUP(Y32,'Fertilizer Products & Pricing'!$A$4:$O$38,4,FALSE)*AC32+VLOOKUP(Y33,'Fertilizer Products & Pricing'!$A$4:$O$38,4,FALSE)*AC33+VLOOKUP(Y34,'Fertilizer Products & Pricing'!$A$4:$O$38,4,FALSE)*AC34+VLOOKUP(Y35,'Fertilizer Products & Pricing'!$A$4:$O$38,4,FALSE)*AC35+VLOOKUP(Y38,'Fertilizer Products & Pricing'!$A$42:$O$55,4,FALSE)*AC38+VLOOKUP(Y39,'Fertilizer Products & Pricing'!$A$42:$O$55,4,FALSE)*AC39+VLOOKUP(Y40,'Fertilizer Products & Pricing'!$A$42:$O$55,4,FALSE)*AC40+VLOOKUP(Y41,'Fertilizer Products & Pricing'!$A$42:$O$55,4,FALSE)*AC41","v":0}]
["Ammonium polyphosphate (10-34-0)","Tons",{"$f":"VLOOKUP(A31,'Fertilizer Products & Pricing'!$A$4:$O$38,15,FALSE)","v":704},2000,6,"gal",24.710399999999993,null,null,null,null,null,"UAN 28% (28-0-0)",{"$f":"VLOOKUP(M31,Macronutrients,14,FALSE)","v":"Tons"},{"$f":"VLOOKUP(M31,'Fertilizer Products & Pricing'!$A$4:$O$38,15,FALSE)","v":399},2000,6,"gal",{"$f":"(Q31*VLOOKUP(M31,Macronutrients,11,FALSE)/P31)*O31","v":12.771989999999999},null,null,null,null,null,"None","None",{"$f":"VLOOKUP(Y31,'Fertilizer Products & Pricing'!$A$4:$O$38,15,FALSE)","v":0},1,0,0,{"$f":"(AC31*VLOOKUP(Y31,Macronutrients,11,FALSE)/AB31)*AA31","v":0}]
["None","None",{"$f":"VLOOKUP(A32,'Fertilizer Products & Pricing'!$A$4:$O$38,15,FALSE)","v":0},1,0,0,0,null,"S","Ca","Mg",null,"None","None",{"$f":"VLOOKUP(M32,'Fertilizer Products & Pricing'!$A$4:$O$38,15,FALSE)","v":0},1,0,0,0,null,"S","Ca","Mg",null,"None","None",{"$f":"VLOOKUP(Y32,'Fertilizer Products & Pricing'!$A$4:$O$38,15,FALSE)","v":0},1,0,0,0,null,"S","Ca","Mg"]
["None","None",{"$f":"VLOOKUP(A33,'Fertilizer Products & Pricing'!$A$4:$O$38,15,FALSE)","v":0},1,0,0,0,null,{"$f":"VLOOKUP(A30,'Fertilizer Products & Pricing'!$A$4:$O$38,5,FALSE)*E30+VLOOKUP(A31,'Fertilizer Products & Pricing'!$A$4:$O$38,5,FALSE)*E31+VLOOKUP(A32,'Fertilizer Products & Pricing'!$A$4:$O$38,5,FALSE)*E32+VLOOKUP(A33,'Fertilizer Products & Pricing'!$A$4:$O$38,5,FALSE)*E33+VLOOKUP(A34,'Fertilizer Products & Pricing'!$A$4:$O$38,5,FALSE)*E34+VLOOKUP(A35,'Fertilizer Products & Pricing'!$A$4:$O$38,5,FALSE)*E35+VLOOKUP(A38,'Fertilizer Products & Pricing'!$A$42:$O$55,5,FALSE)*E38+VLOOKUP(A39,'Fertilizer Products & Pricing'!$A$42:$O$55,5,FALSE)*E39+VLOOKUP(A40,'Fertilizer Products & Pricing'!$A$42:$O$55,5,FALSE)*E40+VLOOKUP(A41,'Fertilizer Products & Pricing'!$A$42:$O$55,5,FALSE)*E41","v":0},{"$f":"VLOOKUP(A30,'Fertilizer Products & Pricing'!$A$4:$O$38,7,FALSE)*E30+VLOOKUP(A31,'Fertilizer Products & Pricing'!$A$4:$O$38,7,FALSE)*E31+VLOOKUP(A32,'Fertilizer Products & Pricing'!$A$4:$O$38,7,FALSE)*E32+VLOOKUP(A33,'Fertilizer Products & Pricing'!$A$4:$O$38,7,FALSE)*E33+VLOOKUP(A34,'Fertilizer Products & Pricing'!$A$4:$O$38,7,FALSE)*E34+VLOOKUP(A35,'Fertilizer Products & Pricing'!$A$4:$O$38,7,FALSE)*E35+VLOOKUP(A38,'Fertilizer Products & Pricing'!$A$42:$O$55,7,FALSE)*E38+VLOOKUP(A39,'Fertilizer Products & Pricing'!$A$42:$O$55,7,FALSE)*E39+VLOOKUP(A40,'Fertilizer Products & Pricing'!$A$42:$O$55,7,FALSE)*E40+VLOOKUP(A41,'Fertilizer Products & Pricing'!$A$42:$O$55,7,FALSE)*E41","v":0},{"$f":"VLOOKUP(A30,'Fertilizer Products & Pricing'!$A$4:$O$38,6,FALSE)*E30+VLOOKUP(A31,'Fertilizer Products & Pricing'!$A$4:$O$38,6,FALSE)*E31+VLOOKUP(A32,'Fertilizer Products & Pricing'!$A$4:$O$38,6,FALSE)*E32+VLOOKUP(A33,'Fertilizer Products & Pricing'!$A$4:$O$38,6,FALSE)*E33+VLOOKUP(A34,'Fertilizer Products & Pricing'!$A$4:$O$38,6,FALSE)*E34+VLOOKUP(A35,'Fertilizer Products & Pricing'!$A$4:$O$38,6,FALSE)*E35+VLOOKUP(A38,'Fertilizer Products & Pricing'!$A$42:$O$55,6,FALSE)*E38+VLOOKUP(A39,'Fertilizer Products & Pricing'!$A$42:$O$55,6,FALSE)*E39+VLOOKUP(A40,'Fertilizer Products & Pricing'!$A$42:$O$55,6,FALSE)*E40+VLOOKUP(A41,'Fertilizer Products & Pricing'!$A$42:$O$55,6,FALSE)*E41","v":0},null,"None","None",{"$f":"VLOOKUP(M33,'Fertilizer Products & Pricing'!$A$4:$O$38,15,FALSE)","v":0},1,0,0,0,null,{"$f":"VLOOKUP(M30,'Fertilizer Products & Pricing'!$A$4:$O$38,5,FALSE)*Q30+VLOOKUP(M31,'Fertilizer Products & Pricing'!$A$4:$O$38,5,FALSE)*Q31+VLOOKUP(M32,'Fertilizer Products & Pricing'!$A$4:$O$38,5,FALSE)*Q32+VLOOKUP(M33,'Fertilizer Products & Pricing'!$A$4:$O$38,5,FALSE)*Q33+VLOOKUP(M34,'Fertilizer Products & Pricing'!$A$4:$O$38,5,FALSE)*Q34+VLOOKUP(M35,'Fertilizer Products & Pricing'!$A$4:$O$38,5,FALSE)*Q35+VLOOKUP(M38,'Fertilizer Products & Pricing'!$A$42:$O$55,5,FALSE)*Q38+VLOOKUP(M39,'Fertilizer Products & Pricing'!$A$42:$O$55,5,FALSE)*Q39+VLOOKUP(M40,'Fertilizer Products & Pricing'!$A$42:$O$55,5,FALSE)*Q40+VLOOKUP(M41,'Fertilizer Products & Pricing'!$A$42:$O$55,5,FALSE)*Q41","v":0},{"$f":"VLOOKUP(M30,'Fertilizer Products & Pricing'!$A$4:$O$38,7,FALSE)*Q30+VLOOKUP(M31,'Fertilizer Products & Pricing'!$A$4:$O$38,7,FALSE)*Q31+VLOOKUP(M32,'Fertilizer Products & Pricing'!$A$4:$O$38,7,FALSE)*Q32+VLOOKUP(M33,'Fertilizer Products & Pricing'!$A$4:$O$38,7,FALSE)*Q33+VLOOKUP(M34,'Fertilizer Products & Pricing'!$A$4:$O$38,7,FALSE)*Q34+VLOOKUP(M35,'Fertilizer Products & Pricing'!$A$4:$O$38,7,FALSE)*Q35+VLOOKUP(M38,'Fertilizer Products & Pricing'!$A$42:$O$55,7,FALSE)*Q38+VLOOKUP(M39,'Fertilizer Products & Pricing'!$A$42:$O$55,7,FALSE)*Q39+VLOOKUP(M40,'Fertilizer Products & Pricing'!$A$42:$O$55,7,FALSE)*Q40+VLOOKUP(M41,'Fertilizer Products & Pricing'!$A$42:$O$55,7,FALSE)*Q41","v":0},{"$f":"VLOOKUP(M30,'Fertilizer Products & Pricing'!$A$4:$O$38,6,FALSE)*Q30+VLOOKUP(M31,'Fertilizer Products & Pricing'!$A$4:$O$38,6,FALSE)*Q31+VLOOKUP(M32,'Fertilizer Products & Pricing'!$A$4:$O$38,6,FALSE)*Q32+VLOOKUP(M33,'Fertilizer Products & Pricing'!$A$4:$O$38,6,FALSE)*Q33+VLOOKUP(M34,'Fertilizer Products & Pricing'!$A$4:$O$38,6,FALSE)*Q34+VLOOKUP(M35,'Fertilizer Products & Pricing'!$A$4:$O$38,6,FALSE)*Q35+VLOOKUP(M38,'Fertilizer Products & Pricing'!$A$42:$O$55,6,FALSE)*Q38+VLOOKUP(M39,'Fertilizer Products & Pricing'!$A$42:$O$55,6,FALSE)*Q39+VLOOKUP(M40,'Fertilizer Products & Pricing'!$A$42:$O$55,6,FALSE)*Q40+VLOOKUP(M41,'Fertilizer Products & Pricing'!$A$42:$O$55,6,FALSE)*Q41","v":0},null,"None","None",{"$f":"VLOOKUP(Y33,'Fertilizer Products & Pricing'!$A$4:$O$38,15,FALSE)","v":0},1,0,0,0,null,{"$f":"VLOOKUP(Y30,'Fertilizer Products & Pricing'!$A$4:$O$38,5,FALSE)*AC30+VLOOKUP(Y31,'Fertilizer Products & Pricing'!$A$4:$O$38,5,FALSE)*AC31+VLOOKUP(Y32,'Fertilizer Products & Pricing'!$A$4:$O$38,5,FALSE)*AC32+VLOOKUP(Y33,'Fertilizer Products & Pricing'!$A$4:$O$38,5,FALSE)*AC33+VLOOKUP(Y34,'Fertilizer Products & Pricing'!$A$4:$O$38,5,FALSE)*AC34+VLOOKUP(Y35,'Fertilizer Products & Pricing'!$A$4:$O$38,5,FALSE)*AC35+VLOOKUP(Y38,'Fertilizer Products & Pricing'!$A$42:$O$55,5,FALSE)*AC38+VLOOKUP(Y39,'Fertilizer Products & Pricing'!$A$42:$O$55,5,FALSE)*AC39+VLOOKUP(Y40,'Fertilizer Products & Pricing'!$A$42:$O$55,5,FALSE)*AC40+VLOOKUP(Y41,'Fertilizer Products & Pricing'!$A$42:$O$55,5,FALSE)*AC41","v":0},{"$f":"VLOOKUP(Y30,'Fertilizer Products & Pricing'!$A$4:$O$38,7,FALSE)*AC30+VLOOKUP(Y31,'Fertilizer Products & Pricing'!$A$4:$O$38,7,FALSE)*AC31+VLOOKUP(Y32,'Fertilizer Products & Pricing'!$A$4:$O$38,7,FALSE)*AC32+VLOOKUP(Y33,'Fertilizer Products & Pricing'!$A$4:$O$38,7,FALSE)*AC33+VLOOKUP(Y34,'Fertilizer Products & Pricing'!$A$4:$O$38,7,FALSE)*AC34+VLOOKUP(Y35,'Fertilizer Products & Pricing'!$A$4:$O$38,7,FALSE)*AC35+VLOOKUP(Y38,'Fertilizer Products & Pricing'!$A$42:$O$55,7,FALSE)*AC38+VLOOKUP(Y39,'Fertilizer Products & Pricing'!$A$42:$O$55,7,FALSE)*AC39+VLOOKUP(Y40,'Fertilizer Products & Pricing'!$A$42:$O$55,7,FALSE)*AC40+VLOOKUP(Y41,'Fertilizer Products & Pricing'!$A$42:$O$55,7,FALSE)*AC41","v":0},{"$f":"VLOOKUP(Y30,'Fertilizer Products & Pricing'!$A$4:$O$38,6,FALSE)*AC30+VLOOKUP(Y31,'Fertilizer Products & Pricing'!$A$4:$O$38,6,FALSE)*AC31+VLOOKUP(Y32,'Fertilizer Products & Pricing'!$A$4:$O$38,6,FALSE)*AC32+VLOOKUP(Y33,'Fertilizer Products & Pricing'!$A$4:$O$38,6,FALSE)*AC33+VLOOKUP(Y34,'Fertilizer Products & Pricing'!$A$4:$O$38,6,FALSE)*AC34+VLOOKUP(Y35,'Fertilizer Products & Pricing'!$A$4:$O$38,6,FALSE)*AC35+VLOOKUP(Y38,'Fertilizer Products & Pricing'!$A$42:$O$55,6,FALSE)*AC38+VLOOKUP(Y39,'Fertilizer Products & Pricing'!$A$42:$O$55,6,FALSE)*AC39+VLOOKUP(Y40,'Fertilizer Products & Pricing'!$A$42:$O$55,6,FALSE)*AC40+VLOOKUP(Y41,'Fertilizer Products & Pricing'!$A$42:$O$55,6,FALSE)*AC41","v":0}]
["None","None",{"$f":"VLOOKUP(A34,'Fertilizer Products & Pricing'!$A$4:$O$38,15,FALSE)","v":0},1,0,0,0,null,null,null,null,null,"None","None",{"$f":"VLOOKUP(M34,'Fertilizer Products & Pricing'!$A$4:$O$38,15,FALSE)","v":0},1,0,0,0,null,null,null,null,null,"None","None",{"$f":"VLOOKUP(Y34,'Fertilizer Products & Pricing'!$A$4:$O$38,15,FALSE)","v":0},1,0,0,0]
["None","None",{"$f":"VLOOKUP(A35,'Fertilizer Products & Pricing'!$A$4:$O$38,15,FALSE)","v":0},1,0,0,0,null,"Zn","B","Mn",null,"None","None",{"$f":"VLOOKUP(M35,'Fertilizer Products & Pricing'!$A$4:$O$38,15,FALSE)","v":0},1,0,0,0,null,"Zn","B","Mn",null,"None","None",{"$f":"VLOOKUP(Y35,'Fertilizer Products & Pricing'!$A$4:$O$38,15,FALSE)","v":0},1,0,0,0,null,"Zn","B","Mn"]
[null,null,null,null,null,null,null,null,{"$f":"VLOOKUP($A$39,'Fertilizer Products & Pricing'!$A$42:$O$55,8,FALSE)*$E$39+VLOOKUP($A$40,'Fertilizer Products & Pricing'!$A$42:$O$55,8,FALSE)*$E$40+VLOOKUP($A$41,'Fertilizer Products & Pricing'!$A$42:$O$55,8,FALSE)*$E$41+VLOOKUP($A$38,'Fertilizer Products & Pricing'!$A$42:$O$55,8,FALSE)*$E$38","v":0},{"$f":"VLOOKUP($A$39,'Fertilizer Products & Pricing'!$A$42:$O$55,9,FALSE)*$E$39+VLOOKUP($A$40,'Fertilizer Products & Pricing'!$A$42:$O$55,9,FALSE)*$E$40+VLOOKUP($A$41,'Fertilizer Products & Pricing'!$A$42:$O$55,9,FALSE)*$E$41+VLOOKUP($A$38,'Fertilizer Products & Pricing'!$A$42:$O$55,9,FALSE)*$E$38","v":0},{"$f":"VLOOKUP($A$39,'Fertilizer Products & Pricing'!$A$42:$O$55,10,FALSE)*$E$39+VLOOKUP($A$40,'Fertilizer Products & Pricing'!$A$42:$O$55,10,FALSE)*$E$40+VLOOKUP($A$41,'Fertilizer Products & Pricing'!$A$42:$O$55,10,FALSE)*$E$41+VLOOKUP($A$38,'Fertilizer Products & Pricing'!$A$42:$O$55,10,FALSE)*$E$38","v":0},null,null,null,null,null,null,null,null,null,{"$f":"VLOOKUP($M39,'Fertilizer Products & Pricing'!$A$42:$O$55,8,FALSE)*$Q39+VLOOKUP($M40,'Fertilizer Products & Pricing'!$A$42:$O$55,8,FALSE)*$Q40+VLOOKUP($M41,'Fertilizer Products & Pricing'!$A$42:$O$55,8,FALSE)*$Q41+VLOOKUP($M38,'Fertilizer Products & Pricing'!$A$42:$O$55,8,FALSE)*$Q38","v":0},{"$f":"VLOOKUP($M39,'Fertilizer Products & Pricing'!$A$42:$O$55,9,FALSE)*$Q39+VLOOKUP($M40,'Fertilizer Products & Pricing'!$A$42:$O$55,9,FALSE)*$Q40+VLOOKUP($M41,'Fertilizer Products & Pricing'!$A$42:$O$55,9,FALSE)*$Q41+VLOOKUP($M38,'Fertilizer Products & Pricing'!$A$42:$O$55,9,FALSE)*$Q38","v":0},{"$f":"VLOOKUP($M$39,'Fertilizer Products & Pricing'!$A$42:$O$55,10,FALSE)*$Q$39+VLOOKUP($M$40,'Fertilizer Products & Pricing'!$A$42:$O$55,10,FALSE)*$Q$40+VLOOKUP($M$41,'Fertilizer Products & Pricing'!$A$42:$O$55,10,FALSE)*$Q$41+VLOOKUP($M$38,'Fertilizer Products & Pricing'!$A$42:$O$55,10,FALSE)*$Q$38","v":0},null,null,null,null,null,null,null,null,null,{"$f":"VLOOKUP($Y39,'Fertilizer Products & Pricing'!$A$42:$O$55,8,FALSE)*$AC39+VLOOKUP($Y40,'Fertilizer Products & Pricing'!$A$42:$O$55,8,FALSE)*$AC40+VLOOKUP($Y41,'Fertilizer Products & Pricing'!$A$42:$O$55,8,FALSE)*$AC41+VLOOKUP($Y38,'Fertilizer Products & Pricing'!$A$42:$O$55,8,FALSE)*$AC38","v":0},{"$f":"VLOOKUP($Y39,'Fertilizer Products & Pricing'!$A$42:$O$55,9,FALSE)*$AC39+VLOOKUP($Y40,'Fertilizer Products & Pricing'!$A$42:$O$55,9,FALSE)*$AC40+VLOOKUP($Y41,'Fertilizer Products & Pricing'!$A$42:$O$55,9,FALSE)*$AC41+VLOOKUP($Y38,'Fertilizer Products & Pricing'!$A$42:$O$55,9,FALSE)*$AC38","v":0},{"$f":"VLOOKUP($Y39,'Fertilizer Products & Pricing'!$A$42:$O$55,10,FALSE)*$AC39+VLOOKUP($Y40,'Fertilizer Products & Pricing'!$A$42:$O$55,10,FALSE)*$AC40+VLOOKUP($Y41,'Fertilizer Products & Pricing'!$A$42:$O$55,10,FALSE)*$AC41+VLOOKUP($Y38,'Fertilizer Products & Pricing'!$A$42:$O$55,10,FALSE)*$AC38","v":0}]
["Micronutrients (drop down menu)",null,null,null,null,null,null,null,null,null,null,null,"Micronutrients (drop down menu)",null,null,null,null,null,null,null,null,null,null,null,"Micronutrients (drop down menu)"]
["None",{"$f":"VLOOKUP($A38,Micronutrients,14,FALSE)","v":"None"},{"$f":"VLOOKUP($A38,Micronutrients,15,FALSE)","v":0},{"$f":"VLOOKUP($A38,Micronutrients,13,FALSE)","v":1},0,{"$f":"VLOOKUP($A38,Micronutrients,12,FALSE)","v":0},{"$f":"(E38*VLOOKUP(A38,Micronutrients,11,FALSE)/D38)*C38","v":0},null,null,null,null,null,"None",{"$f":"VLOOKUP($M38,Micronutrients,14,FALSE)","v":"None"},{"$f":"VLOOKUP($M38,Micronutrients,15,FALSE)","v":0},{"$f":"VLOOKUP($M38,Micronutrients,13,FALSE)","v":1},0,{"$f":"VLOOKUP($M38,Micronutrients,12,FALSE)","v":0},{"$f":"(Q38*VLOOKUP(M38,Micronutrients,11,FALSE)/P38)*O38","v":0},null,null,null,null,null,"None",{"$f":"VLOOKUP(Y38,Micronutrients,14,FALSE)","v":"None"},{"$f":"VLOOKUP(Y38,Micronutrients,15,FALSE)","v":0},{"$f":"VLOOKUP(Y38,Micronutrients,13,FALSE)","v":1},0,{"$f":"VLOOKUP(Y38,Micronutrients,12,FALSE)","v":0},{"$f":"(AC38*VLOOKUP(Y38,Micronutrients,11,FALSE)/AB38)*AA38","v":0}]
["None",{"$f":"VLOOKUP($A39,Micronutrients,14,FALSE)","v":"None"},{"$f":"VLOOKUP($A39,Micronutrients,15,FALSE)","v":0},{"$f":"VLOOKUP($A39,Micronutrients,13,FALSE)","v":1},0,{"$f":"VLOOKUP($A39,Micronutrients,12,FALSE)","v":0},{"$f":"(E39*VLOOKUP(A39,Micronutrients,11,FALSE)/D39)*C39","v":0},null,null,null,null,null,"None",{"$f":"VLOOKUP($M39,Micronutrients,14,FALSE)","v":"None"},{"$f":"VLOOKUP($M39,Micronutrients,15,FALSE)","v":0},{"$f":"VLOOKUP($M39,Micronutrients,13,FALSE)","v":1},0,{"$f":"VLOOKUP($M39,Micronutrients,12,FALSE)","v":0},{"$f":"(Q39*VLOOKUP(M39,Micronutrients,11,FALSE)/P39)*O39","v":0},null,null,null,null,null,"None",{"$f":"VLOOKUP(Y39,Micronutrients,14,FALSE)","v":"None"},{"$f":"VLOOKUP(Y39,Micronutrients,15,FALSE)","v":0},{"$f":"VLOOKUP(Y39,Micronutrients,13,FALSE)","v":1},0,{"$f":"VLOOKUP(Y39,Micronutrients,12,FALSE)","v":0},{"$f":"(AC39*VLOOKUP(Y39,Micronutrients,11,FALSE)/AB39)*AA39","v":0}]
["None",{"$f":"VLOOKUP($A40,Micronutrients,14,FALSE)","v":"None"},{"$f":"VLOOKUP($A40,Micronutrients,15,FALSE)","v":0},{"$f":"VLOOKUP($A40,Micronutrients,13,FALSE)","v":1},0,{"$f":"VLOOKUP($A40,Micronutrients,12,FALSE)","v":0},{"$f":"(E40*VLOOKUP(A40,Micronutrients,11,FALSE)/D40)*C40","v":0},null,null,null,null,null,"None",{"$f":"VLOOKUP($M40,Micronutrients,14,FALSE)","v":"None"},{"$f":"VLOOKUP($M40,Micronutrients,15,FALSE)","v":0},{"$f":"VLOOKUP($M40,Micronutrients,13,FALSE)","v":1},0,{"$f":"VLOOKUP($M40,Micronutrients,12,FALSE)","v":0},{"$f":"(Q40*VLOOKUP(M40,Micronutrients,11,FALSE)/P40)*O40","v":0},null,null,null,null,null,"None",{"$f":"VLOOKUP(Y40,Micronutrients,14,FALSE)","v":"None"},{"$f":"VLOOKUP(Y40,Micronutrients,15,FALSE)","v":0},{"$f":"VLOOKUP(Y40,Micronutrients,13,FALSE)","v":1},0,{"$f":"VLOOKUP(Y40,Micronutrients,12,FALSE)","v":0},{"$f":"(AC40*VLOOKUP(Y40,Micronutrients,11,FALSE)/AB40)*AA40","v":0}]
["None",{"$f":"VLOOKUP($A41,Micronutrients,14,FALSE)","v":"None"},{"$f":"VLOOKUP($A41,Micronutrients,15,FALSE)","v":0},{"$f":"VLOOKUP($A41,Micronutrients,13,FALSE)","v":1},0,{"$f":"VLOOKUP($A41,Micronutrients,12,FALSE)","v":0},{"$f":"(E41*VLOOKUP(A41,Micronutrients,11,FALSE)/D41)*C41","v":0},null,null,null,null,null,"None",{"$f":"VLOOKUP($M41,Micronutrients,14,FALSE)","v":"None"},{"$f":"VLOOKUP($M41,Micronutrients,15,FALSE)","v":0},{"$f":"VLOOKUP($M41,Micronutrients,13,FALSE)","v":1},0,{"$f":"VLOOKUP($M41,Micronutrients,12,FALSE)","v":0},{"$f":"(Q41*VLOOKUP(M41,Micronutrients,11,FALSE)/P41)*O41","v":0},null,null,null,null,null,"None",{"$f":"VLOOKUP(Y41,Micronutrients,14,FALSE)","v":"None"},{"$f":"VLOOKUP(Y41,Micronutrients,15,FALSE)","v":0},{"$f":"VLOOKUP(Y41,Micronutrients,13,FALSE)","v":1},0,{"$f":"VLOOKUP(Y41,Micronutrients,12,FALSE)","v":0},{"$f":"(AC41*VLOOKUP(Y41,Micronutrients,11,FALSE)/AB41)*AA41","v":0}]
[]
["Nitrogen Stabilizers (drop down menu)",null,null,null,null,null,null,null,null,null,null,null,"Nitrogen Stabilizers (drop down menu)",null,null,null,null,null,null,null,null,null,null,null,"Nitrogen Stabilizers (drop down menu)"]
["None",{"$f":"VLOOKUP(A44,NitrogenStabilizers,14,FALSE)","v":"None"},{"$f":"VLOOKUP(A44,NitrogenStabilizers,15,FALSE)","v":0},{"$f":"VLOOKUP(A44,NitrogenStabilizers,13,FALSE)","v":1},0,{"$f":"VLOOKUP(A44,NitrogenStabilizers,12,FALSE)","v":0},{"$f":"(E44*VLOOKUP(A44,NitrogenStabilizers,11,FALSE)/D44)*C44","v":0},null,null,null,null,null,"None",{"$f":"VLOOKUP(M44,NitrogenStabilizers,14,FALSE)","v":"None"},{"$f":"VLOOKUP(M44,NitrogenStabilizers,15,FALSE)","v":0},{"$f":"VLOOKUP(M44,NitrogenStabilizers,13,FALSE)","v":1},0,{"$f":"VLOOKUP(M44,NitrogenStabilizers,12,FALSE)","v":0},{"$f":"(Q44*VLOOKUP(M44,NitrogenStabilizers,11,FALSE)/P44)*O44","v":0},null,null,null,null,null,"None",{"$f":"VLOOKUP(Y44,NitrogenStabilizers,14,FALSE)","v":"None"},{"$f":"VLOOKUP(Y44,NitrogenStabilizers,15,FALSE)","v":0},{"$f":"VLOOKUP(Y44,NitrogenStabilizers,13,FALSE)","v":1},0,{"$f":"VLOOKUP(Y44,NitrogenStabilizers,12,FALSE)","v":0},{"$f":"(AC44*VLOOKUP(Y44,NitrogenStabilizers,11,FALSE)/AB44)*AA44","v":0}]
["None",{"$f":"VLOOKUP(A45,NitrogenStabilizers,14,FALSE)","v":"None"},{"$f":"VLOOKUP(A45,NitrogenStabilizers,15,FALSE)","v":0},{"$f":"VLOOKUP(A45,NitrogenStabilizers,13,FALSE)","v":1},0,{"$f":"VLOOKUP(A45,NitrogenStabilizers,12,FALSE)","v":0},{"$f":"(E45*VLOOKUP(A45,NitrogenStabilizers,11,FALSE)/D45)*C45","v":0},null,null,null,"More",null,"None",{"$f":"VLOOKUP(M45,NitrogenStabilizers,14,FALSE)","v":"None"},{"$f":"VLOOKUP(M45,NitrogenStabilizers,15,FALSE)","v":0},{"$f":"VLOOKUP(M45,NitrogenStabilizers,13,FALSE)","v":1},0,{"$f":"VLOOKUP(M45,NitrogenStabilizers,12,FALSE)","v":0},{"$f":"(Q45*VLOOKUP(M45,NitrogenStabilizers,11,FALSE)/P45)*O45","v":0},null,null,null,"More",null,"None",{"$f":"VLOOKUP(Y45,NitrogenStabilizers,14,FALSE)","v":"None"},{"$f":"VLOOKUP(Y45,NitrogenStabilizers,15,FALSE)","v":0},{"$f":"VLOOKUP(Y45,NitrogenStabilizers,13,FALSE)","v":1},0,{"$f":"VLOOKUP(Y45,NitrogenStabilizers,12,FALSE)","v":0},{"$f":"(AC45*VLOOKUP(Y45,NitrogenStabilizers,11,FALSE)/AB45)*AA45","v":0},null,null,null,"More"]
["2nd Application Fertilizer Cost/Acre",null,null,null,null,null,{"$f":"SUM(G30:G45)","v":37.482389999999995},null,null,null,"Below",null,"2nd Application Fertilizer Cost/Acre",null,null,null,null,null,{"$f":"SUM(S30:S45)","v":37.482389999999995},null,null,null,"Below",null,"2nd Application Fertilizer Cost/Acre",null,null,null,null,null,{"$f":"SUM(AE30:AE45)","v":0},null,null,null,"Below"]
[null,null,null,null,null,null,null,null,null,null,"¯",null,null,null,null,null,null,null,null,null,null,null,"¯"]
["3rd Application (i.e., Side-Dress or Broadcast)",null,null,null,null,null,null,null,null,null,null,null,"3rd Application (i.e., Side-Dress or Broadcast)",null,null,null,null,null,null,null,null,null,null,null,"3rd Application (i.e., Side-Dress or Broadcast)"]
["Fertilizer Source","Purchase Units","Package Price (Gals, Lbs, etc.)","Units/Pkg","Rate/Acre","Units","Cost",null,null,null,null,null,"Fertilizer Source","Purchase Units","Package Price (Gals, Lbs, etc.)","Units/Pkg","Rate/Acre","Units","Cost",null,null,null,null,null,"Fertilizer Source","Purchase Units","Package Price (Gals, Lbs, etc.)","Units/Pkg","Rate/Acre","Units","Cost"]
["Macronutrients (drop down menu)",null,null,null,"(Enter Below)",null,null,null,"N","P","K",null,"Macronutrients (drop down menu)",null,null,null,"(Enter Below)",null,null,null,"N","P","K",null,"Macronutrients (drop down menu)",null,null,null,"(Enter Below)",null,null,null,"N","P","K"]
["AMS (21-0-0-24S)",{"$f":"VLOOKUP(A51,Macronutrients,14,FALSE)","v":"Tons"},{"$f":"VLOOKUP(A51,'Fertilizer Products & Pricing'!$A$4:$O$38,15,FALSE)","v":485},{"$f":"VLOOKUP($A51,Macronutrients,13,FALSE)","v":2000},35,{"$f":"VLOOKUP($A51,Macronutrients,12,FALSE)","v":"lbs"},{"$f":"(E51*VLOOKUP(A51,Macronutrients,11,FALSE)/D51)*C51","v":8.4875000000000007},null,{"$f":"VLOOKUP(A51,'Fertilizer Products & Pricing'!$A$4:$O$38,2,FALSE)*E51+VLOOKUP(A52,'Fertilizer Products & Pricing'!$A$4:$O$38,2,FALSE)*E52+VLOOKUP(A53,'Fertilizer Products & Pricing'!$A$4:$O$38,2,FALSE)*E53+VLOOKUP(A54,'Fertilizer Products & Pricing'!$A$4:$O$38,2,FALSE)*E54+VLOOKUP(A55,'Fertilizer Products & Pricing'!$A$4:$O$38,2,FALSE)*E55+VLOOKUP(A56,'Fertilizer Products & Pricing'!$A$4:$O$38,2,FALSE)*E56+VLOOKUP(A59,'Fertilizer Products & Pricing'!$A$42:$O$55,2,FALSE)*E59+VLOOKUP(A60,'Fertilizer Products & Pricing'!$A$42:$O$55,2,FALSE)*E60+VLOOKUP(A61,'Fertilizer Products & Pricing'!$A$42:$O$55,2,FALSE)*E61+VLOOKUP(A62,'Fertilizer Products & Pricing'!$A$42:$O$55,2,FALSE)*E62","v":87.85},{"$f":"VLOOKUP(A51,'Fertilizer Products & Pricing'!$A$4:$O$38,3,FALSE)*E51+VLOOKUP(A52,'Fertilizer Products & Pricing'!$A$4:$O$38,3,FALSE)*E52+VLOOKUP(A53,'Fertilizer Products & Pricing'!$A$4:$O$38,3,FALSE)*E53+VLOOKUP(A54,'Fertilizer Products & Pricing'!$A$4:$O$38,3,FALSE)*E54+VLOOKUP(A55,'Fertilizer Products & Pricing'!$A$4:$O$38,3,FALSE)*E55+VLOOKUP(A56,'Fertilizer Products & Pricing'!$A$4:$O$38,3,FALSE)*E56+VLOOKUP(A59,'Fertilizer Products & Pricing'!$A$42:$O$55,3,FALSE)*E59+VLOOKUP(A60,'Fertilizer Products & Pricing'!$A$42:$O$55,3,FALSE)*E60+VLOOKUP(A61,'Fertilizer Products & Pricing'!$A$42:$O$55,3,FALSE)*E61+VLOOKUP(A62,'Fertilizer Products & Pricing'!$A$42:$O$55,3,FALSE)*E62","v":0},{"$f":"VLOOKUP(A51,'Fertilizer Products & Pricing'!$A$4:$O$38,4,FALSE)*E51+VLOOKUP(A52,'Fertilizer Products & Pricing'!$A$4:$O$38,4,FALSE)*E52+VLOOKUP(A53,'Fertilizer Products & Pricing'!$A$4:$O$38,4,FALSE)*E53+VLOOKUP(A54,'Fertilizer Products & Pricing'!$A$4:$O$38,4,FALSE)*E54+VLOOKUP(A55,'Fertilizer Products & Pricing'!$A$4:$O$38,4,FALSE)*E55+VLOOKUP(A56,'Fertilizer Products & Pricing'!$A$4:$O$38,4,FALSE)*E56+VLOOKUP(A59,'Fertilizer Products & Pricing'!$A$42:$O$55,4,FALSE)*E59+VLOOKUP(A60,'Fertilizer Products & Pricing'!$A$42:$O$55,4,FALSE)*E60+VLOOKUP(A61,'Fertilizer Products & Pricing'!$A$42:$O$55,4,FALSE)*E61+VLOOKUP(A62,'Fertilizer Products & Pricing'!$A$42:$O$55,4,FALSE)*E62","v":0},null,"Urea (46-0-0)",{"$f":"VLOOKUP(M51,Macronutrients,14,FALSE)","v":"Tons"},{"$f":"VLOOKUP(M51,'Fertilizer Products & Pricing'!$A$4:$O$38,15,FALSE)","v":750},{"$f":"VLOOKUP($M51,Macronutrients,13,FALSE)","v":2000},232,{"$f":"VLOOKUP($M51,Macronutrients,12,FALSE)","v":"lbs"},{"$f":"(Q51*VLOOKUP(M51,Macronutrients,11,FALSE)/P51)*O51","v":87},null,{"$f":"VLOOKUP(M51,'Fertilizer Products & Pricing'!$A$4:$O$38,2,FALSE)*Q51+VLOOKUP(M52,'Fertilizer Products & Pricing'!$A$4:$O$38,2,FALSE)*Q52+VLOOKUP(M53,'Fertilizer Products & Pricing'!$A$4:$O$38,2,FALSE)*Q53+VLOOKUP(M54,'Fertilizer Products & Pricing'!$A$4:$O$38,2,FALSE)*Q54+VLOOKUP(M55,'Fertilizer Products & Pricing'!$A$4:$O$38,2,FALSE)*Q55+VLOOKUP(M56,'Fertilizer Products & Pricing'!$A$4:$O$38,2,FALSE)*Q56+VLOOKUP(M59,'Fertilizer Products & Pricing'!$A$42:$O$55,2,FALSE)*Q59+VLOOKUP(M60,'Fertilizer Products & Pricing'!$A$42:$O$55,2,FALSE)*Q60+VLOOKUP(M61,'Fertilizer Products & Pricing'!$A$42:$O$55,2,FALSE)*Q61+VLOOKUP(M62,'Fertilizer Products & Pricing'!$A$42:$O$55,2,FALSE)*Q62","v":115.75},{"$f":"VLOOKUP(M51,'Fertilizer Products & Pricing'!$A$4:$O$38,3,FALSE)*Q51+VLOOKUP(M52,'Fertilizer Products & Pricing'!$A$4:$O$38,3,FALSE)*Q52+VLOOKUP(M53,'Fertilizer Products & Pricing'!$A$4:$O$38,3,FALSE)*Q53+VLOOKUP(M54,'Fertilizer Products & Pricing'!$A$4:$O$38,3,FALSE)*Q54+VLOOKUP(M55,'Fertilizer Products & Pricing'!$A$4:$O$38,3,FALSE)*Q55+VLOOKUP(M56,'Fertilizer Products & Pricing'!$A$4:$O$38,3,FALSE)*Q56+VLOOKUP(M59,'Fertilizer Products & Pricing'!$A$42:$O$55,3,FALSE)*Q59+VLOOKUP(M60,'Fertilizer Products & Pricing'!$A$42:$O$55,3,FALSE)*Q60+VLOOKUP(M61,'Fertilizer Products & Pricing'!$A$42:$O$55,3,FALSE)*Q61+VLOOKUP(M62,'Fertilizer Products & Pricing'!$A$42:$O$55,3,FALSE)*Q62","v":0},{"$f":"VLOOKUP(M51,'Fertilizer Products & Pricing'!$A$4:$O$38,4,FALSE)*Q51+VLOOKUP(M52,'Fertilizer Products & Pricing'!$A$4:$O$38,4,FALSE)*Q52+VLOOKUP(M53,'Fertilizer Products & Pricing'!$A$4:$O$38,4,FALSE)*Q53+VLOOKUP(M54,'Fertilizer Products & Pricing'!$A$4:$O$38,4,FALSE)*Q54+VLOOKUP(M55,'Fertilizer Products & Pricing'!$A$4:$O$38,4,FALSE)*Q55+VLOOKUP(M56,'Fertilizer Products & Pricing'!$A$4:$O$38,4,FALSE)*Q56+VLOOKUP(M59,'Fertilizer Products & Pricing'!$A$42:$O$55,4,FALSE)*Q59+VLOOKUP(M60,'Fertilizer Products & Pricing'!$A$42:$O$55,4,FALSE)*Q60+VLOOKUP(M61,'Fertilizer Products & Pricing'!$A$42:$O$55,4,FALSE)*Q61+VLOOKUP(M62,'Fertilizer Products & Pricing'!$A$42:$O$55,4,FALSE)*Q62","v":0},null,"None",{"$f":"VLOOKUP(Y51,Macronutrients,14,FALSE)","v":"None"},{"$f":"VLOOKUP(Y51,'Fertilizer Products & Pricing'!$A$4:$O$38,15,FALSE)","v":0},{"$f":"VLOOKUP($Y51,Macronutrients,13,FALSE)","v":1},0,{"$f":"VLOOKUP($Y51,Macronutrients,12,FALSE)","v":0},{"$f":"(AC51*VLOOKUP(Y51,Macronutrients,11,FALSE)/AB51)*AA51","v":0},null,{"$f":"VLOOKUP(Y51,'Fertilizer Products & Pricing'!$A$4:$O$38,2,FALSE)*AC51+VLOOKUP(Y52,'Fertilizer Products & Pricing'!$A$4:$O$38,2,FALSE)*AC52+VLOOKUP(Y53,'Fertilizer Products & Pricing'!$A$4:$O$38,2,FALSE)*AC53+VLOOKUP(Y54,'Fertilizer Products & Pricing'!$A$4:$O$38,2,FALSE)*AC54+VLOOKUP(Y55,'Fertilizer Products & Pricing'!$A$4:$O$38,2,FALSE)*AC55+VLOOKUP(Y56,'Fertilizer Products & Pricing'!$A$4:$O$38,2,FALSE)*AC56+VLOOKUP(Y59,'Fertilizer Products & Pricing'!$A$42:$O$55,2,FALSE)*AC59+VLOOKUP(Y60,'Fertilizer Products & Pricing'!$A$42:$O$55,2,FALSE)*AC60+VLOOKUP(Y61,'Fertilizer Products & Pricing'!$A$42:$O$55,2,FALSE)*AC61+VLOOKUP(Y62,'Fertilizer Products & Pricing'!$A$42:$O$55,2,FALSE)*AC62","v":0},{"$f":"VLOOKUP(Y51,'Fertilizer Products & Pricing'!$A$4:$O$38,3,FALSE)*AC51+VLOOKUP(Y52,'Fertilizer Products & Pricing'!$A$4:$O$38,3,FALSE)*AC52+VLOOKUP(Y53,'Fertilizer Products & Pricing'!$A$4:$O$38,3,FALSE)*AC53+VLOOKUP(Y54,'Fertilizer Products & Pricing'!$A$4:$O$38,3,FALSE)*AC54+VLOOKUP(Y55,'Fertilizer Products & Pricing'!$A$4:$O$38,3,FALSE)*AC55+VLOOKUP(Y56,'Fertilizer Products & Pricing'!$A$4:$O$38,3,FALSE)*AC56+VLOOKUP(Y59,'Fertilizer Products & Pricing'!$A$42:$O$55,3,FALSE)*AC59+VLOOKUP(Y60,'Fertilizer Products & Pricing'!$A$42:$O$55,3,FALSE)*AC60+VLOOKUP(Y61,'Fertilizer Products & Pricing'!$A$42:$O$55,3,FALSE)*AC61+VLOOKUP(Y62,'Fertilizer Products & Pricing'!$A$42:$O$55,3,FALSE)*AC62","v":0},{"$f":"VLOOKUP(Y51,'Fertilizer Products & Pricing'!$A$4:$O$38,4,FALSE)*AC51+VLOOKUP(Y52,'Fertilizer Products & Pricing'!$A$4:$O$38,4,FALSE)*AC52+VLOOKUP(Y53,'Fertilizer Products & Pricing'!$A$4:$O$38,4,FALSE)*AC53+VLOOKUP(Y54,'Fertilizer Products & Pricing'!$A$4:$O$38,4,FALSE)*AC54+VLOOKUP(Y55,'Fertilizer Products & Pricing'!$A$4:$O$38,4,FALSE)*AC55+VLOOKUP(Y56,'Fertilizer Products & Pricing'!$A$4:$O$38,4,FALSE)*AC56+VLOOKUP(Y59,'Fertilizer Products & Pricing'!$A$42:$O$55,4,FALSE)*AC59+VLOOKUP(Y60,'Fertilizer Products & Pricing'!$A$42:$O$55,4,FALSE)*AC60+VLOOKUP(Y61,'Fertilizer Products & Pricing'!$A$42:$O$55,4,FALSE)*AC61+VLOOKUP(Y62,'Fertilizer Products & Pricing'!$A$42:$O$55,4,FALSE)*AC62","v":0}]
["Urea (46-0-0)","Tons",{"$f":"VLOOKUP(A52,'Fertilizer Products & Pricing'!$A$4:$O$38,15,FALSE)","v":750},2000,175,"lbs",65.625,null,null,null,null,null,"AMS (21-0-0-24S)",{"$f":"VLOOKUP(M52,Macronutrients,14,FALSE)","v":"Tons"},{"$f":"VLOOKUP(M52,'Fertilizer Products & Pricing'!$A$4:$O$38,15,FALSE)","v":485},2000,43,"lbs",{"$f":"(Q52*VLOOKUP(M52,Macronutrients,11,FALSE)/P52)*O52","v":10.427499999999998},null,null,null,null,null,"None","None",{"$f":"VLOOKUP(Y52,'Fertilizer Products & Pricing'!$A$4:$O$38,15,FALSE)","v":0},1,0,0,{"$f":"(AC52*VLOOKUP(Y52,Macronutrients,11,FALSE)/AB52)*AA52","v":0}]
["None","None",{"$f":"VLOOKUP(A53,'Fertilizer Products & Pricing'!$A$4:$O$38,15,FALSE)","v":0},1,0,0,0,null,"S","Ca","Mg",null,"None","None",{"$f":"VLOOKUP(M53,'Fertilizer Products & Pricing'!$A$4:$O$38,15,FALSE)","v":0},1,0,0,0,null,"S","Ca","Mg",null,"None","None",{"$f":"VLOOKUP(Y53,'Fertilizer Products & Pricing'!$A$4:$O$38,15,FALSE)","v":0},1,0,0,0,null,"S","Ca","Mg"]
["None","None",{"$f":"VLOOKUP(A54,'Fertilizer Products & Pricing'!$A$4:$O$38,15,FALSE)","v":0},1,0,0,0,null,{"$f":"VLOOKUP(A51,'Fertilizer Products & Pricing'!$A$4:$O$38,5,FALSE)*E51+VLOOKUP(A52,'Fertilizer Products & Pricing'!$A$4:$O$38,5,FALSE)*E52+VLOOKUP(A53,'Fertilizer Products & Pricing'!$A$4:$O$38,5,FALSE)*E53+VLOOKUP(A54,'Fertilizer Products & Pricing'!$A$4:$O$38,5,FALSE)*E54+VLOOKUP(A55,'Fertilizer Products & Pricing'!$A$4:$O$38,5,FALSE)*E55+VLOOKUP(A56,'Fertilizer Products & Pricing'!$A$4:$O$38,5,FALSE)*E56+VLOOKUP(A59,'Fertilizer Products & Pricing'!$A$42:$O$55,5,FALSE)*E59+VLOOKUP(A60,'Fertilizer Products & Pricing'!$A$42:$O$55,5,FALSE)*E60+VLOOKUP(A61,'Fertilizer Products & Pricing'!$A$42:$O$55,5,FALSE)*E61+VLOOKUP(A62,'Fertilizer Products & Pricing'!$A$42:$O$55,5,FALSE)*E62","v":8.4},{"$f":"VLOOKUP(A51,'Fertilizer Products & Pricing'!$A$4:$O$38,7,FALSE)*E51+VLOOKUP(A52,'Fertilizer Products & Pricing'!$A$4:$O$38,7,FALSE)*E52+VLOOKUP(A53,'Fertilizer Products & Pricing'!$A$4:$O$38,7,FALSE)*E53+VLOOKUP(A54,'Fertilizer Products & Pricing'!$A$4:$O$38,7,FALSE)*E54+VLOOKUP(A55,'Fertilizer Products & Pricing'!$A$4:$O$38,7,FALSE)*E55+VLOOKUP(A56,'Fertilizer Products & Pricing'!$A$4:$O$38,7,FALSE)*E56+VLOOKUP(A59,'Fertilizer Products & Pricing'!$A$42:$O$55,7,FALSE)*E59+VLOOKUP(A60,'Fertilizer Products & Pricing'!$A$42:$O$55,7,FALSE)*E60+VLOOKUP(A61,'Fertilizer Products & Pricing'!$A$42:$O$55,7,FALSE)*E61+VLOOKUP(A62,'Fertilizer Products & Pricing'!$A$42:$O$55,7,FALSE)*E62","v":0},{"$f":"VLOOKUP(A51,'Fertilizer Products & Pricing'!$A$4:$O$38,6,FALSE)*E51+VLOOKUP(A52,'Fertilizer Products & Pricing'!$A$4:$O$38,6,FALSE)*E52+VLOOKUP(A53,'Fertilizer Products & Pricing'!$A$4:$O$38,6,FALSE)*E53+VLOOKUP(A54,'Fertilizer Products & Pricing'!$A$4:$O$38,6,FALSE)*E54+VLOOKUP(A55,'Fertilizer Products & Pricing'!$A$4:$O$38,6,FALSE)*E55+VLOOKUP(A56,'Fertilizer Products & Pricing'!$A$4:$O$38,6,FALSE)*E56+VLOOKUP(A59,'Fertilizer Products & Pricing'!$A$42:$O$55,6,FALSE)*E59+VLOOKUP(A60,'Fertilizer Products & Pricing'!$A$42:$O$55,6,FALSE)*E60+VLOOKUP(A61,'Fertilizer Products & Pricing'!$A$42:$O$55,6,FALSE)*E61+VLOOKUP(A62,'Fertilizer Products & Pricing'!$A$42:$O$55,6,FALSE)*E62","v":0},null,"None","None",{"$f":"VLOOKUP(M54,'Fertilizer Products & Pricing'!$A$4:$O$38,15,FALSE)","v":0},1,0,0,0,null,{"$f":"VLOOKUP(M51,'Fertilizer Products & Pricing'!$A$4:$O$38,5,FALSE)*Q51+VLOOKUP(M52,'Fertilizer Products & Pricing'!$A$4:$O$38,5,FALSE)*Q52+VLOOKUP(M53,'Fertilizer Products & Pricing'!$A$4:$O$38,5,FALSE)*Q53+VLOOKUP(M54,'Fertilizer Products & Pricing'!$A$4:$O$38,5,FALSE)*Q54+VLOOKUP(M55,'Fertilizer Products & Pricing'!$A$4:$O$38,5,FALSE)*Q55+VLOOKUP(M56,'Fertilizer Products & Pricing'!$A$4:$O$38,5,FALSE)*Q56+VLOOKUP(M59,'Fertilizer Products & Pricing'!$A$42:$O$55,5,FALSE)*Q59+VLOOKUP(M60,'Fertilizer Products & Pricing'!$A$42:$O$55,5,FALSE)*Q60+VLOOKUP(M61,'Fertilizer Products & Pricing'!$A$42:$O$55,5,FALSE)*Q61+VLOOKUP(M62,'Fertilizer Products & Pricing'!$A$42:$O$55,5,FALSE)*Q62","v":10.32},{"$f":"VLOOKUP(M51,'Fertilizer Products & Pricing'!$A$4:$O$38,7,FALSE)*Q51+VLOOKUP(M52,'Fertilizer Products & Pricing'!$A$4:$O$38,7,FALSE)*Q52+VLOOKUP(M53,'Fertilizer Products & Pricing'!$A$4:$O$38,7,FALSE)*Q53+VLOOKUP(M54,'Fertilizer Products & Pricing'!$A$4:$O$38,7,FALSE)*Q54+VLOOKUP(M55,'Fertilizer Products & Pricing'!$A$4:$O$38,7,FALSE)*Q55+VLOOKUP(M56,'Fertilizer Products & Pricing'!$A$4:$O$38,7,FALSE)*Q56+VLOOKUP(M59,'Fertilizer Products & Pricing'!$A$42:$O$55,7,FALSE)*Q59+VLOOKUP(M60,'Fertilizer Products & Pricing'!$A$42:$O$55,7,FALSE)*Q60+VLOOKUP(M61,'Fertilizer Products & Pricing'!$A$42:$O$55,7,FALSE)*Q61+VLOOKUP(M62,'Fertilizer Products & Pricing'!$A$42:$O$55,7,FALSE)*Q62","v":0},{"$f":"VLOOKUP(M51,'Fertilizer Products & Pricing'!$A$4:$O$38,6,FALSE)*Q51+VLOOKUP(M52,'Fertilizer Products & Pricing'!$A$4:$O$38,6,FALSE)*Q52+VLOOKUP(M53,'Fertilizer Products & Pricing'!$A$4:$O$38,6,FALSE)*Q53+VLOOKUP(M54,'Fertilizer Products & Pricing'!$A$4:$O$38,6,FALSE)*Q54+VLOOKUP(M55,'Fertilizer Products & Pricing'!$A$4:$O$38,6,FALSE)*Q55+VLOOKUP(M56,'Fertilizer Products & Pricing'!$A$4:$O$38,6,FALSE)*Q56+VLOOKUP(M59,'Fertilizer Products & Pricing'!$A$42:$O$55,6,FALSE)*Q59+VLOOKUP(M60,'Fertilizer Products & Pricing'!$A$42:$O$55,6,FALSE)*Q60+VLOOKUP(M61,'Fertilizer Products & Pricing'!$A$42:$O$55,6,FALSE)*Q61+VLOOKUP(M62,'Fertilizer Products & Pricing'!$A$42:$O$55,6,FALSE)*Q62","v":0},null,"None","None",{"$f":"VLOOKUP(Y54,'Fertilizer Products & Pricing'!$A$4:$O$38,15,FALSE)","v":0},1,0,0,0,null,{"$f":"VLOOKUP(Y51,'Fertilizer Products & Pricing'!$A$4:$O$38,5,FALSE)*AC51+VLOOKUP(Y52,'Fertilizer Products & Pricing'!$A$4:$O$38,5,FALSE)*AC52+VLOOKUP(Y53,'Fertilizer Products & Pricing'!$A$4:$O$38,5,FALSE)*AC53+VLOOKUP(Y54,'Fertilizer Products & Pricing'!$A$4:$O$38,5,FALSE)*AC54+VLOOKUP(Y55,'Fertilizer Products & Pricing'!$A$4:$O$38,5,FALSE)*AC55+VLOOKUP(Y56,'Fertilizer Products & Pricing'!$A$4:$O$38,5,FALSE)*AC56+VLOOKUP(Y59,'Fertilizer Products & Pricing'!$A$42:$O$55,5,FALSE)*AC59+VLOOKUP(Y60,'Fertilizer Products & Pricing'!$A$42:$O$55,5,FALSE)*AC60+VLOOKUP(Y61,'Fertilizer Products & Pricing'!$A$42:$O$55,5,FALSE)*AC61+VLOOKUP(Y62,'Fertilizer Products & Pricing'!$A$42:$O$55,5,FALSE)*AC62","v":0},{"$f":"VLOOKUP(Y51,'Fertilizer Products & Pricing'!$A$4:$O$38,7,FALSE)*AC51+VLOOKUP(Y52,'Fertilizer Products & Pricing'!$A$4:$O$38,7,FALSE)*AC52+VLOOKUP(Y53,'Fertilizer Products & Pricing'!$A$4:$O$38,7,FALSE)*AC53+VLOOKUP(Y54,'Fertilizer Products & Pricing'!$A$4:$O$38,7,FALSE)*AC54+VLOOKUP(Y55,'Fertilizer Products & Pricing'!$A$4:$O$38,7,FALSE)*AC55+VLOOKUP(Y56,'Fertilizer Products & Pricing'!$A$4:$O$38,7,FALSE)*AC56+VLOOKUP(Y59,'Fertilizer Products & Pricing'!$A$42:$O$55,7,FALSE)*AC59+VLOOKUP(Y60,'Fertilizer Products & Pricing'!$A$42:$O$55,7,FALSE)*AC60+VLOOKUP(Y61,'Fertilizer Products & Pricing'!$A$42:$O$55,7,FALSE)*AC61+VLOOKUP(Y62,'Fertilizer Products & Pricing'!$A$42:$O$55,7,FALSE)*AC62","v":0},{"$f":"VLOOKUP(Y51,'Fertilizer Products & Pricing'!$A$4:$O$38,6,FALSE)*AC51+VLOOKUP(Y52,'Fertilizer Products & Pricing'!$A$4:$O$38,6,FALSE)*AC52+VLOOKUP(Y53,'Fertilizer Products & Pricing'!$A$4:$O$38,6,FALSE)*AC53+VLOOKUP(Y54,'Fertilizer Products & Pricing'!$A$4:$O$38,6,FALSE)*AC54+VLOOKUP(Y55,'Fertilizer Products & Pricing'!$A$4:$O$38,6,FALSE)*AC55+VLOOKUP(Y56,'Fertilizer Products & Pricing'!$A$4:$O$38,6,FALSE)*AC56+VLOOKUP(Y59,'Fertilizer Products & Pricing'!$A$42:$O$55,6,FALSE)*AC59+VLOOKUP(Y60,'Fertilizer Products & Pricing'!$A$42:$O$55,6,FALSE)*AC60+VLOOKUP(Y61,'Fertilizer Products & Pricing'!$A$42:$O$55,6,FALSE)*AC61+VLOOKUP(Y62,'Fertilizer Products & Pricing'!$A$42:$O$55,6,FALSE)*AC62","v":0}]
["None","None",{"$f":"VLOOKUP(A55,'Fertilizer Products & Pricing'!$A$4:$O$38,15,FALSE)","v":0},1,0,0,0,null,null,null,null,null,"None","None",{"$f":"VLOOKUP(M55,'Fertilizer Products & Pricing'!$A$4:$O$38,15,FALSE)","v":0},1,0,0,0,null,null,null,null,null,"None","None",{"$f":"VLOOKUP(Y55,'Fertilizer Products & Pricing'!$A$4:$O$38,15,FALSE)","v":0},1,0,0,0]
["None","None",{"$f":"VLOOKUP(A56,'Fertilizer Products & Pricing'!$A$4:$O$38,15,FALSE)","v":0},1,0,0,0,null,"Zn","B","Mn",null,"None","None",{"$f":"VLOOKUP(M56,'Fertilizer Products & Pricing'!$A$4:$O$38,15,FALSE)","v":0},1,0,0,0,null,"Zn","B","Mn",null,"None","None",{"$f":"VLOOKUP(Y56,'Fertilizer Products & Pricing'!$A$4:$O$38,15,FALSE)","v":0},1,0,0,0,null,"Zn","B","Mn"]
[null,null,null,null,null,null,null,null,{"$f":"VLOOKUP($A$60,'Fertilizer Products & Pricing'!$A$42:$O$55,8,FALSE)*$E$60+VLOOKUP($A$61,'Fertilizer Products & Pricing'!$A$42:$O$55,8,FALSE)*$E$61+VLOOKUP($A$62,'Fertilizer Products & Pricing'!$A$42:$O$55,8,FALSE)*$E$62+VLOOKUP($A$59,'Fertilizer Products & Pricing'!$A$42:$O$55,8,FALSE)*$E$59","v":0},{"$f":"VLOOKUP($A$60,'Fertilizer Products & Pricing'!$A$42:$O$55,9,FALSE)*$E$60+VLOOKUP($A$61,'Fertilizer Products & Pricing'!$A$42:$O$55,9,FALSE)*$E$61+VLOOKUP($A$62,'Fertilizer Products & Pricing'!$A$42:$O$55,9,FALSE)*$E$62+VLOOKUP($A$59,'Fertilizer Products & Pricing'!$A$42:$O$55,9,FALSE)*$E$59","v":0},{"$f":"VLOOKUP($A$60,'Fertilizer Products & Pricing'!$A$42:$O$55,10,FALSE)*$E$60+VLOOKUP($A$61,'Fertilizer Products & Pricing'!$A$42:$O$55,10,FALSE)*$E$61+VLOOKUP($A$62,'Fertilizer Products & Pricing'!$A$42:$O$55,10,FALSE)*$E$62+VLOOKUP($A$59,'Fertilizer Products & Pricing'!$A$42:$O$55,10,FALSE)*$E$59","v":0},null,null,null,null,null,null,null,null,null,{"$f":"VLOOKUP($M60,'Fertilizer Products & Pricing'!$A$42:$O$55,8,FALSE)*$Q60+VLOOKUP($M61,'Fertilizer Products & Pricing'!$A$42:$O$55,8,FALSE)*$Q61+VLOOKUP($M62,'Fertilizer Products & Pricing'!$A$42:$O$55,8,FALSE)*$Q62+VLOOKUP($M59,'Fertilizer Products & Pricing'!$A$42:$O$55,8,FALSE)*$Q59","v":0},{"$f":"VLOOKUP($M60,'Fertilizer Products & Pricing'!$A$42:$O$55,9,FALSE)*$Q60+VLOOKUP($M61,'Fertilizer Products & Pricing'!$A$42:$O$55,9,FALSE)*$Q61+VLOOKUP($M62,'Fertilizer Products & Pricing'!$A$42:$O$55,9,FALSE)*$Q62+VLOOKUP($M59,'Fertilizer Products & Pricing'!$A$42:$O$55,9,FALSE)*$Q59","v":0},{"$f":"VLOOKUP($M60,'Fertilizer Products & Pricing'!$A$42:$O$55,10,FALSE)*$Q60+VLOOKUP($M61,'Fertilizer Products & Pricing'!$A$42:$O$55,10,FALSE)*$Q61+VLOOKUP($M62,'Fertilizer Products & Pricing'!$A$42:$O$55,10,FALSE)*$Q62+VLOOKUP($M59,'Fertilizer Products & Pricing'!$A$42:$O$55,10,FALSE)*$Q59","v":0},null,null,null,null,null,null,null,null,null,{"$f":"VLOOKUP($Y60,'Fertilizer Products & Pricing'!$A$42:$O$55,8,FALSE)*$AC60+VLOOKUP($Y61,'Fertilizer Products & Pricing'!$A$42:$O$55,8,FALSE)*$AC61+VLOOKUP($Y62,'Fertilizer Products & Pricing'!$A$42:$O$55,8,FALSE)*$AC62+VLOOKUP($Y59,'Fertilizer Products & Pricing'!$A$42:$O$55,8,FALSE)*$AC59","v":0},{"$f":"VLOOKUP($Y60,'Fertilizer Products & Pricing'!$A$42:$O$55,9,FALSE)*$AC60+VLOOKUP($Y61,'Fertilizer Products & Pricing'!$A$42:$O$55,9,FALSE)*$AC61+VLOOKUP($Y62,'Fertilizer Products & Pricing'!$A$42:$O$55,9,FALSE)*$AC62+VLOOKUP($Y59,'Fertilizer Products & Pricing'!$A$42:$O$55,9,FALSE)*$AC59","v":0},{"$f":"VLOOKUP($Y60,'Fertilizer Products & Pricing'!$A$42:$O$55,10,FALSE)*$AC60+VLOOKUP($Y61,'Fertilizer Products & Pricing'!$A$42:$O$55,10,FALSE)*$AC61+VLOOKUP($Y62,'Fertilizer Products & Pricing'!$A$42:$O$55,10,FALSE)*$AC62+VLOOKUP($Y59,'Fertilizer Products & Pricing'!$A$42:$O$55,10,FALSE)*$AC59","v":0}]
["Micronutrients (drop down menu)",null,null,null,null,null,null,null,null,null,null,null,"Micronutrients (drop down menu)",null,null,null,null,null,null,null,null,null,null,null,"Micronutrients (drop down menu)"]
["None",{"$f":"VLOOKUP($A59,Micronutrients,14,FALSE)","v":"None"},{"$f":"VLOOKUP($A59,Micronutrients,15,FALSE)","v":0},{"$f":"VLOOKUP($A59,Micronutrients,13,FALSE)","v":1},0,{"$f":"VLOOKUP($A59,Micronutrients,12,FALSE)","v":0},{"$f":"(E59*VLOOKUP(A59,Micronutrients,11,FALSE)/D59)*C59","v":0},null,null,null,null,null,"None",{"$f":"VLOOKUP($M59,Micronutrients,14,FALSE)","v":"None"},{"$f":"VLOOKUP($M59,Micronutrients,15,FALSE)","v":0},{"$f":"VLOOKUP($M59,Micronutrients,13,FALSE)","v":1},0,{"$f":"VLOOKUP($M59,Micronutrients,12,FALSE)","v":0},{"$f":"(Q59*VLOOKUP(M59,Micronutrients,11,FALSE)/P59)*O59","v":0},null,null,null,null,null,"None",{"$f":"VLOOKUP(Y59,Micronutrients,14,FALSE)","v":"None"},{"$f":"VLOOKUP(Y59,Micronutrients,15,FALSE)","v":0},{"$f":"VLOOKUP(Y59,Micronutrients,13,FALSE)","v":1},0,{"$f":"VLOOKUP(Y59,Micronutrients,12,FALSE)","v":0},{"$f":"(AC59*VLOOKUP(Y59,Micronutrients,11,FALSE)/AB59)*AA59","v":0}]
["None",{"$f":"VLOOKUP($A60,Micronutrients,14,FALSE)","v":"None"},{"$f":"VLOOKUP($A60,Micronutrients,15,FALSE)","v":0},{"$f":"VLOOKUP($A60,Micronutrients,13,FALSE)","v":1},0,{"$f":"VLOOKUP($A60,Micronutrients,12,FALSE)","v":0},{"$f":"(E60*VLOOKUP(A60,Micronutrients,11,FALSE)/D60)*C60","v":0},null,null,null,null,null,"None",{"$f":"VLOOKUP($M60,Micronutrients,14,FALSE)","v":"None"},{"$f":"VLOOKUP($M60,Micronutrients,15,FALSE)","v":0},{"$f":"VLOOKUP($M60,Micronutrients,13,FALSE)","v":1},0,{"$f":"VLOOKUP($M60,Micronutrients,12,FALSE)","v":0},{"$f":"(Q60*VLOOKUP(M60,Micronutrients,11,FALSE)/P60)*O60","v":0},null,null,null,null,null,"None",{"$f":"VLOOKUP(Y60,Micronutrients,14,FALSE)","v":"None"},{"$f":"VLOOKUP(Y60,Micronutrients,15,FALSE)","v":0},{"$f":"VLOOKUP(Y60,Micronutrients,13,FALSE)","v":1},0,{"$f":"VLOOKUP(Y60,Micronutrients,12,FALSE)","v":0},{"$f":"(AC60*VLOOKUP(Y60,Micronutrients,11,FALSE)/AB60)*AA60","v":0}]
["None",{"$f":"VLOOKUP($A61,Micronutrients,14,FALSE)","v":"None"},{"$f":"VLOOKUP($A61,Micronutrients,15,FALSE)","v":0},{"$f":"VLOOKUP($A61,Micronutrients,13,FALSE)","v":1},0,{"$f":"VLOOKUP($A61,Micronutrients,12,FALSE)","v":0},{"$f":"(E61*VLOOKUP(A61,Micronutrients,11,FALSE)/D61)*C61","v":0},null,null,null,null,null,"None",{"$f":"VLOOKUP($M61,Micronutrients,14,FALSE)","v":"None"},{"$f":"VLOOKUP($M61,Micronutrients,15,FALSE)","v":0},{"$f":"VLOOKUP($M61,Micronutrients,13,FALSE)","v":1},0,{"$f":"VLOOKUP($M61,Micronutrients,12,FALSE)","v":0},{"$f":"(Q61*VLOOKUP(M61,Micronutrients,11,FALSE)/P61)*O61","v":0},null,null,null,null,null,"None",{"$f":"VLOOKUP(Y61,Micronutrients,14,FALSE)","v":"None"},{"$f":"VLOOKUP(Y61,Micronutrients,15,FALSE)","v":0},{"$f":"VLOOKUP(Y61,Micronutrients,13,FALSE)","v":1},0,{"$f":"VLOOKUP(Y61,Micronutrients,12,FALSE)","v":0},{"$f":"(AC61*VLOOKUP(Y61,Micronutrients,11,FALSE)/AB61)*AA61","v":0}]
["None",{"$f":"VLOOKUP($A62,Micronutrients,14,FALSE)","v":"None"},{"$f":"VLOOKUP($A62,Micronutrients,15,FALSE)","v":0},{"$f":"VLOOKUP($A62,Micronutrients,13,FALSE)","v":1},0,{"$f":"VLOOKUP($A62,Micronutrients,12,FALSE)","v":0},{"$f":"(E62*VLOOKUP(A62,Micronutrients,11,FALSE)/D62)*C62","v":0},null,null,null,null,null,"None",{"$f":"VLOOKUP($M62,Micronutrients,14,FALSE)","v":"None"},{"$f":"VLOOKUP($M62,Micronutrients,15,FALSE)","v":0},{"$f":"VLOOKUP($M62,Micronutrients,13,FALSE)","v":1},0,{"$f":"VLOOKUP($M62,Micronutrients,12,FALSE)","v":0},{"$f":"(Q62*VLOOKUP(M62,Micronutrients,11,FALSE)/P62)*O62","v":0},null,null,null,null,null,"None",{"$f":"VLOOKUP(Y62,Micronutrients,14,FALSE)","v":"None"},{"$f":"VLOOKUP(Y62,Micronutrients,15,FALSE)","v":0},{"$f":"VLOOKUP(Y62,Micronutrients,13,FALSE)","v":1},0,{"$f":"VLOOKUP(Y62,Micronutrients,12,FALSE)","v":0},{"$f":"(AC62*VLOOKUP(Y62,Micronutrients,11,FALSE)/AB62)*AA62","v":0}]
[]
["Nitrogen Stabilizers (drop down menu)",null,null,null,null,null,null,null,null,null,null,null,"Nitrogen Stabilizers (drop down menu)",null,null,null,null,null,null,null,null,null,null,null,"Nitrogen Stabilizers (drop down menu)"]
["None",{"$f":"VLOOKUP(A65,NitrogenStabilizers,14,FALSE)","v":"None"},{"$f":"VLOOKUP(A65,NitrogenStabilizers,15,FALSE)","v":0},{"$f":"VLOOKUP(A65,NitrogenStabilizers,13,FALSE)","v":1},0,{"$f":"VLOOKUP(A65,NitrogenStabilizers,12,FALSE)","v":0},{"$f":"(E65*VLOOKUP(A65,NitrogenStabilizers,11,FALSE)/D65)*C65","v":0},null,null,null,null,null,"None",{"$f":"VLOOKUP(M65,NitrogenStabilizers,14,FALSE)","v":"None"},{"$f":"VLOOKUP(M65,NitrogenStabilizers,15,FALSE)","v":0},{"$f":"VLOOKUP(M65,NitrogenStabilizers,13,FALSE)","v":1},0,{"$f":"VLOOKUP(M65,NitrogenStabilizers,12,FALSE)","v":0},{"$f":"(Q65*VLOOKUP(M65,NitrogenStabilizers,11,FALSE)/P65)*O65","v":0},null,null,null,null,null,"None",{"$f":"VLOOKUP(Y65,NitrogenStabilizers,14,FALSE)","v":"None"},{"$f":"VLOOKUP(Y65,NitrogenStabilizers,15,FALSE)","v":0},{"$f":"VLOOKUP(Y65,NitrogenStabilizers,13,FALSE)","v":1},0,{"$f":"VLOOKUP(Y65,NitrogenStabilizers,12,FALSE)","v":0},{"$f":"(AC65*VLOOKUP(Y65,NitrogenStabilizers,11,FALSE)/AB65)*AA65","v":0}]
["None",{"$f":"VLOOKUP(A66,NitrogenStabilizers,14,FALSE)","v":"None"},{"$f":"VLOOKUP(A66,NitrogenStabilizers,15,FALSE)","v":0},{"$f":"VLOOKUP(A66,NitrogenStabilizers,13,FALSE)","v":1},0,{"$f":"VLOOKUP(A66,NitrogenStabilizers,12,FALSE)","v":0},{"$f":"(E66*VLOOKUP(A66,NitrogenStabilizers,11,FALSE)/D66)*C66","v":0},null,null,null,null,null,"None",{"$f":"VLOOKUP(M66,NitrogenStabilizers,14,FALSE)","v":"None"},{"$f":"VLOOKUP(M66,NitrogenStabilizers,15,FALSE)","v":0},{"$f":"VLOOKUP(M66,NitrogenStabilizers,13,FALSE)","v":1},0,{"$f":"VLOOKUP(M66,NitrogenStabilizers,12,FALSE)","v":0},{"$f":"(Q66*VLOOKUP(M66,NitrogenStabilizers,11,FALSE)/P66)*O66","v":0},null,null,null,null,null,"None",{"$f":"VLOOKUP(Y66,NitrogenStabilizers,14,FALSE)","v":"None"},{"$f":"VLOOKUP(Y66,NitrogenStabilizers,15,FALSE)","v":0},{"$f":"VLOOKUP(Y66,NitrogenStabilizers,13,FALSE)","v":1},0,{"$f":"VLOOKUP(Y66,NitrogenStabilizers,12,FALSE)","v":0},{"$f":"(AC66*VLOOKUP(Y66,NitrogenStabilizers,11,FALSE)/AB66)*AA66","v":0}]
["3rd Application Fertilizer Cost/Acre",null,null,null,null,null,{"$f":"SUM(G51:G66)","v":74.112499999999997},null,null,null,null,null,"3rd Application Fertilizer Cost/Acre",null,null,null,null,null,{"$f":"SUM(S51:S66)","v":97.427499999999995},null,null,null,null,null,"3rd Application Fertilizer Cost/Acre",null,null,null,null,null,{"$f":"SUM(AE51:AE66)","v":0}]
[]
["Total Fertilizer Cost/Acre",null,null,null,null,null,{"$f":"G67+G46+G25","v":223.46788999999998},null,null,null,null,null,"Total Fertilizer Cost/Acre",null,null,null,null,null,{"$f":"S67+S46+S25","v":190.87189000000001},null,null,null,null,null,"Total Fertilizer Cost/Acre",null,null,null,null,null,{"$f":"AE67+AE46+AE25","v":0}]
[]
[null,null,null,null,"Total Nutrient Needs",null,null,null,null,null,null,null,null,null,null,null,"Total Nutrient Needs",null,null,null,null,null,null,null,null,null,null,null,"Total Nutrient Needs"]
[null,null,null,null,"Based on:","Soil Test Based Recs",null,null,"Total Fertilizer Program",null,null,null,null,null,null,null,"Based on:","Nutrient Removal",null,null,"Total Fertilizer Program",null,null,null,null,null,null,null,"Based on:","Nutrient Removal",null,null,"Total Fertilizer Program"]
["Farm Name",null,null,null,"N","P","K",null,"N","P","K",null,{"$f":"A73","v":"Farm Name"},null,null,null,"N","P","K",null,"N","P","K",null,{"$f":"A73","v":"Farm Name"},null,null,null,"N","P","K",null,"N","P","K"]
["Farm Tract",null,null,null,{"$f":"'Nutrient Management'!B55","v":111.6},{"$f":"'Nutrient Management'!C55","v":110},{"$f":"'Nutrient Management'!D55","v":63.6},null,{"$f":"I51+I30+I6","v":146.4556},{"$f":"J51+J30+J6","v":109.88800000000001},{"$f":"K51+K30+K6","v":64.8},null,{"$f":"A74","v":"Farm Tract"},null,null,null,{"$f":"'Nutrient Management'!B65","v":141.6},{"$f":"'Nutrient Management'!C65","v":59},{"$f":"'Nutrient Management'!D65","v":42.6},null,{"$f":"U51+U30+U6","v":154.73560000000001},{"$f":"V51+V30+V6","v":59.748000000000005},{"$f":"W51+W30+W6","v":43.199999999999996},null,{"$f":"A74","v":"Farm Tract"},null,null,null,{"$f":"'Nutrient Management'!B65","v":141.6},{"$f":"'Nutrient Management'!C65","v":59},{"$f":"'Nutrient Management'!D65","v":42.6},null,{"$f":"AG51+AG30+AG6","v":0},{"$f":"AH51+AH30+AH6","v":0},{"$f":"AI51+AI30+AI6","v":0}]
["Farm Number",null,null,null,"S","Ca","Mg",null,"S","Ca","Mg",null,"Farm Number",null,null,null,"S","Ca","Mg",null,"S","Ca","Mg",null,"Farm Number",null,null,null,"S","Ca","Mg",null,"S","Ca","Mg"]
[null,null,null,null,{"$f":"'Nutrient Management'!B58","v":6.4},0,0,null,{"$f":"I54+I33+I9","v":8.4},{"$f":"J54+J33+J9","v":0},{"$f":"K54+K33+K9","v":0},null,null,null,null,null,{"$f":"'Nutrient Management'!B68","v":8.4},0,0,null,{"$f":"U54+U33+U9","v":10.32},{"$f":"V54+V33+V9","v":0},{"$f":"W54+W33+W9","v":0},null,null,null,null,null,{"$f":"'Nutrient Management'!B68","v":8.4},0,0,null,{"$f":"AG54+AG33+AG9","v":0},{"$f":"AH54+AH33+AH9","v":0},{"$f":"AI54+AI33+AI9","v":0}]
[null,null,null,null,"Zn","B","Mn",null,"Zn","B","Mn",null,null,null,null,null,"Zn","B","Mn",null,"Zn","B","Mn",null,null,null,null,null,"Zn","B","Mn",null,"Zn","B","Mn"]
[null,null,null,null,0,0,0,null,{"$f":"I57+I36+I12","v":0},{"$f":"J57+J36+J12","v":0},{"$f":"K57+K36+K12","v":0},null,null,null,null,null,0,0,0,null,{"$f":"U57+U36+U12","v":0},{"$f":"V57+V36+V12","v":0},{"$f":"W57+W36+W12","v":0},null,null,null,null,null,0,0,0,null,{"$f":"AG57+AG36+AG12","v":0},{"$f":"AH57+AH36+AH12","v":0},{"$f":"AI57+AI36+AI12","v":0}]
[null,null,null,null,"* from Nutrient Management tab",null,null,null,null,null,null,null,null,null,null,null,"* from Nutrient Management tab",null,null,null,null,null,null,null,null,null,null,null,"* from Nutrient Management tab"]

{"sheet":"Fertilizer Plan (Soybean)","index":8,"n_rows":79,"n_cols":35,"rows_kept":79,"cut":false,"hidden":false,"merged":[[47,24,47,34],[13,8,18,10],[0,0,0,10],[0,12,0,22],[0,24,0,34],[2,0,2,10],[2,12,2,22],[2,24,2,34],[1,0,1,10],[1,12,1,22],[1,24,1,34],[70,28,70,30],[71,29,71,30],[71,20,71,22],[13,32,18,34],[26,0,26,10],[26,12,26,22],[13,20,18,22],[70,4,70,6],[71,5,71,6],[70,16,70,18],[71,17,71,18],[26,24,26,34],[71,32,71,34],[71,8,71,10],[47,0,47,10],[47,12,47,22]]}
["Soybean",null,null,null,null,null,null,null,null,null,null,null,"Soybean",null,null,null,null,null,null,null,null,null,null,null,"Soybean"]
["Comparison Plan 1",null,null,null,null,null,null,null,null,null,null,null,"Comparison Plan 2",null,null,null,null,null,null,null,null,null,null,null,"Comparison Plan 3"]
["1st Application (i.e., Pre-Plant or Broadcast Fertilizer)",null,null,null,null,null,null,null,null,null,null,null,"1st Application (i.e., Pre-Plant or Broadcast Fertilizer)",null,null,null,null,null,null,null,null,null,null,null,"1st Application (i.e., Pre-Plant or Broadcast Fertilizer)"]
["Fertilizer Source","Purchase Units","Package Price (Gals, Lbs, etc.)","Units/Pkg","Rate/Acre","Units","Cost",null,null,null,null,null,"Fertilizer Source","Purchase Units","Package Price (Gals, Lbs, etc.)","Units/Pkg","Rate/Acre","Units","Cost",null,null,null,null,null,"Fertilizer Source","Purchase Units","Package Price (Gals, Lbs, etc.)","Units/Pkg","Rate/Acre","Units","Cost"]
["Macronutrients (drop down menu)",null,null,null,"(Enter Below)",null,null,null,"N","P","K",null,"Macronutrients (drop down menu)",null,null,null,"(Enter Below)",null,null,null,"N","P","K",null,"Macronutrients (drop down menu)",null,null,null,"(Enter Below)",null,null,null,"N","P","K"]
["Potash (0-0-60)",{"$f":"VLOOKUP(A6,Macronutrients,14,FALSE)","v":"Tons"},{"$f":"VLOOKUP(A6,'Fertilizer Products & Pricing'!$A$4:$O$38,15,FALSE)","v":690},{"$f":"VLOOKUP($A6,Macronutrients,13,FALSE)","v":2000},275,{"$f":"VLOOKUP($A6,Macronutrients,12,FALSE)","v":"lbs"},{"$f":"(E6*VLOOKUP(A6,Macronutrients,11,FALSE)/D6)*C6","v":94.875000000000014},null,{"$f":"VLOOKUP(A6,'Fertilizer Products & Pricing'!$A$4:$O$38,2,FALSE)*E6+VLOOKUP(A7,'Fertilizer Products & Pricing'!$A$4:$O$38,2,FALSE)*E7+VLOOKUP(A8,'Fertilizer Products & Pricing'!$A$4:$O$38,2,FALSE)*E8+VLOOKUP(A9,'Fertilizer Products & Pricing'!$A$4:$O$38,2,FALSE)*E9+VLOOKUP(A10,'Fertilizer Products & Pricing'!$A$4:$O$38,2,FALSE)*E10+VLOOKUP(A11,'Fertilizer Products & Pricing'!$A$4:$O$38,2,FALSE)*E11+VLOOKUP(A14,'Fertilizer Products & Pricing'!$A$42:$O$55,2,FALSE)*E14+VLOOKUP(A15,'Fertilizer Products & Pricing'!$A$42:$O$55,2,FALSE)*E15+VLOOKUP(A16,'Fertilizer Products & Pricing'!$A$42:$O$55,2,FALSE)*E16+VLOOKUP(A17,'Fertilizer Products & Pricing'!$A$42:$O$55,2,FALSE)*E17","v":5.25},{"$f":"VLOOKUP(A6,'Fertilizer Products & Pricing'!$A$4:$O$38,3,FALSE)*E6+VLOOKUP(A7,'Fertilizer Products & Pricing'!$A$4:$O$38,3,FALSE)*E7+VLOOKUP(A8,'Fertilizer Products & Pricing'!$A$4:$O$38,3,FALSE)*E8+VLOOKUP(A9,'Fertilizer Products & Pricing'!$A$4:$O$38,3,FALSE)*E9+VLOOKUP(A10,'Fertilizer Products & Pricing'!$A$4:$O$38,3,FALSE)*E10+VLOOKUP(A11,'Fertilizer Products & Pricing'!$A$4:$O$38,3,FALSE)*E11+VLOOKUP(A14,'Fertilizer Products & Pricing'!$A$42:$O$55,3,FALSE)*E14+VLOOKUP(A15,'Fertilizer Products & Pricing'!$A$42:$O$55,3,FALSE)*E15+VLOOKUP(A16,'Fertilizer Products & Pricing'!$A$42:$O$55,3,FALSE)*E16+VLOOKUP(A17,'Fertilizer Products & Pricing'!$A$42:$O$55,3,FALSE)*E17","v":0},{"$f":"VLOOKUP(A6,'Fertilizer Products & Pricing'!$A$4:$O$38,4,FALSE)*E6+VLOOKUP(A7,'Fertilizer Products & Pricing'!$A$4:$O$38,4,FALSE)*E7+VLOOKUP(A8,'Fertilizer Products & Pricing'!$A$4:$O$38,4,FALSE)*E8+VLOOKUP(A9,'Fertilizer Products & Pricing'!$A$4:$O$38,4,FALSE)*E9+VLOOKUP(A10,'Fertilizer Products & Pricing'!$A$4:$O$38,4,FALSE)*E10+VLOOKUP(A11,'Fertilizer Products & Pricing'!$A$4:$O$38,4,FALSE)*E11+VLOOKUP(A14,'Fertilizer Products & Pricing'!$A$42:$O$55,4,FALSE)*E14+VLOOKUP(A15,'Fertilizer Products & Pricing'!$A$42:$O$55,4,FALSE)*E15+VLOOKUP(A16,'Fertilizer Products & Pricing'!$A$42:$O$55,4,FALSE)*E16+VLOOKUP(A17,'Fertilizer Products & Pricing'!$A$42:$O$55,4,FALSE)*E17","v":165},null,"None",{"$f":"VLOOKUP(M6,Macronutrients,14,FALSE)","v":"None"},{"$f":"VLOOKUP(M6,'Fertilizer Products & Pricing'!$A$4:$O$38,15,FALSE)","v":0},{"$f":"VLOOKUP($M6,Macronutrients,13,FALSE)","v":1},0,{"$f":"VLOOKUP($M6,Macronutrients,12,FALSE)","v":0},{"$f":"(Q6*VLOOKUP(M6,Macronutrients,11,FALSE)/P6)*O6","v":0},null,{"$f":"VLOOKUP(M6,'Fertilizer Products & Pricing'!$A$4:$O$38,2,FALSE)*Q6+VLOOKUP(M7,'Fertilizer Products & Pricing'!$A$4:$O$38,2,FALSE)*Q7+VLOOKUP(M8,'Fertilizer Products & Pricing'!$A$4:$O$38,2,FALSE)*Q8+VLOOKUP(M9,'Fertilizer Products & Pricing'!$A$4:$O$38,2,FALSE)*Q9+VLOOKUP(M10,'Fertilizer Products & Pricing'!$A$4:$O$38,2,FALSE)*Q10+VLOOKUP(M11,'Fertilizer Products & Pricing'!$A$4:$O$38,2,FALSE)*Q11+VLOOKUP(M14,'Fertilizer Products & Pricing'!$A$42:$O$55,2,FALSE)*Q14+VLOOKUP(M15,'Fertilizer Products & Pricing'!$A$42:$O$55,2,FALSE)*Q15+VLOOKUP(M16,'Fertilizer Products & Pricing'!$A$42:$O$55,2,FALSE)*Q16+VLOOKUP(M17,'Fertilizer Products & Pricing'!$A$42:$O$55,2,FALSE)*Q17+VLOOKUP($M20,'Fertilizer Products & Pricing'!$A$59:$O$67,2,FALSE)*Q20","v":0},{"$f":"VLOOKUP(M6,'Fertilizer Products & Pricing'!$A$4:$O$38,3,FALSE)*Q6+VLOOKUP(M7,'Fertilizer Products & Pricing'!$A$4:$O$38,3,FALSE)*Q7+VLOOKUP(M8,'Fertilizer Products & Pricing'!$A$4:$O$38,3,FALSE)*Q8+VLOOKUP(M9,'Fertilizer Products & Pricing'!$A$4:$O$38,3,FALSE)*Q9+VLOOKUP(M10,'Fertilizer Products & Pricing'!$A$4:$O$38,3,FALSE)*Q10+VLOOKUP(M11,'Fertilizer Products & Pricing'!$A$4:$O$38,3,FALSE)*Q11+VLOOKUP(M14,'Fertilizer Products & Pricing'!$A$42:$O$55,3,FALSE)*Q14+VLOOKUP(M15,'Fertilizer Products & Pricing'!$A$42:$O$55,3,FALSE)*Q15+VLOOKUP(M16,'Fertilizer Products & Pricing'!$A$42:$O$55,3,FALSE)*Q16+VLOOKUP(M17,'Fertilizer Products & Pricing'!$A$42:$O$55,3,FALSE)*Q17+VLOOKUP($M20,'Fertilizer Products & Pricing'!$A$59:$O$67,2,FALSE)*Q20","v":0},{"$f":"VLOOKUP(M6,'Fertilizer Products & Pricing'!$A$4:$O$38,4,FALSE)*Q6+VLOOKUP(M7,'Fertilizer Products & Pricing'!$A$4:$O$38,4,FALSE)*Q7+VLOOKUP(M8,'Fertilizer Products & Pricing'!$A$4:$O$38,4,FALSE)*Q8+VLOOKUP(M9,'Fertilizer Products & Pricing'!$A$4:$O$38,4,FALSE)*Q9+VLOOKUP(M10,'Fertilizer Products & Pricing'!$A$4:$O$38,4,FALSE)*Q10+VLOOKUP(M11,'Fertilizer Products & Pricing'!$A$4:$O$38,4,FALSE)*Q11+VLOOKUP(M14,'Fertilizer Products & Pricing'!$A$42:$O$55,4,FALSE)*Q14+VLOOKUP(M15,'Fertilizer Products & Pricing'!$A$42:$O$55,4,FALSE)*Q15+VLOOKUP(M16,'Fertilizer Products & Pricing'!$A$42:$O$55,4,FALSE)*Q16+VLOOKUP(M17,'Fertilizer Products & Pricing'!$A$42:$O$55,4,FALSE)*Q17+VLOOKUP($M20,'Fertilizer Products & Pricing'!$A$59:$O$67,2,FALSE)*Q20","v":0},null,"None",{"$f":"VLOOKUP(Y6,Macronutrients,14,FALSE)","v":"None"},{"$f":"VLOOKUP(Y6,'Fertilizer Products & Pricing'!$A$4:$O$38,15,FALSE)","v":0},{"$f":"VLOOKUP($Y6,Macronutrients,13,FALSE)","v":1},0,{"$f":"VLOOKUP(Y6,Macronutrients,12,FALSE)","v":0},{"$f":"(AC6*VLOOKUP(Y6,Macronutrients,11,FALSE)/AB6)*AA6","v":0},null,{"$f":"VLOOKUP(Y6,'Fertilizer Products & Pricing'!$A$4:$O$38,2,FALSE)*AC6+VLOOKUP(Y7,'Fertilizer Products & Pricing'!$A$4:$O$38,2,FALSE)*AC7+VLOOKUP(Y8,'Fertilizer Products & Pricing'!$A$4:$O$38,2,FALSE)*AC8+VLOOKUP(Y9,'Fertilizer Products & Pricing'!$A$4:$O$38,2,FALSE)*AC9+VLOOKUP(Y10,'Fertilizer Products & Pricing'!$A$4:$O$38,2,FALSE)*AC10+VLOOKUP(Y11,'Fertilizer Products & Pricing'!$A$4:$O$38,2,FALSE)*AC11+VLOOKUP(Y14,'Fertilizer Products & Pricing'!$A$42:$O$55,2,FALSE)*AC14+VLOOKUP(Y15,'Fertilizer Products & Pricing'!$A$42:$O$55,2,FALSE)*AC15+VLOOKUP(Y16,'Fertilizer Products & Pricing'!$A$42:$O$55,2,FALSE)*AC16+VLOOKUP(Y17,'Fertilizer Products & Pricing'!$A$42:$O$55,2,FALSE)*AC17+VLOOKUP($Y20,'Fertilizer Products & Pricing'!$A$59:$O$67,2,FALSE)*AC20","v":0},{"$f":"VLOOKUP(Y6,'Fertilizer Products & Pricing'!$A$4:$O$38,3,FALSE)*AC6+VLOOKUP(Y7,'Fertilizer Products & Pricing'!$A$4:$O$38,3,FALSE)*AC7+VLOOKUP(Y8,'Fertilizer Products & Pricing'!$A$4:$O$38,3,FALSE)*AC8+VLOOKUP(Y9,'Fertilizer Products & Pricing'!$A$4:$O$38,3,FALSE)*AC9+VLOOKUP(Y10,'Fertilizer Products & Pricing'!$A$4:$O$38,3,FALSE)*AC10+VLOOKUP(Y11,'Fertilizer Products & Pricing'!$A$4:$O$38,3,FALSE)*AC11+VLOOKUP(Y14,'Fertilizer Products & Pricing'!$A$42:$O$55,3,FALSE)*AC14+VLOOKUP(Y15,'Fertilizer Products & Pricing'!$A$42:$O$55,3,FALSE)*AC15+VLOOKUP(Y16,'Fertilizer Products & Pricing'!$A$42:$O$55,3,FALSE)*AC16+VLOOKUP(Y17,'Fertilizer Products & Pricing'!$A$42:$O$55,3,FALSE)*AC17+VLOOKUP($Y20,'Fertilizer Products & Pricing'!$A$59:$O$67,2,FALSE)*AC20","v":0},{"$f":"VLOOKUP(Y6,'Fertilizer Products & Pricing'!$A$4:$O$38,4,FALSE)*AC6+VLOOKUP(Y7,'Fertilizer Products & Pricing'!$A$4:$O$38,4,FALSE)*AC7+VLOOKUP(Y8,'Fertilizer Products & Pricing'!$A$4:$O$38,4,FALSE)*AC8+VLOOKUP(Y9,'Fertilizer Products & Pricing'!$A$4:$O$38,4,FALSE)*AC9+VLOOKUP(Y10,'Fertilizer Products & Pricing'!$A$4:$O$38,4,FALSE)*AC10+VLOOKUP(Y11,'Fertilizer Products & Pricing'!$A$4:$O$38,4,FALSE)*AC11+VLOOKUP(Y14,'Fertilizer Products & Pricing'!$A$42:$O$55,4,FALSE)*AC14+VLOOKUP(Y15,'Fertilizer Products & Pricing'!$A$42:$O$55,4,FALSE)*AC15+VLOOKUP(Y16,'Fertilizer Products & Pricing'!$A$42:$O$55,4,FALSE)*AC16+VLOOKUP(Y17,'Fertilizer Products & Pricing'!$A$42:$O$55,4,FALSE)*AC17+VLOOKUP($Y20,'Fertilizer Products & Pricing'!$A$59:$O$67,2,FALSE)*AC20","v":0}]
["AMS (21-0-0-24S)","Tons",{"$f":"VLOOKUP(A7,'Fertilizer Products & Pricing'!$A$4:$O$38,15,FALSE)","v":485},2000,25,"lbs",6.0625,null,null,null,null,null,"None","None",{"$f":"VLOOKUP(M7,'Fertilizer Products & Pricing'!$A$4:$O$38,15,FALSE)","v":0},1,0,0,{"$f":"(Q7*VLOOKUP(M7,Macronutrients,11,FALSE)/P7)*O7","v":0},null,null,null,null,null,"None","None",{"$f":"VLOOKUP(Y7,'Fertilizer Products & Pricing'!$A$4:$O$38,15,FALSE)","v":0},1,0,0,{"$f":"(AC7*VLOOKUP(Y7,Macronutrients,11,FALSE)/AB7)*AA7","v":0}]
["None","None",{"$f":"VLOOKUP(A8,'Fertilizer Products & Pricing'!$A$4:$O$38,15,FALSE)","v":0},1,0,0,0,null,"S","Ca","Mg",null,"None","None",{"$f":"VLOOKUP(M8,'Fertilizer Products & Pricing'!$A$4:$O$38,15,FALSE)","v":0},1,0,0,0,null,"S","Ca","Mg",null,"None","None",{"$f":"VLOOKUP(Y8,'Fertilizer Products & Pricing'!$A$4:$O$38,15,FALSE)","v":0},1,0,0,0,null,"S","Ca","Mg"]
["None","None",{"$f":"VLOOKUP(A9,'Fertilizer Products & Pricing'!$A$4:$O$38,15,FALSE)","v":0},1,0,0,0,null,{"$f":"VLOOKUP($A6,'Fertilizer Products & Pricing'!$A$4:$O$38,5,FALSE)*E6+VLOOKUP($A7,'Fertilizer Products & Pricing'!$A$4:$O$38,5,FALSE)*E7+VLOOKUP($A8,'Fertilizer Products & Pricing'!$A$4:$O$38,5,FALSE)*E8+VLOOKUP($A9,'Fertilizer Products & Pricing'!$A$4:$O$38,5,FALSE)*E9+VLOOKUP($A10,'Fertilizer Products & Pricing'!$A$4:$O$38,5,FALSE)*E10+VLOOKUP($A11,'Fertilizer Products & Pricing'!$A$4:$O$38,5,FALSE)*E11+VLOOKUP($A14,'Fertilizer Products & Pricing'!$A$42:$O$55,5,FALSE)*E14+VLOOKUP(A15,'Fertilizer Products & Pricing'!$A$42:$O$55,5,FALSE)*E15+VLOOKUP($A16,'Fertilizer Products & Pricing'!$A$42:$O$55,5,FALSE)*E16+VLOOKUP($A17,'Fertilizer Products & Pricing'!$A$42:$O$55,5,FALSE)*E17","v":6},{"$f":"VLOOKUP($A6,'Fertilizer Products & Pricing'!$A$4:$O$38,7,FALSE)*$E$6+VLOOKUP($A7,'Fertilizer Products & Pricing'!$A$4:$O$38,7,FALSE)*$E$7+VLOOKUP($A8,'Fertilizer Products & Pricing'!$A$4:$O$38,7,FALSE)*$E$8+VLOOKUP($A9,'Fertilizer Products & Pricing'!$A$4:$O$38,7,FALSE)*$E$9+VLOOKUP($A10,'Fertilizer Products & Pricing'!$A$4:$O$38,7,FALSE)*$E$10+VLOOKUP($A11,'Fertilizer Products & Pricing'!$A$4:$O$38,7,FALSE)*$E$11+VLOOKUP($A14,'Fertilizer Products & Pricing'!$A$42:$O$55,7,FALSE)*$E$14+VLOOKUP($A15,'Fertilizer Products & Pricing'!$A$42:$O$55,7,FALSE)*E15+VLOOKUP($A16,'Fertilizer Products & Pricing'!$A$42:$O$55,7,FALSE)*$E$16+VLOOKUP($A17,'Fertilizer Products & Pricing'!$A$42:$O$55,7,FALSE)*$E$17+VLOOKUP($A20,'Fertilizer Products & Pricing'!$A$59:$O$67,7,FALSE)*E20","v":0},{"$f":"VLOOKUP($A6,'Fertilizer Products & Pricing'!$A$4:$O$38,6,FALSE)*$E$6+VLOOKUP($A7,'Fertilizer Products & Pricing'!$A$4:$O$38,6,FALSE)*$E$7+VLOOKUP($A8,'Fertilizer Products & Pricing'!$A$4:$O$38,6,FALSE)*$E$8+VLOOKUP($A9,'Fertilizer Products & Pricing'!$A$4:$O$38,6,FALSE)*$E$9+VLOOKUP($A10,'Fertilizer Products & Pricing'!$A$4:$O$38,6,FALSE)*$E$10+VLOOKUP($A11,'Fertilizer Products & Pricing'!$A$4:$O$38,6,FALSE)*$E$11+VLOOKUP($A14,'Fertilizer Products & Pricing'!$A$42:$O$55,6,FALSE)*$E$14+VLOOKUP($A15,'Fertilizer Products & Pricing'!$A$42:$O$55,6,FALSE)*$E$15+VLOOKUP($A16,'Fertilizer Products & Pricing'!$A$42:$O$55,6,FALSE)*$E$16+VLOOKUP(A$17,'Fertilizer Products & Pricing'!$A$42:$O$55,6,FALSE)*$E$17+VLOOKUP($A20,'Fertilizer Products & Pricing'!$A$59:$O$67,6,FALSE)*E20","v":0},null,"None","None",{"$f":"VLOOKUP(M9,'Fertilizer Products & Pricing'!$A$4:$O$38,15,FALSE)","v":0},1,0,0,0,null,{"$f":"VLOOKUP($M6,'Fertilizer Products & Pricing'!$A$4:$O$38,5,FALSE)*Q6+VLOOKUP($M7,'Fertilizer Products & Pricing'!$A$4:$O$38,5,FALSE)*Q7+VLOOKUP($M8,'Fertilizer Products & Pricing'!$A$4:$O$38,5,FALSE)*Q8+VLOOKUP($M9,'Fertilizer Products & Pricing'!$A$4:$O$38,5,FALSE)*Q9+VLOOKUP($M10,'Fertilizer Products & Pricing'!$A$4:$O$38,5,FALSE)*Q10+VLOOKUP($M11,'Fertilizer Products & Pricing'!$A$4:$O$38,5,FALSE)*Q11+VLOOKUP($M14,'Fertilizer Products & Pricing'!$A$42:$O$55,5,FALSE)*Q14+VLOOKUP(M15,'Fertilizer Products & Pricing'!$A$42:$O$55,5,FALSE)*Q15+VLOOKUP($M16,'Fertilizer Products & Pricing'!$A$42:$O$55,5,FALSE)*Q16+VLOOKUP($M17,'Fertilizer Products & Pricing'!$A$42:$O$55,5,FALSE)*Q17+VLOOKUP($M20,'Fertilizer Products & Pricing'!$A$59:$O$67,2,FALSE)*Q20","v":0},{"$f":"VLOOKUP($M6,'Fertilizer Products & Pricing'!$A$4:$O$38,7,FALSE)*$Q$6+VLOOKUP($M7,'Fertilizer Products & Pricing'!$A$4:$O$38,7,FALSE)*$Q$7+VLOOKUP($M8,'Fertilizer Products & Pricing'!$A$4:$O$38,7,FALSE)*$Q$8+VLOOKUP($M9,'Fertilizer Products & Pricing'!$A$4:$O$38,7,FALSE)*$Q$9+VLOOKUP($M10,'Fertilizer Products & Pricing'!$A$4:$O$38,7,FALSE)*$Q$10+VLOOKUP($M11,'Fertilizer Products & Pricing'!$A$4:$O$38,7,FALSE)*$Q$11+VLOOKUP($M14,'Fertilizer Products & Pricing'!$A$42:$O$55,7,FALSE)*$Q$14+VLOOKUP($M15,'Fertilizer Products & Pricing'!$A$42:$O$55,7,FALSE)*Q15+VLOOKUP($M16,'Fertilizer Products & Pricing'!$A$42:$O$55,7,FALSE)*$Q$16+VLOOKUP($M17,'Fertilizer Products & Pricing'!$A$42:$O$55,7,FALSE)*$Q$17+VLOOKUP($M20,'Fertilizer Products & Pricing'!$A$59:$O$67,7,FALSE)*Q20","v":0},{"$f":"VLOOKUP($M6,'Fertilizer Products & Pricing'!$A$4:$O$38,6,FALSE)*$Q$6+VLOOKUP($M7,'Fertilizer Products & Pricing'!$A$4:$O$38,6,FALSE)*$Q$7+VLOOKUP($M8,'Fertilizer Products & Pricing'!$A$4:$O$38,6,FALSE)*$Q$8+VLOOKUP($M9,'Fertilizer Products & Pricing'!$A$4:$O$38,6,FALSE)*$Q$9+VLOOKUP($M10,'Fertilizer Products & Pricing'!$A$4:$O$38,6,FALSE)*$Q$10+VLOOKUP($M11,'Fertilizer Products & Pricing'!$A$4:$O$38,6,FALSE)*$Q$11+VLOOKUP($M14,'Fertilizer Products & Pricing'!$A$42:$O$55,6,FALSE)*$Q$14+VLOOKUP($M15,'Fertilizer Products & Pricing'!$A$42:$O$55,6,FALSE)*$Q$15+VLOOKUP($M16,'Fertilizer Products & Pricing'!$A$42:$O$55,6,FALSE)*$Q$16+VLOOKUP(M$17,'Fertilizer Products & Pricing'!$A$42:$O$55,6,FALSE)*$Q$17+VLOOKUP($M20,'Fertilizer Products & Pricing'!$A$59:$O$67,6,FALSE)*Q20","v":0},null,"None","None",{"$f":"VLOOKUP(Y9,'Fertilizer Products & Pricing'!$A$4:$O$38,15,FALSE)","v":0},1,0,0,0,null,{"$f":"VLOOKUP($Y6,'Fertilizer Products & Pricing'!$A$4:$O$38,5,FALSE)*AC6+VLOOKUP($Y7,'Fertilizer Products & Pricing'!$A$4:$O$38,5,FALSE)*AC7+VLOOKUP($Y8,'Fertilizer Products & Pricing'!$A$4:$O$38,5,FALSE)*AC8+VLOOKUP($Y9,'Fertilizer Products & Pricing'!$A$4:$O$38,5,FALSE)*AC9+VLOOKUP($Y10,'Fertilizer Products & Pricing'!$A$4:$O$38,5,FALSE)*AC10+VLOOKUP($Y11,'Fertilizer Products & Pricing'!$A$4:$O$38,5,FALSE)*AC11+VLOOKUP($Y14,'Fertilizer Products & Pricing'!$A$42:$O$55,5,FALSE)*AC14+VLOOKUP(Y15,'Fertilizer Products & Pricing'!$A$42:$O$55,5,FALSE)*AC15+VLOOKUP($Y16,'Fertilizer Products & Pricing'!$A$42:$O$55,5,FALSE)*AC16+VLOOKUP($Y17,'Fertilizer Products & Pricing'!$A$42:$O$55,5,FALSE)*AC17+VLOOKUP($Y20,'Fertilizer Products & Pricing'!$A$59:$O$67,2,FALSE)*AC20","v":0},{"$f":"VLOOKUP($Y6,'Fertilizer Products & Pricing'!$A$4:$O$38,7,FALSE)*$AC$6+VLOOKUP($Y7,'Fertilizer Products & Pricing'!$A$4:$O$38,7,FALSE)*$AC$7+VLOOKUP($Y8,'Fertilizer Products & Pricing'!$A$4:$O$38,7,FALSE)*$AC$8+VLOOKUP($Y9,'Fertilizer Products & Pricing'!$A$4:$O$38,7,FALSE)*$AC$9+VLOOKUP($Y10,'Fertilizer Products & Pricing'!$A$4:$O$38,7,FALSE)*$AC$10+VLOOKUP($Y11,'Fertilizer Products & Pricing'!$A$4:$O$38,7,FALSE)*$AC$11+VLOOKUP($Y14,'Fertilizer Products & Pricing'!$A$42:$O$55,7,FALSE)*$AC$14+VLOOKUP($Y15,'Fertilizer Products & Pricing'!$A$42:$O$55,7,FALSE)*AC15+VLOOKUP($Y16,'Fertilizer Products & Pricing'!$A$42:$O$55,7,FALSE)*$AC$16+VLOOKUP($Y17,'Fertilizer Products & Pricing'!$A$42:$O$55,7,FALSE)*$AC$17+VLOOKUP($Y20,'Fertilizer Products & Pricing'!$A$59:$O$67,7,FALSE)*AC20","v":0},{"$f":"VLOOKUP($Y6,'Fertilizer Products & Pricing'!$A$4:$O$38,6,FALSE)*$AC$6+VLOOKUP($Y7,'Fertilizer Products & Pricing'!$A$4:$O$38,6,FALSE)*$AC$7+VLOOKUP($Y8,'Fertilizer Products & Pricing'!$A$4:$O$38,6,FALSE)*$AC$8+VLOOKUP($Y9,'Fertilizer Products & Pricing'!$A$4:$O$38,6,FALSE)*$AC$9+VLOOKUP($Y10,'Fertilizer Products & Pricing'!$A$4:$O$38,6,FALSE)*$AC$10+VLOOKUP($Y11,'Fertilizer Products & Pricing'!$A$4:$O$38,6,FALSE)*$AC$11+VLOOKUP($Y14,'Fertilizer Products & Pricing'!$A$42:$O$55,6,FALSE)*$AC$14+VLOOKUP($Y15,'Fertilizer Products & Pricing'!$A$42:$O$55,6,FALSE)*$AC$15+VLOOKUP($Y16,'Fertilizer Products & Pricing'!$A$42:$O$55,6,FALSE)*$AC$16+VLOOKUP(Y$17,'Fertilizer Products & Pricing'!$A$42:$O$55,6,FALSE)*$AC$17+VLOOKUP($Y20,'Fertilizer Products & Pricing'!$A$59:$O$67,6,FALSE)*AC20","v":0}]
["None","None",{"$f":"VLOOKUP(A10,'Fertilizer Products & Pricing'!$A$4:$O$38,15,FALSE)","v":0},1,0,0,0,null,null,null,null,null,"None","None",{"$f":"VLOOKUP(M10,'Fertilizer Products & Pricing'!$A$4:$O$38,15,FALSE)","v":0},1,0,0,0,null,null,null,null,null,"None","None",{"$f":"VLOOKUP(Y10,'Fertilizer Products & Pricing'!$A$4:$O$38,15,FALSE)","v":0},1,0,0,0]
["None","None",{"$f":"VLOOKUP(A11,'Fertilizer Products & Pricing'!$A$4:$O$38,15,FALSE)","v":0},1,0,0,0,null,"Zn","B","Mn",null,"None","None",{"$f":"VLOOKUP(M11,'Fertilizer Products & Pricing'!$A$4:$O$38,15,FALSE)","v":0},1,0,0,0,null,"Zn","B","Mn",null,"None","None",{"$f":"VLOOKUP(Y11,'Fertilizer Products & Pricing'!$A$4:$O$38,15,FALSE)","v":0},1,0,0,0,null,"Zn","B","Mn"]
[null,null,null,null,null,null,null,null,{"$f":"VLOOKUP($A$15,'Fertilizer Products & Pricing'!$A$42:$O$55,8,FALSE)*$E$15+VLOOKUP($A$16,'Fertilizer Products & Pricing'!$A$42:$O$55,8,FALSE)*$E$16+VLOOKUP($A$17,'Fertilizer Products & Pricing'!$A$42:$O$55,8,FALSE)*$E$17+VLOOKUP($A$14,'Fertilizer Products & Pricing'!$A$42:$O$55,8,FALSE)*$E$14+VLOOKUP($A20,'Fertilizer Products & Pricing'!$A$59:$O$67,2,FALSE)*E20","v":0},{"$f":"VLOOKUP($A$15,'Fertilizer Products & Pricing'!$A$42:$O$55,9,FALSE)*$E$15+VLOOKUP($A$16,'Fertilizer Products & Pricing'!$A$42:$O$55,9,FALSE)*$E$16+VLOOKUP($A$17,'Fertilizer Products & Pricing'!$A$42:$O$55,9,FALSE)*$E$17+VLOOKUP($A$14,'Fertilizer Products & Pricing'!$A$42:$O$55,9,FALSE)*$E$14+VLOOKUP($A20,'Fertilizer Products & Pricing'!$A$59:$O$67,2,FALSE)*E20","v":0},{"$f":"VLOOKUP($A$15,'Fertilizer Products & Pricing'!$A$42:$O$55,10,FALSE)*$E$15+VLOOKUP($A$16,'Fertilizer Products & Pricing'!$A$42:$O$55,10,FALSE)*$E$16+VLOOKUP($A$17,'Fertilizer Products & Pricing'!$A$42:$O$55,10,FALSE)*$E$17+VLOOKUP($A$14,'Fertilizer Products & Pricing'!$A$42:$O$55,10,FALSE)*$E$14+VLOOKUP($A20,'Fertilizer Products & Pricing'!$A$59:$O$67,2,FALSE)*E20","v":0},null,null,null,null,null,null,null,null,null,{"$f":"VLOOKUP($M15,'Fertilizer Products & Pricing'!$A$42:$O$55,8,FALSE)*$Q15+VLOOKUP($M16,'Fertilizer Products & Pricing'!$A$42:$O$55,8,FALSE)*$Q16+VLOOKUP($M17,'Fertilizer Products & Pricing'!$A$42:$O$55,8,FALSE)*$Q17+VLOOKUP($M14,'Fertilizer Products & Pricing'!$A$42:$O$55,8,FALSE)*$Q14+VLOOKUP($M20,'Fertilizer Products & Pricing'!$A$59:$O$67,2,FALSE)*Q20","v":0},{"$f":"VLOOKUP($M15,'Fertilizer Products & Pricing'!$A$42:$O$55,9,FALSE)*$Q15+VLOOKUP($M16,'Fertilizer Products & Pricing'!$A$42:$O$55,9,FALSE)*$Q16+VLOOKUP($M17,'Fertilizer Products & Pricing'!$A$42:$O$55,9,FALSE)*$Q17+VLOOKUP($M14,'Fertilizer Products & Pricing'!$A$42:$O$55,9,FALSE)*$Q14+VLOOKUP($M20,'Fertilizer Products & Pricing'!$A$59:$O$67,2,FALSE)*Q20","v":0},{"$f":"VLOOKUP($M15,'Fertilizer Products & Pricing'!$A$42:$O$55,10,FALSE)*$Q15+VLOOKUP($M16,'Fertilizer Products & Pricing'!$A$42:$O$55,10,FALSE)*$Q16+VLOOKUP($M17,'Fertilizer Products & Pricing'!$A$42:$O$55,10,FALSE)*$Q17+VLOOKUP($M14,'Fertilizer Products & Pricing'!$A$42:$O$55,10,FALSE)*$Q14+VLOOKUP($M20,'Fertilizer Products & Pricing'!$A$59:$O$67,2,FALSE)*Q20","v":0},null,null,null,null,null,null,null,null,null,{"$f":"VLOOKUP($Y15,'Fertilizer Products & Pricing'!$A$42:$O$55,8,FALSE)*$AC15+VLOOKUP($Y16,'Fertilizer Products & Pricing'!$A$42:$O$55,8,FALSE)*$AC16+VLOOKUP($Y17,'Fertilizer Products & Pricing'!$A$42:$O$55,8,FALSE)*$AC17+VLOOKUP($Y14,'Fertilizer Products & Pricing'!$A$42:$O$55,8,FALSE)*$AC14+VLOOKUP($Y20,'Fertilizer Products & Pricing'!$A$59:$O$67,2,FALSE)*AC20","v":0},{"$f":"VLOOKUP($Y15,'Fertilizer Products & Pricing'!$A$42:$O$55,9,FALSE)*$AC15+VLOOKUP($Y16,'Fertilizer Products & Pricing'!$A$42:$O$55,9,FALSE)*$AC16+VLOOKUP($Y17,'Fertilizer Products & Pricing'!$A$42:$O$55,9,FALSE)*$AC17+VLOOKUP($Y14,'Fertilizer Products & Pricing'!$A$42:$O$55,9,FALSE)*$AC14+VLOOKUP($Y20,'Fertilizer Products & Pricing'!$A$59:$O$67,2,FALSE)*AC20","v":0},{"$f":"VLOOKUP($Y15,'Fertilizer Products & Pricing'!$A$42:$O$55,10,FALSE)*$AC15+VLOOKUP($Y16,'Fertilizer Products & Pricing'!$A$42:$O$55,10,FALSE)*$AC16+VLOOKUP($Y17,'Fertilizer Products & Pricing'!$A$42:$O$55,10,FALSE)*$AC17+VLOOKUP($Y14,'Fertilizer Products & Pricing'!$A$42:$O$55,10,FALSE)*$AC14+VLOOKUP($Y20,'Fertilizer Products & Pricing'!$A$59:$O$67,2,FALSE)*AC20","v":0}]
["Micronutrients (drop down menu)",null,null,null,null,null,null,null,null,null,null,null,"Micronutrients (drop down menu)",null,null,null,null,null,null,null,null,null,null,null,"Micronutrients (drop down menu)"]
["None",{"$f":"VLOOKUP($A14,Micronutrients,14,FALSE)","v":"None"},{"$f":"VLOOKUP($A14,Micronutrients,15,FALSE)","v":0},{"$f":"VLOOKUP($A14,Micronutrients,13,FALSE)","v":1},0,{"$f":"VLOOKUP($A14,Micronutrients,12,FALSE)","v":0},{"$f":"(E14*VLOOKUP(A14,Micronutrients,11,FALSE)/D14)*C14","v":0},null,"*Note: For this crop, Nitrogen applied in Pre-Plant applications are not considered to be accessible to meeting the plant's nutritional needs",null,null,null,"None",{"$f":"VLOOKUP(M14,Micronutrients,14,FALSE)","v":"None"},{"$f":"VLOOKUP(M14,Micronutrients,15,FALSE)","v":0},{"$f":"VLOOKUP(M14,Micronutrients,13,FALSE)","v":1},0,{"$f":"VLOOKUP(M14,Micronutrients,12,FALSE)","v":0},{"$f":"(Q14*VLOOKUP(M14,Micronutrients,11,FALSE)/P14)*O14","v":0},null,"*Note: For this crop, Nitrogen applied in Pre-Plant applications are not considered to be accessible to meeting the plant's nutritional needs",null,null,null,"None",{"$f":"VLOOKUP(Y14,Micronutrients,14,FALSE)","v":"None"},{"$f":"VLOOKUP(Y14,Micronutrients,15,FALSE)","v":0},{"$f":"VLOOKUP(Y14,Micronutrients,13,FALSE)","v":1},0,{"$f":"VLOOKUP(Y14,Micronutrients,12,FALSE)","v":0},{"$f":"(AC14*VLOOKUP(Y14,Micronutrients,11,FALSE)/AB14)*AA14","v":0},null,"*Note: For this crop, Nitrogen applied in Pre-Plant applications are not considered to be accessible to meeting the plant's nutritional needs"]
["None",{"$f":"VLOOKUP($A15,Micronutrients,14,FALSE)","v":"None"},{"$f":"VLOOKUP($A15,Micronutrients,15,FALSE)","v":0},{"$f":"VLOOKUP($A15,Micronutrients,13,FALSE)","v":1},0,{"$f":"VLOOKUP($A15,Micronutrients,12,FALSE)","v":0},{"$f":"(E15*VLOOKUP(A15,Micronutrients,11,FALSE)/D15)*C15","v":0},null,null,null,null,null,"None",{"$f":"VLOOKUP(M15,Micronutrients,14,FALSE)","v":"None"},{"$f":"VLOOKUP(M15,Micronutrients,15,FALSE)","v":0},{"$f":"VLOOKUP(M15,Micronutrients,13,FALSE)","v":1},0,{"$f":"VLOOKUP(M15,Micronutrients,12,FALSE)","v":0},{"$f":"(Q15*VLOOKUP(M15,Micronutrients,11,FALSE)/P15)*O15","v":0},null,null,null,null,null,"None",{"$f":"VLOOKUP(Y15,Micronutrients,14,FALSE)","v":"None"},{"$f":"VLOOKUP(Y15,Micronutrients,15,FALSE)","v":0},{"$f":"VLOOKUP(Y15,Micronutrients,13,FALSE)","v":1},0,{"$f":"VLOOKUP(Y15,Micronutrients,12,FALSE)","v":0},{"$f":"(AC15*VLOOKUP(Y15,Micronutrients,11,FALSE)/AB15)*AA15","v":0}]
["None",{"$f":"VLOOKUP($A16,Micronutrients,14,FALSE)","v":"None"},{"$f":"VLOOKUP($A16,Micronutrients,15,FALSE)","v":0},{"$f":"VLOOKUP($A16,Micronutrients,13,FALSE)","v":1},0,{"$f":"VLOOKUP($A16,Micronutrients,12,FALSE)","v":0},{"$f":"(E16*VLOOKUP(A16,Micronutrients,11,FALSE)/D16)*C16","v":0},null,null,null,null,null,"None",{"$f":"VLOOKUP(M16,Micronutrients,14,FALSE)","v":"None"},{"$f":"VLOOKUP(M16,Micronutrients,15,FALSE)","v":0},{"$f":"VLOOKUP(M16,Micronutrients,13,FALSE)","v":1},0,{"$f":"VLOOKUP(M16,Micronutrients,12,FALSE)","v":0},{"$f":"(Q16*VLOOKUP(M16,Micronutrients,11,FALSE)/P16)*O16","v":0},null,null,null,null,null,"None",{"$f":"VLOOKUP(Y16,Micronutrients,14,FALSE)","v":"None"},{"$f":"VLOOKUP(Y16,Micronutrients,15,FALSE)","v":0},{"$f":"VLOOKUP(Y16,Micronutrients,13,FALSE)","v":1},0,{"$f":"VLOOKUP(Y16,Micronutrients,12,FALSE)","v":0},{"$f":"(AC16*VLOOKUP(Y16,Micronutrients,11,FALSE)/AB16)*AA16","v":0}]
["None",{"$f":"VLOOKUP($A17,Micronutrients,14,FALSE)","v":"None"},{"$f":"VLOOKUP($A17,Micronutrients,15,FALSE)","v":0},{"$f":"VLOOKUP($A17,Micronutrients,13,FALSE)","v":1},0,{"$f":"VLOOKUP($A17,Micronutrients,12,FALSE)","v":0},{"$f":"(E17*VLOOKUP(A17,Micronutrients,11,FALSE)/D17)*C17","v":0},null,null,null,null,null,"None",{"$f":"VLOOKUP(M17,Micronutrients,14,FALSE)","v":"None"},{"$f":"VLOOKUP(M17,Micronutrients,15,FALSE)","v":0},{"$f":"VLOOKUP(M17,Micronutrients,13,FALSE)","v":1},0,{"$f":"VLOOKUP(M17,Micronutrients,12,FALSE)","v":0},{"$f":"(Q17*VLOOKUP(M17,Micronutrients,11,FALSE)/P17)*O17","v":0},null,null,null,null,null,"None",{"$f":"VLOOKUP(Y17,Micronutrients,14,FALSE)","v":"None"},{"$f":"VLOOKUP(Y17,Micronutrients,15,FALSE)","v":0},{"$f":"VLOOKUP(Y17,Micronutrients,13,FALSE)","v":1},0,{"$f":"VLOOKUP(Y17,Micronutrients,12,FALSE)","v":0},{"$f":"(AC17*VLOOKUP(Y17,Micronutrients,11,FALSE)/AB17)*AA17","v":0}]
[]
["Lime (drop down menu)",null,null,null,null,null,null,null,null,null,null,null,"Lime (drop down menu)",null,null,null,null,null,null,null,null,null,null,null,"Lime (drop down menu)"]
["None",{"$f":"VLOOKUP(A20,Lime,14,FALSE)","v":"None"},{"$f":"VLOOKUP(A20,Lime,15,FALSE)","v":0},{"$f":"VLOOKUP(A20,Lime,13,FALSE)","v":1},0,{"$f":"VLOOKUP(A20,Lime,12,FALSE)","v":0},{"$f":"(E20*VLOOKUP(A20,Lime,11,FALSE)/D20)*C20","v":0},null,null,null,null,null,"None",{"$f":"VLOOKUP(M20,Lime,14,FALSE)","v":"None"},{"$f":"VLOOKUP(M20,Lime,15,FALSE)","v":0},{"$f":"VLOOKUP(M20,Lime,13,FALSE)","v":1},0,{"$f":"VLOOKUP(M20,Lime,12,FALSE)","v":0},{"$f":"(Q20*VLOOKUP(M20,Lime,11,FALSE)/P20)*O20","v":0},null,null,null,null,null,"None",{"$f":"VLOOKUP(Y20,Lime,14,FALSE)","v":"None"},{"$f":"VLOOKUP(Y20,Lime,15,FALSE)","v":0},{"$f":"VLOOKUP(Y20,Lime,13,FALSE)","v":1},0,{"$f":"VLOOKUP(Y20,Lime,12,FALSE)","v":0},{"$f":"(AC20*VLOOKUP(Y20,Lime,11,FALSE)/AB20)*AA20","v":0}]
[]
["Nitrogen Stabilizers (drop down menu)",null,null,null,null,null,null,null,null,null,null,null,"Nitrogen Stabilizers (drop down menu)",null,null,null,null,null,null,null,null,null,null,null,"Nitrogen Stabilizers (drop down menu)"]
["None",{"$f":"VLOOKUP(A23,NitrogenStabilizers,14,FALSE)","v":"None"},{"$f":"VLOOKUP(A23,NitrogenStabilizers,15,FALSE)","v":0},{"$f":"VLOOKUP(A23,NitrogenStabilizers,13,FALSE)","v":1},0,{"$f":"VLOOKUP(A23,NitrogenStabilizers,12,FALSE)","v":0},{"$f":"(E23*VLOOKUP(A23,NitrogenStabilizers,11,FALSE)/D23)*C23","v":0},null,null,null,null,null,"None",{"$f":"VLOOKUP(M23,NitrogenStabilizers,14,FALSE)","v":"None"},{"$f":"VLOOKUP(M23,NitrogenStabilizers,15,FALSE)","v":0},{"$f":"VLOOKUP(M23,NitrogenStabilizers,13,FALSE)","v":1},0,{"$f":"VLOOKUP(M23,NitrogenStabilizers,12,FALSE)","v":0},{"$f":"(Q23*VLOOKUP(M23,NitrogenStabilizers,11,FALSE)/P23)*O23","v":0},null,null,null,null,null,"None",{"$f":"VLOOKUP(Y23,NitrogenStabilizers,14,FALSE)","v":"None"},{"$f":"VLOOKUP(Y23,NitrogenStabilizers,15,FALSE)","v":0},{"$f":"VLOOKUP(Y23,NitrogenStabilizers,13,FALSE)","v":1},0,{"$f":"VLOOKUP(Y23,NitrogenStabilizers,12,FALSE)","v":0},{"$f":"(AC23*VLOOKUP(Y23,NitrogenStabilizers,11,FALSE)/AB23)*AA23","v":0}]
["None",{"$f":"VLOOKUP(A24,NitrogenStabilizers,14,FALSE)","v":"None"},{"$f":"VLOOKUP(A24,NitrogenStabilizers,15,FALSE)","v":0},{"$f":"VLOOKUP(A24,NitrogenStabilizers,13,FALSE)","v":1},0,{"$f":"VLOOKUP(A24,NitrogenStabilizers,12,FALSE)","v":0},{"$f":"(E24*VLOOKUP(A24,NitrogenStabilizers,11,FALSE)/D24)*C24","v":0},null,null,null,"More",null,"None",{"$f":"VLOOKUP(M24,NitrogenStabilizers,14,FALSE)","v":"None"},{"$f":"VLOOKUP(M24,NitrogenStabilizers,15,FALSE)","v":0},{"$f":"VLOOKUP(M24,NitrogenStabilizers,13,FALSE)","v":1},0,{"$f":"VLOOKUP(M24,NitrogenStabilizers,12,FALSE)","v":0},{"$f":"(Q24*VLOOKUP(M24,NitrogenStabilizers,11,FALSE)/P24)*O24","v":0},null,null,null,"More",null,"None",{"$f":"VLOOKUP(Y24,NitrogenStabilizers,14,FALSE)","v":"None"},{"$f":"VLOOKUP(Y24,NitrogenStabilizers,15,FALSE)","v":0},{"$f":"VLOOKUP(Y24,NitrogenStabilizers,13,FALSE)","v":1},0,{"$f":"VLOOKUP(Y24,NitrogenStabilizers,12,FALSE)","v":0},{"$f":"(AC24*VLOOKUP(Y24,NitrogenStabilizers,11,FALSE)/AB24)*AA24","v":0},null,null,null,"More"]
["1st Application Fertilizer Cost/Acre",null,null,null,null,null,{"$f":"SUM(G6:G24)","v":100.93750000000001},null,null,null,"Below",null,"1st Application Fertilizer Cost/Acre",null,null,null,null,null,{"$f":"SUM(S6:S24)","v":0},null,null,null,"Below",null,"1st Application Fertilizer Cost/Acre",null,null,null,null,null,{"$f":"SUM(AE6:AE24)","v":0},null,null,null,"Below"]
[null,null,null,null,null,null,null,null,null,null,"¯",null,null,null,null,null,null,null,null,null,null,null,"¯",null,null,null,null,null,null,null,null,null,null,null,"¯"]
["2nd Application (i.e., Starter Fertilizer or Broadcast)",null,null,null,null,null,null,null,null,null,null,null,"2nd Application (i.e., Starter Fertilizer or Broadcast)",null,null,null,null,null,null,null,null,null,null,null,"2nd Application (i.e., Starter Fertilizer or Broadcast)"]
["Fertilizer Source","Purchase Units","Package Price (Gals, Lbs, etc.)","Units/Pkg","Rate/Acre","Units","Cost",null,null,null,null,null,"Fertilizer Source","Purchase Units","Package Price (Gals, Lbs, etc.)","Units/Pkg","Rate/Acre","Units","Cost",null,null,null,null,null,"Fertilizer Source","Purchase Units","Package Price (Gals, Lbs, etc.)","Units/Pkg","Rate/Acre","Units","Cost"]
["Macronutrients (drop down menu)",null,null,null,"(Enter Below)",null,null,null,"N","P","K",null,"Macronutrients (drop down menu)",null,null,null,"(Enter Below)",null,null,null,"N","P","K",null,"Macronutrients (drop down menu)",null,null,null,"(Enter Below)",null,null,null,"N","P","K"]
["None",{"$f":"VLOOKUP(A30,Macronutrients,14,FALSE)","v":"None"},{"$f":"VLOOKUP(A30,'Fertilizer Products & Pricing'!$A$4:$O$38,15,FALSE)","v":0},{"$f":"VLOOKUP($A30,Macronutrients,13,FALSE)","v":1},0,{"$f":"VLOOKUP($A30,Macronutrients,12,FALSE)","v":0},{"$f":"(E30*VLOOKUP(A30,Macronutrients,11,FALSE)/D30)*C30","v":0},null,{"$f":"VLOOKUP(A30,'Fertilizer Products & Pricing'!$A$4:$O$38,2,FALSE)*E30+VLOOKUP(A31,'Fertilizer Products & Pricing'!$A$4:$O$38,2,FALSE)*E31+VLOOKUP(A32,'Fertilizer Products & Pricing'!$A$4:$O$38,2,FALSE)*E32+VLOOKUP(A33,'Fertilizer Products & Pricing'!$A$4:$O$38,2,FALSE)*E33+VLOOKUP(A34,'Fertilizer Products & Pricing'!$A$4:$O$38,2,FALSE)*E34+VLOOKUP(A35,'Fertilizer Products & Pricing'!$A$4:$O$38,2,FALSE)*E35+VLOOKUP(A38,'Fertilizer Products & Pricing'!$A$42:$O$55,2,FALSE)*E38+VLOOKUP(A39,'Fertilizer Products & Pricing'!$A$42:$O$55,2,FALSE)*E39+VLOOKUP(A40,'Fertilizer Products & Pricing'!$A$42:$O$55,2,FALSE)*E40+VLOOKUP(A41,'Fertilizer Products & Pricing'!$A$42:$O$55,2,FALSE)*E41","v":0},{"$f":"VLOOKUP(A30,'Fertilizer Products & Pricing'!$A$4:$O$38,3,FALSE)*E30+VLOOKUP(A31,'Fertilizer Products & Pricing'!$A$4:$O$38,3,FALSE)*E31+VLOOKUP(A32,'Fertilizer Products & Pricing'!$A$4:$O$38,3,FALSE)*E32+VLOOKUP(A33,'Fertilizer Products & Pricing'!$A$4:$O$38,3,FALSE)*E33+VLOOKUP(A34,'Fertilizer Products & Pricing'!$A$4:$O$38,3,FALSE)*E34+VLOOKUP(A35,'Fertilizer Products & Pricing'!$A$4:$O$38,3,FALSE)*E35+VLOOKUP(A38,'Fertilizer Products & Pricing'!$A$42:$O$55,3,FALSE)*E38+VLOOKUP(A39,'Fertilizer Products & Pricing'!$A$42:$O$55,3,FALSE)*E39+VLOOKUP(A40,'Fertilizer Products & Pricing'!$A$42:$O$55,3,FALSE)*E40+VLOOKUP(A41,'Fertilizer Products & Pricing'!$A$42:$O$55,3,FALSE)*E41","v":0},{"$f":"VLOOKUP(A30,'Fertilizer Products & Pricing'!$A$4:$O$38,4,FALSE)*E30+VLOOKUP(A31,'Fertilizer Products & Pricing'!$A$4:$O$38,4,FALSE)*E31+VLOOKUP(A32,'Fertilizer Products & Pricing'!$A$4:$O$38,4,FALSE)*E32+VLOOKUP(A33,'Fertilizer Products & Pricing'!$A$4:$O$38,4,FALSE)*E33+VLOOKUP(A34,'Fertilizer Products & Pricing'!$A$4:$O$38,4,FALSE)*E34+VLOOKUP(A35,'Fertilizer Products & Pricing'!$A$4:$O$38,4,FALSE)*E35+VLOOKUP(A38,'Fertilizer Products & Pricing'!$A$42:$O$55,4,FALSE)*E38+VLOOKUP(A39,'Fertilizer Products & Pricing'!$A$42:$O$55,4,FALSE)*E39+VLOOKUP(A40,'Fertilizer Products & Pricing'!$A$42:$O$55,4,FALSE)*E40+VLOOKUP(A41,'Fertilizer Products & Pricing'!$A$42:$O$55,4,FALSE)*E41","v":0},null,"None",{"$f":"VLOOKUP(M30,Macronutrients,14,FALSE)","v":"None"},{"$f":"VLOOKUP(M30,'Fertilizer Products & Pricing'!$A$4:$O$38,15,FALSE)","v":0},{"$f":"VLOOKUP($M30,Macronutrients,13,FALSE)","v":1},0,{"$f":"VLOOKUP($M30,Macronutrients,12,FALSE)","v":0},{"$f":"(Q30*VLOOKUP(M30,Macronutrients,11,FALSE)/P30)*O30","v":0},null,{"$f":"VLOOKUP(M30,'Fertilizer Products & Pricing'!$A$4:$O$38,2,FALSE)*Q30+VLOOKUP(M31,'Fertilizer Products & Pricing'!$A$4:$O$38,2,FALSE)*Q31+VLOOKUP(M32,'Fertilizer Products & Pricing'!$A$4:$O$38,2,FALSE)*Q32+VLOOKUP(M33,'Fertilizer Products & Pricing'!$A$4:$O$38,2,FALSE)*Q33+VLOOKUP(M34,'Fertilizer Products & Pricing'!$A$4:$O$38,2,FALSE)*Q34+VLOOKUP(M35,'Fertilizer Products & Pricing'!$A$4:$O$38,2,FALSE)*Q35+VLOOKUP(M38,'Fertilizer Products & Pricing'!$A$42:$O$55,2,FALSE)*Q38+VLOOKUP(M39,'Fertilizer Products & Pricing'!$A$42:$O$55,2,FALSE)*Q39+VLOOKUP(M40,'Fertilizer Products & Pricing'!$A$42:$O$55,2,FALSE)*Q40+VLOOKUP(M41,'Fertilizer Products & Pricing'!$A$42:$O$55,2,FALSE)*Q41","v":0},{"$f":"VLOOKUP(M30,'Fertilizer Products & Pricing'!$A$4:$O$38,3,FALSE)*Q30+VLOOKUP(M31,'Fertilizer Products & Pricing'!$A$4:$O$38,3,FALSE)*Q31+VLOOKUP(M32,'Fertilizer Products & Pricing'!$A$4:$O$38,3,FALSE)*Q32+VLOOKUP(M33,'Fertilizer Products & Pricing'!$A$4:$O$38,3,FALSE)*Q33+VLOOKUP(M34,'Fertilizer Products & Pricing'!$A$4:$O$38,3,FALSE)*Q34+VLOOKUP(M35,'Fertilizer Products & Pricing'!$A$4:$O$38,3,FALSE)*Q35+VLOOKUP(M38,'Fertilizer Products & Pricing'!$A$42:$O$55,3,FALSE)*Q38+VLOOKUP(M39,'Fertilizer Products & Pricing'!$A$42:$O$55,3,FALSE)*Q39+VLOOKUP(M40,'Fertilizer Products & Pricing'!$A$42:$O$55,3,FALSE)*Q40+VLOOKUP(M41,'Fertilizer Products & Pricing'!$A$42:$O$55,3,FALSE)*Q41","v":0},{"$f":"VLOOKUP(M30,'Fertilizer Products & Pricing'!$A$4:$O$38,4,FALSE)*Q30+VLOOKUP(M31,'Fertilizer Products & Pricing'!$A$4:$O$38,4,FALSE)*Q31+VLOOKUP(M32,'Fertilizer Products & Pricing'!$A$4:$O$38,4,FALSE)*Q32+VLOOKUP(M33,'Fertilizer Products & Pricing'!$A$4:$O$38,4,FALSE)*Q33+VLOOKUP(M34,'Fertilizer Products & Pricing'!$A$4:$O$38,4,FALSE)*Q34+VLOOKUP(M35,'Fertilizer Products & Pricing'!$A$4:$O$38,4,FALSE)*Q35+VLOOKUP(M38,'Fertilizer Products & Pricing'!$A$42:$O$55,4,FALSE)*Q38+VLOOKUP(M39,'Fertilizer Products & Pricing'!$A$42:$O$55,4,FALSE)*Q39+VLOOKUP(M40,'Fertilizer Products & Pricing'!$A$42:$O$55,4,FALSE)*Q40+VLOOKUP(M41,'Fertilizer Products & Pricing'!$A$42:$O$55,4,FALSE)*Q41","v":0},null,"None",{"$f":"VLOOKUP(Y30,Macronutrients,14,FALSE)","v":"None"},{"$f":"VLOOKUP(Y30,'Fertilizer Products & Pricing'!$A$4:$O$38,15,FALSE)","v":0},{"$f":"VLOOKUP($Y30,Macronutrients,13,FALSE)","v":1},0,{"$f":"VLOOKUP(Y30,Macronutrients,12,FALSE)","v":0},{"$f":"(AC30*VLOOKUP(Y30,Macronutrients,11,FALSE)/AB30)*AA30","v":0},null,{"$f":"VLOOKUP(Y30,'Fertilizer Products & Pricing'!$A$4:$O$38,2,FALSE)*AC30+VLOOKUP(Y31,'Fertilizer Products & Pricing'!$A$4:$O$38,2,FALSE)*AC31+VLOOKUP(Y32,'Fertilizer Products & Pricing'!$A$4:$O$38,2,FALSE)*AC32+VLOOKUP(Y33,'Fertilizer Products & Pricing'!$A$4:$O$38,2,FALSE)*AC33+VLOOKUP(Y34,'Fertilizer Products & Pricing'!$A$4:$O$38,2,FALSE)*AC34+VLOOKUP(Y35,'Fertilizer Products & Pricing'!$A$4:$O$38,2,FALSE)*AC35+VLOOKUP(Y38,'Fertilizer Products & Pricing'!$A$42:$O$55,2,FALSE)*AC38+VLOOKUP(Y39,'Fertilizer Products & Pricing'!$A$42:$O$55,2,FALSE)*AC39+VLOOKUP(Y40,'Fertilizer Products & Pricing'!$A$42:$O$55,2,FALSE)*AC40+VLOOKUP(Y41,'Fertilizer Products & Pricing'!$A$42:$O$55,2,FALSE)*AC41","v":0},{"$f":"VLOOKUP(Y30,'Fertilizer Products & Pricing'!$A$4:$O$38,3,FALSE)*AC30+VLOOKUP(Y31,'Fertilizer Products & Pricing'!$A$4:$O$38,3,FALSE)*AC31+VLOOKUP(Y32,'Fertilizer Products & Pricing'!$A$4:$O$38,3,FALSE)*AC32+VLOOKUP(Y33,'Fertilizer Products & Pricing'!$A$4:$O$38,3,FALSE)*AC33+VLOOKUP(Y34,'Fertilizer Products & Pricing'!$A$4:$O$38,3,FALSE)*AC34+VLOOKUP(Y35,'Fertilizer Products & Pricing'!$A$4:$O$38,3,FALSE)*AC35+VLOOKUP(Y38,'Fertilizer Products & Pricing'!$A$42:$O$55,3,FALSE)*AC38+VLOOKUP(Y39,'Fertilizer Products & Pricing'!$A$42:$O$55,3,FALSE)*AC39+VLOOKUP(Y40,'Fertilizer Products & Pricing'!$A$42:$O$55,3,FALSE)*AC40+VLOOKUP(Y41,'Fertilizer Products & Pricing'!$A$42:$O$55,3,FALSE)*AC41","v":0},{"$f":"VLOOKUP(Y30,'Fertilizer Products & Pricing'!$A$4:$O$38,4,FALSE)*AC30+VLOOKUP(Y31,'Fertilizer Products & Pricing'!$A$4:$O$38,4,FALSE)*AC31+VLOOKUP(Y32,'Fertilizer Products & Pricing'!$A$4:$O$38,4,FALSE)*AC32+VLOOKUP(Y33,'Fertilizer Products & Pricing'!$A$4:$O$38,4,FALSE)*AC33+VLOOKUP(Y34,'Fertilizer Products & Pricing'!$A$4:$O$38,4,FALSE)*AC34+VLOOKUP(Y35,'Fertilizer Products & Pricing'!$A$4:$O$38,4,FALSE)*AC35+VLOOKUP(Y38,'Fertilizer Products & Pricing'!$A$42:$O$55,4,FALSE)*AC38+VLOOKUP(Y39,'Fertilizer Products & Pricing'!$A$42:$O$55,4,FALSE)*AC39+VLOOKUP(Y40,'Fertilizer Products & Pricing'!$A$42:$O$55,4,FALSE)*AC40+VLOOKUP(Y41,'Fertilizer Products & Pricing'!$A$42:$O$55,4,FALSE)*AC41","v":0}]
["None","None",{"$f":"VLOOKUP(A31,'Fertilizer Products & Pricing'!$A$4:$O$38,15,FALSE)","v":0},1,0,0,0,null,null,null,null,null,"None",{"$f":"VLOOKUP(M31,Macronutrients,14,FALSE)","v":"None"},{"$f":"VLOOKUP(M31,'Fertilizer Products & Pricing'!$A$4:$O$38,15,FALSE)","v":0},1,0,0,{"$f":"(Q31*VLOOKUP(M31,Macronutrients,11,FALSE)/P31)*O31","v":0},null,null,null,null,null,"None","None",{"$f":"VLOOKUP(Y31,'Fertilizer Products & Pricing'!$A$4:$O$38,15,FALSE)","v":0},1,0,0,0]
["None","None",{"$f":"VLOOKUP(A32,'Fertilizer Products & Pricing'!$A$4:$O$38,15,FALSE)","v":0},1,0,0,0,null,"S","Ca","Mg",null,"None","None",{"$f":"VLOOKUP(M32,'Fertilizer Products & Pricing'!$A$4:$O$38,15,FALSE)","v":0},1,0,0,0,null,"S","Ca","Mg",null,"None","None",{"$f":"VLOOKUP(Y32,'Fertilizer Products & Pricing'!$A$4:$O$38,15,FALSE)","v":0},1,0,0,0,null,"S","Ca","Mg"]
["None","None",{"$f":"VLOOKUP(A33,'Fertilizer Products & Pricing'!$A$4:$O$38,15,FALSE)","v":0},1,0,0,0,null,{"$f":"VLOOKUP(A30,'Fertilizer Products & Pricing'!$A$4:$O$38,5,FALSE)*E30+VLOOKUP(A31,'Fertilizer Products & Pricing'!$A$4:$O$38,5,FALSE)*E31+VLOOKUP(A32,'Fertilizer Products & Pricing'!$A$4:$O$38,5,FALSE)*E32+VLOOKUP(A33,'Fertilizer Products & Pricing'!$A$4:$O$38,5,FALSE)*E33+VLOOKUP(A34,'Fertilizer Products & Pricing'!$A$4:$O$38,5,FALSE)*E34+VLOOKUP(A35,'Fertilizer Products & Pricing'!$A$4:$O$38,5,FALSE)*E35+VLOOKUP(A38,'Fertilizer Products & Pricing'!$A$42:$O$55,5,FALSE)*E38+VLOOKUP(A39,'Fertilizer Products & Pricing'!$A$42:$O$55,5,FALSE)*E39+VLOOKUP(A40,'Fertilizer Products & Pricing'!$A$42:$O$55,5,FALSE)*E40+VLOOKUP(A41,'Fertilizer Products & Pricing'!$A$42:$O$55,5,FALSE)*E41","v":0},{"$f":"VLOOKUP(A30,'Fertilizer Products & Pricing'!$A$4:$O$38,7,FALSE)*E30+VLOOKUP(A31,'Fertilizer Products & Pricing'!$A$4:$O$38,7,FALSE)*E31+VLOOKUP(A32,'Fertilizer Products & Pricing'!$A$4:$O$38,7,FALSE)*E32+VLOOKUP(A33,'Fertilizer Products & Pricing'!$A$4:$O$38,7,FALSE)*E33+VLOOKUP(A34,'Fertilizer Products & Pricing'!$A$4:$O$38,7,FALSE)*E34+VLOOKUP(A35,'Fertilizer Products & Pricing'!$A$4:$O$38,7,FALSE)*E35+VLOOKUP(A38,'Fertilizer Products & Pricing'!$A$42:$O$55,7,FALSE)*E38+VLOOKUP(A39,'Fertilizer Products & Pricing'!$A$42:$O$55,7,FALSE)*E39+VLOOKUP(A40,'Fertilizer Products & Pricing'!$A$42:$O$55,7,FALSE)*E40+VLOOKUP(A41,'Fertilizer Products & Pricing'!$A$42:$O$55,7,FALSE)*E41","v":0},{"$f":"VLOOKUP(A30,'Fertilizer Products & Pricing'!$A$4:$O$38,6,FALSE)*E30+VLOOKUP(A31,'Fertilizer Products & Pricing'!$A$4:$O$38,6,FALSE)*E31+VLOOKUP(A32,'Fertilizer Products & Pricing'!$A$4:$O$38,6,FALSE)*E32+VLOOKUP(A33,'Fertilizer Products & Pricing'!$A$4:$O$38,6,FALSE)*E33+VLOOKUP(A34,'Fertilizer Products & Pricing'!$A$4:$O$38,6,FALSE)*E34+VLOOKUP(A35,'Fertilizer Products & Pricing'!$A$4:$O$38,6,FALSE)*E35+VLOOKUP(A38,'Fertilizer Products & Pricing'!$A$42:$O$55,6,FALSE)*E38+VLOOKUP(A39,'Fertilizer Products & Pricing'!$A$42:$O$55,6,FALSE)*E39+VLOOKUP(A40,'Fertilizer Products & Pricing'!$A$42:$O$55,6,FALSE)*E40+VLOOKUP(A41,'Fertilizer Products & Pricing'!$A$42:$O$55,6,FALSE)*E41","v":0},null,"None","None",{"$f":"VLOOKUP(M33,'Fertilizer Products & Pricing'!$A$4:$O$38,15,FALSE)","v":0},1,0,0,0,null,{"$f":"VLOOKUP(M30,'Fertilizer Products & Pricing'!$A$4:$O$38,5,FALSE)*Q30+VLOOKUP(M31,'Fertilizer Products & Pricing'!$A$4:$O$38,5,FALSE)*Q31+VLOOKUP(M32,'Fertilizer Products & Pricing'!$A$4:$O$38,5,FALSE)*Q32+VLOOKUP(M33,'Fertilizer Products & Pricing'!$A$4:$O$38,5,FALSE)*Q33+VLOOKUP(M34,'Fertilizer Products & Pricing'!$A$4:$O$38,5,FALSE)*Q34+VLOOKUP(M35,'Fertilizer Products & Pricing'!$A$4:$O$38,5,FALSE)*Q35+VLOOKUP(M38,'Fertilizer Products & Pricing'!$A$42:$O$55,5,FALSE)*Q38+VLOOKUP(M39,'Fertilizer Products & Pricing'!$A$42:$O$55,5,FALSE)*Q39+VLOOKUP(M40,'Fertilizer Products & Pricing'!$A$42:$O$55,5,FALSE)*Q40+VLOOKUP(M41,'Fertilizer Products & Pricing'!$A$42:$O$55,5,FALSE)*Q41","v":0},{"$f":"VLOOKUP(M30,'Fertilizer Products & Pricing'!$A$4:$O$38,7,FALSE)*Q30+VLOOKUP(M31,'Fertilizer Products & Pricing'!$A$4:$O$38,7,FALSE)*Q31+VLOOKUP(M32,'Fertilizer Products & Pricing'!$A$4:$O$38,7,FALSE)*Q32+VLOOKUP(M33,'Fertilizer Products & Pricing'!$A$4:$O$38,7,FALSE)*Q33+VLOOKUP(M34,'Fertilizer Products & Pricing'!$A$4:$O$38,7,FALSE)*Q34+VLOOKUP(M35,'Fertilizer Products & Pricing'!$A$4:$O$38,7,FALSE)*Q35+VLOOKUP(M38,'Fertilizer Products & Pricing'!$A$42:$O$55,7,FALSE)*Q38+VLOOKUP(M39,'Fertilizer Products & Pricing'!$A$42:$O$55,7,FALSE)*Q39+VLOOKUP(M40,'Fertilizer Products & Pricing'!$A$42:$O$55,7,FALSE)*Q40+VLOOKUP(M41,'Fertilizer Products & Pricing'!$A$42:$O$55,7,FALSE)*Q41","v":0},{"$f":"VLOOKUP(M30,'Fertilizer Products & Pricing'!$A$4:$O$38,6,FALSE)*Q30+VLOOKUP(M31,'Fertilizer Products & Pricing'!$A$4:$O$38,6,FALSE)*Q31+VLOOKUP(M32,'Fertilizer Products & Pricing'!$A$4:$O$38,6,FALSE)*Q32+VLOOKUP(M33,'Fertilizer Products & Pricing'!$A$4:$O$38,6,FALSE)*Q33+VLOOKUP(M34,'Fertilizer Products & Pricing'!$A$4:$O$38,6,FALSE)*Q34+VLOOKUP(M35,'Fertilizer Products & Pricing'!$A$4:$O$38,6,FALSE)*Q35+VLOOKUP(M38,'Fertilizer Products & Pricing'!$A$42:$O$55,6,FALSE)*Q38+VLOOKUP(M39,'Fertilizer Products & Pricing'!$A$42:$O$55,6,FALSE)*Q39+VLOOKUP(M40,'Fertilizer Products & Pricing'!$A$42:$O$55,6,FALSE)*Q40+VLOOKUP(M41,'Fertilizer Products & Pricing'!$A$42:$O$55,6,FALSE)*Q41","v":0},null,"None","None",{"$f":"VLOOKUP(Y33,'Fertilizer Products & Pricing'!$A$4:$O$38,15,FALSE)","v":0},1,0,0,0,null,{"$f":"VLOOKUP(Y30,'Fertilizer Products & Pricing'!$A$4:$O$38,5,FALSE)*AC30+VLOOKUP(Y31,'Fertilizer Products & Pricing'!$A$4:$O$38,5,FALSE)*AC31+VLOOKUP(Y32,'Fertilizer Products & Pricing'!$A$4:$O$38,5,FALSE)*AC32+VLOOKUP(Y33,'Fertilizer Products & Pricing'!$A$4:$O$38,5,FALSE)*AC33+VLOOKUP(Y34,'Fertilizer Products & Pricing'!$A$4:$O$38,5,FALSE)*AC34+VLOOKUP(Y35,'Fertilizer Products & Pricing'!$A$4:$O$38,5,FALSE)*AC35+VLOOKUP(Y38,'Fertilizer Products & Pricing'!$A$42:$O$55,5,FALSE)*AC38+VLOOKUP(Y39,'Fertilizer Products & Pricing'!$A$42:$O$55,5,FALSE)*AC39+VLOOKUP(Y40,'Fertilizer Products & Pricing'!$A$42:$O$55,5,FALSE)*AC40+VLOOKUP(Y41,'Fertilizer Products & Pricing'!$A$42:$O$55,5,FALSE)*AC41","v":0},{"$f":"VLOOKUP(Y30,'Fertilizer Products & Pricing'!$A$4:$O$38,7,FALSE)*AC30+VLOOKUP(Y31,'Fertilizer Products & Pricing'!$A$4:$O$38,7,FALSE)*AC31+VLOOKUP(Y32,'Fertilizer Products & Pricing'!$A$4:$O$38,7,FALSE)*AC32+VLOOKUP(Y33,'Fertilizer Products & Pricing'!$A$4:$O$38,7,FALSE)*AC33+VLOOKUP(Y34,'Fertilizer Products & Pricing'!$A$4:$O$38,7,FALSE)*AC34+VLOOKUP(Y35,'Fertilizer Products & Pricing'!$A$4:$O$38,7,FALSE)*AC35+VLOOKUP(Y38,'Fertilizer Products & Pricing'!$A$42:$O$55,7,FALSE)*AC38+VLOOKUP(Y39,'Fertilizer Products & Pricing'!$A$42:$O$55,7,FALSE)*AC39+VLOOKUP(Y40,'Fertilizer Products & Pricing'!$A$42:$O$55,7,FALSE)*AC40+VLOOKUP(Y41,'Fertilizer Products & Pricing'!$A$42:$O$55,7,FALSE)*AC41","v":0},{"$f":"VLOOKUP(Y30,'Fertilizer Products & Pricing'!$A$4:$O$38,6,FALSE)*AC30+VLOOKUP(Y31,'Fertilizer Products & Pricing'!$A$4:$O$38,6,FALSE)*AC31+VLOOKUP(Y32,'Fertilizer Products & Pricing'!$A$4:$O$38,6,FALSE)*AC32+VLOOKUP(Y33,'Fertilizer Products & Pricing'!$A$4:$O$38,6,FALSE)*AC33+VLOOKUP(Y34,'Fertilizer Products & Pricing'!$A$4:$O$38,6,FALSE)*AC34+VLOOKUP(Y35,'Fertilizer Products & Pricing'!$A$4:$O$38,6,FALSE)*AC35+VLOOKUP(Y38,'Fertilizer Products & Pricing'!$A$42:$O$55,6,FALSE)*AC38+VLOOKUP(Y39,'Fertilizer Products & Pricing'!$A$42:$O$55,6,FALSE)*AC39+VLOOKUP(Y40,'Fertilizer Products & Pricing'!$A$42:$O$55,6,FALSE)*AC40+VLOOKUP(Y41,'Fertilizer Products & Pricing'!$A$42:$O$55,6,FALSE)*AC41","v":0}]
["None","None",{"$f":"VLOOKUP(A34,'Fertilizer Products & Pricing'!$A$4:$O$38,15,FALSE)","v":0},1,0,0,0,null,null,null,null,null,"None","None",{"$f":"VLOOKUP(M34,'Fertilizer Products & Pricing'!$A$4:$O$38,15,FALSE)","v":0},1,0,0,0,null,null,null,null,null,"None","None",{"$f":"VLOOKUP(Y34,'Fertilizer Products & Pricing'!$A$4:$O$38,15,FALSE)","v":0},1,0,0,0]
["None","None",{"$f":"VLOOKUP(A35,'Fertilizer Products & Pricing'!$A$4:$O$38,15,FALSE)","v":0},1,0,0,0,null,"Zn","B","Mn",null,"None","None",{"$f":"VLOOKUP(M35,'Fertilizer Products & Pricing'!$A$4:$O$38,15,FALSE)","v":0},1,0,0,0,null,"Zn","B","Mn",null,"None","None",{"$f":"VLOOKUP(Y35,'Fertilizer Products & Pricing'!$A$4:$O$38,15,FALSE)","v":0},1,0,0,0,null,"Zn","B","Mn"]
[null,null,null,null,null,null,null,null,{"$f":"VLOOKUP($A$39,'Fertilizer Products & Pricing'!$A$42:$O$55,8,FALSE)*$E$39+VLOOKUP($A$40,'Fertilizer Products & Pricing'!$A$42:$O$55,8,FALSE)*$E$40+VLOOKUP($A$41,'Fertilizer Products & Pricing'!$A$42:$O$55,8,FALSE)*$E$41+VLOOKUP($A$38,'Fertilizer Products & Pricing'!$A$42:$O$55,8,FALSE)*$E$38","v":0},{"$f":"VLOOKUP($A$39,'Fertilizer Products & Pricing'!$A$42:$O$55,9,FALSE)*$E$39+VLOOKUP($A$40,'Fertilizer Products & Pricing'!$A$42:$O$55,9,FALSE)*$E$40+VLOOKUP($A$41,'Fertilizer Products & Pricing'!$A$42:$O$55,9,FALSE)*$E$41+VLOOKUP($A$38,'Fertilizer Products & Pricing'!$A$42:$O$55,9,FALSE)*$E$38","v":0},{"$f":"VLOOKUP($A$39,'Fertilizer Products & Pricing'!$A$42:$O$55,10,FALSE)*$E$39+VLOOKUP($A$40,'Fertilizer Products & Pricing'!$A$42:$O$55,10,FALSE)*$E$40+VLOOKUP($A$41,'Fertilizer Products & Pricing'!$A$42:$O$55,10,FALSE)*$E$41+VLOOKUP($A$38,'Fertilizer Products & Pricing'!$A$42:$O$55,10,FALSE)*$E$38","v":0},null,null,null,null,null,null,null,null,null,{"$f":"VLOOKUP($M39,'Fertilizer Products & Pricing'!$A$42:$O$55,8,FALSE)*$Q39+VLOOKUP($M40,'Fertilizer Products & Pricing'!$A$42:$O$55,8,FALSE)*$Q40+VLOOKUP($M41,'Fertilizer Products & Pricing'!$A$42:$O$55,8,FALSE)*$Q41+VLOOKUP($M38,'Fertilizer Products & Pricing'!$A$42:$O$55,8,FALSE)*$Q38","v":0},{"$f":"VLOOKUP($M39,'Fertilizer Products & Pricing'!$A$42:$O$55,9,FALSE)*$Q39+VLOOKUP($M40,'Fertilizer Products & Pricing'!$A$42:$O$55,9,FALSE)*$Q40+VLOOKUP($M41,'Fertilizer Products & Pricing'!$A$42:$O$55,9,FALSE)*$Q41+VLOOKUP($M38,'Fertilizer Products & Pricing'!$A$42:$O$55,9,FALSE)*$Q38","v":0},{"$f":"VLOOKUP($M$39,'Fertilizer Products & Pricing'!$A$42:$O$55,10,FALSE)*$Q$39+VLOOKUP($M$40,'Fertilizer Products & Pricing'!$A$42:$O$55,10,FALSE)*$Q$40+VLOOKUP($M$41,'Fertilizer Products & Pricing'!$A$42:$O$55,10,FALSE)*$Q$41+VLOOKUP($M$38,'Fertilizer Products & Pricing'!$A$42:$O$55,10,FALSE)*$Q$38","v":0},null,null,null,null,null,null,null,null,null,{"$f":"VLOOKUP($Y39,'Fertilizer Products & Pricing'!$A$42:$O$55,8,FALSE)*$AC39+VLOOKUP($Y40,'Fertilizer Products & Pricing'!$A$42:$O$55,8,FALSE)*$AC40+VLOOKUP($Y41,'Fertilizer Products & Pricing'!$A$42:$O$55,8,FALSE)*$AC41+VLOOKUP($Y38,'Fertilizer Products & Pricing'!$A$42:$O$55,8,FALSE)*$AC38","v":0},{"$f":"VLOOKUP($Y39,'Fertilizer Products & Pricing'!$A$42:$O$55,9,FALSE)*$AC39+VLOOKUP($Y40,'Fertilizer Products & Pricing'!$A$42:$O$55,9,FALSE)*$AC40+VLOOKUP($Y41,'Fertilizer Products & Pricing'!$A$42:$O$55,9,FALSE)*$AC41+VLOOKUP($Y38,'Fertilizer Products & Pricing'!$A$42:$O$55,9,FALSE)*$AC38","v":0},{"$f":"VLOOKUP($Y39,'Fertilizer Products & Pricing'!$A$42:$O$55,10,FALSE)*$AC39+VLOOKUP($Y40,'Fertilizer Products & Pricing'!$A$42:$O$55,10,FALSE)*$AC40+VLOOKUP($Y41,'Fertilizer Products & Pricing'!$A$42:$O$55,10,FALSE)*$AC41+VLOOKUP($Y38,'Fertilizer Products & Pricing'!$A$42:$O$55,10,FALSE)*$AC38","v":0}]
["Micronutrients (drop down menu)",null,null,null,null,null,null,null,null,null,null,null,"Micronutrients (drop down menu)",null,null,null,null,null,null,null,null,null,null,null,"Micronutrients (drop down menu)"]
["None",{"$f":"VLOOKUP($A38,Micronutrients,14,FALSE)","v":"None"},{"$f":"VLOOKUP($A38,Micronutrients,15,FALSE)","v":0},{"$f":"VLOOKUP($A38,Micronutrients,13,FALSE)","v":1},0,{"$f":"VLOOKUP($A38,Micronutrients,12,FALSE)","v":0},{"$f":"(E38*VLOOKUP(A38,Micronutrients,11,FALSE)/D38)*C38","v":0},null,null,null,null,null,"None",{"$f":"VLOOKUP($M38,Micronutrients,14,FALSE)","v":"None"},{"$f":"VLOOKUP($M38,Micronutrients,15,FALSE)","v":0},{"$f":"VLOOKUP($M38,Micronutrients,13,FALSE)","v":1},0,{"$f":"VLOOKUP($M38,Micronutrients,12,FALSE)","v":0},{"$f":"(Q38*VLOOKUP(M38,Micronutrients,11,FALSE)/P38)*O38","v":0},null,null,null,null,null,"None",{"$f":"VLOOKUP(Y38,Micronutrients,14,FALSE)","v":"None"},{"$f":"VLOOKUP(Y38,Micronutrients,15,FALSE)","v":0},{"$f":"VLOOKUP(Y38,Micronutrients,13,FALSE)","v":1},0,{"$f":"VLOOKUP(Y38,Micronutrients,12,FALSE)","v":0},{"$f":"(AC38*VLOOKUP(Y38,Micronutrients,11,FALSE)/AB38)*AA38","v":0}]
["None",{"$f":"VLOOKUP($A39,Micronutrients,14,FALSE)","v":"None"},{"$f":"VLOOKUP($A39,Micronutrients,15,FALSE)","v":0},{"$f":"VLOOKUP($A39,Micronutrients,13,FALSE)","v":1},0,{"$f":"VLOOKUP($A39,Micronutrients,12,FALSE)","v":0},{"$f":"(E39*VLOOKUP(A39,Micronutrients,11,FALSE)/D39)*C39","v":0},null,null,null,null,null,"None",{"$f":"VLOOKUP($M39,Micronutrients,14,FALSE)","v":"None"},{"$f":"VLOOKUP($M39,Micronutrients,15,FALSE)","v":0},{"$f":"VLOOKUP($M39,Micronutrients,13,FALSE)","v":1},0,{"$f":"VLOOKUP($M39,Micronutrients,12,FALSE)","v":0},{"$f":"(Q39*VLOOKUP(M39,Micronutrients,11,FALSE)/P39)*O39","v":0},null,null,null,null,null,"None",{"$f":"VLOOKUP(Y39,Micronutrients,14,FALSE)","v":"None"},{"$f":"VLOOKUP(Y39,Micronutrients,15,FALSE)","v":0},{"$f":"VLOOKUP(Y39,Micronutrients,13,FALSE)","v":1},0,{"$f":"VLOOKUP(Y39,Micronutrients,12,FALSE)","v":0},{"$f":"(AC39*VLOOKUP(Y39,Micronutrients,11,FALSE)/AB39)*AA39","v":0}]
["None",{"$f":"VLOOKUP($A40,Micronutrients,14,FALSE)","v":"None"},{"$f":"VLOOKUP($A40,Micronutrients,15,FALSE)","v":0},{"$f":"VLOOKUP($A40,Micronutrients,13,FALSE)","v":1},0,{"$f":"VLOOKUP($A40,Micronutrients,12,FALSE)","v":0},{"$f":"(E40*VLOOKUP(A40,Micronutrients,11,FALSE)/D40)*C40","v":0},null,null,null,null,null,"None",{"$f":"VLOOKUP($M40,Micronutrients,14,FALSE)","v":"None"},{"$f":"VLOOKUP($M40,Micronutrients,15,FALSE)","v":0},{"$f":"VLOOKUP($M40,Micronutrients,13,FALSE)","v":1},0,{"$f":"VLOOKUP($M40,Micronutrients,12,FALSE)","v":0},{"$f":"(Q40*VLOOKUP(M40,Micronutrients,11,FALSE)/P40)*O40","v":0},null,null,null,null,null,"None",{"$f":"VLOOKUP(Y40,Micronutrients,14,FALSE)","v":"None"},{"$f":"VLOOKUP(Y40,Micronutrients,15,FALSE)","v":0},{"$f":"VLOOKUP(Y40,Micronutrients,13,FALSE)","v":1},0,{"$f":"VLOOKUP(Y40,Micronutrients,12,FALSE)","v":0},{"$f":"(AC40*VLOOKUP(Y40,Micronutrients,11,FALSE)/AB40)*AA40","v":0}]
["None",{"$f":"VLOOKUP($A41,Micronutrients,14,FALSE)","v":"None"},{"$f":"VLOOKUP($A41,Micronutrients,15,FALSE)","v":0},{"$f":"VLOOKUP($A41,Micronutrients,13,FALSE)","v":1},0,{"$f":"VLOOKUP($A41,Micronutrients,12,FALSE)","v":0},{"$f":"(E41*VLOOKUP(A41,Micronutrients,11,FALSE)/D41)*C41","v":0},null,null,null,null,null,"None",{"$f":"VLOOKUP($M41,Micronutrients,14,FALSE)","v":"None"},{"$f":"VLOOKUP($M41,Micronutrients,15,FALSE)","v":0},{"$f":"VLOOKUP($M41,Micronutrients,13,FALSE)","v":1},0,{"$f":"VLOOKUP($M41,Micronutrients,12,FALSE)","v":0},{"$f":"(Q41*VLOOKUP(M41,Micronutrients,11,FALSE)/P41)*O41","v":0},null,null,null,null,null,"None",{"$f":"VLOOKUP(Y41,Micronutrients,14,FALSE)","v":"None"},{"$f":"VLOOKUP(Y41,Micronutrients,15,FALSE)","v":0},{"$f":"VLOOKUP(Y41,Micronutrients,13,FALSE)","v":1},0,{"$f":"VLOOKUP(Y41,Micronutrients,12,FALSE)","v":0},{"$f":"(AC41*VLOOKUP(Y41,Micronutrients,11,FALSE)/AB41)*AA41","v":0}]
[]
["Nitrogen Stabilizers (drop down menu)",null,null,null,null,null,null,null,null,null,null,null,"Nitrogen Stabilizers (drop down menu)",null,null,null,null,null,null,null,null,null,null,null,"Nitrogen Stabilizers (drop down menu)"]
["None",{"$f":"VLOOKUP(A44,NitrogenStabilizers,14,FALSE)","v":"None"},{"$f":"VLOOKUP(A44,NitrogenStabilizers,15,FALSE)","v":0},{"$f":"VLOOKUP(A44,NitrogenStabilizers,13,FALSE)","v":1},0,{"$f":"VLOOKUP(A44,NitrogenStabilizers,12,FALSE)","v":0},{"$f":"(E44*VLOOKUP(A44,NitrogenStabilizers,11,FALSE)/D44)*C44","v":0},null,null,null,null,null,"None",{"$f":"VLOOKUP(M44,NitrogenStabilizers,14,FALSE)","v":"None"},{"$f":"VLOOKUP(M44,NitrogenStabilizers,15,FALSE)","v":0},{"$f":"VLOOKUP(M44,NitrogenStabilizers,13,FALSE)","v":1},0,{"$f":"VLOOKUP(M44,NitrogenStabilizers,12,FALSE)","v":0},{"$f":"(Q44*VLOOKUP(M44,NitrogenStabilizers,11,FALSE)/P44)*O44","v":0},null,null,null,null,null,"None",{"$f":"VLOOKUP(Y44,NitrogenStabilizers,14,FALSE)","v":"None"},{"$f":"VLOOKUP(Y44,NitrogenStabilizers,15,FALSE)","v":0},{"$f":"VLOOKUP(Y44,NitrogenStabilizers,13,FALSE)","v":1},0,{"$f":"VLOOKUP(Y44,NitrogenStabilizers,12,FALSE)","v":0},{"$f":"(AC44*VLOOKUP(Y44,NitrogenStabilizers,11,FALSE)/AB44)*AA44","v":0}]
["None",{"$f":"VLOOKUP(A45,NitrogenStabilizers,14,FALSE)","v":"None"},{"$f":"VLOOKUP(A45,NitrogenStabilizers,15,FALSE)","v":0},{"$f":"VLOOKUP(A45,NitrogenStabilizers,13,FALSE)","v":1},0,{"$f":"VLOOKUP(A45,NitrogenStabilizers,12,FALSE)","v":0},{"$f":"(E45*VLOOKUP(A45,NitrogenStabilizers,11,FALSE)/D45)*C45","v":0},null,null,null,"More",null,"None",{"$f":"VLOOKUP(M45,NitrogenStabilizers,14,FALSE)","v":"None"},{"$f":"VLOOKUP(M45,NitrogenStabilizers,15,FALSE)","v":0},{"$f":"VLOOKUP(M45,NitrogenStabilizers,13,FALSE)","v":1},0,{"$f":"VLOOKUP(M45,NitrogenStabilizers,12,FALSE)","v":0},{"$f":"(Q45*VLOOKUP(M45,NitrogenStabilizers,11,FALSE)/P45)*O45","v":0},null,null,null,"More",null,"None",{"$f":"VLOOKUP(Y45,NitrogenStabilizers,14,FALSE)","v":"None"},{"$f":"VLOOKUP(Y45,NitrogenStabilizers,15,FALSE)","v":0},{"$f":"VLOOKUP(Y45,NitrogenStabilizers,13,FALSE)","v":1},0,{"$f":"VLOOKUP(Y45,NitrogenStabilizers,12,FALSE)","v":0},{"$f":"(AC45*VLOOKUP(Y45,NitrogenStabilizers,11,FALSE)/AB45)*AA45","v":0},null,null,null,"More"]
["2nd Application Fertilizer Cost/Acre",null,null,null,null,null,{"$f":"SUM(G30:G45)","v":0},null,null,null,"Below",null,"2nd Application Fertilizer Cost/Acre",null,null,null,null,null,{"$f":"SUM(S30:S45)","v":0},null,null,null,"Below",null,"2nd Application Fertilizer Cost/Acre",null,null,null,null,null,{"$f":"SUM(AE30:AE45)","v":0},null,null,null,"Below"]
[null,null,null,null,null,null,null,null,null,null,"¯",null,null,null,null,null,null,null,null,null,null,null,"¯",null,null,null,null,null,null,null,null,null,null,null,"¯"]
["3rd Application (i.e., Side-Dress or Broadcast)",null,null,null,null,null,null,null,null,null,null,null,"3rd Application (i.e., Side-Dress or Broadcast)",null,null,null,null,null,null,null,null,null,null,null,"3rd Application (i.e., Side-Dress or Broadcast)"]
["Fertilizer Source","Purchase Units","Package Price (Gals, Lbs, etc.)","Units/Pkg","Rate/Acre","Units","Cost",null,null,null,null,null,"Fertilizer Source","Purchase Units","Package Price (Gals, Lbs, etc.)","Units/Pkg","Rate/Acre","Units","Cost",null,null,null,null,null,"Fertilizer Source","Purchase Units","Package Price (Gals, Lbs, etc.)","Units/Pkg","Rate/Acre","Units","Cost"]
["Macronutrients (drop down menu)",null,null,null,"(Enter Below)",null,null,null,"N","P","K",null,"Macronutrients (drop down menu)",null,null,null,"(Enter Below)",null,null,null,"N","P","K",null,"Macronutrients (drop down menu)",null,null,null,"(Enter Below)",null,null,null,"N","P","K"]
["None",{"$f":"VLOOKUP(A51,Macronutrients,14,FALSE)","v":"None"},{"$f":"VLOOKUP(A51,'Fertilizer Products & Pricing'!$A$4:$O$38,15,FALSE)","v":0},{"$f":"VLOOKUP($A51,Macronutrients,13,FALSE)","v":1},0,{"$f":"VLOOKUP($A51,Macronutrients,12,FALSE)","v":0},{"$f":"(E51*VLOOKUP(A51,Macronutrients,11,FALSE)/D51)*C51","v":0},null,{"$f":"VLOOKUP(A51,'Fertilizer Products & Pricing'!$A$4:$O$38,2,FALSE)*E51+VLOOKUP(A52,'Fertilizer Products & Pricing'!$A$4:$O$38,2,FALSE)*E52+VLOOKUP(A53,'Fertilizer Products & Pricing'!$A$4:$O$38,2,FALSE)*E53+VLOOKUP(A54,'Fertilizer Products & Pricing'!$A$4:$O$38,2,FALSE)*E54+VLOOKUP(A55,'Fertilizer Products & Pricing'!$A$4:$O$38,2,FALSE)*E55+VLOOKUP(A56,'Fertilizer Products & Pricing'!$A$4:$O$38,2,FALSE)*E56+VLOOKUP(A59,'Fertilizer Products & Pricing'!$A$42:$O$55,2,FALSE)*E59+VLOOKUP(A60,'Fertilizer Products & Pricing'!$A$42:$O$55,2,FALSE)*E60+VLOOKUP(A61,'Fertilizer Products & Pricing'!$A$42:$O$55,2,FALSE)*E61+VLOOKUP(A62,'Fertilizer Products & Pricing'!$A$42:$O$55,2,FALSE)*E62","v":0},{"$f":"VLOOKUP(A51,'Fertilizer Products & Pricing'!$A$4:$O$38,3,FALSE)*E51+VLOOKUP(A52,'Fertilizer Products & Pricing'!$A$4:$O$38,3,FALSE)*E52+VLOOKUP(A53,'Fertilizer Products & Pricing'!$A$4:$O$38,3,FALSE)*E53+VLOOKUP(A54,'Fertilizer Products & Pricing'!$A$4:$O$38,3,FALSE)*E54+VLOOKUP(A55,'Fertilizer Products & Pricing'!$A$4:$O$38,3,FALSE)*E55+VLOOKUP(A56,'Fertilizer Products & Pricing'!$A$4:$O$38,3,FALSE)*E56+VLOOKUP(A59,'Fertilizer Products & Pricing'!$A$42:$O$55,3,FALSE)*E59+VLOOKUP(A60,'Fertilizer Products & Pricing'!$A$42:$O$55,3,FALSE)*E60+VLOOKUP(A61,'Fertilizer Products & Pricing'!$A$42:$O$55,3,FALSE)*E61+VLOOKUP(A62,'Fertilizer Products & Pricing'!$A$42:$O$55,3,FALSE)*E62","v":0},{"$f":"VLOOKUP(A51,'Fertilizer Products & Pricing'!$A$4:$O$38,4,FALSE)*E51+VLOOKUP(A52,'Fertilizer Products & Pricing'!$A$4:$O$38,4,FALSE)*E52+VLOOKUP(A53,'Fertilizer Products & Pricing'!$A$4:$O$38,4,FALSE)*E53+VLOOKUP(A54,'Fertilizer Products & Pricing'!$A$4:$O$38,4,FALSE)*E54+VLOOKUP(A55,'Fertilizer Products & Pricing'!$A$4:$O$38,4,FALSE)*E55+VLOOKUP(A56,'Fertilizer Products & Pricing'!$A$4:$O$38,4,FALSE)*E56+VLOOKUP(A59,'Fertilizer Products & Pricing'!$A$42:$O$55,4,FALSE)*E59+VLOOKUP(A60,'Fertilizer Products & Pricing'!$A$42:$O$55,4,FALSE)*E60+VLOOKUP(A61,'Fertilizer Products & Pricing'!$A$42:$O$55,4,FALSE)*E61+VLOOKUP(A62,'Fertilizer Products & Pricing'!$A$42:$O$55,4,FALSE)*E62","v":0},null,"None",{"$f":"VLOOKUP(M51,Macronutrients,14,FALSE)","v":"None"},{"$f":"VLOOKUP(M51,'Fertilizer Products & Pricing'!$A$4:$O$38,15,FALSE)","v":0},{"$f":"VLOOKUP($M51,Macronutrients,13,FALSE)","v":1},0,{"$f":"VLOOKUP($M51,Macronutrients,12,FALSE)","v":0},{"$f":"(Q51*VLOOKUP(M51,Macronutrients,11,FALSE)/P51)*O51","v":0},null,{"$f":"VLOOKUP(M51,'Fertilizer Products & Pricing'!$A$4:$O$38,2,FALSE)*Q51+VLOOKUP(M52,'Fertilizer Products & Pricing'!$A$4:$O$38,2,FALSE)*Q52+VLOOKUP(M53,'Fertilizer Products & Pricing'!$A$4:$O$38,2,FALSE)*Q53+VLOOKUP(M54,'Fertilizer Products & Pricing'!$A$4:$O$38,2,FALSE)*Q54+VLOOKUP(M55,'Fertilizer Products & Pricing'!$A$4:$O$38,2,FALSE)*Q55+VLOOKUP(M56,'Fertilizer Products & Pricing'!$A$4:$O$38,2,FALSE)*Q56+VLOOKUP(M59,'Fertilizer Products & Pricing'!$A$42:$O$55,2,FALSE)*Q59+VLOOKUP(M60,'Fertilizer Products & Pricing'!$A$42:$O$55,2,FALSE)*Q60+VLOOKUP(M61,'Fertilizer Products & Pricing'!$A$42:$O$55,2,FALSE)*Q61+VLOOKUP(M62,'Fertilizer Products & Pricing'!$A$42:$O$55,2,FALSE)*Q62","v":0},{"$f":"VLOOKUP(M51,'Fertilizer Products & Pricing'!$A$4:$O$38,3,FALSE)*Q51+VLOOKUP(M52,'Fertilizer Products & Pricing'!$A$4:$O$38,3,FALSE)*Q52+VLOOKUP(M53,'Fertilizer Products & Pricing'!$A$4:$O$38,3,FALSE)*Q53+VLOOKUP(M54,'Fertilizer Products & Pricing'!$A$4:$O$38,3,FALSE)*Q54+VLOOKUP(M55,'Fertilizer Products & Pricing'!$A$4:$O$38,3,FALSE)*Q55+VLOOKUP(M56,'Fertilizer Products & Pricing'!$A$4:$O$38,3,FALSE)*Q56+VLOOKUP(M59,'Fertilizer Products & Pricing'!$A$42:$O$55,3,FALSE)*Q59+VLOOKUP(M60,'Fertilizer Products & Pricing'!$A$42:$O$55,3,FALSE)*Q60+VLOOKUP(M61,'Fertilizer Products & Pricing'!$A$42:$O$55,3,FALSE)*Q61+VLOOKUP(M62,'Fertilizer Products & Pricing'!$A$42:$O$55,3,FALSE)*Q62","v":0},{"$f":"VLOOKUP(M51,'Fertilizer Products & Pricing'!$A$4:$O$38,4,FALSE)*Q51+VLOOKUP(M52,'Fertilizer Products & Pricing'!$A$4:$O$38,4,FALSE)*Q52+VLOOKUP(M53,'Fertilizer Products & Pricing'!$A$4:$O$38,4,FALSE)*Q53+VLOOKUP(M54,'Fertilizer Products & Pricing'!$A$4:$O$38,4,FALSE)*Q54+VLOOKUP(M55,'Fertilizer Products & Pricing'!$A$4:$O$38,4,FALSE)*Q55+VLOOKUP(M56,'Fertilizer Products & Pricing'!$A$4:$O$38,4,FALSE)*Q56+VLOOKUP(M59,'Fertilizer Products & Pricing'!$A$42:$O$55,4,FALSE)*Q59+VLOOKUP(M60,'Fertilizer Products & Pricing'!$A$42:$O$55,4,FALSE)*Q60+VLOOKUP(M61,'Fertilizer Products & Pricing'!$A$42:$O$55,4,FALSE)*Q61+VLOOKUP(M62,'Fertilizer Products & Pricing'!$A$42:$O$55,4,FALSE)*Q62","v":0},null,"None",{"$f":"VLOOKUP(Y51,Macronutrients,14,FALSE)","v":"None"},{"$f":"VLOOKUP(Y51,'Fertilizer Products & Pricing'!$A$4:$O$38,15,FALSE)","v":0},{"$f":"VLOOKUP($Y51,Macronutrients,13,FALSE)","v":1},0,{"$f":"VLOOKUP($Y51,Macronutrients,12,FALSE)","v":0},{"$f":"(AC51*VLOOKUP(Y51,Macronutrients,11,FALSE)/AB51)*AA51","v":0},null,{"$f":"VLOOKUP(Y51,'Fertilizer Products & Pricing'!$A$4:$O$38,2,FALSE)*AC51+VLOOKUP(Y52,'Fertilizer Products & Pricing'!$A$4:$O$38,2,FALSE)*AC52+VLOOKUP(Y53,'Fertilizer Products & Pricing'!$A$4:$O$38,2,FALSE)*AC53+VLOOKUP(Y54,'Fertilizer Products & Pricing'!$A$4:$O$38,2,FALSE)*AC54+VLOOKUP(Y55,'Fertilizer Products & Pricing'!$A$4:$O$38,2,FALSE)*AC55+VLOOKUP(Y56,'Fertilizer Products & Pricing'!$A$4:$O$38,2,FALSE)*AC56+VLOOKUP(Y59,'Fertilizer Products & Pricing'!$A$42:$O$55,2,FALSE)*AC59+VLOOKUP(Y60,'Fertilizer Products & Pricing'!$A$42:$O$55,2,FALSE)*AC60+VLOOKUP(Y61,'Fertilizer Products & Pricing'!$A$42:$O$55,2,FALSE)*AC61+VLOOKUP(Y62,'Fertilizer Products & Pricing'!$A$42:$O$55,2,FALSE)*AC62","v":0},{"$f":"VLOOKUP(Y51,'Fertilizer Products & Pricing'!$A$4:$O$38,3,FALSE)*AC51+VLOOKUP(Y52,'Fertilizer Products & Pricing'!$A$4:$O$38,3,FALSE)*AC52+VLOOKUP(Y53,'Fertilizer Products & Pricing'!$A$4:$O$38,3,FALSE)*AC53+VLOOKUP(Y54,'Fertilizer Products & Pricing'!$A$4:$O$38,3,FALSE)*AC54+VLOOKUP(Y55,'Fertilizer Products & Pricing'!$A$4:$O$38,3,FALSE)*AC55+VLOOKUP(Y56,'Fertilizer Products & Pricing'!$A$4:$O$38,3,FALSE)*AC56+VLOOKUP(Y59,'Fertilizer Products & Pricing'!$A$42:$O$55,3,FALSE)*AC59+VLOOKUP(Y60,'Fertilizer Products & Pricing'!$A$42:$O$55,3,FALSE)*AC60+VLOOKUP(Y61,'Fertilizer Products & Pricing'!$A$42:$O$55,3,FALSE)*AC61+VLOOKUP(Y62,'Fertilizer Products & Pricing'!$A$42:$O$55,3,FALSE)*AC62","v":0},{"$f":"VLOOKUP(Y51,'Fertilizer Products & Pricing'!$A$4:$O$38,4,FALSE)*AC51+VLOOKUP(Y52,'Fertilizer Products & Pricing'!$A$4:$O$38,4,FALSE)*AC52+VLOOKUP(Y53,'Fertilizer Products & Pricing'!$A$4:$O$38,4,FALSE)*AC53+VLOOKUP(Y54,'Fertilizer Products & Pricing'!$A$4:$O$38,4,FALSE)*AC54+VLOOKUP(Y55,'Fertilizer Products & Pricing'!$A$4:$O$38,4,FALSE)*AC55+VLOOKUP(Y56,'Fertilizer Products & Pricing'!$A$4:$O$38,4,FALSE)*AC56+VLOOKUP(Y59,'Fertilizer Products & Pricing'!$A$42:$O$55,4,FALSE)*AC59+VLOOKUP(Y60,'Fertilizer Products & Pricing'!$A$42:$O$55,4,FALSE)*AC60+VLOOKUP(Y61,'Fertilizer Products & Pricing'!$A$42:$O$55,4,FALSE)*AC61+VLOOKUP(Y62,'Fertilizer Products & Pricing'!$A$42:$O$55,4,FALSE)*AC62","v":0}]
["None","None",{"$f":"VLOOKUP(A52,'Fertilizer Products & Pricing'!$A$4:$O$38,15,FALSE)","v":0},1,0,0,0,null,null,null,null,null,"None",{"$f":"VLOOKUP(M52,Macronutrients,14,FALSE)","v":"None"},{"$f":"VLOOKUP(M52,'Fertilizer Products & Pricing'!$A$4:$O$38,15,FALSE)","v":0},1,0,0,{"$f":"(Q52*VLOOKUP(M52,Macronutrients,11,FALSE)/P52)*O52","v":0},null,null,null,null,null,"None",{"$f":"VLOOKUP(Y52,Macronutrients,14,FALSE)","v":"None"},{"$f":"VLOOKUP(Y52,'Fertilizer Products & Pricing'!$A$4:$O$38,15,FALSE)","v":0},1,0,0,{"$f":"(AC52*VLOOKUP(Y52,Macronutrients,11,FALSE)/AB52)*AA52","v":0}]
["None","None",{"$f":"VLOOKUP(A53,'Fertilizer Products & Pricing'!$A$4:$O$38,15,FALSE)","v":0},1,0,0,0,null,"S","Ca","Mg",null,"None","None",{"$f":"VLOOKUP(M53,'Fertilizer Products & Pricing'!$A$4:$O$38,15,FALSE)","v":0},1,0,0,0,null,"S","Ca","Mg",null,"None","None",{"$f":"VLOOKUP(Y53,'Fertilizer Products & Pricing'!$A$4:$O$38,15,FALSE)","v":0},1,0,0,0,null,"S","Ca","Mg"]
["None","None",{"$f":"VLOOKUP(A54,'Fertilizer Products & Pricing'!$A$4:$O$38,15,FALSE)","v":0},1,0,0,0,null,{"$f":"VLOOKUP(A51,'Fertilizer Products & Pricing'!$A$4:$O$38,5,FALSE)*E51+VLOOKUP(A52,'Fertilizer Products & Pricing'!$A$4:$O$38,5,FALSE)*E52+VLOOKUP(A53,'Fertilizer Products & Pricing'!$A$4:$O$38,5,FALSE)*E53+VLOOKUP(A54,'Fertilizer Products & Pricing'!$A$4:$O$38,5,FALSE)*E54+VLOOKUP(A55,'Fertilizer Products & Pricing'!$A$4:$O$38,5,FALSE)*E55+VLOOKUP(A56,'Fertilizer Products & Pricing'!$A$4:$O$38,5,FALSE)*E56+VLOOKUP(A59,'Fertilizer Products & Pricing'!$A$42:$O$55,5,FALSE)*E59+VLOOKUP(A60,'Fertilizer Products & Pricing'!$A$42:$O$55,5,FALSE)*E60+VLOOKUP(A61,'Fertilizer Products & Pricing'!$A$42:$O$55,5,FALSE)*E61+VLOOKUP(A62,'Fertilizer Products & Pricing'!$A$42:$O$55,5,FALSE)*E62","v":0},{"$f":"VLOOKUP(A51,'Fertilizer Products & Pricing'!$A$4:$O$38,7,FALSE)*E51+VLOOKUP(A52,'Fertilizer Products & Pricing'!$A$4:$O$38,7,FALSE)*E52+VLOOKUP(A53,'Fertilizer Products & Pricing'!$A$4:$O$38,7,FALSE)*E53+VLOOKUP(A54,'Fertilizer Products & Pricing'!$A$4:$O$38,7,FALSE)*E54+VLOOKUP(A55,'Fertilizer Products & Pricing'!$A$4:$O$38,7,FALSE)*E55+VLOOKUP(A56,'Fertilizer Products & Pricing'!$A$4:$O$38,7,FALSE)*E56+VLOOKUP(A59,'Fertilizer Products & Pricing'!$A$42:$O$55,7,FALSE)*E59+VLOOKUP(A60,'Fertilizer Products & Pricing'!$A$42:$O$55,7,FALSE)*E60+VLOOKUP(A61,'Fertilizer Products & Pricing'!$A$42:$O$55,7,FALSE)*E61+VLOOKUP(A62,'Fertilizer Products & Pricing'!$A$42:$O$55,7,FALSE)*E62","v":0},{"$f":"VLOOKUP(A51,'Fertilizer Products & Pricing'!$A$4:$O$38,6,FALSE)*E51+VLOOKUP(A52,'Fertilizer Products & Pricing'!$A$4:$O$38,6,FALSE)*E52+VLOOKUP(A53,'Fertilizer Products & Pricing'!$A$4:$O$38,6,FALSE)*E53+VLOOKUP(A54,'Fertilizer Products & Pricing'!$A$4:$O$38,6,FALSE)*E54+VLOOKUP(A55,'Fertilizer Products & Pricing'!$A$4:$O$38,6,FALSE)*E55+VLOOKUP(A56,'Fertilizer Products & Pricing'!$A$4:$O$38,6,FALSE)*E56+VLOOKUP(A59,'Fertilizer Products & Pricing'!$A$42:$O$55,6,FALSE)*E59+VLOOKUP(A60,'Fertilizer Products & Pricing'!$A$42:$O$55,6,FALSE)*E60+VLOOKUP(A61,'Fertilizer Products & Pricing'!$A$42:$O$55,6,FALSE)*E61+VLOOKUP(A62,'Fertilizer Products & Pricing'!$A$42:$O$55,6,FALSE)*E62","v":0},null,"None","None",{"$f":"VLOOKUP(M54,'Fertilizer Products & Pricing'!$A$4:$O$38,15,FALSE)","v":0},1,0,0,0,null,{"$f":"VLOOKUP(M51,'Fertilizer Products & Pricing'!$A$4:$O$38,5,FALSE)*Q51+VLOOKUP(M52,'Fertilizer Products & Pricing'!$A$4:$O$38,5,FALSE)*Q52+VLOOKUP(M53,'Fertilizer Products & Pricing'!$A$4:$O$38,5,FALSE)*Q53+VLOOKUP(M54,'Fertilizer Products & Pricing'!$A$4:$O$38,5,FALSE)*Q54+VLOOKUP(M55,'Fertilizer Products & Pricing'!$A$4:$O$38,5,FALSE)*Q55+VLOOKUP(M56,'Fertilizer Products & Pricing'!$A$4:$O$38,5,FALSE)*Q56+VLOOKUP(M59,'Fertilizer Products & Pricing'!$A$42:$O$55,5,FALSE)*Q59+VLOOKUP(M60,'Fertilizer Products & Pricing'!$A$42:$O$55,5,FALSE)*Q60+VLOOKUP(M61,'Fertilizer Products & Pricing'!$A$42:$O$55,5,FALSE)*Q61+VLOOKUP(M62,'Fertilizer Products & Pricing'!$A$42:$O$55,5,FALSE)*Q62","v":0},{"$f":"VLOOKUP(M51,'Fertilizer Products & Pricing'!$A$4:$O$38,7,FALSE)*Q51+VLOOKUP(M52,'Fertilizer Products & Pricing'!$A$4:$O$38,7,FALSE)*Q52+VLOOKUP(M53,'Fertilizer Products & Pricing'!$A$4:$O$38,7,FALSE)*Q53+VLOOKUP(M54,'Fertilizer Products & Pricing'!$A$4:$O$38,7,FALSE)*Q54+VLOOKUP(M55,'Fertilizer Products & Pricing'!$A$4:$O$38,7,FALSE)*Q55+VLOOKUP(M56,'Fertilizer Products & Pricing'!$A$4:$O$38,7,FALSE)*Q56+VLOOKUP(M59,'Fertilizer Products & Pricing'!$A$42:$O$55,7,FALSE)*Q59+VLOOKUP(M60,'Fertilizer Products & Pricing'!$A$42:$O$55,7,FALSE)*Q60+VLOOKUP(M61,'Fertilizer Products & Pricing'!$A$42:$O$55,7,FALSE)*Q61+VLOOKUP(M62,'Fertilizer Products & Pricing'!$A$42:$O$55,7,FALSE)*Q62","v":0},{"$f":"VLOOKUP(M51,'Fertilizer Products & Pricing'!$A$4:$O$38,6,FALSE)*Q51+VLOOKUP(M52,'Fertilizer Products & Pricing'!$A$4:$O$38,6,FALSE)*Q52+VLOOKUP(M53,'Fertilizer Products & Pricing'!$A$4:$O$38,6,FALSE)*Q53+VLOOKUP(M54,'Fertilizer Products & Pricing'!$A$4:$O$38,6,FALSE)*Q54+VLOOKUP(M55,'Fertilizer Products & Pricing'!$A$4:$O$38,6,FALSE)*Q55+VLOOKUP(M56,'Fertilizer Products & Pricing'!$A$4:$O$38,6,FALSE)*Q56+VLOOKUP(M59,'Fertilizer Products & Pricing'!$A$42:$O$55,6,FALSE)*Q59+VLOOKUP(M60,'Fertilizer Products & Pricing'!$A$42:$O$55,6,FALSE)*Q60+VLOOKUP(M61,'Fertilizer Products & Pricing'!$A$42:$O$55,6,FALSE)*Q61+VLOOKUP(M62,'Fertilizer Products & Pricing'!$A$42:$O$55,6,FALSE)*Q62","v":0},null,"None","None",{"$f":"VLOOKUP(Y54,'Fertilizer Products & Pricing'!$A$4:$O$38,15,FALSE)","v":0},1,0,0,0,null,{"$f":"VLOOKUP(Y51,'Fertilizer Products & Pricing'!$A$4:$O$38,5,FALSE)*AC51+VLOOKUP(Y52,'Fertilizer Products & Pricing'!$A$4:$O$38,5,FALSE)*AC52+VLOOKUP(Y53,'Fertilizer Products & Pricing'!$A$4:$O$38,5,FALSE)*AC53+VLOOKUP(Y54,'Fertilizer Products & Pricing'!$A$4:$O$38,5,FALSE)*AC54+VLOOKUP(Y55,'Fertilizer Products & Pricing'!$A$4:$O$38,5,FALSE)*AC55+VLOOKUP(Y56,'Fertilizer Products & Pricing'!$A$4:$O$38,5,FALSE)*AC56+VLOOKUP(Y59,'Fertilizer Products & Pricing'!$A$42:$O$55,5,FALSE)*AC59+VLOOKUP(Y60,'Fertilizer Products & Pricing'!$A$42:$O$55,5,FALSE)*AC60+VLOOKUP(Y61,'Fertilizer Products & Pricing'!$A$42:$O$55,5,FALSE)*AC61+VLOOKUP(Y62,'Fertilizer Products & Pricing'!$A$42:$O$55,5,FALSE)*AC62","v":0},{"$f":"VLOOKUP(Y51,'Fertilizer Products & Pricing'!$A$4:$O$38,7,FALSE)*AC51+VLOOKUP(Y52,'Fertilizer Products & Pricing'!$A$4:$O$38,7,FALSE)*AC52+VLOOKUP(Y53,'Fertilizer Products & Pricing'!$A$4:$O$38,7,FALSE)*AC53+VLOOKUP(Y54,'Fertilizer Products & Pricing'!$A$4:$O$38,7,FALSE)*AC54+VLOOKUP(Y55,'Fertilizer Products & Pricing'!$A$4:$O$38,7,FALSE)*AC55+VLOOKUP(Y56,'Fertilizer Products & Pricing'!$A$4:$O$38,7,FALSE)*AC56+VLOOKUP(Y59,'Fertilizer Products & Pricing'!$A$42:$O$55,7,FALSE)*AC59+VLOOKUP(Y60,'Fertilizer Products & Pricing'!$A$42:$O$55,7,FALSE)*AC60+VLOOKUP(Y61,'Fertilizer Products & Pricing'!$A$42:$O$55,7,FALSE)*AC61+VLOOKUP(Y62,'Fertilizer Products & Pricing'!$A$42:$O$55,7,FALSE)*AC62","v":0},{"$f":"VLOOKUP(Y51,'Fertilizer Products & Pricing'!$A$4:$O$38,6,FALSE)*AC51+VLOOKUP(Y52,'Fertilizer Products & Pricing'!$A$4:$O$38,6,FALSE)*AC52+VLOOKUP(Y53,'Fertilizer Products & Pricing'!$A$4:$O$38,6,FALSE)*AC53+VLOOKUP(Y54,'Fertilizer Products & Pricing'!$A$4:$O$38,6,FALSE)*AC54+VLOOKUP(Y55,'Fertilizer Products & Pricing'!$A$4:$O$38,6,FALSE)*AC55+VLOOKUP(Y56,'Fertilizer Products & Pricing'!$A$4:$O$38,6,FALSE)*AC56+VLOOKUP(Y59,'Fertilizer Products & Pricing'!$A$42:$O$55,6,FALSE)*AC59+VLOOKUP(Y60,'Fertilizer Products & Pricing'!$A$42:$O$55,6,FALSE)*AC60+VLOOKUP(Y61,'Fertilizer Products & Pricing'!$A$42:$O$55,6,FALSE)*AC61+VLOOKUP(Y62,'Fertilizer Products & Pricing'!$A$42:$O$55,6,FALSE)*AC62","v":0}]
["None","None",{"$f":"VLOOKUP(A55,'Fertilizer Products & Pricing'!$A$4:$O$38,15,FALSE)","v":0},1,0,0,0,null,null,null,null,null,"None","None",{"$f":"VLOOKUP(M55,'Fertilizer Products & Pricing'!$A$4:$O$38,15,FALSE)","v":0},1,0,0,0,null,null,null,null,null,"None","None",{"$f":"VLOOKUP(Y55,'Fertilizer Products & Pricing'!$A$4:$O$38,15,FALSE)","v":0},1,0,0,0]
["None","None",{"$f":"VLOOKUP(A56,'Fertilizer Products & Pricing'!$A$4:$O$38,15,FALSE)","v":0},1,0,0,0,null,"Zn","B","Mn",null,"None","None",{"$f":"VLOOKUP(M56,'Fertilizer Products & Pricing'!$A$4:$O$38,15,FALSE)","v":0},1,0,0,0,null,"Zn","B","Mn",null,"None","None",{"$f":"VLOOKUP(Y56,'Fertilizer Products & Pricing'!$A$4:$O$38,15,FALSE)","v":0},1,0,0,0,null,"Zn","B","Mn"]
[null,null,null,null,null,null,null,null,{"$f":"VLOOKUP($A$60,'Fertilizer Products & Pricing'!$A$42:$O$55,8,FALSE)*$E$60+VLOOKUP($A$61,'Fertilizer Products & Pricing'!$A$42:$O$55,8,FALSE)*$E$61+VLOOKUP($A$62,'Fertilizer Products & Pricing'!$A$42:$O$55,8,FALSE)*$E$62+VLOOKUP($A$59,'Fertilizer Products & Pricing'!$A$42:$O$55,8,FALSE)*$E$59","v":0},{"$f":"VLOOKUP($A$60,'Fertilizer Products & Pricing'!$A$42:$O$55,9,FALSE)*$E$60+VLOOKUP($A$61,'Fertilizer Products & Pricing'!$A$42:$O$55,9,FALSE)*$E$61+VLOOKUP($A$62,'Fertilizer Products & Pricing'!$A$42:$O$55,9,FALSE)*$E$62+VLOOKUP($A$59,'Fertilizer Products & Pricing'!$A$42:$O$55,9,FALSE)*$E$59","v":0},{"$f":"VLOOKUP($A$60,'Fertilizer Products & Pricing'!$A$42:$O$55,10,FALSE)*$E$60+VLOOKUP($A$61,'Fertilizer Products & Pricing'!$A$42:$O$55,10,FALSE)*$E$61+VLOOKUP($A$62,'Fertilizer Products & Pricing'!$A$42:$O$55,10,FALSE)*$E$62+VLOOKUP($A$59,'Fertilizer Products & Pricing'!$A$42:$O$55,10,FALSE)*$E$59","v":0},null,null,null,null,null,null,null,null,null,{"$f":"VLOOKUP($M60,'Fertilizer Products & Pricing'!$A$42:$O$55,8,FALSE)*$Q60+VLOOKUP($M61,'Fertilizer Products & Pricing'!$A$42:$O$55,8,FALSE)*$Q61+VLOOKUP($M62,'Fertilizer Products & Pricing'!$A$42:$O$55,8,FALSE)*$Q62+VLOOKUP($M59,'Fertilizer Products & Pricing'!$A$42:$O$55,8,FALSE)*$Q59","v":0},{"$f":"VLOOKUP($M60,'Fertilizer Products & Pricing'!$A$42:$O$55,9,FALSE)*$Q60+VLOOKUP($M61,'Fertilizer Products & Pricing'!$A$42:$O$55,9,FALSE)*$Q61+VLOOKUP($M62,'Fertilizer Products & Pricing'!$A$42:$O$55,9,FALSE)*$Q62+VLOOKUP($M59,'Fertilizer Products & Pricing'!$A$42:$O$55,9,FALSE)*$Q59","v":0},{"$f":"VLOOKUP($M60,'Fertilizer Products & Pricing'!$A$42:$O$55,10,FALSE)*$Q60+VLOOKUP($M61,'Fertilizer Products & Pricing'!$A$42:$O$55,10,FALSE)*$Q61+VLOOKUP($M62,'Fertilizer Products & Pricing'!$A$42:$O$55,10,FALSE)*$Q62+VLOOKUP($M59,'Fertilizer Products & Pricing'!$A$42:$O$55,10,FALSE)*$Q59","v":0},null,null,null,null,null,null,null,null,null,{"$f":"VLOOKUP($Y60,'Fertilizer Products & Pricing'!$A$42:$O$55,8,FALSE)*$AC60+VLOOKUP($Y61,'Fertilizer Products & Pricing'!$A$42:$O$55,8,FALSE)*$AC61+VLOOKUP($Y62,'Fertilizer Products & Pricing'!$A$42:$O$55,8,FALSE)*$AC62+VLOOKUP($Y59,'Fertilizer Products & Pricing'!$A$42:$O$55,8,FALSE)*$AC59","v":0},{"$f":"VLOOKUP($Y60,'Fertilizer Products & Pricing'!$A$42:$O$55,9,FALSE)*$AC60+VLOOKUP($Y61,'Fertilizer Products & Pricing'!$A$42:$O$55,9,FALSE)*$AC61+VLOOKUP($Y62,'Fertilizer Products & Pricing'!$A$42:$O$55,9,FALSE)*$AC62+VLOOKUP($Y59,'Fertilizer Products & Pricing'!$A$42:$O$55,9,FALSE)*$AC59","v":0},{"$f":"VLOOKUP($Y60,'Fertilizer Products & Pricing'!$A$42:$O$55,10,FALSE)*$AC60+VLOOKUP($Y61,'Fertilizer Products & Pricing'!$A$42:$O$55,10,FALSE)*$AC61+VLOOKUP($Y62,'Fertilizer Products & Pricing'!$A$42:$O$55,10,FALSE)*$AC62+VLOOKUP($Y59,'Fertilizer Products & Pricing'!$A$42:$O$55,10,FALSE)*$AC59","v":0}]
["Micronutrients (drop down menu)",null,null,null,null,null,null,null,null,null,null,null,"Micronutrients (drop down menu)",null,null,null,null,null,null,null,null,null,null,null,"Micronutrients (drop down menu)"]
["None",{"$f":"VLOOKUP($A59,Micronutrients,14,FALSE)","v":"None"},{"$f":"VLOOKUP($A59,Micronutrients,15,FALSE)","v":0},{"$f":"VLOOKUP($A59,Micronutrients,13,FALSE)","v":1},0,{"$f":"VLOOKUP($A59,Micronutrients,12,FALSE)","v":0},{"$f":"(E59*VLOOKUP(A59,Micronutrients,11,FALSE)/D59)*C59","v":0},null,null,null,null,null,"None",{"$f":"VLOOKUP($M59,Micronutrients,14,FALSE)","v":"None"},{"$f":"VLOOKUP($M59,Micronutrients,15,FALSE)","v":0},{"$f":"VLOOKUP($M59,Micronutrients,13,FALSE)","v":1},0,{"$f":"VLOOKUP($M59,Micronutrients,12,FALSE)","v":0},{"$f":"(Q59*VLOOKUP(M59,Micronutrients,11,FALSE)/P59)*O59","v":0},null,null,null,null,null,"None",{"$f":"VLOOKUP(Y59,Micronutrients,14,FALSE)","v":"None"},{"$f":"VLOOKUP(Y59,Micronutrients,15,FALSE)","v":0},{"$f":"VLOOKUP(Y59,Micronutrients,13,FALSE)","v":1},0,{"$f":"VLOOKUP(Y59,Micronutrients,12,FALSE)","v":0},{"$f":"(AC59*VLOOKUP(Y59,Micronutrients,11,FALSE)/AB59)*AA59","v":0}]
["None",{"$f":"VLOOKUP($A60,Micronutrients,14,FALSE)","v":"None"},{"$f":"VLOOKUP($A60,Micronutrients,15,FALSE)","v":0},{"$f":"VLOOKUP($A60,Micronutrients,13,FALSE)","v":1},0,{"$f":"VLOOKUP($A60,Micronutrients,12,FALSE)","v":0},{"$f":"(E60*VLOOKUP(A60,Micronutrients,11,FALSE)/D60)*C60","v":0},null,null,null,null,null,"None",{"$f":"VLOOKUP($M60,Micronutrients,14,FALSE)","v":"None"},{"$f":"VLOOKUP($M60,Micronutrients,15,FALSE)","v":0},{"$f":"VLOOKUP($M60,Micronutrients,13,FALSE)","v":1},0,{"$f":"VLOOKUP($M60,Micronutrients,12,FALSE)","v":0},{"$f":"(Q60*VLOOKUP(M60,Micronutrients,11,FALSE)/P60)*O60","v":0},null,null,null,null,null,"None",{"$f":"VLOOKUP(Y60,Micronutrients,14,FALSE)","v":"None"},{"$f":"VLOOKUP(Y60,Micronutrients,15,FALSE)","v":0},{"$f":"VLOOKUP(Y60,Micronutrients,13,FALSE)","v":1},0,{"$f":"VLOOKUP(Y60,Micronutrients,12,FALSE)","v":0},{"$f":"(AC60*VLOOKUP(Y60,Micronutrients,11,FALSE)/AB60)*AA60","v":0}]
["None",{"$f":"VLOOKUP($A61,Micronutrients,14,FALSE)","v":"None"},{"$f":"VLOOKUP($A61,Micronutrients,15,FALSE)","v":0},{"$f":"VLOOKUP($A61,Micronutrients,13,FALSE)","v":1},0,{"$f":"VLOOKUP($A61,Micronutrients,12,FALSE)","v":0},{"$f":"(E61*VLOOKUP(A61,Micronutrients,11,FALSE)/D61)*C61","v":0},null,null,null,null,null,"None",{"$f":"VLOOKUP($M61,Micronutrients,14,FALSE)","v":"None"},{"$f":"VLOOKUP($M61,Micronutrients,15,FALSE)","v":0},{"$f":"VLOOKUP($M61,Micronutrients,13,FALSE)","v":1},0,{"$f":"VLOOKUP($M61,Micronutrients,12,FALSE)","v":0},{"$f":"(Q61*VLOOKUP(M61,Micronutrients,11,FALSE)/P61)*O61","v":0},null,null,null,null,null,"None",{"$f":"VLOOKUP(Y61,Micronutrients,14,FALSE)","v":"None"},{"$f":"VLOOKUP(Y61,Micronutrients,15,FALSE)","v":0},{"$f":"VLOOKUP(Y61,Micronutrients,13,FALSE)","v":1},0,{"$f":"VLOOKUP(Y61,Micronutrients,12,FALSE)","v":0},{"$f":"(AC61*VLOOKUP(Y61,Micronutrients,11,FALSE)/AB61)*AA61","v":0}]
["None",{"$f":"VLOOKUP($A62,Micronutrients,14,FALSE)","v":"None"},{"$f":"VLOOKUP($A62,Micronutrients,15,FALSE)","v":0},{"$f":"VLOOKUP($A62,Micronutrients,13,FALSE)","v":1},0,{"$f":"VLOOKUP($A62,Micronutrients,12,FALSE)","v":0},{"$f":"(E62*VLOOKUP(A62,Micronutrients,11,FALSE)/D62)*C62","v":0},null,null,null,null,null,"None",{"$f":"VLOOKUP($M62,Micronutrients,14,FALSE)","v":"None"},{"$f":"VLOOKUP($M62,Micronutrients,15,FALSE)","v":0},{"$f":"VLOOKUP($M62,Micronutrients,13,FALSE)","v":1},0,{"$f":"VLOOKUP($M62,Micronutrients,12,FALSE)","v":0},{"$f":"(Q62*VLOOKUP(M62,Micronutrients,11,FALSE)/P62)*O62","v":0},null,null,null,null,null,"None",{"$f":"VLOOKUP(Y62,Micronutrients,14,FALSE)","v":"None"},{"$f":"VLOOKUP(Y62,Micronutrients,15,FALSE)","v":0},{"$f":"VLOOKUP(Y62,Micronutrients,13,FALSE)","v":1},0,{"$f":"VLOOKUP(Y62,Micronutrients,12,FALSE)","v":0},{"$f":"(AC62*VLOOKUP(Y62,Micronutrients,11,FALSE)/AB62)*AA62","v":0}]
[]
["Nitrogen Stabilizers (drop down menu)",null,null,null,null,null,null,null,null,null,null,null,"Nitrogen Stabilizers (drop down menu)",null,null,null,null,null,null,null,null,null,null,null,"Nitrogen Stabilizers (drop down menu)"]
["None",{"$f":"VLOOKUP(A65,NitrogenStabilizers,14,FALSE)","v":"None"},{"$f":"VLOOKUP(A65,NitrogenStabilizers,15,FALSE)","v":0},{"$f":"VLOOKUP(A65,NitrogenStabilizers,13,FALSE)","v":1},0,{"$f":"VLOOKUP(A65,NitrogenStabilizers,12,FALSE)","v":0},{"$f":"(E65*VLOOKUP(A65,NitrogenStabilizers,11,FALSE)/D65)*C65","v":0},null,null,null,null,null,"None",{"$f":"VLOOKUP(M65,NitrogenStabilizers,14,FALSE)","v":"None"},{"$f":"VLOOKUP(M65,NitrogenStabilizers,15,FALSE)","v":0},{"$f":"VLOOKUP(M65,NitrogenStabilizers,13,FALSE)","v":1},0,{"$f":"VLOOKUP(M65,NitrogenStabilizers,12,FALSE)","v":0},{"$f":"(Q65*VLOOKUP(M65,NitrogenStabilizers,11,FALSE)/P65)*O65","v":0},null,null,null,null,null,"None",{"$f":"VLOOKUP(Y65,NitrogenStabilizers,14,FALSE)","v":"None"},{"$f":"VLOOKUP(Y65,NitrogenStabilizers,15,FALSE)","v":0},{"$f":"VLOOKUP(Y65,NitrogenStabilizers,13,FALSE)","v":1},0,{"$f":"VLOOKUP(Y65,NitrogenStabilizers,12,FALSE)","v":0},{"$f":"(AC65*VLOOKUP(Y65,NitrogenStabilizers,11,FALSE)/AB65)*AA65","v":0}]
["None",{"$f":"VLOOKUP(A66,NitrogenStabilizers,14,FALSE)","v":"None"},{"$f":"VLOOKUP(A66,NitrogenStabilizers,15,FALSE)","v":0},{"$f":"VLOOKUP(A66,NitrogenStabilizers,13,FALSE)","v":1},0,{"$f":"VLOOKUP(A66,NitrogenStabilizers,12,FALSE)","v":0},{"$f":"(E66*VLOOKUP(A66,NitrogenStabilizers,11,FALSE)/D66)*C66","v":0},null,null,null,null,null,"None",{"$f":"VLOOKUP(M66,NitrogenStabilizers,14,FALSE)","v":"None"},{"$f":"VLOOKUP(M66,NitrogenStabilizers,15,FALSE)","v":0},{"$f":"VLOOKUP(M66,NitrogenStabilizers,13,FALSE)","v":1},0,{"$f":"VLOOKUP(M66,NitrogenStabilizers,12,FALSE)","v":0},{"$f":"(Q66*VLOOKUP(M66,NitrogenStabilizers,11,FALSE)/P66)*O66","v":0},null,null,null,null,null,"None",{"$f":"VLOOKUP(Y66,NitrogenStabilizers,14,FALSE)","v":"None"},{"$f":"VLOOKUP(Y66,NitrogenStabilizers,15,FALSE)","v":0},{"$f":"VLOOKUP(Y66,NitrogenStabilizers,13,FALSE)","v":1},0,{"$f":"VLOOKUP(Y66,NitrogenStabilizers,12,FALSE)","v":0},{"$f":"(AC66*VLOOKUP(Y66,NitrogenStabilizers,11,FALSE)/AB66)*AA66","v":0}]
["3rd Application Fertilizer Cost/Acre",null,null,null,null,null,{"$f":"SUM(G51:G66)","v":0},null,null,null,null,null,"3rd Application Fertilizer Cost/Acre",null,null,null,null,null,{"$f":"SUM(S51:S66)","v":0},null,null,null,null,null,"3rd Application Fertilizer Cost/Acre",null,null,null,null,null,{"$f":"SUM(AE51:AE66)","v":0}]
[]
["Total Fertilizer Cost/Acre",null,null,null,null,null,{"$f":"G67+G46+G25","v":100.93750000000001},null,null,null,null,null,"Total Fertilizer Cost/Acre",null,null,null,null,null,{"$f":"S67+S46+S25","v":0},null,null,null,null,null,"Total Fertilizer Cost/Acre",null,null,null,null,null,{"$f":"AE67+AE46+AE25","v":0}]
[]
[null,null,null,null,"Total Nutrient Needs",null,null,null,null,null,null,null,null,null,null,null,"Total Nutrient Needs",null,null,null,null,null,null,null,null,null,null,null,"Total Nutrient Needs"]
[null,null,null,null,"Based on:","Soil Test Based Recs",null,null,"Total Fertilizer Program",null,null,null,null,null,null,null,"Based on:","Soil Test Based Recs",null,null,"Total Fertilizer Program",null,null,null,null,null,null,null,"Based on:","Soil Test Based Recs",null,null,"Total Fertilizer Program"]
["Farm Name",null,null,null,"N","P","K",null,"N","P","K",null,{"$f":"A73","v":"Farm Name"},null,null,null,"N","P","K",null,"N","P","K",null,{"$f":"A73","v":"Farm Name"},null,null,null,"N","P","K",null,"N","P","K"]
["Farm Tract",null,null,null,{"$f":"'Nutrient Management'!F55","v":0},{"$f":"'Nutrient Management'!G55","v":0},{"$f":"'Nutrient Management'!H55","v":165.1},null,{"$f":"I51+I30","v":0},{"$f":"J51+J30+J6","v":0},{"$f":"K51+K30+K6","v":165},null,{"$f":"A74","v":"Farm Tract"},null,null,null,{"$f":"'Nutrient Management'!F55","v":0},{"$f":"'Nutrient Management'!G55","v":0},{"$f":"'Nutrient Management'!H55","v":165.1},null,{"$f":"U51+U30","v":0},{"$f":"V51+V30+V6","v":0},{"$f":"W51+W30+W6","v":0},null,{"$f":"A74","v":"Farm Tract"},null,null,null,{"$f":"'Nutrient Management'!F55","v":0},{"$f":"'Nutrient Management'!G55","v":0},{"$f":"'Nutrient Management'!H55","v":165.1},null,{"$f":"AG51+AG30","v":0},{"$f":"AH51+AH30+AH6","v":0},{"$f":"AI51+AI30+AI6","v":0}]
["Farm Number",null,null,null,"S","Ca","Mg",null,"S","Ca","Mg",null,"Farm Number",null,null,null,"S","Ca","Mg",null,"S","Ca","Mg",null,"Farm Number",null,null,null,"S","Ca","Mg",null,"S","Ca","Mg"]
[null,null,null,null,{"$f":"'Nutrient Management'!F58","v":6.4},0,0,null,{"$f":"I54+I33+I9","v":6},{"$f":"J54+J33+J9","v":0},{"$f":"K54+K33+K9","v":0},null,null,null,null,null,{"$f":"'Nutrient Management'!F58","v":6.4},0,0,null,{"$f":"U54+U33+U9","v":0},{"$f":"V54+V33+V9","v":0},{"$f":"W54+W33+W9","v":0},null,null,null,null,null,{"$f":"'Nutrient Management'!F58","v":6.4},0,0,null,{"$f":"AG54+AG33+AG9","v":0},{"$f":"AH54+AH33+AH9","v":0},{"$f":"AI54+AI33+AI9","v":0}]
[null,null,null,null,"Zn","B","Mn",null,"Zn","B","Mn",null,null,null,null,null,"Zn","B","Mn",null,"Zn","B","Mn",null,null,null,null,null,"Zn","B","Mn",null,"Zn","B","Mn"]
[null,null,null,null,0,0,0,null,{"$f":"I57+I36+I12","v":0},{"$f":"J57+J36+J12","v":0},{"$f":"K57+K36+K12","v":0},null,null,null,null,null,0,0,0,null,{"$f":"U57+U36+U12","v":0},{"$f":"V57+V36+V12","v":0},{"$f":"W57+W36+W12","v":0},null,null,null,null,null,0,0,0,null,{"$f":"AG57+AG36+AG12","v":0},{"$f":"AH57+AH36+AH12","v":0},{"$f":"AI57+AI36+AI12","v":0}]
[null,null,null,null,"* from Nutrient Management tab",null,null,null,null,null,null,null,null,null,null,null,"* from Nutrient Management tab",null,null,null,null,null,null,null,null,null,null,null,"* from Nutrient Management tab"]

{"sheet":"Fertilizer Plan (Wheat)","index":9,"n_rows":79,"n_cols":35,"rows_kept":79,"cut":false,"hidden":false,"merged":[[0,0,0,10],[0,12,0,22],[0,24,0,34],[2,0,2,10],[2,12,2,22],[2,24,2,34],[1,0,1,10],[1,12,1,22],[1,24,1,34],[71,32,71,34],[71,8,71,10],[71,20,71,22],[26,0,26,10],[26,12,26,22],[26,24,26,34],[47,0,47,10],[47,12,47,22],[47,24,47,34],[70,4,70,6],[71,5,71,6],[70,16,70,18],[71,17,71,18],[70,28,70,30],[71,29,71,30]]}
["Wheat",null,null,null,null,null,null,null,null,null,null,null,"Wheat",null,null,null,null,null,null,null,null,null,null,null,"Wheat"]
["Comparison Plan 1",null,null,null,null,null,null,null,null,null,null,null,"Comparison Plan 2",null,null,null,null,null,null,null,null,null,null,null,"Comparison Plan 3"]
["1st Application (i.e., Pre-Plant or Broadcast Fertilizer)",null,null,null,null,null,null,null,null,null,null,null,"1st Application (i.e., Pre-Plant or Broadcast Fertilizer)",null,null,null,null,null,null,null,null,null,null,null,"1st Application (i.e., Pre-Plant or Broadcast Fertilizer)"]
["Fertilizer Source","Purchase Units","Package Price (Gals, Lbs, etc.)","Units/Pkg","Rate/Acre","Units","Cost",null,null,null,null,null,"Fertilizer Source","Purchase Units","Package Price (Gals, Lbs, etc.)","Units/Pkg","Rate/Acre","Units","Cost",null,null,null,null,null,"Fertilizer Source","Purchase Units","Package Price (Gals, Lbs, etc.)","Units/Pkg","Rate/Acre","Units","Cost"]
["Macronutrients (drop down menu)",null,null,null,"(Enter Below)",null,null,null,"N","P","K",null,"Macronutrients (drop down menu)",null,null,null,"(Enter Below)",null,null,null,"N","P","K",null,"Macronutrients (drop down menu)",null,null,null,"(Enter Below)",null,null,null,"N","P","K"]
["DAP (18-46-0)",{"$f":"VLOOKUP(A6,Macronutrients,14,FALSE)","v":"Tons"},{"$f":"VLOOKUP(A6,'Fertilizer Products & Pricing'!$A$4:$O$38,15,FALSE)","v":798},{"$f":"VLOOKUP($A6,Macronutrients,13,FALSE)","v":2000},75,{"$f":"VLOOKUP($A6,Macronutrients,12,FALSE)","v":"lbs"},{"$f":"(E6*VLOOKUP(A6,Macronutrients,11,FALSE)/D6)*C6","v":29.924999999999997},null,{"$f":"VLOOKUP(A6,'Fertilizer Products & Pricing'!$A$4:$O$38,2,FALSE)*E6+VLOOKUP(A7,'Fertilizer Products & Pricing'!$A$4:$O$38,2,FALSE)*E7+VLOOKUP(A8,'Fertilizer Products & Pricing'!$A$4:$O$38,2,FALSE)*E8+VLOOKUP(A9,'Fertilizer Products & Pricing'!$A$4:$O$38,2,FALSE)*E9+VLOOKUP(A10,'Fertilizer Products & Pricing'!$A$4:$O$38,2,FALSE)*E10+VLOOKUP(A11,'Fertilizer Products & Pricing'!$A$4:$O$38,2,FALSE)*E11+VLOOKUP(A14,'Fertilizer Products & Pricing'!$A$42:$O$55,2,FALSE)*E14+VLOOKUP(A15,'Fertilizer Products & Pricing'!$A$42:$O$55,2,FALSE)*E15+VLOOKUP(A16,'Fertilizer Products & Pricing'!$A$42:$O$55,2,FALSE)*E16+VLOOKUP(A17,'Fertilizer Products & Pricing'!$A$42:$O$55,2,FALSE)*E17","v":13.5},{"$f":"VLOOKUP(A6,'Fertilizer Products & Pricing'!$A$4:$O$38,3,FALSE)*E6+VLOOKUP(A7,'Fertilizer Products & Pricing'!$A$4:$O$38,3,FALSE)*E7+VLOOKUP(A8,'Fertilizer Products & Pricing'!$A$4:$O$38,3,FALSE)*E8+VLOOKUP(A9,'Fertilizer Products & Pricing'!$A$4:$O$38,3,FALSE)*E9+VLOOKUP(A10,'Fertilizer Products & Pricing'!$A$4:$O$38,3,FALSE)*E10+VLOOKUP(A11,'Fertilizer Products & Pricing'!$A$4:$O$38,3,FALSE)*E11+VLOOKUP(A14,'Fertilizer Products & Pricing'!$A$42:$O$55,3,FALSE)*E14+VLOOKUP(A15,'Fertilizer Products & Pricing'!$A$42:$O$55,3,FALSE)*E15+VLOOKUP(A16,'Fertilizer Products & Pricing'!$A$42:$O$55,3,FALSE)*E16+VLOOKUP(A17,'Fertilizer Products & Pricing'!$A$42:$O$55,3,FALSE)*E17","v":34.5},{"$f":"VLOOKUP(A6,'Fertilizer Products & Pricing'!$A$4:$O$38,4,FALSE)*E6+VLOOKUP(A7,'Fertilizer Products & Pricing'!$A$4:$O$38,4,FALSE)*E7+VLOOKUP(A8,'Fertilizer Products & Pricing'!$A$4:$O$38,4,FALSE)*E8+VLOOKUP(A9,'Fertilizer Products & Pricing'!$A$4:$O$38,4,FALSE)*E9+VLOOKUP(A10,'Fertilizer Products & Pricing'!$A$4:$O$38,4,FALSE)*E10+VLOOKUP(A11,'Fertilizer Products & Pricing'!$A$4:$O$38,4,FALSE)*E11+VLOOKUP(A14,'Fertilizer Products & Pricing'!$A$42:$O$55,4,FALSE)*E14+VLOOKUP(A15,'Fertilizer Products & Pricing'!$A$42:$O$55,4,FALSE)*E15+VLOOKUP(A16,'Fertilizer Products & Pricing'!$A$42:$O$55,4,FALSE)*E16+VLOOKUP(A17,'Fertilizer Products & Pricing'!$A$42:$O$55,4,FALSE)*E17","v":15},null,"None",{"$f":"VLOOKUP(M6,Macronutrients,14,FALSE)","v":"None"},{"$f":"VLOOKUP(M6,'Fertilizer Products & Pricing'!$A$4:$O$38,15,FALSE)","v":0},{"$f":"VLOOKUP($M6,Macronutrients,13,FALSE)","v":1},0,{"$f":"VLOOKUP($M6,Macronutrients,12,FALSE)","v":0},{"$f":"(Q6*VLOOKUP(M6,Macronutrients,11,FALSE)/P6)*O6","v":0},null,{"$f":"VLOOKUP(M6,'Fertilizer Products & Pricing'!$A$4:$O$38,2,FALSE)*Q6+VLOOKUP(M7,'Fertilizer Products & Pricing'!$A$4:$O$38,2,FALSE)*Q7+VLOOKUP(M8,'Fertilizer Products & Pricing'!$A$4:$O$38,2,FALSE)*Q8+VLOOKUP(M9,'Fertilizer Products & Pricing'!$A$4:$O$38,2,FALSE)*Q9+VLOOKUP(M10,'Fertilizer Products & Pricing'!$A$4:$O$38,2,FALSE)*Q10+VLOOKUP(M11,'Fertilizer Products & Pricing'!$A$4:$O$38,2,FALSE)*Q11+VLOOKUP(M14,'Fertilizer Products & Pricing'!$A$42:$O$55,2,FALSE)*Q14+VLOOKUP(M15,'Fertilizer Products & Pricing'!$A$42:$O$55,2,FALSE)*Q15+VLOOKUP(M16,'Fertilizer Products & Pricing'!$A$42:$O$55,2,FALSE)*Q16+VLOOKUP(M17,'Fertilizer Products & Pricing'!$A$42:$O$55,2,FALSE)*Q17+VLOOKUP($M20,'Fertilizer Products & Pricing'!$A$59:$O$67,2,FALSE)*Q20","v":0},{"$f":"VLOOKUP(M6,'Fertilizer Products & Pricing'!$A$4:$O$38,3,FALSE)*Q6+VLOOKUP(M7,'Fertilizer Products & Pricing'!$A$4:$O$38,3,FALSE)*Q7+VLOOKUP(M8,'Fertilizer Products & Pricing'!$A$4:$O$38,3,FALSE)*Q8+VLOOKUP(M9,'Fertilizer Products & Pricing'!$A$4:$O$38,3,FALSE)*Q9+VLOOKUP(M10,'Fertilizer Products & Pricing'!$A$4:$O$38,3,FALSE)*Q10+VLOOKUP(M11,'Fertilizer Products & Pricing'!$A$4:$O$38,3,FALSE)*Q11+VLOOKUP(M14,'Fertilizer Products & Pricing'!$A$42:$O$55,3,FALSE)*Q14+VLOOKUP(M15,'Fertilizer Products & Pricing'!$A$42:$O$55,3,FALSE)*Q15+VLOOKUP(M16,'Fertilizer Products & Pricing'!$A$42:$O$55,3,FALSE)*Q16+VLOOKUP(M17,'Fertilizer Products & Pricing'!$A$42:$O$55,3,FALSE)*Q17+VLOOKUP($M20,'Fertilizer Products & Pricing'!$A$59:$O$67,2,FALSE)*Q20","v":0},{"$f":"VLOOKUP(M6,'Fertilizer Products & Pricing'!$A$4:$O$38,4,FALSE)*Q6+VLOOKUP(M7,'Fertilizer Products & Pricing'!$A$4:$O$38,4,FALSE)*Q7+VLOOKUP(M8,'Fertilizer Products & Pricing'!$A$4:$O$38,4,FALSE)*Q8+VLOOKUP(M9,'Fertilizer Products & Pricing'!$A$4:$O$38,4,FALSE)*Q9+VLOOKUP(M10,'Fertilizer Products & Pricing'!$A$4:$O$38,4,FALSE)*Q10+VLOOKUP(M11,'Fertilizer Products & Pricing'!$A$4:$O$38,4,FALSE)*Q11+VLOOKUP(M14,'Fertilizer Products & Pricing'!$A$42:$O$55,4,FALSE)*Q14+VLOOKUP(M15,'Fertilizer Products & Pricing'!$A$42:$O$55,4,FALSE)*Q15+VLOOKUP(M16,'Fertilizer Products & Pricing'!$A$42:$O$55,4,FALSE)*Q16+VLOOKUP(M17,'Fertilizer Products & Pricing'!$A$42:$O$55,4,FALSE)*Q17+VLOOKUP($M20,'Fertilizer Products & Pricing'!$A$59:$O$67,2,FALSE)*Q20","v":0},null,"None",{"$f":"VLOOKUP(Y6,Macronutrients,14,FALSE)","v":"None"},{"$f":"VLOOKUP(Y6,'Fertilizer Products & Pricing'!$A$4:$O$38,15,FALSE)","v":0},{"$f":"VLOOKUP($Y6,Macronutrients,13,FALSE)","v":1},0,{"$f":"VLOOKUP($Y6,Macronutrients,12,FALSE)","v":0},{"$f":"(AC6*VLOOKUP(Y6,Macronutrients,11,FALSE)/AB6)*AA6","v":0},null,{"$f":"VLOOKUP(Y6,'Fertilizer Products & Pricing'!$A$4:$O$38,2,FALSE)*AC6+VLOOKUP(Y7,'Fertilizer Products & Pricing'!$A$4:$O$38,2,FALSE)*AC7+VLOOKUP(Y8,'Fertilizer Products & Pricing'!$A$4:$O$38,2,FALSE)*AC8+VLOOKUP(Y9,'Fertilizer Products & Pricing'!$A$4:$O$38,2,FALSE)*AC9+VLOOKUP(Y10,'Fertilizer Products & Pricing'!$A$4:$O$38,2,FALSE)*AC10+VLOOKUP(Y11,'Fertilizer Products & Pricing'!$A$4:$O$38,2,FALSE)*AC11+VLOOKUP(Y14,'Fertilizer Products & Pricing'!$A$42:$O$55,2,FALSE)*AC14+VLOOKUP(Y15,'Fertilizer Products & Pricing'!$A$42:$O$55,2,FALSE)*AC15+VLOOKUP(Y16,'Fertilizer Products & Pricing'!$A$42:$O$55,2,FALSE)*AC16+VLOOKUP(Y17,'Fertilizer Products & Pricing'!$A$42:$O$55,2,FALSE)*AC17+VLOOKUP($Y20,'Fertilizer Products & Pricing'!$A$59:$O$67,2,FALSE)*AC20","v":0},{"$f":"VLOOKUP(Y6,'Fertilizer Products & Pricing'!$A$4:$O$38,3,FALSE)*AC6+VLOOKUP(Y7,'Fertilizer Products & Pricing'!$A$4:$O$38,3,FALSE)*AC7+VLOOKUP(Y8,'Fertilizer Products & Pricing'!$A$4:$O$38,3,FALSE)*AC8+VLOOKUP(Y9,'Fertilizer Products & Pricing'!$A$4:$O$38,3,FALSE)*AC9+VLOOKUP(Y10,'Fertilizer Products & Pricing'!$A$4:$O$38,3,FALSE)*AC10+VLOOKUP(Y11,'Fertilizer Products & Pricing'!$A$4:$O$38,3,FALSE)*AC11+VLOOKUP(Y14,'Fertilizer Products & Pricing'!$A$42:$O$55,3,FALSE)*AC14+VLOOKUP(Y15,'Fertilizer Products & Pricing'!$A$42:$O$55,3,FALSE)*AC15+VLOOKUP(Y16,'Fertilizer Products & Pricing'!$A$42:$O$55,3,FALSE)*AC16+VLOOKUP(Y17,'Fertilizer Products & Pricing'!$A$42:$O$55,3,FALSE)*AC17+VLOOKUP($Y20,'Fertilizer Products & Pricing'!$A$59:$O$67,2,FALSE)*AC20","v":0},{"$f":"VLOOKUP(Y6,'Fertilizer Products & Pricing'!$A$4:$O$38,4,FALSE)*AC6+VLOOKUP(Y7,'Fertilizer Products & Pricing'!$A$4:$O$38,4,FALSE)*AC7+VLOOKUP(Y8,'Fertilizer Products & Pricing'!$A$4:$O$38,4,FALSE)*AC8+VLOOKUP(Y9,'Fertilizer Products & Pricing'!$A$4:$O$38,4,FALSE)*AC9+VLOOKUP(Y10,'Fertilizer Products & Pricing'!$A$4:$O$38,4,FALSE)*AC10+VLOOKUP(Y11,'Fertilizer Products & Pricing'!$A$4:$O$38,4,FALSE)*AC11+VLOOKUP(Y14,'Fertilizer Products & Pricing'!$A$42:$O$55,4,FALSE)*AC14+VLOOKUP(Y15,'Fertilizer Products & Pricing'!$A$42:$O$55,4,FALSE)*AC15+VLOOKUP(Y16,'Fertilizer Products & Pricing'!$A$42:$O$55,4,FALSE)*AC16+VLOOKUP(Y17,'Fertilizer Products & Pricing'!$A$42:$O$55,4,FALSE)*AC17+VLOOKUP($Y20,'Fertilizer Products & Pricing'!$A$59:$O$67,2,FALSE)*AC20","v":0}]
["Potash (0-0-60)","Tons",{"$f":"VLOOKUP(A7,'Fertilizer Products & Pricing'!$A$4:$O$38,15,FALSE)","v":690},2000,25,"lbs",8.625,null,null,null,null,null,"None",{"$f":"VLOOKUP(M7,Macronutrients,14,FALSE)","v":"None"},{"$f":"VLOOKUP(M7,'Fertilizer Products & Pricing'!$A$4:$O$38,15,FALSE)","v":0},1,0,0,{"$f":"(Q7*VLOOKUP(M7,Macronutrients,11,FALSE)/P7)*O7","v":0},null,null,null,null,null,"None","None",{"$f":"VLOOKUP(Y7,'Fertilizer Products & Pricing'!$A$4:$O$38,15,FALSE)","v":0},1,0,0,0]
["None","None",{"$f":"VLOOKUP(A8,'Fertilizer Products & Pricing'!$A$4:$O$38,15,FALSE)","v":0},1,0,0,0,null,"S","Ca","Mg",null,"None","None",{"$f":"VLOOKUP(M8,'Fertilizer Products & Pricing'!$A$4:$O$38,15,FALSE)","v":0},1,0,0,0,null,"S","Ca","Mg",null,"None","None",{"$f":"VLOOKUP(Y8,'Fertilizer Products & Pricing'!$A$4:$O$38,15,FALSE)","v":0},1,0,0,0,null,"S","Ca","Mg"]
["None","None",{"$f":"VLOOKUP(A9,'Fertilizer Products & Pricing'!$A$4:$O$38,15,FALSE)","v":0},1,0,0,0,null,{"$f":"VLOOKUP($A6,'Fertilizer Products & Pricing'!$A$4:$O$38,5,FALSE)*E6+VLOOKUP($A7,'Fertilizer Products & Pricing'!$A$4:$O$38,5,FALSE)*E7+VLOOKUP($A8,'Fertilizer Products & Pricing'!$A$4:$O$38,5,FALSE)*E8+VLOOKUP($A9,'Fertilizer Products & Pricing'!$A$4:$O$38,5,FALSE)*E9+VLOOKUP($A10,'Fertilizer Products & Pricing'!$A$4:$O$38,5,FALSE)*E10+VLOOKUP($A11,'Fertilizer Products & Pricing'!$A$4:$O$38,5,FALSE)*E11+VLOOKUP($A14,'Fertilizer Products & Pricing'!$A$42:$O$55,5,FALSE)*E14+VLOOKUP(A15,'Fertilizer Products & Pricing'!$A$42:$O$55,5,FALSE)*E15+VLOOKUP($A16,'Fertilizer Products & Pricing'!$A$42:$O$55,5,FALSE)*E16+VLOOKUP($A17,'Fertilizer Products & Pricing'!$A$42:$O$55,5,FALSE)*E17","v":0},{"$f":"VLOOKUP($A6,'Fertilizer Products & Pricing'!$A$4:$O$38,7,FALSE)*$E$6+VLOOKUP($A7,'Fertilizer Products & Pricing'!$A$4:$O$38,7,FALSE)*$E$7+VLOOKUP($A8,'Fertilizer Products & Pricing'!$A$4:$O$38,7,FALSE)*$E$8+VLOOKUP($A9,'Fertilizer Products & Pricing'!$A$4:$O$38,7,FALSE)*$E$9+VLOOKUP($A10,'Fertilizer Products & Pricing'!$A$4:$O$38,7,FALSE)*$E$10+VLOOKUP($A11,'Fertilizer Products & Pricing'!$A$4:$O$38,7,FALSE)*$E$11+VLOOKUP($A14,'Fertilizer Products & Pricing'!$A$42:$O$55,7,FALSE)*$E$14+VLOOKUP($A15,'Fertilizer Products & Pricing'!$A$42:$O$55,7,FALSE)*E15+VLOOKUP($A16,'Fertilizer Products & Pricing'!$A$42:$O$55,7,FALSE)*$E$16+VLOOKUP($A17,'Fertilizer Products & Pricing'!$A$42:$O$55,7,FALSE)*$E$17+VLOOKUP($A20,'Fertilizer Products & Pricing'!$A$59:$O$67,7,FALSE)*E20","v":0},{"$f":"VLOOKUP($A6,'Fertilizer Products & Pricing'!$A$4:$O$38,6,FALSE)*$E$6+VLOOKUP($A7,'Fertilizer Products & Pricing'!$A$4:$O$38,6,FALSE)*$E$7+VLOOKUP($A8,'Fertilizer Products & Pricing'!$A$4:$O$38,6,FALSE)*$E$8+VLOOKUP($A9,'Fertilizer Products & Pricing'!$A$4:$O$38,6,FALSE)*$E$9+VLOOKUP($A10,'Fertilizer Products & Pricing'!$A$4:$O$38,6,FALSE)*$E$10+VLOOKUP($A11,'Fertilizer Products & Pricing'!$A$4:$O$38,6,FALSE)*$E$11+VLOOKUP($A14,'Fertilizer Products & Pricing'!$A$42:$O$55,6,FALSE)*$E$14+VLOOKUP($A15,'Fertilizer Products & Pricing'!$A$42:$O$55,6,FALSE)*$E$15+VLOOKUP($A16,'Fertilizer Products & Pricing'!$A$42:$O$55,6,FALSE)*$E$16+VLOOKUP(A$17,'Fertilizer Products & Pricing'!$A$42:$O$55,6,FALSE)*$E$17+VLOOKUP($A20,'Fertilizer Products & Pricing'!$A$59:$O$67,6,FALSE)*E20","v":0},null,"None","None",{"$f":"VLOOKUP(M9,'Fertilizer Products & Pricing'!$A$4:$O$38,15,FALSE)","v":0},1,0,0,0,null,{"$f":"VLOOKUP($M6,'Fertilizer Products & Pricing'!$A$4:$O$38,5,FALSE)*Q6+VLOOKUP($M7,'Fertilizer Products & Pricing'!$A$4:$O$38,5,FALSE)*Q7+VLOOKUP($M8,'Fertilizer Products & Pricing'!$A$4:$O$38,5,FALSE)*Q8+VLOOKUP($M9,'Fertilizer Products & Pricing'!$A$4:$O$38,5,FALSE)*Q9+VLOOKUP($M10,'Fertilizer Products & Pricing'!$A$4:$O$38,5,FALSE)*Q10+VLOOKUP($M11,'Fertilizer Products & Pricing'!$A$4:$O$38,5,FALSE)*Q11+VLOOKUP($M14,'Fertilizer Products & Pricing'!$A$42:$O$55,5,FALSE)*Q14+VLOOKUP(M15,'Fertilizer Products & Pricing'!$A$42:$O$55,5,FALSE)*Q15+VLOOKUP($M16,'Fertilizer Products & Pricing'!$A$42:$O$55,5,FALSE)*Q16+VLOOKUP($M17,'Fertilizer Products & Pricing'!$A$42:$O$55,5,FALSE)*Q17+VLOOKUP($M20,'Fertilizer Products & Pricing'!$A$59:$O$67,2,FALSE)*Q20","v":0},{"$f":"VLOOKUP($M6,'Fertilizer Products & Pricing'!$A$4:$O$38,7,FALSE)*$Q$6+VLOOKUP($M7,'Fertilizer Products & Pricing'!$A$4:$O$38,7,FALSE)*$Q$7+VLOOKUP($M8,'Fertilizer Products & Pricing'!$A$4:$O$38,7,FALSE)*$Q$8+VLOOKUP($M9,'Fertilizer Products & Pricing'!$A$4:$O$38,7,FALSE)*$Q$9+VLOOKUP($M10,'Fertilizer Products & Pricing'!$A$4:$O$38,7,FALSE)*$Q$10+VLOOKUP($M11,'Fertilizer Products & Pricing'!$A$4:$O$38,7,FALSE)*$Q$11+VLOOKUP($M14,'Fertilizer Products & Pricing'!$A$42:$O$55,7,FALSE)*$Q$14+VLOOKUP($M15,'Fertilizer Products & Pricing'!$A$42:$O$55,7,FALSE)*Q15+VLOOKUP($M16,'Fertilizer Products & Pricing'!$A$42:$O$55,7,FALSE)*$Q$16+VLOOKUP($M17,'Fertilizer Products & Pricing'!$A$42:$O$55,7,FALSE)*$Q$17+VLOOKUP($M20,'Fertilizer Products & Pricing'!$A$59:$O$67,7,FALSE)*Q20","v":0},{"$f":"VLOOKUP($M6,'Fertilizer Products & Pricing'!$A$4:$O$38,6,FALSE)*$Q$6+VLOOKUP($M7,'Fertilizer Products & Pricing'!$A$4:$O$38,6,FALSE)*$Q$7+VLOOKUP($M8,'Fertilizer Products & Pricing'!$A$4:$O$38,6,FALSE)*$Q$8+VLOOKUP($M9,'Fertilizer Products & Pricing'!$A$4:$O$38,6,FALSE)*$Q$9+VLOOKUP($M10,'Fertilizer Products & Pricing'!$A$4:$O$38,6,FALSE)*$Q$10+VLOOKUP($M11,'Fertilizer Products & Pricing'!$A$4:$O$38,6,FALSE)*$Q$11+VLOOKUP($M14,'Fertilizer Products & Pricing'!$A$42:$O$55,6,FALSE)*$Q$14+VLOOKUP($M15,'Fertilizer Products & Pricing'!$A$42:$O$55,6,FALSE)*$Q$15+VLOOKUP($M16,'Fertilizer Products & Pricing'!$A$42:$O$55,6,FALSE)*$Q$16+VLOOKUP(M$17,'Fertilizer Products & Pricing'!$A$42:$O$55,6,FALSE)*$Q$17+VLOOKUP($M20,'Fertilizer Products & Pricing'!$A$59:$O$67,6,FALSE)*Q20","v":0},null,"None","None",{"$f":"VLOOKUP(Y9,'Fertilizer Products & Pricing'!$A$4:$O$38,15,FALSE)","v":0},1,0,0,0,null,{"$f":"VLOOKUP($Y6,'Fertilizer Products & Pricing'!$A$4:$O$38,5,FALSE)*AC6+VLOOKUP($Y7,'Fertilizer Products & Pricing'!$A$4:$O$38,5,FALSE)*AC7+VLOOKUP($Y8,'Fertilizer Products & Pricing'!$A$4:$O$38,5,FALSE)*AC8+VLOOKUP($Y9,'Fertilizer Products & Pricing'!$A$4:$O$38,5,FALSE)*AC9+VLOOKUP($Y10,'Fertilizer Products & Pricing'!$A$4:$O$38,5,FALSE)*AC10+VLOOKUP($Y11,'Fertilizer Products & Pricing'!$A$4:$O$38,5,FALSE)*AC11+VLOOKUP($Y14,'Fertilizer Products & Pricing'!$A$42:$O$55,5,FALSE)*AC14+VLOOKUP(Y15,'Fertilizer Products & Pricing'!$A$42:$O$55,5,FALSE)*AC15+VLOOKUP($Y16,'Fertilizer Products & Pricing'!$A$42:$O$55,5,FALSE)*AC16+VLOOKUP($Y17,'Fertilizer Products & Pricing'!$A$42:$O$55,5,FALSE)*AC17+VLOOKUP($Y20,'Fertilizer Products & Pricing'!$A$59:$O$67,2,FALSE)*AC20","v":0},{"$f":"VLOOKUP($Y6,'Fertilizer Products & Pricing'!$A$4:$O$38,7,FALSE)*$AC$6+VLOOKUP($Y7,'Fertilizer Products & Pricing'!$A$4:$O$38,7,FALSE)*$AC$7+VLOOKUP($Y8,'Fertilizer Products & Pricing'!$A$4:$O$38,7,FALSE)*$AC$8+VLOOKUP($Y9,'Fertilizer Products & Pricing'!$A$4:$O$38,7,FALSE)*$AC$9+VLOOKUP($Y10,'Fertilizer Products & Pricing'!$A$4:$O$38,7,FALSE)*$AC$10+VLOOKUP($Y11,'Fertilizer Products & Pricing'!$A$4:$O$38,7,FALSE)*$AC$11+VLOOKUP($Y14,'Fertilizer Products & Pricing'!$A$42:$O$55,7,FALSE)*$AC$14+VLOOKUP($Y15,'Fertilizer Products & Pricing'!$A$42:$O$55,7,FALSE)*AC15+VLOOKUP($Y16,'Fertilizer Products & Pricing'!$A$42:$O$55,7,FALSE)*$AC$16+VLOOKUP($Y17,'Fertilizer Products & Pricing'!$A$42:$O$55,7,FALSE)*$AC$17+VLOOKUP($Y20,'Fertilizer Products & Pricing'!$A$59:$O$67,7,FALSE)*AC20","v":0},{"$f":"VLOOKUP($Y6,'Fertilizer Products & Pricing'!$A$4:$O$38,6,FALSE)*$AC$6+VLOOKUP($Y7,'Fertilizer Products & Pricing'!$A$4:$O$38,6,FALSE)*$AC$7+VLOOKUP($Y8,'Fertilizer Products & Pricing'!$A$4:$O$38,6,FALSE)*$AC$8+VLOOKUP($Y9,'Fertilizer Products & Pricing'!$A$4:$O$38,6,FALSE)*$AC$9+VLOOKUP($Y10,'Fertilizer Products & Pricing'!$A$4:$O$38,6,FALSE)*$AC$10+VLOOKUP($Y11,'Fertilizer Products & Pricing'!$A$4:$O$38,6,FALSE)*$AC$11+VLOOKUP($Y14,'Fertilizer Products & Pricing'!$A$42:$O$55,6,FALSE)*$AC$14+VLOOKUP($Y15,'Fertilizer Products & Pricing'!$A$42:$O$55,6,FALSE)*$AC$15+VLOOKUP($Y16,'Fertilizer Products & Pricing'!$A$42:$O$55,6,FALSE)*$AC$16+VLOOKUP(Y$17,'Fertilizer Products & Pricing'!$A$42:$O$55,6,FALSE)*$AC$17+VLOOKUP($Y20,'Fertilizer Products & Pricing'!$A$59:$O$67,6,FALSE)*AC20","v":0}]
["None","None",{"$f":"VLOOKUP(A10,'Fertilizer Products & Pricing'!$A$4:$O$38,15,FALSE)","v":0},1,0,0,0,null,null,null,null,null,"None","None",{"$f":"VLOOKUP(M10,'Fertilizer Products & Pricing'!$A$4:$O$38,15,FALSE)","v":0},1,0,0,0,null,null,null,null,null,"None","None",{"$f":"VLOOKUP(Y10,'Fertilizer Products & Pricing'!$A$4:$O$38,15,FALSE)","v":0},1,0,0,0]
["None","None",{"$f":"VLOOKUP(A11,'Fertilizer Products & Pricing'!$A$4:$O$38,15,FALSE)","v":0},1,0,0,0,null,"Zn","B","Mn",null,"None","None",{"$f":"VLOOKUP(M11,'Fertilizer Products & Pricing'!$A$4:$O$38,15,FALSE)","v":0},1,0,0,0,null,"Zn","B","Mn",null,"None","None",{"$f":"VLOOKUP(Y11,'Fertilizer Products & Pricing'!$A$4:$O$38,15,FALSE)","v":0},1,0,0,0,null,"Zn","B","Mn"]
[null,null,null,null,null,null,null,null,{"$f":"VLOOKUP($A$15,'Fertilizer Products & Pricing'!$A$42:$O$55,8,FALSE)*$E$15+VLOOKUP($A$16,'Fertilizer Products & Pricing'!$A$42:$O$55,8,FALSE)*$E$16+VLOOKUP($A$17,'Fertilizer Products & Pricing'!$A$42:$O$55,8,FALSE)*$E$17+VLOOKUP($A$14,'Fertilizer Products & Pricing'!$A$42:$O$55,8,FALSE)*$E$14+VLOOKUP($A20,'Fertilizer Products & Pricing'!$A$59:$O$67,2,FALSE)*E20","v":0},{"$f":"VLOOKUP($A$15,'Fertilizer Products & Pricing'!$A$42:$O$55,9,FALSE)*$E$15+VLOOKUP($A$16,'Fertilizer Products & Pricing'!$A$42:$O$55,9,FALSE)*$E$16+VLOOKUP($A$17,'Fertilizer Products & Pricing'!$A$42:$O$55,9,FALSE)*$E$17+VLOOKUP($A$14,'Fertilizer Products & Pricing'!$A$42:$O$55,9,FALSE)*$E$14+VLOOKUP($A20,'Fertilizer Products & Pricing'!$A$59:$O$67,2,FALSE)*E20","v":0},{"$f":"VLOOKUP($A$15,'Fertilizer Products & Pricing'!$A$42:$O$55,10,FALSE)*$E$15+VLOOKUP($A$16,'Fertilizer Products & Pricing'!$A$42:$O$55,10,FALSE)*$E$16+VLOOKUP($A$17,'Fertilizer Products & Pricing'!$A$42:$O$55,10,FALSE)*$E$17+VLOOKUP($A$14,'Fertilizer Products & Pricing'!$A$42:$O$55,10,FALSE)*$E$14+VLOOKUP($A20,'Fertilizer Products & Pricing'!$A$59:$O$67,2,FALSE)*E20","v":0},null,null,null,null,null,null,null,null,null,{"$f":"VLOOKUP($M15,'Fertilizer Products & Pricing'!$A$42:$O$55,8,FALSE)*$Q15+VLOOKUP($M16,'Fertilizer Products & Pricing'!$A$42:$O$55,8,FALSE)*$Q16+VLOOKUP($M17,'Fertilizer Products & Pricing'!$A$42:$O$55,8,FALSE)*$Q17+VLOOKUP($M14,'Fertilizer Products & Pricing'!$A$42:$O$55,8,FALSE)*$Q14+VLOOKUP($M20,'Fertilizer Products & Pricing'!$A$59:$O$67,2,FALSE)*Q20","v":0},{"$f":"VLOOKUP($M15,'Fertilizer Products & Pricing'!$A$42:$O$55,9,FALSE)*$Q15+VLOOKUP($M16,'Fertilizer Products & Pricing'!$A$42:$O$55,9,FALSE)*$Q16+VLOOKUP($M17,'Fertilizer Products & Pricing'!$A$42:$O$55,9,FALSE)*$Q17+VLOOKUP($M14,'Fertilizer Products & Pricing'!$A$42:$O$55,9,FALSE)*$Q14+VLOOKUP($M20,'Fertilizer Products & Pricing'!$A$59:$O$67,2,FALSE)*Q20","v":0},{"$f":"VLOOKUP($M15,'Fertilizer Products & Pricing'!$A$42:$O$55,10,FALSE)*$Q15+VLOOKUP($M16,'Fertilizer Products & Pricing'!$A$42:$O$55,10,FALSE)*$Q16+VLOOKUP($M17,'Fertilizer Products & Pricing'!$A$42:$O$55,10,FALSE)*$Q17+VLOOKUP($M14,'Fertilizer Products & Pricing'!$A$42:$O$55,10,FALSE)*$Q14+VLOOKUP($M20,'Fertilizer Products & Pricing'!$A$59:$O$67,2,FALSE)*Q20","v":0},null,null,null,null,null,null,null,null,null,{"$f":"VLOOKUP($Y15,'Fertilizer Products & Pricing'!$A$42:$O$55,8,FALSE)*$AC15+VLOOKUP($Y16,'Fertilizer Products & Pricing'!$A$42:$O$55,8,FALSE)*$AC16+VLOOKUP($Y17,'Fertilizer Products & Pricing'!$A$42:$O$55,8,FALSE)*$AC17+VLOOKUP($Y14,'Fertilizer Products & Pricing'!$A$42:$O$55,8,FALSE)*$AC14+VLOOKUP($Y20,'Fertilizer Products & Pricing'!$A$59:$O$67,2,FALSE)*AC20","v":0},{"$f":"VLOOKUP($Y15,'Fertilizer Products & Pricing'!$A$42:$O$55,9,FALSE)*$AC15+VLOOKUP($Y16,'Fertilizer Products & Pricing'!$A$42:$O$55,9,FALSE)*$AC16+VLOOKUP($Y17,'Fertilizer Products & Pricing'!$A$42:$O$55,9,FALSE)*$AC17+VLOOKUP($Y14,'Fertilizer Products & Pricing'!$A$42:$O$55,9,FALSE)*$AC14+VLOOKUP($Y20,'Fertilizer Products & Pricing'!$A$59:$O$67,2,FALSE)*AC20","v":0},{"$f":"VLOOKUP($Y15,'Fertilizer Products & Pricing'!$A$42:$O$55,10,FALSE)*$AC15+VLOOKUP($Y16,'Fertilizer Products & Pricing'!$A$42:$O$55,10,FALSE)*$AC16+VLOOKUP($Y17,'Fertilizer Products & Pricing'!$A$42:$O$55,10,FALSE)*$AC17+VLOOKUP($Y14,'Fertilizer Products & Pricing'!$A$42:$O$55,10,FALSE)*$AC14+VLOOKUP($Y20,'Fertilizer Products & Pricing'!$A$59:$O$67,2,FALSE)*AC20","v":0}]
["Micronutrients (drop down menu)",null,null,null,null,null,null,null,null,null,null,null,"Micronutrients (drop down menu)",null,null,null,null,null,null,null,null,null,null,null,"Micronutrients (drop down menu)"]
["None",{"$f":"VLOOKUP($A14,Micronutrients,14,FALSE)","v":"None"},{"$f":"VLOOKUP($A14,Micronutrients,15,FALSE)","v":0},{"$f":"VLOOKUP($A14,Micronutrients,13,FALSE)","v":1},0,{"$f":"VLOOKUP($A14,Micronutrients,12,FALSE)","v":0},{"$f":"(E14*VLOOKUP(A14,Micronutrients,11,FALSE)/D14)*C14","v":0},null,null,null,null,null,"None",{"$f":"VLOOKUP(M14,Micronutrients,14,FALSE)","v":"None"},{"$f":"VLOOKUP(M14,Micronutrients,15,FALSE)","v":0},{"$f":"VLOOKUP(M14,Micronutrients,13,FALSE)","v":1},0,{"$f":"VLOOKUP(M14,Micronutrients,12,FALSE)","v":0},{"$f":"(Q14*VLOOKUP(M14,Micronutrients,11,FALSE)/P14)*O14","v":0},null,null,null,null,null,"None",{"$f":"VLOOKUP(Y14,Micronutrients,14,FALSE)","v":"None"},{"$f":"VLOOKUP(Y14,Micronutrients,15,FALSE)","v":0},{"$f":"VLOOKUP(Y14,Micronutrients,13,FALSE)","v":1},0,{"$f":"VLOOKUP(Y14,Micronutrients,12,FALSE)","v":0},{"$f":"(AC14*VLOOKUP(Y14,Micronutrients,11,FALSE)/AB14)*AA14","v":0}]
["None",{"$f":"VLOOKUP($A15,Micronutrients,14,FALSE)","v":"None"},{"$f":"VLOOKUP($A15,Micronutrients,15,FALSE)","v":0},{"$f":"VLOOKUP($A15,Micronutrients,13,FALSE)","v":1},0,{"$f":"VLOOKUP($A15,Micronutrients,12,FALSE)","v":0},{"$f":"(E15*VLOOKUP(A15,Micronutrients,11,FALSE)/D15)*C15","v":0},null,null,null,null,null,"None",{"$f":"VLOOKUP(M15,Micronutrients,14,FALSE)","v":"None"},{"$f":"VLOOKUP(M15,Micronutrients,15,FALSE)","v":0},{"$f":"VLOOKUP(M15,Micronutrients,13,FALSE)","v":1},0,{"$f":"VLOOKUP(M15,Micronutrients,12,FALSE)","v":0},{"$f":"(Q15*VLOOKUP(M15,Micronutrients,11,FALSE)/P15)*O15","v":0},null,null,null,null,null,"None",{"$f":"VLOOKUP(Y15,Micronutrients,14,FALSE)","v":"None"},{"$f":"VLOOKUP(Y15,Micronutrients,15,FALSE)","v":0},{"$f":"VLOOKUP(Y15,Micronutrients,13,FALSE)","v":1},0,{"$f":"VLOOKUP(Y15,Micronutrients,12,FALSE)","v":0},{"$f":"(AC15*VLOOKUP(Y15,Micronutrients,11,FALSE)/AB15)*AA15","v":0}]
["None",{"$f":"VLOOKUP($A16,Micronutrients,14,FALSE)","v":"None"},{"$f":"VLOOKUP($A16,Micronutrients,15,FALSE)","v":0},{"$f":"VLOOKUP($A16,Micronutrients,13,FALSE)","v":1},0,{"$f":"VLOOKUP($A16,Micronutrients,12,FALSE)","v":0},{"$f":"(E16*VLOOKUP(A16,Micronutrients,11,FALSE)/D16)*C16","v":0},null,null,null,null,null,"None",{"$f":"VLOOKUP(M16,Micronutrients,14,FALSE)","v":"None"},{"$f":"VLOOKUP(M16,Micronutrients,15,FALSE)","v":0},{"$f":"VLOOKUP(M16,Micronutrients,13,FALSE)","v":1},0,{"$f":"VLOOKUP(M16,Micronutrients,12,FALSE)","v":0},{"$f":"(Q16*VLOOKUP(M16,Micronutrients,11,FALSE)/P16)*O16","v":0},null,null,null,null,null,"None",{"$f":"VLOOKUP(Y16,Micronutrients,14,FALSE)","v":"None"},{"$f":"VLOOKUP(Y16,Micronutrients,15,FALSE)","v":0},{"$f":"VLOOKUP(Y16,Micronutrients,13,FALSE)","v":1},0,{"$f":"VLOOKUP(Y16,Micronutrients,12,FALSE)","v":0},{"$f":"(AC16*VLOOKUP(Y16,Micronutrients,11,FALSE)/AB16)*AA16","v":0}]
["None",{"$f":"VLOOKUP($A17,Micronutrients,14,FALSE)","v":"None"},{"$f":"VLOOKUP($A17,Micronutrients,15,FALSE)","v":0},{"$f":"VLOOKUP($A17,Micronutrients,13,FALSE)","v":1},0,{"$f":"VLOOKUP($A17,Micronutrients,12,FALSE)","v":0},{"$f":"(E17*VLOOKUP(A17,Micronutrients,11,FALSE)/D17)*C17","v":0},null,null,null,null,null,"None",{"$f":"VLOOKUP(M17,Micronutrients,14,FALSE)","v":"None"},{"$f":"VLOOKUP(M17,Micronutrients,15,FALSE)","v":0},{"$f":"VLOOKUP(M17,Micronutrients,13,FALSE)","v":1},0,{"$f":"VLOOKUP(M17,Micronutrients,12,FALSE)","v":0},{"$f":"(Q17*VLOOKUP(M17,Micronutrients,11,FALSE)/P17)*O17","v":0},null,null,null,null,null,"None",{"$f":"VLOOKUP(Y17,Micronutrients,14,FALSE)","v":"None"},{"$f":"VLOOKUP(Y17,Micronutrients,15,FALSE)","v":0},{"$f":"VLOOKUP(Y17,Micronutrients,13,FALSE)","v":1},0,{"$f":"VLOOKUP(Y17,Micronutrients,12,FALSE)","v":0},{"$f":"(AC17*VLOOKUP(Y17,Micronutrients,11,FALSE)/AB17)*AA17","v":0}]
[]
["Lime (drop down menu)",null,null,null,null,null,null,null,null,null,null,null,"Lime (drop down menu)",null,null,null,null,null,null,null,null,null,null,null,"Lime (drop down menu)"]
["None",{"$f":"VLOOKUP(A20,Lime,14,FALSE)","v":"None"},{"$f":"VLOOKUP(A20,Lime,15,FALSE)","v":0},{"$f":"VLOOKUP(A20,Lime,13,FALSE)","v":1},0,{"$f":"VLOOKUP(A20,Lime,12,FALSE)","v":0},{"$f":"(E20*VLOOKUP(A20,Lime,11,FALSE)/D20)*C20","v":0},null,null,null,null,null,"None",{"$f":"VLOOKUP(M20,Lime,14,FALSE)","v":"None"},{"$f":"VLOOKUP(M20,Lime,15,FALSE)","v":0},{"$f":"VLOOKUP(M20,Lime,13,FALSE)","v":1},0,{"$f":"VLOOKUP(M20,Lime,12,FALSE)","v":0},{"$f":"(Q20*VLOOKUP(M20,Lime,11,FALSE)/P20)*O20","v":0},null,null,null,null,null,"None",{"$f":"VLOOKUP(Y20,Lime,14,FALSE)","v":"None"},{"$f":"VLOOKUP(Y20,Lime,15,FALSE)","v":0},{"$f":"VLOOKUP(Y20,Lime,13,FALSE)","v":1},0,{"$f":"VLOOKUP(Y20,Lime,12,FALSE)","v":0},{"$f":"(AC20*VLOOKUP(Y20,Lime,11,FALSE)/AB20)*AA20","v":0}]
[]
["Nitrogen Stabilizers (drop down menu)",null,null,null,null,null,null,null,null,null,null,null,"Nitrogen Stabilizers (drop down menu)",null,null,null,null,null,null,null,null,null,null,null,"Nitrogen Stabilizers (drop down menu)"]
["None",{"$f":"VLOOKUP(A23,NitrogenStabilizers,14,FALSE)","v":"None"},{"$f":"VLOOKUP(A23,NitrogenStabilizers,15,FALSE)","v":0},{"$f":"VLOOKUP(A23,NitrogenStabilizers,13,FALSE)","v":1},0,{"$f":"VLOOKUP(A23,NitrogenStabilizers,12,FALSE)","v":0},{"$f":"(E23*VLOOKUP(A23,NitrogenStabilizers,11,FALSE)/D23)*C23","v":0},null,null,null,null,null,"None",{"$f":"VLOOKUP(M23,NitrogenStabilizers,14,FALSE)","v":"None"},{"$f":"VLOOKUP(M23,NitrogenStabilizers,15,FALSE)","v":0},{"$f":"VLOOKUP(M23,NitrogenStabilizers,13,FALSE)","v":1},0,{"$f":"VLOOKUP(M23,NitrogenStabilizers,12,FALSE)","v":0},{"$f":"(Q23*VLOOKUP(M23,NitrogenStabilizers,11,FALSE)/P23)*O23","v":0},null,null,null,null,null,"None",{"$f":"VLOOKUP(Y23,NitrogenStabilizers,14,FALSE)","v":"None"},{"$f":"VLOOKUP(Y23,NitrogenStabilizers,15,FALSE)","v":0},{"$f":"VLOOKUP(Y23,NitrogenStabilizers,13,FALSE)","v":1},0,{"$f":"VLOOKUP(Y23,NitrogenStabilizers,12,FALSE)","v":0},{"$f":"(AC23*VLOOKUP(Y23,NitrogenStabilizers,11,FALSE)/AB23)*AA23","v":0}]
["None",{"$f":"VLOOKUP(A24,NitrogenStabilizers,14,FALSE)","v":"None"},{"$f":"VLOOKUP(A24,NitrogenStabilizers,15,FALSE)","v":0},{"$f":"VLOOKUP(A24,NitrogenStabilizers,13,FALSE)","v":1},0,{"$f":"VLOOKUP(A24,NitrogenStabilizers,12,FALSE)","v":0},{"$f":"(E24*VLOOKUP(A24,NitrogenStabilizers,11,FALSE)/D24)*C24","v":0},null,null,null,"More",null,"None",{"$f":"VLOOKUP(M24,NitrogenStabilizers,14,FALSE)","v":"None"},{"$f":"VLOOKUP(M24,NitrogenStabilizers,15,FALSE)","v":0},{"$f":"VLOOKUP(M24,NitrogenStabilizers,13,FALSE)","v":1},0,{"$f":"VLOOKUP(M24,NitrogenStabilizers,12,FALSE)","v":0},{"$f":"(Q24*VLOOKUP(M24,NitrogenStabilizers,11,FALSE)/P24)*O24","v":0},null,null,null,"More",null,"None",{"$f":"VLOOKUP(Y24,NitrogenStabilizers,14,FALSE)","v":"None"},{"$f":"VLOOKUP(Y24,NitrogenStabilizers,15,FALSE)","v":0},{"$f":"VLOOKUP(Y24,NitrogenStabilizers,13,FALSE)","v":1},0,{"$f":"VLOOKUP(Y24,NitrogenStabilizers,12,FALSE)","v":0},{"$f":"(AC24*VLOOKUP(Y24,NitrogenStabilizers,11,FALSE)/AB24)*AA24","v":0},null,null,null,"More"]
["1st Application Fertilizer Cost/Acre",null,null,null,null,null,{"$f":"SUM(G6:G24)","v":38.549999999999997},null,null,null,"Below",null,"1st Application Fertilizer Cost/Acre",null,null,null,null,null,{"$f":"SUM(S6:S24)","v":0},null,null,null,"Below",null,"1st Application Fertilizer Cost/Acre",null,null,null,null,null,{"$f":"SUM(AE6:AE24)","v":0},null,null,null,"Below"]
[null,null,null,null,null,null,null,null,null,null,"¯",null,null,null,null,null,null,null,null,null,null,null,"¯",null,null,null,null,null,null,null,null,null,null,null,"¯"]
["2nd Application (i.e., Starter Fertilizer or Broadcast)",null,null,null,null,null,null,null,null,null,null,null,"2nd Application (i.e., Starter Fertilizer or Broadcast)",null,null,null,null,null,null,null,null,null,null,null,"2nd Application (i.e., Starter Fertilizer or Broadcast)"]
["Fertilizer Source","Purchase Units","Package Price (Gals, Lbs, etc.)","Units/Pkg","Rate/Acre","Units","Cost",null,null,null,null,null,"Fertilizer Source","Purchase Units","Package Price (Gals, Lbs, etc.)","Units/Pkg","Rate/Acre","Units","Cost",null,null,null,null,null,"Fertilizer Source","Purchase Units","Package Price (Gals, Lbs, etc.)","Units/Pkg","Rate/Acre","Units","Cost"]
["Macronutrients (drop down menu)",null,null,null,"(Enter Below)",null,null,null,"N","P","K",null,"Macronutrients (drop down menu)",null,null,null,"(Enter Below)",null,null,null,"N","P","K",null,"Macronutrients (drop down menu)",null,null,null,"(Enter Below)",null,null,null,"N","P","K"]
["Urea (46-0-0)",{"$f":"VLOOKUP(A30,Macronutrients,14,FALSE)","v":"Tons"},{"$f":"VLOOKUP(A30,'Fertilizer Products & Pricing'!$A$4:$O$38,15,FALSE)","v":750},{"$f":"VLOOKUP($A30,Macronutrients,13,FALSE)","v":2000},105,{"$f":"VLOOKUP($A30,Macronutrients,12,FALSE)","v":"lbs"},{"$f":"(E30*VLOOKUP(A30,Macronutrients,11,FALSE)/D30)*C30","v":39.375},null,{"$f":"VLOOKUP(A30,'Fertilizer Products & Pricing'!$A$4:$O$38,2,FALSE)*E30+VLOOKUP(A31,'Fertilizer Products & Pricing'!$A$4:$O$38,2,FALSE)*E31+VLOOKUP(A32,'Fertilizer Products & Pricing'!$A$4:$O$38,2,FALSE)*E32+VLOOKUP(A33,'Fertilizer Products & Pricing'!$A$4:$O$38,2,FALSE)*E33+VLOOKUP(A34,'Fertilizer Products & Pricing'!$A$4:$O$38,2,FALSE)*E34+VLOOKUP(A35,'Fertilizer Products & Pricing'!$A$4:$O$38,2,FALSE)*E35+VLOOKUP(A38,'Fertilizer Products & Pricing'!$A$42:$O$55,2,FALSE)*E38+VLOOKUP(A39,'Fertilizer Products & Pricing'!$A$42:$O$55,2,FALSE)*E39+VLOOKUP(A40,'Fertilizer Products & Pricing'!$A$42:$O$55,2,FALSE)*E40+VLOOKUP(A41,'Fertilizer Products & Pricing'!$A$42:$O$55,2,FALSE)*E41","v":55.650000000000006},{"$f":"VLOOKUP(A30,'Fertilizer Products & Pricing'!$A$4:$O$38,3,FALSE)*E30+VLOOKUP(A31,'Fertilizer Products & Pricing'!$A$4:$O$38,3,FALSE)*E31+VLOOKUP(A32,'Fertilizer Products & Pricing'!$A$4:$O$38,3,FALSE)*E32+VLOOKUP(A33,'Fertilizer Products & Pricing'!$A$4:$O$38,3,FALSE)*E33+VLOOKUP(A34,'Fertilizer Products & Pricing'!$A$4:$O$38,3,FALSE)*E34+VLOOKUP(A35,'Fertilizer Products & Pricing'!$A$4:$O$38,3,FALSE)*E35+VLOOKUP(A38,'Fertilizer Products & Pricing'!$A$42:$O$55,3,FALSE)*E38+VLOOKUP(A39,'Fertilizer Products & Pricing'!$A$42:$O$55,3,FALSE)*E39+VLOOKUP(A40,'Fertilizer Products & Pricing'!$A$42:$O$55,3,FALSE)*E40+VLOOKUP(A41,'Fertilizer Products & Pricing'!$A$42:$O$55,3,FALSE)*E41","v":0},{"$f":"VLOOKUP(A30,'Fertilizer Products & Pricing'!$A$4:$O$38,4,FALSE)*E30+VLOOKUP(A31,'Fertilizer Products & Pricing'!$A$4:$O$38,4,FALSE)*E31+VLOOKUP(A32,'Fertilizer Products & Pricing'!$A$4:$O$38,4,FALSE)*E32+VLOOKUP(A33,'Fertilizer Products & Pricing'!$A$4:$O$38,4,FALSE)*E33+VLOOKUP(A34,'Fertilizer Products & Pricing'!$A$4:$O$38,4,FALSE)*E34+VLOOKUP(A35,'Fertilizer Products & Pricing'!$A$4:$O$38,4,FALSE)*E35+VLOOKUP(A38,'Fertilizer Products & Pricing'!$A$42:$O$55,4,FALSE)*E38+VLOOKUP(A39,'Fertilizer Products & Pricing'!$A$42:$O$55,4,FALSE)*E39+VLOOKUP(A40,'Fertilizer Products & Pricing'!$A$42:$O$55,4,FALSE)*E40+VLOOKUP(A41,'Fertilizer Products & Pricing'!$A$42:$O$55,4,FALSE)*E41","v":0},null,"None",{"$f":"VLOOKUP(M30,Macronutrients,14,FALSE)","v":"None"},{"$f":"VLOOKUP(M30,'Fertilizer Products & Pricing'!$A$4:$O$38,15,FALSE)","v":0},{"$f":"VLOOKUP($M30,Macronutrients,13,FALSE)","v":1},0,{"$f":"VLOOKUP($M30,Macronutrients,12,FALSE)","v":0},{"$f":"(Q30*VLOOKUP(M30,Macronutrients,11,FALSE)/P30)*O30","v":0},null,{"$f":"VLOOKUP(M30,'Fertilizer Products & Pricing'!$A$4:$O$38,2,FALSE)*Q30+VLOOKUP(M31,'Fertilizer Products & Pricing'!$A$4:$O$38,2,FALSE)*Q31+VLOOKUP(M32,'Fertilizer Products & Pricing'!$A$4:$O$38,2,FALSE)*Q32+VLOOKUP(M33,'Fertilizer Products & Pricing'!$A$4:$O$38,2,FALSE)*Q33+VLOOKUP(M34,'Fertilizer Products & Pricing'!$A$4:$O$38,2,FALSE)*Q34+VLOOKUP(M35,'Fertilizer Products & Pricing'!$A$4:$O$38,2,FALSE)*Q35+VLOOKUP(M38,'Fertilizer Products & Pricing'!$A$42:$O$55,2,FALSE)*Q38+VLOOKUP(M39,'Fertilizer Products & Pricing'!$A$42:$O$55,2,FALSE)*Q39+VLOOKUP(M40,'Fertilizer Products & Pricing'!$A$42:$O$55,2,FALSE)*Q40+VLOOKUP(M41,'Fertilizer Products & Pricing'!$A$42:$O$55,2,FALSE)*Q41","v":0},{"$f":"VLOOKUP(M30,'Fertilizer Products & Pricing'!$A$4:$O$38,3,FALSE)*Q30+VLOOKUP(M31,'Fertilizer Products & Pricing'!$A$4:$O$38,3,FALSE)*Q31+VLOOKUP(M32,'Fertilizer Products & Pricing'!$A$4:$O$38,3,FALSE)*Q32+VLOOKUP(M33,'Fertilizer Products & Pricing'!$A$4:$O$38,3,FALSE)*Q33+VLOOKUP(M34,'Fertilizer Products & Pricing'!$A$4:$O$38,3,FALSE)*Q34+VLOOKUP(M35,'Fertilizer Products & Pricing'!$A$4:$O$38,3,FALSE)*Q35+VLOOKUP(M38,'Fertilizer Products & Pricing'!$A$42:$O$55,3,FALSE)*Q38+VLOOKUP(M39,'Fertilizer Products & Pricing'!$A$42:$O$55,3,FALSE)*Q39+VLOOKUP(M40,'Fertilizer Products & Pricing'!$A$42:$O$55,3,FALSE)*Q40+VLOOKUP(M41,'Fertilizer Products & Pricing'!$A$42:$O$55,3,FALSE)*Q41","v":0},{"$f":"VLOOKUP(M30,'Fertilizer Products & Pricing'!$A$4:$O$38,4,FALSE)*Q30+VLOOKUP(M31,'Fertilizer Products & Pricing'!$A$4:$O$38,4,FALSE)*Q31+VLOOKUP(M32,'Fertilizer Products & Pricing'!$A$4:$O$38,4,FALSE)*Q32+VLOOKUP(M33,'Fertilizer Products & Pricing'!$A$4:$O$38,4,FALSE)*Q33+VLOOKUP(M34,'Fertilizer Products & Pricing'!$A$4:$O$38,4,FALSE)*Q34+VLOOKUP(M35,'Fertilizer Products & Pricing'!$A$4:$O$38,4,FALSE)*Q35+VLOOKUP(M38,'Fertilizer Products & Pricing'!$A$42:$O$55,4,FALSE)*Q38+VLOOKUP(M39,'Fertilizer Products & Pricing'!$A$42:$O$55,4,FALSE)*Q39+VLOOKUP(M40,'Fertilizer Products & Pricing'!$A$42:$O$55,4,FALSE)*Q40+VLOOKUP(M41,'Fertilizer Products & Pricing'!$A$42:$O$55,4,FALSE)*Q41","v":0},null,"None",{"$f":"VLOOKUP(Y30,Macronutrients,14,FALSE)","v":"None"},{"$f":"VLOOKUP(Y30,'Fertilizer Products & Pricing'!$A$4:$O$38,15,FALSE)","v":0},{"$f":"VLOOKUP($Y30,Macronutrients,13,FALSE)","v":1},0,{"$f":"VLOOKUP($Y30,Macronutrients,12,FALSE)","v":0},{"$f":"(AC30*VLOOKUP(Y30,Macronutrients,11,FALSE)/AB30)*AA30","v":0},null,{"$f":"VLOOKUP(Y30,'Fertilizer Products & Pricing'!$A$4:$O$38,2,FALSE)*AC30+VLOOKUP(Y31,'Fertilizer Products & Pricing'!$A$4:$O$38,2,FALSE)*AC31+VLOOKUP(Y32,'Fertilizer Products & Pricing'!$A$4:$O$38,2,FALSE)*AC32+VLOOKUP(Y33,'Fertilizer Products & Pricing'!$A$4:$O$38,2,FALSE)*AC33+VLOOKUP(Y34,'Fertilizer Products & Pricing'!$A$4:$O$38,2,FALSE)*AC34+VLOOKUP(Y35,'Fertilizer Products & Pricing'!$A$4:$O$38,2,FALSE)*AC35+VLOOKUP(Y38,'Fertilizer Products & Pricing'!$A$42:$O$55,2,FALSE)*AC38+VLOOKUP(Y39,'Fertilizer Products & Pricing'!$A$42:$O$55,2,FALSE)*AC39+VLOOKUP(Y40,'Fertilizer Products & Pricing'!$A$42:$O$55,2,FALSE)*AC40+VLOOKUP(Y41,'Fertilizer Products & Pricing'!$A$42:$O$55,2,FALSE)*AC41","v":0},{"$f":"VLOOKUP(Y30,'Fertilizer Products & Pricing'!$A$4:$O$38,3,FALSE)*AC30+VLOOKUP(Y31,'Fertilizer Products & Pricing'!$A$4:$O$38,3,FALSE)*AC31+VLOOKUP(Y32,'Fertilizer Products & Pricing'!$A$4:$O$38,3,FALSE)*AC32+VLOOKUP(Y33,'Fertilizer Products & Pricing'!$A$4:$O$38,3,FALSE)*AC33+VLOOKUP(Y34,'Fertilizer Products & Pricing'!$A$4:$O$38,3,FALSE)*AC34+VLOOKUP(Y35,'Fertilizer Products & Pricing'!$A$4:$O$38,3,FALSE)*AC35+VLOOKUP(Y38,'Fertilizer Products & Pricing'!$A$42:$O$55,3,FALSE)*AC38+VLOOKUP(Y39,'Fertilizer Products & Pricing'!$A$42:$O$55,3,FALSE)*AC39+VLOOKUP(Y40,'Fertilizer Products & Pricing'!$A$42:$O$55,3,FALSE)*AC40+VLOOKUP(Y41,'Fertilizer Products & Pricing'!$A$42:$O$55,3,FALSE)*AC41","v":0},{"$f":"VLOOKUP(Y30,'Fertilizer Products & Pricing'!$A$4:$O$38,4,FALSE)*AC30+VLOOKUP(Y31,'Fertilizer Products & Pricing'!$A$4:$O$38,4,FALSE)*AC31+VLOOKUP(Y32,'Fertilizer Products & Pricing'!$A$4:$O$38,4,FALSE)*AC32+VLOOKUP(Y33,'Fertilizer Products & Pricing'!$A$4:$O$38,4,FALSE)*AC33+VLOOKUP(Y34,'Fertilizer Products & Pricing'!$A$4:$O$38,4,FALSE)*AC34+VLOOKUP(Y35,'Fertilizer Products & Pricing'!$A$4:$O$38,4,FALSE)*AC35+VLOOKUP(Y38,'Fertilizer Products & Pricing'!$A$42:$O$55,4,FALSE)*AC38+VLOOKUP(Y39,'Fertilizer Products & Pricing'!$A$42:$O$55,4,FALSE)*AC39+VLOOKUP(Y40,'Fertilizer Products & Pricing'!$A$42:$O$55,4,FALSE)*AC40+VLOOKUP(Y41,'Fertilizer Products & Pricing'!$A$42:$O$55,4,FALSE)*AC41","v":0}]
["AMS (21-0-0-24S)","Tons",{"$f":"VLOOKUP(A31,'Fertilizer Products & Pricing'!$A$4:$O$38,15,FALSE)","v":485},2000,35,"lbs",8.4875000000000007,null,null,null,null,null,"None",{"$f":"VLOOKUP(M31,Macronutrients,14,FALSE)","v":"None"},{"$f":"VLOOKUP(M31,'Fertilizer Products & Pricing'!$A$4:$O$38,15,FALSE)","v":0},1,0,0,{"$f":"(Q31*VLOOKUP(M31,Macronutrients,11,FALSE)/P31)*O31","v":0},null,null,null,null,null,"None",{"$f":"VLOOKUP(Y31,Macronutrients,14,FALSE)","v":"None"},{"$f":"VLOOKUP(Y31,'Fertilizer Products & Pricing'!$A$4:$O$38,15,FALSE)","v":0},1,0,0,{"$f":"(AC31*VLOOKUP(Y31,Macronutrients,11,FALSE)/AB31)*AA31","v":0}]
["None","None",{"$f":"VLOOKUP(A32,'Fertilizer Products & Pricing'!$A$4:$O$38,15,FALSE)","v":0},1,0,0,0,null,"S","Ca","Mg",null,"None","None",{"$f":"VLOOKUP(M32,'Fertilizer Products & Pricing'!$A$4:$O$38,15,FALSE)","v":0},1,0,0,0,null,"S","Ca","Mg",null,"None","None",{"$f":"VLOOKUP(Y32,'Fertilizer Products & Pricing'!$A$4:$O$38,15,FALSE)","v":0},1,0,0,0,null,"S","Ca","Mg"]
["None","None",{"$f":"VLOOKUP(A33,'Fertilizer Products & Pricing'!$A$4:$O$38,15,FALSE)","v":0},1,0,0,0,null,{"$f":"VLOOKUP(A30,'Fertilizer Products & Pricing'!$A$4:$O$38,5,FALSE)*E30+VLOOKUP(A31,'Fertilizer Products & Pricing'!$A$4:$O$38,5,FALSE)*E31+VLOOKUP(A32,'Fertilizer Products & Pricing'!$A$4:$O$38,5,FALSE)*E32+VLOOKUP(A33,'Fertilizer Products & Pricing'!$A$4:$O$38,5,FALSE)*E33+VLOOKUP(A34,'Fertilizer Products & Pricing'!$A$4:$O$38,5,FALSE)*E34+VLOOKUP(A35,'Fertilizer Products & Pricing'!$A$4:$O$38,5,FALSE)*E35+VLOOKUP(A38,'Fertilizer Products & Pricing'!$A$42:$O$55,5,FALSE)*E38+VLOOKUP(A39,'Fertilizer Products & Pricing'!$A$42:$O$55,5,FALSE)*E39+VLOOKUP(A40,'Fertilizer Products & Pricing'!$A$42:$O$55,5,FALSE)*E40+VLOOKUP(A41,'Fertilizer Products & Pricing'!$A$42:$O$55,5,FALSE)*E41","v":8.4},{"$f":"VLOOKUP(A30,'Fertilizer Products & Pricing'!$A$4:$O$38,7,FALSE)*E30+VLOOKUP(A31,'Fertilizer Products & Pricing'!$A$4:$O$38,7,FALSE)*E31+VLOOKUP(A32,'Fertilizer Products & Pricing'!$A$4:$O$38,7,FALSE)*E32+VLOOKUP(A33,'Fertilizer Products & Pricing'!$A$4:$O$38,7,FALSE)*E33+VLOOKUP(A34,'Fertilizer Products & Pricing'!$A$4:$O$38,7,FALSE)*E34+VLOOKUP(A35,'Fertilizer Products & Pricing'!$A$4:$O$38,7,FALSE)*E35+VLOOKUP(A38,'Fertilizer Products & Pricing'!$A$42:$O$55,7,FALSE)*E38+VLOOKUP(A39,'Fertilizer Products & Pricing'!$A$42:$O$55,7,FALSE)*E39+VLOOKUP(A40,'Fertilizer Products & Pricing'!$A$42:$O$55,7,FALSE)*E40+VLOOKUP(A41,'Fertilizer Products & Pricing'!$A$42:$O$55,7,FALSE)*E41","v":0},{"$f":"VLOOKUP(A30,'Fertilizer Products & Pricing'!$A$4:$O$38,6,FALSE)*E30+VLOOKUP(A31,'Fertilizer Products & Pricing'!$A$4:$O$38,6,FALSE)*E31+VLOOKUP(A32,'Fertilizer Products & Pricing'!$A$4:$O$38,6,FALSE)*E32+VLOOKUP(A33,'Fertilizer Products & Pricing'!$A$4:$O$38,6,FALSE)*E33+VLOOKUP(A34,'Fertilizer Products & Pricing'!$A$4:$O$38,6,FALSE)*E34+VLOOKUP(A35,'Fertilizer Products & Pricing'!$A$4:$O$38,6,FALSE)*E35+VLOOKUP(A38,'Fertilizer Products & Pricing'!$A$42:$O$55,6,FALSE)*E38+VLOOKUP(A39,'Fertilizer Products & Pricing'!$A$42:$O$55,6,FALSE)*E39+VLOOKUP(A40,'Fertilizer Products & Pricing'!$A$42:$O$55,6,FALSE)*E40+VLOOKUP(A41,'Fertilizer Products & Pricing'!$A$42:$O$55,6,FALSE)*E41","v":0},null,"None","None",{"$f":"VLOOKUP(M33,'Fertilizer Products & Pricing'!$A$4:$O$38,15,FALSE)","v":0},1,0,0,0,null,{"$f":"VLOOKUP(M30,'Fertilizer Products & Pricing'!$A$4:$O$38,5,FALSE)*Q30+VLOOKUP(M31,'Fertilizer Products & Pricing'!$A$4:$O$38,5,FALSE)*Q31+VLOOKUP(M32,'Fertilizer Products & Pricing'!$A$4:$O$38,5,FALSE)*Q32+VLOOKUP(M33,'Fertilizer Products & Pricing'!$A$4:$O$38,5,FALSE)*Q33+VLOOKUP(M34,'Fertilizer Products & Pricing'!$A$4:$O$38,5,FALSE)*Q34+VLOOKUP(M35,'Fertilizer Products & Pricing'!$A$4:$O$38,5,FALSE)*Q35+VLOOKUP(M38,'Fertilizer Products & Pricing'!$A$42:$O$55,5,FALSE)*Q38+VLOOKUP(M39,'Fertilizer Products & Pricing'!$A$42:$O$55,5,FALSE)*Q39+VLOOKUP(M40,'Fertilizer Products & Pricing'!$A$42:$O$55,5,FALSE)*Q40+VLOOKUP(M41,'Fertilizer Products & Pricing'!$A$42:$O$55,5,FALSE)*Q41","v":0},{"$f":"VLOOKUP(M30,'Fertilizer Products & Pricing'!$A$4:$O$38,7,FALSE)*Q30+VLOOKUP(M31,'Fertilizer Products & Pricing'!$A$4:$O$38,7,FALSE)*Q31+VLOOKUP(M32,'Fertilizer Products & Pricing'!$A$4:$O$38,7,FALSE)*Q32+VLOOKUP(M33,'Fertilizer Products & Pricing'!$A$4:$O$38,7,FALSE)*Q33+VLOOKUP(M34,'Fertilizer Products & Pricing'!$A$4:$O$38,7,FALSE)*Q34+VLOOKUP(M35,'Fertilizer Products & Pricing'!$A$4:$O$38,7,FALSE)*Q35+VLOOKUP(M38,'Fertilizer Products & Pricing'!$A$42:$O$55,7,FALSE)*Q38+VLOOKUP(M39,'Fertilizer Products & Pricing'!$A$42:$O$55,7,FALSE)*Q39+VLOOKUP(M40,'Fertilizer Products & Pricing'!$A$42:$O$55,7,FALSE)*Q40+VLOOKUP(M41,'Fertilizer Products & Pricing'!$A$42:$O$55,7,FALSE)*Q41","v":0},{"$f":"VLOOKUP(M30,'Fertilizer Products & Pricing'!$A$4:$O$38,6,FALSE)*Q30+VLOOKUP(M31,'Fertilizer Products & Pricing'!$A$4:$O$38,6,FALSE)*Q31+VLOOKUP(M32,'Fertilizer Products & Pricing'!$A$4:$O$38,6,FALSE)*Q32+VLOOKUP(M33,'Fertilizer Products & Pricing'!$A$4:$O$38,6,FALSE)*Q33+VLOOKUP(M34,'Fertilizer Products & Pricing'!$A$4:$O$38,6,FALSE)*Q34+VLOOKUP(M35,'Fertilizer Products & Pricing'!$A$4:$O$38,6,FALSE)*Q35+VLOOKUP(M38,'Fertilizer Products & Pricing'!$A$42:$O$55,6,FALSE)*Q38+VLOOKUP(M39,'Fertilizer Products & Pricing'!$A$42:$O$55,6,FALSE)*Q39+VLOOKUP(M40,'Fertilizer Products & Pricing'!$A$42:$O$55,6,FALSE)*Q40+VLOOKUP(M41,'Fertilizer Products & Pricing'!$A$42:$O$55,6,FALSE)*Q41","v":0},null,"None","None",{"$f":"VLOOKUP(Y33,'Fertilizer Products & Pricing'!$A$4:$O$38,15,FALSE)","v":0},1,0,0,0,null,{"$f":"VLOOKUP(Y30,'Fertilizer Products & Pricing'!$A$4:$O$38,5,FALSE)*AC30+VLOOKUP(Y31,'Fertilizer Products & Pricing'!$A$4:$O$38,5,FALSE)*AC31+VLOOKUP(Y32,'Fertilizer Products & Pricing'!$A$4:$O$38,5,FALSE)*AC32+VLOOKUP(Y33,'Fertilizer Products & Pricing'!$A$4:$O$38,5,FALSE)*AC33+VLOOKUP(Y34,'Fertilizer Products & Pricing'!$A$4:$O$38,5,FALSE)*AC34+VLOOKUP(Y35,'Fertilizer Products & Pricing'!$A$4:$O$38,5,FALSE)*AC35+VLOOKUP(Y38,'Fertilizer Products & Pricing'!$A$42:$O$55,5,FALSE)*AC38+VLOOKUP(Y39,'Fertilizer Products & Pricing'!$A$42:$O$55,5,FALSE)*AC39+VLOOKUP(Y40,'Fertilizer Products & Pricing'!$A$42:$O$55,5,FALSE)*AC40+VLOOKUP(Y41,'Fertilizer Products & Pricing'!$A$42:$O$55,5,FALSE)*AC41","v":0},{"$f":"VLOOKUP(Y30,'Fertilizer Products & Pricing'!$A$4:$O$38,7,FALSE)*AC30+VLOOKUP(Y31,'Fertilizer Products & Pricing'!$A$4:$O$38,7,FALSE)*AC31+VLOOKUP(Y32,'Fertilizer Products & Pricing'!$A$4:$O$38,7,FALSE)*AC32+VLOOKUP(Y33,'Fertilizer Products & Pricing'!$A$4:$O$38,7,FALSE)*AC33+VLOOKUP(Y34,'Fertilizer Products & Pricing'!$A$4:$O$38,7,FALSE)*AC34+VLOOKUP(Y35,'Fertilizer Products & Pricing'!$A$4:$O$38,7,FALSE)*AC35+VLOOKUP(Y38,'Fertilizer Products & Pricing'!$A$42:$O$55,7,FALSE)*AC38+VLOOKUP(Y39,'Fertilizer Products & Pricing'!$A$42:$O$55,7,FALSE)*AC39+VLOOKUP(Y40,'Fertilizer Products & Pricing'!$A$42:$O$55,7,FALSE)*AC40+VLOOKUP(Y41,'Fertilizer Products & Pricing'!$A$42:$O$55,7,FALSE)*AC41","v":0},{"$f":"VLOOKUP(Y30,'Fertilizer Products & Pricing'!$A$4:$O$38,6,FALSE)*AC30+VLOOKUP(Y31,'Fertilizer Products & Pricing'!$A$4:$O$38,6,FALSE)*AC31+VLOOKUP(Y32,'Fertilizer Products & Pricing'!$A$4:$O$38,6,FALSE)*AC32+VLOOKUP(Y33,'Fertilizer Products & Pricing'!$A$4:$O$38,6,FALSE)*AC33+VLOOKUP(Y34,'Fertilizer Products & Pricing'!$A$4:$O$38,6,FALSE)*AC34+VLOOKUP(Y35,'Fertilizer Products & Pricing'!$A$4:$O$38,6,FALSE)*AC35+VLOOKUP(Y38,'Fertilizer Products & Pricing'!$A$42:$O$55,6,FALSE)*AC38+VLOOKUP(Y39,'Fertilizer Products & Pricing'!$A$42:$O$55,6,FALSE)*AC39+VLOOKUP(Y40,'Fertilizer Products & Pricing'!$A$42:$O$55,6,FALSE)*AC40+VLOOKUP(Y41,'Fertilizer Products & Pricing'!$A$42:$O$55,6,FALSE)*AC41","v":0}]
["None","None",{"$f":"VLOOKUP(A34,'Fertilizer Products & Pricing'!$A$4:$O$38,15,FALSE)","v":0},1,0,0,0,null,null,null,null,null,"None","None",{"$f":"VLOOKUP(M34,'Fertilizer Products & Pricing'!$A$4:$O$38,15,FALSE)","v":0},1,0,0,0,null,null,null,null,null,"None","None",{"$f":"VLOOKUP(Y34,'Fertilizer Products & Pricing'!$A$4:$O$38,15,FALSE)","v":0},1,0,0,0]
["None","None",{"$f":"VLOOKUP(A35,'Fertilizer Products & Pricing'!$A$4:$O$38,15,FALSE)","v":0},1,0,0,0,null,"Zn","B","Mn",null,"None","None",{"$f":"VLOOKUP(M35,'Fertilizer Products & Pricing'!$A$4:$O$38,15,FALSE)","v":0},1,0,0,0,null,"Zn","B","Mn",null,"None","None",{"$f":"VLOOKUP(Y35,'Fertilizer Products & Pricing'!$A$4:$O$38,15,FALSE)","v":0},1,0,0,0,null,"Zn","B","Mn"]
[null,null,null,null,null,null,null,null,{"$f":"VLOOKUP($A$39,'Fertilizer Products & Pricing'!$A$42:$O$55,8,FALSE)*$E$39+VLOOKUP($A$40,'Fertilizer Products & Pricing'!$A$42:$O$55,8,FALSE)*$E$40+VLOOKUP($A$41,'Fertilizer Products & Pricing'!$A$42:$O$55,8,FALSE)*$E$41+VLOOKUP($A$38,'Fertilizer Products & Pricing'!$A$42:$O$55,8,FALSE)*$E$38","v":0},{"$f":"VLOOKUP($A$39,'Fertilizer Products & Pricing'!$A$42:$O$55,9,FALSE)*$E$39+VLOOKUP($A$40,'Fertilizer Products & Pricing'!$A$42:$O$55,9,FALSE)*$E$40+VLOOKUP($A$41,'Fertilizer Products & Pricing'!$A$42:$O$55,9,FALSE)*$E$41+VLOOKUP($A$38,'Fertilizer Products & Pricing'!$A$42:$O$55,9,FALSE)*$E$38","v":0},{"$f":"VLOOKUP($A$39,'Fertilizer Products & Pricing'!$A$42:$O$55,10,FALSE)*$E$39+VLOOKUP($A$40,'Fertilizer Products & Pricing'!$A$42:$O$55,10,FALSE)*$E$40+VLOOKUP($A$41,'Fertilizer Products & Pricing'!$A$42:$O$55,10,FALSE)*$E$41+VLOOKUP($A$38,'Fertilizer Products & Pricing'!$A$42:$O$55,10,FALSE)*$E$38","v":0},null,null,null,null,null,null,null,null,null,{"$f":"VLOOKUP($M39,'Fertilizer Products & Pricing'!$A$42:$O$55,8,FALSE)*$Q39+VLOOKUP($M40,'Fertilizer Products & Pricing'!$A$42:$O$55,8,FALSE)*$Q40+VLOOKUP($M41,'Fertilizer Products & Pricing'!$A$42:$O$55,8,FALSE)*$Q41+VLOOKUP($M38,'Fertilizer Products & Pricing'!$A$42:$O$55,8,FALSE)*$Q38","v":0},{"$f":"VLOOKUP($M39,'Fertilizer Products & Pricing'!$A$42:$O$55,9,FALSE)*$Q39+VLOOKUP($M40,'Fertilizer Products & Pricing'!$A$42:$O$55,9,FALSE)*$Q40+VLOOKUP($M41,'Fertilizer Products & Pricing'!$A$42:$O$55,9,FALSE)*$Q41+VLOOKUP($M38,'Fertilizer Products & Pricing'!$A$42:$O$55,9,FALSE)*$Q38","v":0},{"$f":"VLOOKUP($M$39,'Fertilizer Products & Pricing'!$A$42:$O$55,10,FALSE)*$Q$39+VLOOKUP($M$40,'Fertilizer Products & Pricing'!$A$42:$O$55,10,FALSE)*$Q$40+VLOOKUP($M$41,'Fertilizer Products & Pricing'!$A$42:$O$55,10,FALSE)*$Q$41+VLOOKUP($M$38,'Fertilizer Products & Pricing'!$A$42:$O$55,10,FALSE)*$Q$38","v":0},null,null,null,null,null,null,null,null,null,{"$f":"VLOOKUP($Y39,'Fertilizer Products & Pricing'!$A$42:$O$55,8,FALSE)*$AC39+VLOOKUP($Y40,'Fertilizer Products & Pricing'!$A$42:$O$55,8,FALSE)*$AC40+VLOOKUP($Y41,'Fertilizer Products & Pricing'!$A$42:$O$55,8,FALSE)*$AC41+VLOOKUP($Y38,'Fertilizer Products & Pricing'!$A$42:$O$55,8,FALSE)*$AC38","v":0},{"$f":"VLOOKUP($Y39,'Fertilizer Products & Pricing'!$A$42:$O$55,9,FALSE)*$AC39+VLOOKUP($Y40,'Fertilizer Products & Pricing'!$A$42:$O$55,9,FALSE)*$AC40+VLOOKUP($Y41,'Fertilizer Products & Pricing'!$A$42:$O$55,9,FALSE)*$AC41+VLOOKUP($Y38,'Fertilizer Products & Pricing'!$A$42:$O$55,9,FALSE)*$AC38","v":0},{"$f":"VLOOKUP($Y39,'Fertilizer Products & Pricing'!$A$42:$O$55,10,FALSE)*$AC39+VLOOKUP($Y40,'Fertilizer Products & Pricing'!$A$42:$O$55,10,FALSE)*$AC40+VLOOKUP($Y41,'Fertilizer Products & Pricing'!$A$42:$O$55,10,FALSE)*$AC41+VLOOKUP($Y38,'Fertilizer Products & Pricing'!$A$42:$O$55,10,FALSE)*$AC38","v":0}]
["Micronutrients (drop down menu)",null,null,null,null,null,null,null,null,null,null,null,"Micronutrients (drop down menu)",null,null,null,null,null,null,null,null,null,null,null,"Micronutrients (drop down menu)"]
["None",{"$f":"VLOOKUP($A38,Micronutrients,14,FALSE)","v":"None"},{"$f":"VLOOKUP($A38,Micronutrients,15,FALSE)","v":0},{"$f":"VLOOKUP($A38,Micronutrients,13,FALSE)","v":1},0,{"$f":"VLOOKUP($A38,Micronutrients,12,FALSE)","v":0},{"$f":"(E38*VLOOKUP(A38,Micronutrients,11,FALSE)/D38)*C38","v":0},null,null,null,null,null,"None",{"$f":"VLOOKUP($M38,Micronutrients,14,FALSE)","v":"None"},{"$f":"VLOOKUP($M38,Micronutrients,15,FALSE)","v":0},{"$f":"VLOOKUP($M38,Micronutrients,13,FALSE)","v":1},0,{"$f":"VLOOKUP($M38,Micronutrients,12,FALSE)","v":0},{"$f":"(Q38*VLOOKUP(M38,Micronutrients,11,FALSE)/P38)*O38","v":0},null,null,null,null,null,"None",{"$f":"VLOOKUP(Y38,Micronutrients,14,FALSE)","v":"None"},{"$f":"VLOOKUP(Y38,Micronutrients,15,FALSE)","v":0},{"$f":"VLOOKUP(Y38,Micronutrients,13,FALSE)","v":1},0,{"$f":"VLOOKUP(Y38,Micronutrients,12,FALSE)","v":0},{"$f":"(AC38*VLOOKUP(Y38,Micronutrients,11,FALSE)/AB38)*AA38","v":0}]
["None",{"$f":"VLOOKUP($A39,Micronutrients,14,FALSE)","v":"None"},{"$f":"VLOOKUP($A39,Micronutrients,15,FALSE)","v":0},{"$f":"VLOOKUP($A39,Micronutrients,13,FALSE)","v":1},0,{"$f":"VLOOKUP($A39,Micronutrients,12,FALSE)","v":0},{"$f":"(E39*VLOOKUP(A39,Micronutrients,11,FALSE)/D39)*C39","v":0},null,null,null,null,null,"None",{"$f":"VLOOKUP($M39,Micronutrients,14,FALSE)","v":"None"},{"$f":"VLOOKUP($M39,Micronutrients,15,FALSE)","v":0},{"$f":"VLOOKUP($M39,Micronutrients,13,FALSE)","v":1},0,{"$f":"VLOOKUP($M39,Micronutrients,12,FALSE)","v":0},{"$f":"(Q39*VLOOKUP(M39,Micronutrients,11,FALSE)/P39)*O39","v":0},null,null,null,null,null,"None",{"$f":"VLOOKUP(Y39,Micronutrients,14,FALSE)","v":"None"},{"$f":"VLOOKUP(Y39,Micronutrients,15,FALSE)","v":0},{"$f":"VLOOKUP(Y39,Micronutrients,13,FALSE)","v":1},0,{"$f":"VLOOKUP(Y39,Micronutrients,12,FALSE)","v":0},{"$f":"(AC39*VLOOKUP(Y39,Micronutrients,11,FALSE)/AB39)*AA39","v":0}]
["None",{"$f":"VLOOKUP($A40,Micronutrients,14,FALSE)","v":"None"},{"$f":"VLOOKUP($A40,Micronutrients,15,FALSE)","v":0},{"$f":"VLOOKUP($A40,Micronutrients,13,FALSE)","v":1},0,{"$f":"VLOOKUP($A40,Micronutrients,12,FALSE)","v":0},{"$f":"(E40*VLOOKUP(A40,Micronutrients,11,FALSE)/D40)*C40","v":0},null,null,null,null,null,"None",{"$f":"VLOOKUP($M40,Micronutrients,14,FALSE)","v":"None"},{"$f":"VLOOKUP($M40,Micronutrients,15,FALSE)","v":0},{"$f":"VLOOKUP($M40,Micronutrients,13,FALSE)","v":1},0,{"$f":"VLOOKUP($M40,Micronutrients,12,FALSE)","v":0},{"$f":"(Q40*VLOOKUP(M40,Micronutrients,11,FALSE)/P40)*O40","v":0},null,null,null,null,null,"None",{"$f":"VLOOKUP(Y40,Micronutrients,14,FALSE)","v":"None"},{"$f":"VLOOKUP(Y40,Micronutrients,15,FALSE)","v":0},{"$f":"VLOOKUP(Y40,Micronutrients,13,FALSE)","v":1},0,{"$f":"VLOOKUP(Y40,Micronutrients,12,FALSE)","v":0},{"$f":"(AC40*VLOOKUP(Y40,Micronutrients,11,FALSE)/AB40)*AA40","v":0}]
["None",{"$f":"VLOOKUP($A41,Micronutrients,14,FALSE)","v":"None"},{"$f":"VLOOKUP($A41,Micronutrients,15,FALSE)","v":0},{"$f":"VLOOKUP($A41,Micronutrients,13,FALSE)","v":1},0,{"$f":"VLOOKUP($A41,Micronutrients,12,FALSE)","v":0},{"$f":"(E41*VLOOKUP(A41,Micronutrients,11,FALSE)/D41)*C41","v":0},null,null,null,null,null,"None",{"$f":"VLOOKUP($M41,Micronutrients,14,FALSE)","v":"None"},{"$f":"VLOOKUP($M41,Micronutrients,15,FALSE)","v":0},{"$f":"VLOOKUP($M41,Micronutrients,13,FALSE)","v":1},0,{"$f":"VLOOKUP($M41,Micronutrients,12,FALSE)","v":0},{"$f":"(Q41*VLOOKUP(M41,Micronutrients,11,FALSE)/P41)*O41","v":0},null,null,null,null,null,"None",{"$f":"VLOOKUP(Y41,Micronutrients,14,FALSE)","v":"None"},{"$f":"VLOOKUP(Y41,Micronutrients,15,FALSE)","v":0},{"$f":"VLOOKUP(Y41,Micronutrients,13,FALSE)","v":1},0,{"$f":"VLOOKUP(Y41,Micronutrients,12,FALSE)","v":0},{"$f":"(AC41*VLOOKUP(Y41,Micronutrients,11,FALSE)/AB41)*AA41","v":0}]
[]
["Nitrogen Stabilizers (drop down menu)",null,null,null,null,null,null,null,null,null,null,null,"Nitrogen Stabilizers (drop down menu)",null,null,null,null,null,null,null,null,null,null,null,"Nitrogen Stabilizers (drop down menu)"]
["None",{"$f":"VLOOKUP(A44,NitrogenStabilizers,14,FALSE)","v":"None"},{"$f":"VLOOKUP(A44,NitrogenStabilizers,15,FALSE)","v":0},{"$f":"VLOOKUP(A44,NitrogenStabilizers,13,FALSE)","v":1},0,{"$f":"VLOOKUP(A44,NitrogenStabilizers,12,FALSE)","v":0},{"$f":"(E44*VLOOKUP(A44,NitrogenStabilizers,11,FALSE)/D44)*C44","v":0},null,null,null,null,null,"None",{"$f":"VLOOKUP(M44,NitrogenStabilizers,14,FALSE)","v":"None"},{"$f":"VLOOKUP(M44,NitrogenStabilizers,15,FALSE)","v":0},{"$f":"VLOOKUP(M44,NitrogenStabilizers,13,FALSE)","v":1},0,{"$f":"VLOOKUP(M44,NitrogenStabilizers,12,FALSE)","v":0},{"$f":"(Q44*VLOOKUP(M44,NitrogenStabilizers,11,FALSE)/P44)*O44","v":0},null,null,null,null,null,"None",{"$f":"VLOOKUP(Y44,NitrogenStabilizers,14,FALSE)","v":"None"},{"$f":"VLOOKUP(Y44,NitrogenStabilizers,15,FALSE)","v":0},{"$f":"VLOOKUP(Y44,NitrogenStabilizers,13,FALSE)","v":1},0,{"$f":"VLOOKUP(Y44,NitrogenStabilizers,12,FALSE)","v":0},{"$f":"(AC44*VLOOKUP(Y44,NitrogenStabilizers,11,FALSE)/AB44)*AA44","v":0}]
["None",{"$f":"VLOOKUP(A45,NitrogenStabilizers,14,FALSE)","v":"None"},{"$f":"VLOOKUP(A45,NitrogenStabilizers,15,FALSE)","v":0},{"$f":"VLOOKUP(A45,NitrogenStabilizers,13,FALSE)","v":1},0,{"$f":"VLOOKUP(A45,NitrogenStabilizers,12,FALSE)","v":0},{"$f":"(E45*VLOOKUP(A45,NitrogenStabilizers,11,FALSE)/D45)*C45","v":0},null,null,null,"More",null,"None",{"$f":"VLOOKUP(M45,NitrogenStabilizers,14,FALSE)","v":"None"},{"$f":"VLOOKUP(M45,NitrogenStabilizers,15,FALSE)","v":0},{"$f":"VLOOKUP(M45,NitrogenStabilizers,13,FALSE)","v":1},0,{"$f":"VLOOKUP(M45,NitrogenStabilizers,12,FALSE)","v":0},{"$f":"(Q45*VLOOKUP(M45,NitrogenStabilizers,11,FALSE)/P45)*O45","v":0},null,null,null,"More",null,"None",{"$f":"VLOOKUP(Y45,NitrogenStabilizers,14,FALSE)","v":"None"},{"$f":"VLOOKUP(Y45,NitrogenStabilizers,15,FALSE)","v":0},{"$f":"VLOOKUP(Y45,NitrogenStabilizers,13,FALSE)","v":1},0,{"$f":"VLOOKUP(Y45,NitrogenStabilizers,12,FALSE)","v":0},{"$f":"(AC45*VLOOKUP(Y45,NitrogenStabilizers,11,FALSE)/AB45)*AA45","v":0},null,null,null,"More"]
["2nd Application Fertilizer Cost/Acre",null,null,null,null,null,{"$f":"SUM(G30:G45)","v":47.862499999999997},null,null,null,"Below",null,"2nd Application Fertilizer Cost/Acre",null,null,null,null,null,{"$f":"SUM(S30:S45)","v":0},null,null,null,"Below",null,"2nd Application Fertilizer Cost/Acre",null,null,null,null,null,{"$f":"SUM(AE30:AE45)","v":0},null,null,null,"Below"]
[null,null,null,null,null,null,null,null,null,null,"¯",null,null,null,null,null,null,null,null,null,null,null,"¯",null,null,null,null,null,null,null,null,null,null,null,"¯"]
["3rd Application (i.e., Side-Dress or Broadcast)",null,null,null,null,null,null,null,null,null,null,null,"3rd Application (i.e., Side-Dress or Broadcast)",null,null,null,null,null,null,null,null,null,null,null,"3rd Application (i.e., Side-Dress or Broadcast)"]
["Fertilizer Source","Purchase Units","Package Price (Gals, Lbs, etc.)","Units/Pkg","Rate/Acre","Units","Cost",null,null,null,null,null,"Fertilizer Source","Purchase Units","Package Price (Gals, Lbs, etc.)","Units/Pkg","Rate/Acre","Units","Cost",null,null,null,null,null,"Fertilizer Source","Purchase Units","Package Price (Gals, Lbs, etc.)","Units/Pkg","Rate/Acre","Units","Cost"]
["Macronutrients (drop down menu)",null,null,null,"(Enter Below)",null,null,null,"N","P","K",null,"Macronutrients (drop down menu)",null,null,null,"(Enter Below)",null,null,null,"N","P","K",null,"Macronutrients (drop down menu)",null,null,null,"(Enter Below)",null,null,null,"N","P","K"]
["None",{"$f":"VLOOKUP(A51,Macronutrients,14,FALSE)","v":"None"},{"$f":"VLOOKUP(A51,'Fertilizer Products & Pricing'!$A$4:$O$38,15,FALSE)","v":0},{"$f":"VLOOKUP($A51,Macronutrients,13,FALSE)","v":1},0,{"$f":"VLOOKUP($A51,Macronutrients,12,FALSE)","v":0},{"$f":"(E51*VLOOKUP(A51,Macronutrients,11,FALSE)/D51)*C51","v":0},null,{"$f":"VLOOKUP(A51,'Fertilizer Products & Pricing'!$A$4:$O$38,2,FALSE)*E51+VLOOKUP(A52,'Fertilizer Products & Pricing'!$A$4:$O$38,2,FALSE)*E52+VLOOKUP(A53,'Fertilizer Products & Pricing'!$A$4:$O$38,2,FALSE)*E53+VLOOKUP(A54,'Fertilizer Products & Pricing'!$A$4:$O$38,2,FALSE)*E54+VLOOKUP(A55,'Fertilizer Products & Pricing'!$A$4:$O$38,2,FALSE)*E55+VLOOKUP(A56,'Fertilizer Products & Pricing'!$A$4:$O$38,2,FALSE)*E56+VLOOKUP(A59,'Fertilizer Products & Pricing'!$A$42:$O$55,2,FALSE)*E59+VLOOKUP(A60,'Fertilizer Products & Pricing'!$A$42:$O$55,2,FALSE)*E60+VLOOKUP(A61,'Fertilizer Products & Pricing'!$A$42:$O$55,2,FALSE)*E61+VLOOKUP(A62,'Fertilizer Products & Pricing'!$A$42:$O$55,2,FALSE)*E62","v":0},{"$f":"VLOOKUP(A51,'Fertilizer Products & Pricing'!$A$4:$O$38,3,FALSE)*E51+VLOOKUP(A52,'Fertilizer Products & Pricing'!$A$4:$O$38,3,FALSE)*E52+VLOOKUP(A53,'Fertilizer Products & Pricing'!$A$4:$O$38,3,FALSE)*E53+VLOOKUP(A54,'Fertilizer Products & Pricing'!$A$4:$O$38,3,FALSE)*E54+VLOOKUP(A55,'Fertilizer Products & Pricing'!$A$4:$O$38,3,FALSE)*E55+VLOOKUP(A56,'Fertilizer Products & Pricing'!$A$4:$O$38,3,FALSE)*E56+VLOOKUP(A59,'Fertilizer Products & Pricing'!$A$42:$O$55,3,FALSE)*E59+VLOOKUP(A60,'Fertilizer Products & Pricing'!$A$42:$O$55,3,FALSE)*E60+VLOOKUP(A61,'Fertilizer Products & Pricing'!$A$42:$O$55,3,FALSE)*E61+VLOOKUP(A62,'Fertilizer Products & Pricing'!$A$42:$O$55,3,FALSE)*E62","v":0},{"$f":"VLOOKUP(A51,'Fertilizer Products & Pricing'!$A$4:$O$38,4,FALSE)*E51+VLOOKUP(A52,'Fertilizer Products & Pricing'!$A$4:$O$38,4,FALSE)*E52+VLOOKUP(A53,'Fertilizer Products & Pricing'!$A$4:$O$38,4,FALSE)*E53+VLOOKUP(A54,'Fertilizer Products & Pricing'!$A$4:$O$38,4,FALSE)*E54+VLOOKUP(A55,'Fertilizer Products & Pricing'!$A$4:$O$38,4,FALSE)*E55+VLOOKUP(A56,'Fertilizer Products & Pricing'!$A$4:$O$38,4,FALSE)*E56+VLOOKUP(A59,'Fertilizer Products & Pricing'!$A$42:$O$55,4,FALSE)*E59+VLOOKUP(A60,'Fertilizer Products & Pricing'!$A$42:$O$55,4,FALSE)*E60+VLOOKUP(A61,'Fertilizer Products & Pricing'!$A$42:$O$55,4,FALSE)*E61+VLOOKUP(A62,'Fertilizer Products & Pricing'!$A$42:$O$55,4,FALSE)*E62","v":0},null,"None",{"$f":"VLOOKUP(M51,Macronutrients,14,FALSE)","v":"None"},{"$f":"VLOOKUP(M51,'Fertilizer Products & Pricing'!$A$4:$O$38,15,FALSE)","v":0},{"$f":"VLOOKUP($M51,Macronutrients,13,FALSE)","v":1},0,{"$f":"VLOOKUP($M51,Macronutrients,12,FALSE)","v":0},{"$f":"(Q51*VLOOKUP(M51,Macronutrients,11,FALSE)/P51)*O51","v":0},null,{"$f":"VLOOKUP(M51,'Fertilizer Products & Pricing'!$A$4:$O$38,2,FALSE)*Q51+VLOOKUP(M52,'Fertilizer Products & Pricing'!$A$4:$O$38,2,FALSE)*Q52+VLOOKUP(M53,'Fertilizer Products & Pricing'!$A$4:$O$38,2,FALSE)*Q53+VLOOKUP(M54,'Fertilizer Products & Pricing'!$A$4:$O$38,2,FALSE)*Q54+VLOOKUP(M55,'Fertilizer Products & Pricing'!$A$4:$O$38,2,FALSE)*Q55+VLOOKUP(M56,'Fertilizer Products & Pricing'!$A$4:$O$38,2,FALSE)*Q56+VLOOKUP(M59,'Fertilizer Products & Pricing'!$A$42:$O$55,2,FALSE)*Q59+VLOOKUP(M60,'Fertilizer Products & Pricing'!$A$42:$O$55,2,FALSE)*Q60+VLOOKUP(M61,'Fertilizer Products & Pricing'!$A$42:$O$55,2,FALSE)*Q61+VLOOKUP(M62,'Fertilizer Products & Pricing'!$A$42:$O$55,2,FALSE)*Q62","v":0},{"$f":"VLOOKUP(M51,'Fertilizer Products & Pricing'!$A$4:$O$38,3,FALSE)*Q51+VLOOKUP(M52,'Fertilizer Products & Pricing'!$A$4:$O$38,3,FALSE)*Q52+VLOOKUP(M53,'Fertilizer Products & Pricing'!$A$4:$O$38,3,FALSE)*Q53+VLOOKUP(M54,'Fertilizer Products & Pricing'!$A$4:$O$38,3,FALSE)*Q54+VLOOKUP(M55,'Fertilizer Products & Pricing'!$A$4:$O$38,3,FALSE)*Q55+VLOOKUP(M56,'Fertilizer Products & Pricing'!$A$4:$O$38,3,FALSE)*Q56+VLOOKUP(M59,'Fertilizer Products & Pricing'!$A$42:$O$55,3,FALSE)*Q59+VLOOKUP(M60,'Fertilizer Products & Pricing'!$A$42:$O$55,3,FALSE)*Q60+VLOOKUP(M61,'Fertilizer Products & Pricing'!$A$42:$O$55,3,FALSE)*Q61+VLOOKUP(M62,'Fertilizer Products & Pricing'!$A$42:$O$55,3,FALSE)*Q62","v":0},{"$f":"VLOOKUP(M51,'Fertilizer Products & Pricing'!$A$4:$O$38,4,FALSE)*Q51+VLOOKUP(M52,'Fertilizer Products & Pricing'!$A$4:$O$38,4,FALSE)*Q52+VLOOKUP(M53,'Fertilizer Products & Pricing'!$A$4:$O$38,4,FALSE)*Q53+VLOOKUP(M54,'Fertilizer Products & Pricing'!$A$4:$O$38,4,FALSE)*Q54+VLOOKUP(M55,'Fertilizer Products & Pricing'!$A$4:$O$38,4,FALSE)*Q55+VLOOKUP(M56,'Fertilizer Products & Pricing'!$A$4:$O$38,4,FALSE)*Q56+VLOOKUP(M59,'Fertilizer Products & Pricing'!$A$42:$O$55,4,FALSE)*Q59+VLOOKUP(M60,'Fertilizer Products & Pricing'!$A$42:$O$55,4,FALSE)*Q60+VLOOKUP(M61,'Fertilizer Products & Pricing'!$A$42:$O$55,4,FALSE)*Q61+VLOOKUP(M62,'Fertilizer Products & Pricing'!$A$42:$O$55,4,FALSE)*Q62","v":0},null,"None",{"$f":"VLOOKUP(Y51,Macronutrients,14,FALSE)","v":"None"},{"$f":"VLOOKUP(Y51,'Fertilizer Products & Pricing'!$A$4:$O$38,15,FALSE)","v":0},{"$f":"VLOOKUP($Y51,Macronutrients,13,FALSE)","v":1},0,{"$f":"VLOOKUP($Y51,Macronutrients,12,FALSE)","v":0},{"$f":"(AC51*VLOOKUP(Y51,Macronutrients,11,FALSE)/AB51)*AA51","v":0},null,{"$f":"VLOOKUP(Y51,'Fertilizer Products & Pricing'!$A$4:$O$38,2,FALSE)*AC51+VLOOKUP(Y52,'Fertilizer Products & Pricing'!$A$4:$O$38,2,FALSE)*AC52+VLOOKUP(Y53,'Fertilizer Products & Pricing'!$A$4:$O$38,2,FALSE)*AC53+VLOOKUP(Y54,'Fertilizer Products & Pricing'!$A$4:$O$38,2,FALSE)*AC54+VLOOKUP(Y55,'Fertilizer Products & Pricing'!$A$4:$O$38,2,FALSE)*AC55+VLOOKUP(Y56,'Fertilizer Products & Pricing'!$A$4:$O$38,2,FALSE)*AC56+VLOOKUP(Y59,'Fertilizer Products & Pricing'!$A$42:$O$55,2,FALSE)*AC59+VLOOKUP(Y60,'Fertilizer Products & Pricing'!$A$42:$O$55,2,FALSE)*AC60+VLOOKUP(Y61,'Fertilizer Products & Pricing'!$A$42:$O$55,2,FALSE)*AC61+VLOOKUP(Y62,'Fertilizer Products & Pricing'!$A$42:$O$55,2,FALSE)*AC62","v":0},{"$f":"VLOOKUP(Y51,'Fertilizer Products & Pricing'!$A$4:$O$38,3,FALSE)*AC51+VLOOKUP(Y52,'Fertilizer Products & Pricing'!$A$4:$O$38,3,FALSE)*AC52+VLOOKUP(Y53,'Fertilizer Products & Pricing'!$A$4:$O$38,3,FALSE)*AC53+VLOOKUP(Y54,'Fertilizer Products & Pricing'!$A$4:$O$38,3,FALSE)*AC54+VLOOKUP(Y55,'Fertilizer Products & Pricing'!$A$4:$O$38,3,FALSE)*AC55+VLOOKUP(Y56,'Fertilizer Products & Pricing'!$A$4:$O$38,3,FALSE)*AC56+VLOOKUP(Y59,'Fertilizer Products & Pricing'!$A$42:$O$55,3,FALSE)*AC59+VLOOKUP(Y60,'Fertilizer Products & Pricing'!$A$42:$O$55,3,FALSE)*AC60+VLOOKUP(Y61,'Fertilizer Products & Pricing'!$A$42:$O$55,3,FALSE)*AC61+VLOOKUP(Y62,'Fertilizer Products & Pricing'!$A$42:$O$55,3,FALSE)*AC62","v":0},{"$f":"VLOOKUP(Y51,'Fertilizer Products & Pricing'!$A$4:$O$38,4,FALSE)*AC51+VLOOKUP(Y52,'Fertilizer Products & Pricing'!$A$4:$O$38,4,FALSE)*AC52+VLOOKUP(Y53,'Fertilizer Products & Pricing'!$A$4:$O$38,4,FALSE)*AC53+VLOOKUP(Y54,'Fertilizer Products & Pricing'!$A$4:$O$38,4,FALSE)*AC54+VLOOKUP(Y55,'Fertilizer Products & Pricing'!$A$4:$O$38,4,FALSE)*AC55+VLOOKUP(Y56,'Fertilizer Products & Pricing'!$A$4:$O$38,4,FALSE)*AC56+VLOOKUP(Y59,'Fertilizer Products & Pricing'!$A$42:$O$55,4,FALSE)*AC59+VLOOKUP(Y60,'Fertilizer Products & Pricing'!$A$42:$O$55,4,FALSE)*AC60+VLOOKUP(Y61,'Fertilizer Products & Pricing'!$A$42:$O$55,4,FALSE)*AC61+VLOOKUP(Y62,'Fertilizer Products & Pricing'!$A$42:$O$55,4,FALSE)*AC62","v":0}]
["None","None",{"$f":"VLOOKUP(A52,'Fertilizer Products & Pricing'!$A$4:$O$38,15,FALSE)","v":0},1,0,0,0,null,null,null,null,null,"None","None",{"$f":"VLOOKUP(M52,'Fertilizer Products & Pricing'!$A$4:$O$38,15,FALSE)","v":0},1,0,0,0,null,null,null,null,null,"None",{"$f":"VLOOKUP(Y52,Macronutrients,14,FALSE)","v":"None"},{"$f":"VLOOKUP(Y52,'Fertilizer Products & Pricing'!$A$4:$O$38,15,FALSE)","v":0},1,0,0,{"$f":"(AC52*VLOOKUP(Y52,Macronutrients,11,FALSE)/AB52)*AA52","v":0}]
["None","None",{"$f":"VLOOKUP(A53,'Fertilizer Products & Pricing'!$A$4:$O$38,15,FALSE)","v":0},1,0,0,0,null,"S","Ca","Mg",null,"None","None",{"$f":"VLOOKUP(M53,'Fertilizer Products & Pricing'!$A$4:$O$38,15,FALSE)","v":0},1,0,0,0,null,"S","Ca","Mg",null,"None","None",{"$f":"VLOOKUP(Y53,'Fertilizer Products & Pricing'!$A$4:$O$38,15,FALSE)","v":0},1,0,0,0,null,"S","Ca","Mg"]
["None","None",{"$f":"VLOOKUP(A54,'Fertilizer Products & Pricing'!$A$4:$O$38,15,FALSE)","v":0},1,0,0,0,null,{"$f":"VLOOKUP(A51,'Fertilizer Products & Pricing'!$A$4:$O$38,5,FALSE)*E51+VLOOKUP(A52,'Fertilizer Products & Pricing'!$A$4:$O$38,5,FALSE)*E52+VLOOKUP(A53,'Fertilizer Products & Pricing'!$A$4:$O$38,5,FALSE)*E53+VLOOKUP(A54,'Fertilizer Products & Pricing'!$A$4:$O$38,5,FALSE)*E54+VLOOKUP(A55,'Fertilizer Products & Pricing'!$A$4:$O$38,5,FALSE)*E55+VLOOKUP(A56,'Fertilizer Products & Pricing'!$A$4:$O$38,5,FALSE)*E56+VLOOKUP(A59,'Fertilizer Products & Pricing'!$A$42:$O$55,5,FALSE)*E59+VLOOKUP(A60,'Fertilizer Products & Pricing'!$A$42:$O$55,5,FALSE)*E60+VLOOKUP(A61,'Fertilizer Products & Pricing'!$A$42:$O$55,5,FALSE)*E61+VLOOKUP(A62,'Fertilizer Products & Pricing'!$A$42:$O$55,5,FALSE)*E62","v":0},{"$f":"VLOOKUP(A51,'Fertilizer Products & Pricing'!$A$4:$O$38,7,FALSE)*E51+VLOOKUP(A52,'Fertilizer Products & Pricing'!$A$4:$O$38,7,FALSE)*E52+VLOOKUP(A53,'Fertilizer Products & Pricing'!$A$4:$O$38,7,FALSE)*E53+VLOOKUP(A54,'Fertilizer Products & Pricing'!$A$4:$O$38,7,FALSE)*E54+VLOOKUP(A55,'Fertilizer Products & Pricing'!$A$4:$O$38,7,FALSE)*E55+VLOOKUP(A56,'Fertilizer Products & Pricing'!$A$4:$O$38,7,FALSE)*E56+VLOOKUP(A59,'Fertilizer Products & Pricing'!$A$42:$O$55,7,FALSE)*E59+VLOOKUP(A60,'Fertilizer Products & Pricing'!$A$42:$O$55,7,FALSE)*E60+VLOOKUP(A61,'Fertilizer Products & Pricing'!$A$42:$O$55,7,FALSE)*E61+VLOOKUP(A62,'Fertilizer Products & Pricing'!$A$42:$O$55,7,FALSE)*E62","v":0},{"$f":"VLOOKUP(A51,'Fertilizer Products & Pricing'!$A$4:$O$38,6,FALSE)*E51+VLOOKUP(A52,'Fertilizer Products & Pricing'!$A$4:$O$38,6,FALSE)*E52+VLOOKUP(A53,'Fertilizer Products & Pricing'!$A$4:$O$38,6,FALSE)*E53+VLOOKUP(A54,'Fertilizer Products & Pricing'!$A$4:$O$38,6,FALSE)*E54+VLOOKUP(A55,'Fertilizer Products & Pricing'!$A$4:$O$38,6,FALSE)*E55+VLOOKUP(A56,'Fertilizer Products & Pricing'!$A$4:$O$38,6,FALSE)*E56+VLOOKUP(A59,'Fertilizer Products & Pricing'!$A$42:$O$55,6,FALSE)*E59+VLOOKUP(A60,'Fertilizer Products & Pricing'!$A$42:$O$55,6,FALSE)*E60+VLOOKUP(A61,'Fertilizer Products & Pricing'!$A$42:$O$55,6,FALSE)*E61+VLOOKUP(A62,'Fertilizer Products & Pricing'!$A$42:$O$55,6,FALSE)*E62","v":0},null,"None","None",{"$f":"VLOOKUP(M54,'Fertilizer Products & Pricing'!$A$4:$O$38,15,FALSE)","v":0},1,0,0,0,null,{"$f":"VLOOKUP(M51,'Fertilizer Products & Pricing'!$A$4:$O$38,5,FALSE)*Q51+VLOOKUP(M52,'Fertilizer Products & Pricing'!$A$4:$O$38,5,FALSE)*Q52+VLOOKUP(M53,'Fertilizer Products & Pricing'!$A$4:$O$38,5,FALSE)*Q53+VLOOKUP(M54,'Fertilizer Products & Pricing'!$A$4:$O$38,5,FALSE)*Q54+VLOOKUP(M55,'Fertilizer Products & Pricing'!$A$4:$O$38,5,FALSE)*Q55+VLOOKUP(M56,'Fertilizer Products & Pricing'!$A$4:$O$38,5,FALSE)*Q56+VLOOKUP(M59,'Fertilizer Products & Pricing'!$A$42:$O$55,5,FALSE)*Q59+VLOOKUP(M60,'Fertilizer Products & Pricing'!$A$42:$O$55,5,FALSE)*Q60+VLOOKUP(M61,'Fertilizer Products & Pricing'!$A$42:$O$55,5,FALSE)*Q61+VLOOKUP(M62,'Fertilizer Products & Pricing'!$A$42:$O$55,5,FALSE)*Q62","v":0},{"$f":"VLOOKUP(M51,'Fertilizer Products & Pricing'!$A$4:$O$38,7,FALSE)*Q51+VLOOKUP(M52,'Fertilizer Products & Pricing'!$A$4:$O$38,7,FALSE)*Q52+VLOOKUP(M53,'Fertilizer Products & Pricing'!$A$4:$O$38,7,FALSE)*Q53+VLOOKUP(M54,'Fertilizer Products & Pricing'!$A$4:$O$38,7,FALSE)*Q54+VLOOKUP(M55,'Fertilizer Products & Pricing'!$A$4:$O$38,7,FALSE)*Q55+VLOOKUP(M56,'Fertilizer Products & Pricing'!$A$4:$O$38,7,FALSE)*Q56+VLOOKUP(M59,'Fertilizer Products & Pricing'!$A$42:$O$55,7,FALSE)*Q59+VLOOKUP(M60,'Fertilizer Products & Pricing'!$A$42:$O$55,7,FALSE)*Q60+VLOOKUP(M61,'Fertilizer Products & Pricing'!$A$42:$O$55,7,FALSE)*Q61+VLOOKUP(M62,'Fertilizer Products & Pricing'!$A$42:$O$55,7,FALSE)*Q62","v":0},{"$f":"VLOOKUP(M51,'Fertilizer Products & Pricing'!$A$4:$O$38,6,FALSE)*Q51+VLOOKUP(M52,'Fertilizer Products & Pricing'!$A$4:$O$38,6,FALSE)*Q52+VLOOKUP(M53,'Fertilizer Products & Pricing'!$A$4:$O$38,6,FALSE)*Q53+VLOOKUP(M54,'Fertilizer Products & Pricing'!$A$4:$O$38,6,FALSE)*Q54+VLOOKUP(M55,'Fertilizer Products & Pricing'!$A$4:$O$38,6,FALSE)*Q55+VLOOKUP(M56,'Fertilizer Products & Pricing'!$A$4:$O$38,6,FALSE)*Q56+VLOOKUP(M59,'Fertilizer Products & Pricing'!$A$42:$O$55,6,FALSE)*Q59+VLOOKUP(M60,'Fertilizer Products & Pricing'!$A$42:$O$55,6,FALSE)*Q60+VLOOKUP(M61,'Fertilizer Products & Pricing'!$A$42:$O$55,6,FALSE)*Q61+VLOOKUP(M62,'Fertilizer Products & Pricing'!$A$42:$O$55,6,FALSE)*Q62","v":0},null,"None","None",{"$f":"VLOOKUP(Y54,'Fertilizer Products & Pricing'!$A$4:$O$38,15,FALSE)","v":0},1,0,0,0,null,{"$f":"VLOOKUP(Y51,'Fertilizer Products & Pricing'!$A$4:$O$38,5,FALSE)*AC51+VLOOKUP(Y52,'Fertilizer Products & Pricing'!$A$4:$O$38,5,FALSE)*AC52+VLOOKUP(Y53,'Fertilizer Products & Pricing'!$A$4:$O$38,5,FALSE)*AC53+VLOOKUP(Y54,'Fertilizer Products & Pricing'!$A$4:$O$38,5,FALSE)*AC54+VLOOKUP(Y55,'Fertilizer Products & Pricing'!$A$4:$O$38,5,FALSE)*AC55+VLOOKUP(Y56,'Fertilizer Products & Pricing'!$A$4:$O$38,5,FALSE)*AC56+VLOOKUP(Y59,'Fertilizer Products & Pricing'!$A$42:$O$55,5,FALSE)*AC59+VLOOKUP(Y60,'Fertilizer Products & Pricing'!$A$42:$O$55,5,FALSE)*AC60+VLOOKUP(Y61,'Fertilizer Products & Pricing'!$A$42:$O$55,5,FALSE)*AC61+VLOOKUP(Y62,'Fertilizer Products & Pricing'!$A$42:$O$55,5,FALSE)*AC62","v":0},{"$f":"VLOOKUP(Y51,'Fertilizer Products & Pricing'!$A$4:$O$38,7,FALSE)*AC51+VLOOKUP(Y52,'Fertilizer Products & Pricing'!$A$4:$O$38,7,FALSE)*AC52+VLOOKUP(Y53,'Fertilizer Products & Pricing'!$A$4:$O$38,7,FALSE)*AC53+VLOOKUP(Y54,'Fertilizer Products & Pricing'!$A$4:$O$38,7,FALSE)*AC54+VLOOKUP(Y55,'Fertilizer Products & Pricing'!$A$4:$O$38,7,FALSE)*AC55+VLOOKUP(Y56,'Fertilizer Products & Pricing'!$A$4:$O$38,7,FALSE)*AC56+VLOOKUP(Y59,'Fertilizer Products & Pricing'!$A$42:$O$55,7,FALSE)*AC59+VLOOKUP(Y60,'Fertilizer Products & Pricing'!$A$42:$O$55,7,FALSE)*AC60+VLOOKUP(Y61,'Fertilizer Products & Pricing'!$A$42:$O$55,7,FALSE)*AC61+VLOOKUP(Y62,'Fertilizer Products & Pricing'!$A$42:$O$55,7,FALSE)*AC62","v":0},{"$f":"VLOOKUP(Y51,'Fertilizer Products & Pricing'!$A$4:$O$38,6,FALSE)*AC51+VLOOKUP(Y52,'Fertilizer Products & Pricing'!$A$4:$O$38,6,FALSE)*AC52+VLOOKUP(Y53,'Fertilizer Products & Pricing'!$A$4:$O$38,6,FALSE)*AC53+VLOOKUP(Y54,'Fertilizer Products & Pricing'!$A$4:$O$38,6,FALSE)*AC54+VLOOKUP(Y55,'Fertilizer Products & Pricing'!$A$4:$O$38,6,FALSE)*AC55+VLOOKUP(Y56,'Fertilizer Products & Pricing'!$A$4:$O$38,6,FALSE)*AC56+VLOOKUP(Y59,'Fertilizer Products & Pricing'!$A$42:$O$55,6,FALSE)*AC59+VLOOKUP(Y60,'Fertilizer Products & Pricing'!$A$42:$O$55,6,FALSE)*AC60+VLOOKUP(Y61,'Fertilizer Products & Pricing'!$A$42:$O$55,6,FALSE)*AC61+VLOOKUP(Y62,'Fertilizer Products & Pricing'!$A$42:$O$55,6,FALSE)*AC62","v":0}]
["None","None",{"$f":"VLOOKUP(A55,'Fertilizer Products & Pricing'!$A$4:$O$38,15,FALSE)","v":0},1,0,0,0,null,null,null,null,null,"None","None",{"$f":"VLOOKUP(M55,'Fertilizer Products & Pricing'!$A$4:$O$38,15,FALSE)","v":0},1,0,0,0,null,null,null,null,null,"None","None",{"$f":"VLOOKUP(Y55,'Fertilizer Products & Pricing'!$A$4:$O$38,15,FALSE)","v":0},1,0,0,0]
["None","None",{"$f":"VLOOKUP(A56,'Fertilizer Products & Pricing'!$A$4:$O$38,15,FALSE)","v":0},1,0,0,0,null,"Zn","B","Mn",null,"None","None",{"$f":"VLOOKUP(M56,'Fertilizer Products & Pricing'!$A$4:$O$38,15,FALSE)","v":0},1,0,0,0,null,"Zn","B","Mn",null,"None","None",{"$f":"VLOOKUP(Y56,'Fertilizer Products & Pricing'!$A$4:$O$38,15,FALSE)","v":0},1,0,0,0,null,"Zn","B","Mn"]
[null,null,null,null,null,null,null,null,{"$f":"VLOOKUP($A$60,'Fertilizer Products & Pricing'!$A$42:$O$55,8,FALSE)*$E$60+VLOOKUP($A$61,'Fertilizer Products & Pricing'!$A$42:$O$55,8,FALSE)*$E$61+VLOOKUP($A$62,'Fertilizer Products & Pricing'!$A$42:$O$55,8,FALSE)*$E$62+VLOOKUP($A$59,'Fertilizer Products & Pricing'!$A$42:$O$55,8,FALSE)*$E$59","v":0},{"$f":"VLOOKUP($A$60,'Fertilizer Products & Pricing'!$A$42:$O$55,9,FALSE)*$E$60+VLOOKUP($A$61,'Fertilizer Products & Pricing'!$A$42:$O$55,9,FALSE)*$E$61+VLOOKUP($A$62,'Fertilizer Products & Pricing'!$A$42:$O$55,9,FALSE)*$E$62+VLOOKUP($A$59,'Fertilizer Products & Pricing'!$A$42:$O$55,9,FALSE)*$E$59","v":0},{"$f":"VLOOKUP($A$60,'Fertilizer Products & Pricing'!$A$42:$O$55,10,FALSE)*$E$60+VLOOKUP($A$61,'Fertilizer Products & Pricing'!$A$42:$O$55,10,FALSE)*$E$61+VLOOKUP($A$62,'Fertilizer Products & Pricing'!$A$42:$O$55,10,FALSE)*$E$62+VLOOKUP($A$59,'Fertilizer Products & Pricing'!$A$42:$O$55,10,FALSE)*$E$59","v":0},null,null,null,null,null,null,null,null,null,{"$f":"VLOOKUP($M60,'Fertilizer Products & Pricing'!$A$42:$O$55,8,FALSE)*$Q60+VLOOKUP($M61,'Fertilizer Products & Pricing'!$A$42:$O$55,8,FALSE)*$Q61+VLOOKUP($M62,'Fertilizer Products & Pricing'!$A$42:$O$55,8,FALSE)*$Q62+VLOOKUP($M59,'Fertilizer Products & Pricing'!$A$42:$O$55,8,FALSE)*$Q59","v":0},{"$f":"VLOOKUP($M60,'Fertilizer Products & Pricing'!$A$42:$O$55,9,FALSE)*$Q60+VLOOKUP($M61,'Fertilizer Products & Pricing'!$A$42:$O$55,9,FALSE)*$Q61+VLOOKUP($M62,'Fertilizer Products & Pricing'!$A$42:$O$55,9,FALSE)*$Q62+VLOOKUP($M59,'Fertilizer Products & Pricing'!$A$42:$O$55,9,FALSE)*$Q59","v":0},{"$f":"VLOOKUP($M60,'Fertilizer Products & Pricing'!$A$42:$O$55,10,FALSE)*$Q60+VLOOKUP($M61,'Fertilizer Products & Pricing'!$A$42:$O$55,10,FALSE)*$Q61+VLOOKUP($M62,'Fertilizer Products & Pricing'!$A$42:$O$55,10,FALSE)*$Q62+VLOOKUP($M59,'Fertilizer Products & Pricing'!$A$42:$O$55,10,FALSE)*$Q59","v":0},null,null,null,null,null,null,null,null,null,{"$f":"VLOOKUP($Y60,'Fertilizer Products & Pricing'!$A$42:$O$55,8,FALSE)*$AC60+VLOOKUP($Y61,'Fertilizer Products & Pricing'!$A$42:$O$55,8,FALSE)*$AC61+VLOOKUP($Y62,'Fertilizer Products & Pricing'!$A$42:$O$55,8,FALSE)*$AC62+VLOOKUP($Y59,'Fertilizer Products & Pricing'!$A$42:$O$55,8,FALSE)*$AC59","v":0},{"$f":"VLOOKUP($Y60,'Fertilizer Products & Pricing'!$A$42:$O$55,9,FALSE)*$AC60+VLOOKUP($Y61,'Fertilizer Products & Pricing'!$A$42:$O$55,9,FALSE)*$AC61+VLOOKUP($Y62,'Fertilizer Products & Pricing'!$A$42:$O$55,9,FALSE)*$AC62+VLOOKUP($Y59,'Fertilizer Products & Pricing'!$A$42:$O$55,9,FALSE)*$AC59","v":0},{"$f":"VLOOKUP($Y60,'Fertilizer Products & Pricing'!$A$42:$O$55,10,FALSE)*$AC60+VLOOKUP($Y61,'Fertilizer Products & Pricing'!$A$42:$O$55,10,FALSE)*$AC61+VLOOKUP($Y62,'Fertilizer Products & Pricing'!$A$42:$O$55,10,FALSE)*$AC62+VLOOKUP($Y59,'Fertilizer Products & Pricing'!$A$42:$O$55,10,FALSE)*$AC59","v":0}]
["Micronutrients (drop down menu)",null,null,null,null,null,null,null,null,null,null,null,"Micronutrients (drop down menu)",null,null,null,null,null,null,null,null,null,null,null,"Micronutrients (drop down menu)"]
["None",{"$f":"VLOOKUP($A59,Micronutrients,14,FALSE)","v":"None"},{"$f":"VLOOKUP($A59,Micronutrients,15,FALSE)","v":0},{"$f":"VLOOKUP($A59,Micronutrients,13,FALSE)","v":1},0,{"$f":"VLOOKUP($A59,Micronutrients,12,FALSE)","v":0},{"$f":"(E59*VLOOKUP(A59,Micronutrients,11,FALSE)/D59)*C59","v":0},null,null,null,null,null,"None",{"$f":"VLOOKUP($M59,Micronutrients,14,FALSE)","v":"None"},{"$f":"VLOOKUP($M59,Micronutrients,15,FALSE)","v":0},{"$f":"VLOOKUP($M59,Micronutrients,13,FALSE)","v":1},0,{"$f":"VLOOKUP($M59,Micronutrients,12,FALSE)","v":0},{"$f":"(Q59*VLOOKUP(M59,Micronutrients,11,FALSE)/P59)*O59","v":0},null,null,null,null,null,"None",{"$f":"VLOOKUP(Y59,Micronutrients,14,FALSE)","v":"None"},{"$f":"VLOOKUP(Y59,Micronutrients,15,FALSE)","v":0},{"$f":"VLOOKUP(Y59,Micronutrients,13,FALSE)","v":1},0,{"$f":"VLOOKUP(Y59,Micronutrients,12,FALSE)","v":0},{"$f":"(AC59*VLOOKUP(Y59,Micronutrients,11,FALSE)/AB59)*AA59","v":0}]
["None",{"$f":"VLOOKUP($A60,Micronutrients,14,FALSE)","v":"None"},{"$f":"VLOOKUP($A60,Micronutrients,15,FALSE)","v":0},{"$f":"VLOOKUP($A60,Micronutrients,13,FALSE)","v":1},0,{"$f":"VLOOKUP($A60,Micronutrients,12,FALSE)","v":0},{"$f":"(E60*VLOOKUP(A60,Micronutrients,11,FALSE)/D60)*C60","v":0},null,null,null,null,null,"None",{"$f":"VLOOKUP($M60,Micronutrients,14,FALSE)","v":"None"},{"$f":"VLOOKUP($M60,Micronutrients,15,FALSE)","v":0},{"$f":"VLOOKUP($M60,Micronutrients,13,FALSE)","v":1},0,{"$f":"VLOOKUP($M60,Micronutrients,12,FALSE)","v":0},{"$f":"(Q60*VLOOKUP(M60,Micronutrients,11,FALSE)/P60)*O60","v":0},null,null,null,null,null,"None",{"$f":"VLOOKUP(Y60,Micronutrients,14,FALSE)","v":"None"},{"$f":"VLOOKUP(Y60,Micronutrients,15,FALSE)","v":0},{"$f":"VLOOKUP(Y60,Micronutrients,13,FALSE)","v":1},0,{"$f":"VLOOKUP(Y60,Micronutrients,12,FALSE)","v":0},{"$f":"(AC60*VLOOKUP(Y60,Micronutrients,11,FALSE)/AB60)*AA60","v":0}]
["None",{"$f":"VLOOKUP($A61,Micronutrients,14,FALSE)","v":"None"},{"$f":"VLOOKUP($A61,Micronutrients,15,FALSE)","v":0},{"$f":"VLOOKUP($A61,Micronutrients,13,FALSE)","v":1},0,{"$f":"VLOOKUP($A61,Micronutrients,12,FALSE)","v":0},{"$f":"(E61*VLOOKUP(A61,Micronutrients,11,FALSE)/D61)*C61","v":0},null,null,null,null,null,"None",{"$f":"VLOOKUP($M61,Micronutrients,14,FALSE)","v":"None"},{"$f":"VLOOKUP($M61,Micronutrients,15,FALSE)","v":0},{"$f":"VLOOKUP($M61,Micronutrients,13,FALSE)","v":1},0,{"$f":"VLOOKUP($M61,Micronutrients,12,FALSE)","v":0},{"$f":"(Q61*VLOOKUP(M61,Micronutrients,11,FALSE)/P61)*O61","v":0},null,null,null,null,null,"None",{"$f":"VLOOKUP(Y61,Micronutrients,14,FALSE)","v":"None"},{"$f":"VLOOKUP(Y61,Micronutrients,15,FALSE)","v":0},{"$f":"VLOOKUP(Y61,Micronutrients,13,FALSE)","v":1},0,{"$f":"VLOOKUP(Y61,Micronutrients,12,FALSE)","v":0},{"$f":"(AC61*VLOOKUP(Y61,Micronutrients,11,FALSE)/AB61)*AA61","v":0}]
["None",{"$f":"VLOOKUP($A62,Micronutrients,14,FALSE)","v":"None"},{"$f":"VLOOKUP($A62,Micronutrients,15,FALSE)","v":0},{"$f":"VLOOKUP($A62,Micronutrients,13,FALSE)","v":1},0,{"$f":"VLOOKUP($A62,Micronutrients,12,FALSE)","v":0},{"$f":"(E62*VLOOKUP(A62,Micronutrients,11,FALSE)/D62)*C62","v":0},null,null,null,null,null,"None",{"$f":"VLOOKUP($M62,Micronutrients,14,FALSE)","v":"None"},{"$f":"VLOOKUP($M62,Micronutrients,15,FALSE)","v":0},{"$f":"VLOOKUP($M62,Micronutrients,13,FALSE)","v":1},0,{"$f":"VLOOKUP($M62,Micronutrients,12,FALSE)","v":0},{"$f":"(Q62*VLOOKUP(M62,Micronutrients,11,FALSE)/P62)*O62","v":0},null,null,null,null,null,"None",{"$f":"VLOOKUP(Y62,Micronutrients,14,FALSE)","v":"None"},{"$f":"VLOOKUP(Y62,Micronutrients,15,FALSE)","v":0},{"$f":"VLOOKUP(Y62,Micronutrients,13,FALSE)","v":1},0,{"$f":"VLOOKUP(Y62,Micronutrients,12,FALSE)","v":0},{"$f":"(AC62*VLOOKUP(Y62,Micronutrients,11,FALSE)/AB62)*AA62","v":0}]
[]
["Nitrogen Stabilizers (drop down menu)",null,null,null,null,null,null,null,null,null,null,null,"Nitrogen Stabilizers (drop down menu)",null,null,null,null,null,null,null,null,null,null,null,"Nitrogen Stabilizers (drop down menu)"]
["None",{"$f":"VLOOKUP(A65,NitrogenStabilizers,14,FALSE)","v":"None"},{"$f":"VLOOKUP(A65,NitrogenStabilizers,15,FALSE)","v":0},{"$f":"VLOOKUP(A65,NitrogenStabilizers,13,FALSE)","v":1},0,{"$f":"VLOOKUP(A65,NitrogenStabilizers,12,FALSE)","v":0},{"$f":"(E65*VLOOKUP(A65,NitrogenStabilizers,11,FALSE)/D65)*C65","v":0},null,null,null,null,null,"None",{"$f":"VLOOKUP(M65,NitrogenStabilizers,14,FALSE)","v":"None"},{"$f":"VLOOKUP(M65,NitrogenStabilizers,15,FALSE)","v":0},{"$f":"VLOOKUP(M65,NitrogenStabilizers,13,FALSE)","v":1},0,{"$f":"VLOOKUP(M65,NitrogenStabilizers,12,FALSE)","v":0},{"$f":"(Q65*VLOOKUP(M65,NitrogenStabilizers,11,FALSE)/P65)*O65","v":0},null,null,null,null,null,"None",{"$f":"VLOOKUP(Y65,NitrogenStabilizers,14,FALSE)","v":"None"},{"$f":"VLOOKUP(Y65,NitrogenStabilizers,15,FALSE)","v":0},{"$f":"VLOOKUP(Y65,NitrogenStabilizers,13,FALSE)","v":1},0,{"$f":"VLOOKUP(Y65,NitrogenStabilizers,12,FALSE)","v":0},{"$f":"(AC65*VLOOKUP(Y65,NitrogenStabilizers,11,FALSE)/AB65)*AA65","v":0}]
["None",{"$f":"VLOOKUP(A66,NitrogenStabilizers,14,FALSE)","v":"None"},{"$f":"VLOOKUP(A66,NitrogenStabilizers,15,FALSE)","v":0},{"$f":"VLOOKUP(A66,NitrogenStabilizers,13,FALSE)","v":1},0,{"$f":"VLOOKUP(A66,NitrogenStabilizers,12,FALSE)","v":0},{"$f":"(E66*VLOOKUP(A66,NitrogenStabilizers,11,FALSE)/D66)*C66","v":0},null,null,null,null,null,"None",{"$f":"VLOOKUP(M66,NitrogenStabilizers,14,FALSE)","v":"None"},{"$f":"VLOOKUP(M66,NitrogenStabilizers,15,FALSE)","v":0},{"$f":"VLOOKUP(M66,NitrogenStabilizers,13,FALSE)","v":1},0,{"$f":"VLOOKUP(M66,NitrogenStabilizers,12,FALSE)","v":0},{"$f":"(Q66*VLOOKUP(M66,NitrogenStabilizers,11,FALSE)/P66)*O66","v":0},null,null,null,null,null,"None",{"$f":"VLOOKUP(Y66,NitrogenStabilizers,14,FALSE)","v":"None"},{"$f":"VLOOKUP(Y66,NitrogenStabilizers,15,FALSE)","v":0},{"$f":"VLOOKUP(Y66,NitrogenStabilizers,13,FALSE)","v":1},0,{"$f":"VLOOKUP(Y66,NitrogenStabilizers,12,FALSE)","v":0},{"$f":"(AC66*VLOOKUP(Y66,NitrogenStabilizers,11,FALSE)/AB66)*AA66","v":0}]
["3rd Application Fertilizer Cost/Acre",null,null,null,null,null,{"$f":"SUM(G51:G66)","v":0},null,null,null,null,null,"3rd Application Fertilizer Cost/Acre",null,null,null,null,null,{"$f":"SUM(S51:S66)","v":0},null,null,null,null,null,"3rd Application Fertilizer Cost/Acre",null,null,null,null,null,{"$f":"SUM(AE51:AE66)","v":0}]
[]
["Total Fertilizer Cost/Acre",null,null,null,null,null,{"$f":"G67+G46+G25","v":86.412499999999994},null,null,null,null,null,"Total Fertilizer Cost/Acre",null,null,null,null,null,{"$f":"S67+S46+S25","v":0},null,null,null,null,null,"Total Fertilizer Cost/Acre",null,null,null,null,null,{"$f":"AE67+AE46+AE25","v":0}]
[]
[null,null,null,null,"Total Nutrient Needs",null,null,null,null,null,null,null,null,null,null,null,"Total Nutrient Needs",null,null,null,null,null,null,null,null,null,null,null,"Total Nutrient Needs"]
[null,null,null,null,"Based on:","Nutrient Removal",null,null,"Total Fertilizer Program",null,null,null,null,null,null,null,"Based on:","Soil Test Based Recs",null,null,"Total Fertilizer Program",null,null,null,null,null,null,null,"Based on:","Soil Test Based Recs",null,null,"Total Fertilizer Program"]
["Farm Name",null,null,null,"N","P","K",null,"N","P","K",null,{"$f":"A73","v":"Farm Name"},null,null,null,"N","P","K",null,"N","P","K",null,{"$f":"A73","v":"Farm Name"},null,null,null,"N","P","K",null,"N","P","K"]
["Farm Tract",null,null,null,{"$f":"'Nutrient Management'!J65","v":70},{"$f":"'Nutrient Management'!K65","v":31},{"$f":"'Nutrient Management'!L65","v":12},null,{"$f":"I51+I30+I6","v":69.150000000000006},{"$f":"J51+J30+J6","v":34.5},{"$f":"K51+K30+K6","v":15},null,{"$f":"A74","v":"Farm Tract"},null,null,null,{"$f":"'Nutrient Management'!J55","v":70},{"$f":"'Nutrient Management'!K55","v":33},{"$f":"'Nutrient Management'!L55","v":15},null,{"$f":"U51+U30+U6","v":0},{"$f":"V51+V30+V6","v":0},{"$f":"W51+W30+W6","v":0},null,{"$f":"A74","v":"Farm Tract"},null,null,null,{"$f":"'Nutrient Management'!J55","v":70},{"$f":"'Nutrient Management'!K55","v":33},{"$f":"'Nutrient Management'!L55","v":15},null,{"$f":"AG51+AG30+AG6","v":0},{"$f":"AH51+AH30+AH6","v":0},{"$f":"AI51+AI30+AI6","v":0}]
["Farm Number",null,null,null,"S","Ca","Mg",null,"S","Ca","Mg",null,"Farm Number",null,null,null,"S","Ca","Mg",null,"S","Ca","Mg",null,"Farm Number",null,null,null,"S","Ca","Mg",null,"S","Ca","Mg"]
[null,null,null,null,{"$f":"'Nutrient Management'!J68","v":7.0000000000000009},{"$f":"'Nutrient Management'!K58","v":0},{"$f":"'Nutrient Management'!L58","v":0},null,{"$f":"I54+I33+I9","v":8.4},{"$f":"J54+J33+J9","v":0},{"$f":"K54+K33+K9","v":0},null,null,null,null,null,{"$f":"'Nutrient Management'!J58","v":8},{"$f":"F76","v":0},{"$f":"G76","v":0},null,{"$f":"U54+U33+U9","v":0},{"$f":"V54+V33+V9","v":0},{"$f":"W54+W33+W9","v":0},null,null,null,null,null,{"$f":"'Nutrient Management'!J58","v":8},{"$f":"F76","v":0},{"$f":"G76","v":0},null,{"$f":"AG54+AG33+AG9","v":0},{"$f":"AH54+AH33+AH9","v":0},{"$f":"AI54+AI33+AI9","v":0}]
[null,null,null,null,"Zn","B","Mn",null,"Zn","B","Mn",null,null,null,null,null,"Zn","B","Mn",null,"Zn","B","Mn",null,null,null,null,null,"Zn","B","Mn",null,"Zn","B","Mn"]
[null,null,null,null,0,0,0,null,{"$f":"I57+I36+I12","v":0},{"$f":"J57+J36+J12","v":0},{"$f":"K57+K36+K12","v":0},null,null,null,null,null,{"$f":"E78","v":0},{"$f":"F78","v":0},{"$f":"G78","v":0},null,{"$f":"U57+U36+U12","v":0},{"$f":"V57+V36+V12","v":0},{"$f":"W57+W36+W12","v":0},null,null,null,null,null,{"$f":"E78","v":0},{"$f":"F78","v":0},{"$f":"G78","v":0},null,{"$f":"AG57+AG36+AG12","v":0},{"$f":"AH57+AH36+AH12","v":0},{"$f":"AI57+AI36+AI12","v":0}]
[null,null,null,null,"* from Nutrient Management tab",null,null,null,null,null,null,null,null,null,null,null,"* from Nutrient Management tab",null,null,null,null,null,null,null,null,null,null,null,"* from Nutrient Management tab"]

{"sheet":"Simple Fertilizer Calculator","index":10,"n_rows":46,"n_cols":11,"rows_kept":46,"cut":false,"hidden":false,"merged":[[42,1,43,6],[45,1,47,6],[27,1,28,6],[30,1,32,6],[1,1,1,6],[20,1,20,6],[35,1,35,6]]}
[]
[null,"Fertilizer Calculator"]
[null,null,"Source","Price/ton","Price/lb","Amount","Cost/Acre"]
[null,null,"(Enter Below)","(Enter Below)",null,"(Enter Below)"]
[null,"Nitrogen",0.46,365,{"$f":"D5/H5","v":0.39673913043478259},86,{"$f":"F5*E5","v":34.119565217391305},{"$f":"2000*C5","v":920}]
[null,"Nitrogen from Phosphate",0.18,144,{"$f":"D6/J20","v":0.4},40,{"$f":"F6*E6","v":16},{"$f":"2000*C10","v":920}]
[null,"Nitrogen from Sulfur",0.21,168,{"$f":"D7/J35","v":0.4},40,{"$f":"F7*E7","v":16}]
[null,null,null,null,null,null,{"$f":"SUM(G5:G7)","v":66.119565217391312}]
[null,null,"(Enter Below)","(Enter Below)",null,"(Enter Below)"]
[null,"Phosphorus",0.46,361,{"$f":"D10/H6","v":0.3923913043478261},60,{"$f":"F10*E10","v":23.543478260869566},{"$f":"2000*C6","v":360}]
[null,"Potassium",0.6,355,{"$f":"D11/H11","v":0.29583333333333334},75,{"$f":"F11*E11","v":22.1875},{"$f":"2000*C11","v":1200}]
[null,"Sulfur",0.24,157,{"$f":"D12/H12","v":0.32708333333333334},60,{"$f":"F12*E12","v":19.625},{"$f":"2000*C12","v":480}]
[null,null,null,null,null,null,{"$f":"SUM(G10:G12)","v":65.355978260869563}]
[null,null,null,null,null,"Total Fertilizer",{"$f":"G8+G13","v":131.47554347826087}]
[null,"Source Code:"]
[null,"Nitrogen","28-0-0","type in",0.28000000000000003]
[null,"Phosphorus","18-46-0","type in",0.46]
[null,"Potassium","0-0-60","type in",0.6]
[]
[null,null,null,null,null,null,null,null,"lbs/ton",{"$f":"2000*(C24/100)","v":360},{"$f":"2000*(D24/100)","v":920}]
[null,"Extract Nitrogen Cost from Phosphate Fertilizers",null,null,null,null,null,null,"%/ton",{"$f":"J20/(J20+K20)","v":0.28125},{"$f":"K20/(J20+K20)","v":0.71875}]
[null,null,"N","P","Price"]
[null,null,"(Enter Below)","(Enter Below)","(Enter Below)"]
[null,null,18,46,505]
[null,"Price/lb",0.4,{"$f":"D26/K20","v":0.3923913043478261}]
[null,"Price/ton",{"$f":"J20*C25","v":144},{"$f":"E24-C26","v":361},{"$f":"SUM(C26:D26)","v":505}]
[]
[null,"*Enter a price/lb of nitrogen to calculate the phosphate fertilizer price.  The price as calculated above can be used if a price is not already known."]
[]
[]
[null,"*If nitrogen from Phosphate fertilizer will not be utilized by the crop, simply enter \"0\" in Amount and adjust the price of the phosphate fertilizer to the total cost/ton of the blend."]
[]
[]
[]
[null,null,null,null,null,null,null,null,"lbs/ton",{"$f":"2000*(C39/100)","v":420},{"$f":"2000*(D39/100)","v":480}]
[null,"Extract Nitrogen Cost from Sulfur Fertilizers",null,null,null,null,null,null,"%/ton",{"$f":"J35/(J35+K35)","v":0.46666666666666667},{"$f":"K35/(J35+K35)","v":0.53333333333333333}]
[null,null,"N","S","Price"]
[null,null,"(Enter Below)","(Enter Below)","(Enter Below)"]
[null,null,21,24,325]
[null,"Price/lb",0.4,{"$f":"D41/K35","v":0.32708333333333334}]
[null,"Price/ton",{"$f":"J35*C40","v":168},{"$f":"E39-C41","v":157},{"$f":"SUM(C41:D41)","v":325}]
[]
[null,"*Enter a price/lb of nitrogen to calculate the sulfur fertilizer price.  The price as calculated above can be used if a price is not already known."]
[]
[]
[null,"*If nitrogen from sulfur fertilizer will not be utilized by the crop, simply enter \"0\" in Amount and adjust the price of the sulfur fertilizer to the total cost/ton of the blend."]

{"sheet":"Tri-State Recommendations","index":11,"n_rows":31,"n_cols":12,"rows_kept":31,"cut":false,"hidden":true,"merged":[[29,1,29,14],[30,9,30,12],[15,0,17,0],[19,1,19,11],[0,1,0,11],[2,1,2,3],[2,5,2,7],[2,9,2,11],[6,1,6,11],[7,0,14,0],[0,0,3,0]]}
[null,"Tri-State Fertilizer Recommendations"]
[]
[null,"Corn",null,null,null,"Soybeans",null,null,null,"Wheat"]
[]
["Yield Goal:",{"$f":"'Nutrient Management'!C6","v":200},null,null,null,{"$f":"'Nutrient Management'!G6","v":45},null,null,null,{"$f":"'Nutrient Management'!K6","v":100}]
[]
["Soil Test Level:","Input amount of nutrients currently present in  field (based on soil test results)"]
[null,"(Enter Below)","(Enter Below)","(Enter Below)",null,"(Enter Below)","(Enter Below)","(Enter Below)",null,"(Enter Below)","(Enter Below)","(Enter Below)"]
[null,"N","P","K",null,"N","P","K",null,"N","P","K"]
[null,0,0,0,null,0,0,0,null,0,0,0]
[null,"S","Ca","Mag",null,"S","Ca","Mag",null,"S","Ca","Mag"]
[null,0,0,0,null,0,0,0,null,0,0,0]
[null,0,0,0,null,0,0,0,null,0,0,0]
[null,0,0,0,null,0,0,0,null,0,0,0]
[null,null,"(Enter Below)",null,null,null,"(Enter Below)",null,null,null,"(Enter Below)"]
["Note: CEC & pH levels needed for calculation accuracy in Soil Test Based Recommendations","CEC Level:",0,null,null,"CEC Level:",0,null,null,"CEC Level:",0]
[null,null,"(Enter Below)",null,null,null,"(Enter Below)",null,null,null,"(Enter Below)"]
[null,"pH Level:",0,null,null,"pH Level:",0,null,null,"pH Level:",0]
[]
["Soil Test Based Recommendations:","Based on soil test data, the following are tri-state recommendations for fertilizer needs to meet yield goals."]
[]
[null,"N","P","K",null,"N","P","K",null,"N","P","K"]
[null,0,{"$f":"IF(AND(C10<20,B5<=150),105,IF(AND(C10<20,B5<=200),120,IF(AND(C10<20,B5<=250),140,IF(AND(C10<20,B5<=300),155,IF(AND(C10<30,B5<=150),80,IF(AND(C10<30,B5<=200),95,IF(AND(C10<30,B5<=250),115,IF(AND(C10<30,B5<=300),130,IF(AND(C10<80,B5<=150),55,IF(AND(C10<80,B5<=200),70,IF(AND(C10<80,B5<=250),90,IF(AND(C10<80,B5<=300),105,IF(AND(C10>=80,B5<=150),0,IF(AND(C10>=80,B5<=200),0,IF(AND(C10>=80,B5<=250),0,IF(AND(C10>=80,B5<=300),0))))))))))))))))","v":120},{"$f":"IF(AND(D10<=100,B5<=150,C16<=5),95,IF(AND(D10<=100,B5<=200,C16<=5),105,IF(AND(D10<=105,B5<=250,C16<=5),115,IF(AND(D10<=100,B5<=160,C16<=5),125,IF(AND(D10<=150,B5<=150,C16<=5),60,IF(AND(D10<=150,B5<=200,C16<=5),70,IF(AND(D10<=150,B5<=250,C16<=5),80,IF(AND(D10<=150,B5<=160,C16<=5),90,IF(AND(D10<=260,B5<=150,C16<=5),30,IF(AND(D10<=260,B5<=200,C16<=5),40,IF(AND(D10<=260,B5<=250,C16<=5),50,IF(AND(D10<=260,B5<=160,C16<=5),60,IF(AND(D10>=260,B5<=150,C16<=5),0,IF(AND(D10>=260,B5<=200,C16<=5),0,IF(AND(D10>=260,B5<=250,C16<=5),0,IF(AND(D10>=260,B5<=160,C16<=5),0,IF(AND(D10<=100,B5<=150,C16>=6),155,IF(AND(D10<=100,B5<=200,C16>=6),165,IF(AND(D10<=100,B5<=250,C16>=6),175,IF(AND(D10<=100,B5<=160,C16>=6),185,IF(AND(D10<=150,B5<=150,C16>=6),110,IF(AND(D10<=150,B5<=200,C16>=6),120,IF(AND(D10<=150,B5<=250,C16>=6),130,IF(AND(D10<=150,B5<=160,C16>=6),140,IF(AND(D10<=200,B5<=150,C16>=6),65,IF(AND(D10<=200,B5<=200,C16>=6),75,IF(AND(D10<=200,B5<=250,C16>=6),85,IF(AND(D10<=200,B5<=160,C16>=6),95,IF(AND(D10<=340,B5<=150,C16>=6),30,IF(AND(D10<=340,B5<=200,C16>=6),40,IF(AND(D10<=340,B5<=250,C16>=6),50,IF(AND(D10<=340,B5<=160,C16>=6),60,IF(AND(D10>=340,B5<=150,C16>=6),0,IF(AND(D10>=340,B5<=200,C16>=6),0,IF(AND(D10>=340,B5<=250,C16>=6),0,IF(AND(D10>=340,B5<=160,C16>=6),0))))))))))))))))))))))))))))))))))))","v":105},null,0,{"$f":"IF(AND(G10<20,F5<=30),75,IF(AND(G10<20,F5<=50),90,IF(AND(G10<20,F5<=70),105,IF(AND(G10<20,F5<=90),120,IF(AND(G10<30,F5<=30),50,IF(AND(G10<30,F5<=50),65,IF(AND(G10<30,F5<=70),80,IF(AND(G10<30,F5<=90),95,IF(AND(G10<80,F5<=30),25,IF(AND(G10<80,F5<=50),40,IF(AND(G10<80,F5<=70),55,IF(AND(G10<80,F5<=90),70,IF(AND(G10>=80,F5<=30),0,IF(AND(G10>=80,F5<=50),0,IF(AND(G10>=80,F5<=70),0,IF(AND(G10>=80,F5<=90),0))))))))))))))))","v":90},{"$f":"IF(AND(H10<=100,F5<=30,G16<=5),95,IF(AND(H10<=100,F5<=50,G16<=5),120,IF(AND(H10<=100,F5<=70,G16<=5),145,IF(AND(H10<=100,F5<=90,G16<=5),165,IF(AND(H10<=150,F5<=30,G16<=5),65,IF(AND(H10<=150,F5<=50,G16<=5),90,IF(AND(H10<=150,F5<=70,G16<=5),110,IF(AND(H10<=150,F5<=90,G16<=5),135,IF(AND(H10<=260,F5<=30,G16<=5),35,IF(AND(H10<=260,F5<=50,G16<=5),60,IF(AND(H10<=260,F5<=70,G16<=5),80,IF(AND(H10<=260,F5<=90,G16<=5),105,IF(AND(H10>=260,F5<=30,G16<=5),0,IF(AND(H10>=260,F5<=50,G16<=5),0,IF(AND(H10>=260,F5<=70,G16<=5),0,IF(AND(H10>=260,F5<=90,G16<=5),0,IF(AND(H10<=100,F5<=30,G16>=6),155,IF(AND(H10<=100,F5<=50,G16>=6),180,IF(AND(H10<=100,F5<=70,G16>=6),205,IF(AND(H10<=100,F5<=90,G16>=6),225,IF(AND(H10<=150,F5<=30,G16>=6),115,IF(AND(H10<=150,F5<=50,G16>=6),135,IF(AND(H10<=150,F5<=70,G16>=6),160,IF(AND(H10<=150,F5<=90,G16>=6),180,IF(AND(H10<=200,F5<=30,G16>=6),70,IF(AND(H10<=200,F5<=50,G16>=6),95,IF(AND(H10<=200,F5<=70,G16>=6),115,IF(AND(H10<=200,F5<=90,G16>=6),140,IF(AND(H10<=340,F5<=30,G16>=6),35,IF(AND(H10<=340,F5<=50,G16>=6),60,IF(AND(H10<=340,F5<=70,G16>=6),80,IF(AND(H10<=340,F5<=90,G16>=6),105,IF(AND(H10>=340,F5<=30,G16>=6),0,IF(AND(H10>=340,F5<=50,G16>=6),0,IF(AND(H10>=340,F5<=70,G16>=6),0,IF(AND(H10>=340,F5<=90,G16>=6),0))))))))))))))))))))))))))))))))))))","v":120},null,0,{"$f":"IF(AND(K10<20,J5<=60),130,IF(AND(K10<20,J5<=90),145,IF(AND(K10<20,J5<=120),160,IF(AND(K10<20,J5<=150),175,IF(AND(K10<40,J5<=60),80,IF(AND(K10<40,J5<=90),95,IF(AND(K10<40,J5<=120),110,IF(AND(K10<40,J5<=150),125,IF(AND(K10<100,J5<=60),30,IF(AND(K10<100,J5<=90),45,IF(AND(K10<100,J5<=120),60,IF(AND(K10<100,J5<=150),75,IF(AND(K10>=100,J5<=60),0,IF(AND(K10>=100,J5<=90),0,IF(AND(K10>=100,J5<=120),0,IF(AND(K10>=100,J5<=150),0))))))))))))))))","v":160},{"$f":"IF(AND(L10<=100,J5<=60,K16<=5),80,IF(AND(L10<=100,J5<=150,K16<=5),85,IF(AND(L10<=100,J5<=120,K16<=5),95,IF(AND(L10<=100,J5<=150,K16<=5),100,IF(AND(L10<=150,J5<=60,K16<=5),45,IF(AND(L10<=150,J5<=150,K16<=5),55,IF(AND(L10<=150,J5<=120,K16<=5),60,IF(AND(L10<=150,J5<=150,K16<=5),70,IF(AND(L10<=260,J5<=60,K16<=5),15,IF(AND(L10<=260,J5<=150,K16<=5),25,IF(AND(L10<=260,J5<=120,K16<=5),30,IF(AND(L10<=260,J5<=150,K16<=5),40,IF(AND(L10>=260,J5<=60,K16<=5),0,IF(AND(L10>=260,J5<=150,K16<=5),0,IF(AND(L10>=260,J5<=120,K16<=5),0,IF(AND(L10>=260,J5<=150,K16<=5),0,IF(AND(L10<=100,J5<=60,K16>=6),140,IF(AND(L10<=100,J5<=90,K16>=6),145,IF(AND(L10<=100,J5<=120,K16>=6),155,IF(AND(L10<=100,J5<=150,K16>=6),160,IF(AND(L10<=150,J5<=60,K16>=6),95,IF(AND(L10<=150,J5<=90,K16>=6),100,IF(AND(L10<=150,J5<=120,K16>=6),110,IF(AND(L10<=150,J5<=150,K16>=6),160,IF(AND(L10<=200,J5<=60,K16>=6),50,IF(AND(L10<=200,J5<=90,K16>=6),60,IF(AND(L10<=200,J5<=120,K16>=6),65,IF(AND(L10<=200,J5<=150,K16>=6),75,IF(AND(L10<=340,J5<=60,K16>=6),15,IF(AND(L10<=340,J5<=90,K16>=6),25,IF(AND(L10<=340,J5<=120,K16>=6),30,IF(AND(L10<=340,J5<=150,K16>=6),40,IF(AND(L10>=340,J5<=60,K16>=6),0,IF(AND(L10>=340,J5<=90,K16>=6),0,IF(AND(L10>=340,J5<=120,K16>=6),0,IF(AND(L10>=340,J5<=150,K16>=6),0))))))))))))))))))))))))))))))))))))","v":85}]
[null,"S","Ca","Mag",null,"S","Ca","Mag",null,"S","Ca","Mag"]
[null,0,{"$f":"IF(AND(C12<=200),42,IF(AND(C12>200),0))","v":42},{"$f":"MAX(IF(AND(C16<=8,C18<=7,D12<=70),11,IF(AND(C16>=8,C18>=7,D12<=100),50,IF(AND(D10>D12,C16<=8),11,IF(AND(D10>D12,C16>8),50)))))","v":11},null,0,{"$f":"IF(AND(G12<=200),42,IF(AND(G12>200),0))","v":42},{"$f":"MAX(IF(AND(G16<=8,G18<=7,H12<=70),11,IF(AND(G16>=8,G18>=7,H12<=100),50,IF(AND(H10>H12,G16<=8),11,IF(AND(H10>H12,G16>8),50)))))","v":11},null,0,{"$f":"IF(AND(K12<=200),42,IF(AND(K12>200),0))","v":42},{"$f":"MAX(IF(AND(K16<=8,K18<=7,L12<=70),11,IF(AND(K16>=8,K18>=7,L12<=100),50,IF(AND(L10>L12,K16<=8),11,IF(AND(L10>L12,K16>8),50)))))","v":11}]
[null,"Z","B","Mn",null,"Z","B","Mn",null,"Z","B","Mn"]
[null,{"$f":"MAX(((5*C18)-(0.4*B14)-32),0)","v":0},0,0,null,0,0,{"$f":"MAX(0,((6.2*G18)-(0.35*H14))-36)","v":0},null,0,0,{"$f":"MAX(0,((6.2*K18)-(0.35*L14))-36)","v":0}]
[]
[]
[null,"Note: This section is not a replacement for recommendations from a soil test analysis obtained from soil test laboratories.  "]
[null,null,"For soil test based recommendations, visit the MSU Soil and Plant Nutrient Laboratory:",null,null,null,null,null,null,"https://www.canr.msu.edu/spnl/"]

{"sheet":"Charts","index":12,"n_rows":41,"n_cols":12,"rows_kept":41,"cut":false,"hidden":true,"merged":[]}
[null,"Corn","Soybeans","Wheat",null,null,null,null,null,"Corn","Soybeans","Wheat"]
["Seed",{"$f":"#REF!","v":{"$error":"#REF!"}},{"$f":"#REF!","v":{"$error":"#REF!"}},{"$f":"#REF!","v":{"$error":"#REF!"}},null,null,null,null,"Variable",{"$f":"#REF!","v":{"$error":"#REF!"}},{"$f":"#REF!","v":{"$error":"#REF!"}},{"$f":"#REF!","v":{"$error":"#REF!"}}]
["Fertilizer",{"$f":"#REF!","v":{"$error":"#REF!"}},{"$f":"#REF!","v":{"$error":"#REF!"}},{"$f":"#REF!","v":{"$error":"#REF!"}},null,null,null,null,"Fixed",{"$f":"#REF!","v":{"$error":"#REF!"}},{"$f":"#REF!","v":{"$error":"#REF!"}},{"$f":"#REF!","v":{"$error":"#REF!"}}]
["Crop Chemicals",{"$f":"SUM(B5:B7)","v":{"$error":"#REF!"}},{"$f":"SUM(C5:C7)","v":{"$error":"#REF!"}},{"$error":"#REF!"},null,null,null,null,"Variable & Fixed",{"$f":"#REF!","v":{"$error":"#REF!"}},{"$f":"#REF!","v":{"$error":"#REF!"}},{"$f":"#REF!","v":{"$error":"#REF!"}}]
["Herbicides",{"$f":"#REF!","v":{"$error":"#REF!"}},{"$f":"#REF!","v":{"$error":"#REF!"}},{"$f":"#REF!","v":{"$error":"#REF!"}}]
["Fungicides",{"$f":"#REF!","v":{"$error":"#REF!"}},{"$f":"#REF!","v":{"$error":"#REF!"}},{"$f":"#REF!","v":{"$error":"#REF!"}}]
["Insecticides",{"$f":"#REF!","v":{"$error":"#REF!"}},{"$f":"#REF!","v":{"$error":"#REF!"}},{"$f":"#REF!","v":{"$error":"#REF!"}}]
["Crop Insurance",{"$f":"#REF!","v":{"$error":"#REF!"}},{"$f":"#REF!","v":{"$error":"#REF!"}},{"$f":"#REF!","v":{"$error":"#REF!"}}]
["Crop Miscellaneous",{"$f":"#REF!","v":{"$error":"#REF!"}},{"$f":"#REF!","v":{"$error":"#REF!"}},{"$f":"#REF!","v":{"$error":"#REF!"}}]
["Supplies",{"$f":"#REF!","v":{"$error":"#REF!"}},{"$f":"#REF!","v":{"$error":"#REF!"}},{"$f":"#REF!","v":{"$error":"#REF!"}}]
["Gas/Fuel",{"$f":"SUM(B12:B13)","v":{"$error":"#REF!"}},{"$f":"SUM(C12:C13)","v":{"$error":"#REF!"}},{"$error":"#REF!"}]
["Equipment Fuel",{"$f":"#REF!","v":{"$error":"#REF!"}},{"$f":"#REF!","v":{"$error":"#REF!"}},{"$f":"#REF!","v":{"$error":"#REF!"}}]
["Drying Propane",{"$f":"#REF!","v":{"$error":"#REF!"}},{"$f":"#REF!","v":{"$error":"#REF!"}},{"$f":"#REF!","v":{"$error":"#REF!"}}]
["Repairs & Maintenance",{"$f":"SUM(B15:B16)","v":{"$error":"#REF!"}},{"$f":"SUM(C15:C16)","v":{"$error":"#REF!"}},{"$error":"#REF!"}]
["Repair, Machinery",{"$f":"#REF!","v":{"$error":"#REF!"}},{"$f":"#REF!","v":{"$error":"#REF!"}},{"$f":"#REF!","v":{"$error":"#REF!"}}]
["Repair, Buildings",{"$f":"#REF!","v":{"$error":"#REF!"}},{"$f":"#REF!","v":{"$error":"#REF!"}},{"$f":"#REF!","v":{"$error":"#REF!"}}]
["Custom Hire",{"$f":"SUM(B18:B20)","v":{"$error":"#REF!"}},{"$f":"SUM(C18:C20)","v":{"$error":"#REF!"}},{"$error":"#REF!"}]
["Driver & Equipment Hire",{"$f":"#REF!","v":{"$error":"#REF!"}},{"$f":"#REF!","v":{"$error":"#REF!"}},{"$f":"#REF!","v":{"$error":"#REF!"}}]
["Equipment Hire",{"$f":"#REF!","v":{"$error":"#REF!"}},{"$f":"#REF!","v":{"$error":"#REF!"}},{"$f":"#REF!","v":{"$error":"#REF!"}}]
["Custom Application",{"$f":"#REF!","v":{"$error":"#REF!"}},{"$f":"#REF!","v":{"$error":"#REF!"}},{"$f":"#REF!","v":{"$error":"#REF!"}}]
["Freight & Trucking",{"$f":"#REF!","v":{"$error":"#REF!"}},{"$f":"#REF!","v":{"$error":"#REF!"}},{"$f":"#REF!","v":{"$error":"#REF!"}}]
["Storage",{"$f":"#REF!","v":{"$error":"#REF!"}},{"$f":"#REF!","v":{"$error":"#REF!"}},{"$f":"#REF!","v":{"$error":"#REF!"}}]
["Utilities",{"$f":"#REF!","v":{"$error":"#REF!"}},{"$f":"#REF!","v":{"$error":"#REF!"}},{"$f":"#REF!","v":{"$error":"#REF!"}}]
["Irrigation",{"$f":"SUM(B25:B26)","v":{"$error":"#REF!"}},{"$f":"SUM(C25:C26)","v":{"$error":"#REF!"}},{"$error":"#REF!"}]
["Repairs",{"$f":"#REF!","v":{"$error":"#REF!"}},{"$f":"#REF!","v":{"$error":"#REF!"}},{"$f":"#REF!","v":{"$error":"#REF!"}}]
["Fuel/Electricity",{"$f":"#REF!","v":{"$error":"#REF!"}},{"$f":"#REF!","v":{"$error":"#REF!"}},{"$f":"#REF!","v":{"$error":"#REF!"}}]
["Marketing",{"$f":"#REF!","v":{"$error":"#REF!"}},{"$f":"#REF!","v":{"$error":"#REF!"}},{"$f":"#REF!","v":{"$error":"#REF!"}}]
["Hired Labor",{"$f":"#REF!","v":{"$error":"#REF!"}},{"$f":"#REF!","v":{"$error":"#REF!"}},{"$f":"#REF!","v":{"$error":"#REF!"}}]
["Interest (Operating)",{"$f":"#REF!","v":{"$error":"#REF!"}},{"$f":"#REF!","v":{"$error":"#REF!"}},{"$f":"#REF!","v":{"$error":"#REF!"}}]
["Other (variable)",{"$f":"#REF!","v":{"$error":"#REF!"}},{"$f":"#REF!","v":{"$error":"#REF!"}},{"$f":"#REF!","v":{"$error":"#REF!"}}]
["Farm Insurance",{"$f":"#REF!","v":{"$error":"#REF!"}},{"$f":"#REF!","v":{"$error":"#REF!"}},{"$f":"#REF!","v":{"$error":"#REF!"}}]
["Real Estate Taxes",{"$f":"#REF!","v":{"$error":"#REF!"}},{"$f":"#REF!","v":{"$error":"#REF!"}},{"$f":"#REF!","v":{"$error":"#REF!"}}]
["Land Rent",{"$f":"#REF!","v":{"$error":"#REF!"}},{"$f":"#REF!","v":{"$error":"#REF!"}},{"$f":"#REF!","v":{"$error":"#REF!"}}]
["Depreciation (Economic )",{"$f":"#REF!","v":{"$error":"#REF!"}},{"$f":"#REF!","v":{"$error":"#REF!"}},{"$f":"#REF!","v":{"$error":"#REF!"}}]
["Other (fixed)",{"$f":"#REF!","v":{"$error":"#REF!"}},{"$f":"#REF!","v":{"$error":"#REF!"}},{"$f":"#REF!","v":{"$error":"#REF!"}}]
["Other (variable & fixed)",{"$f":"B35+B30","v":{"$error":"#REF!"}},{"$f":"C35+C30","v":{"$error":"#REF!"}},{"$f":"D35+D30","v":{"$error":"#REF!"}}]
["Income Taxes",{"$f":"#REF!","v":{"$error":"#REF!"}},{"$f":"#REF!","v":{"$error":"#REF!"}},{"$f":"#REF!","v":{"$error":"#REF!"}}]
["Owner Withdrawal",{"$f":"#REF!","v":{"$error":"#REF!"}},{"$f":"#REF!","v":{"$error":"#REF!"}},{"$f":"#REF!","v":{"$error":"#REF!"}}]
["Interest (Oper & Term)",{"$f":"B40+B29","v":{"$error":"#REF!"}},{"$f":"C40+C29","v":{"$error":"#REF!"}},{"$f":"D40+D29","v":{"$error":"#REF!"}}]
["Interest (Term)",{"$f":"#REF!","v":{"$error":"#REF!"}},{"$f":"#REF!","v":{"$error":"#REF!"}},{"$f":"#REF!","v":{"$error":"#REF!"}}]
["Principal Payment",{"$f":"#REF!","v":{"$error":"#REF!"}},{"$f":"#REF!","v":{"$error":"#REF!"}},{"$f":"#REF!","v":{"$error":"#REF!"}}]